Workbook

Sheet B
D1: TOTAL | E1: ACTIVIDADES | I1: INTERVENCIONES QUIRÚRGICAS | P1: INTERVENCIONES QUIRÚRGICAS MAYORES NO AMBULATORIAS ELECTIVAS | S1: INTERVENCIONES QUIRÚRGICAS MAYORES AMBULATORIAS ELECTIVA | V1: INTERVENCIONES QUIRÚRGICAS MAYORES AMBULATORIAS URGENCIA | Y1: INTERVENCIONES QUIRÚRGICAS MAYORES NO AMBULATORIAS URGENCIA | AB1: PROCEDENCIA | AE1: PRODUCCION INTRA HOSPITAL | AH1: OPERATIVO | AI1: COMPRAS REALIZADAS | AK1: VENTAS DE SERVICIOS | AL1: TRANSFERENCIA 2022 | AM1: TOTAL FACTURADO
B2: CODIGO | C2: GLOSA | E2: TOTAL BENEFI-CIARIOS | F2: BENEFICIARIOS | H2: NO BENEFI-CIARIOS | I2: TOTAL BENEFI- CIARIOS | J2: PRINCIPAL | M2: SECUNDARIA | S2: < 15 AÑOS | V2: < 15 AÑOS | Y2: < 15 AÑOS
F3: MAI | G3: MLE | J3: MAI | K3: MLE | L3: NO BENEFI-CIARIO | M3: MAI | N3: MLE | O3: NO BENEFI-CIARIO | P3: TOTAL | Q3: < 15 AÑOS | R3: 15 AÑOS Y MÁS | S3: TOTAL | T3: < 15 AÑOS | U3: 15 AÑOS Y MÁS | V3: TOTAL | W3: < 15 AÑOS | X3: 15 AÑOS Y MÁS | Y3: TOTAL | Z3: < 15 AÑOS | AA3: 15 AÑOS Y MÁS | AB3: ATENCION CERRADA | AC3: ATENCION ABIERTA | AD3: EMERGENCIA | AE3: POR HONO- RARIOS | AF3: POR CONVENIOS | AG3: POR CONSULTO- RES DE LLAMADA | AI3: AL SISTEMA | AJ3: EXTRA-SISTEMA
C4: CONSULTAS Y ATENCION MEDICA
C5: CONSULTAS DE ESPECIALIDADES MEDICAS
A6: 01014275 | B6: 0101201 | C6: Consulta Médica de Especialidad en Dermatología | D6: =IFERROR(VLOOKUP($A6,Filtro!$A$5:$AK$2912,2,FALSE),0) -> 2033 | E6: =IFERROR(VLOOKUP($A6,Filtro!$A$5:$AK$2912,3,FALSE),0) -> 2032 | F6: =IFERROR(VLOOKUP($A6,Filtro!$A$5:$AK$2912,4,FALSE),0) -> 2032 | G6: =IFERROR(VLOOKUP($A6,Filtro!$A$5:$AK$2912,5,FALSE),0) -> 0 | H6: =IFERROR(VLOOKUP($A6,Filtro!$A$5:$AK$2912,6,FALSE),0) -> 1 | I6: =IFERROR(VLOOKUP($A6,Filtro!$A$5:$AK$2912,7,FALSE),0) -> 0 | J6: =IFERROR(VLOOKUP($A6,Filtro!$A$5:$AK$2912,8,FALSE),0) -> 0 | K6: =IFERROR(VLOOKUP($A6,Filtro!$A$5:$AK$2912,9,FALSE),0) -> 0 | L6: =IFERROR(VLOOKUP($A6,Filtro!$A$5:$AK$2912,10,FALSE),0) -> 0 | M6: =IFERROR(VLOOKUP($A6,Filtro!$A$5:$AK$2912,11,FALSE),0) -> 0 | N6: =IFERROR(VLOOKUP($A6,Filtro!$A$5:$AK$2912,12,FALSE),0) -> 0 | O6: =IFERROR(VLOOKUP($A6,Filtro!$A$5:$AK$2912,13,FALSE),0) -> 0 | P6: =IFERROR(VLOOKUP($A6,Filtro!$A$5:$AK$2912,14,FALSE),0) -> 0 | Q6: =IFERROR(VLOOKUP($A6,Filtro!$A$5:$AK$2912,15,FALSE),0) -> 0 | R6: =IFERROR(VLOOKUP($A6,Filtro!$A$5:$AK$2912,16,FALSE),0) -> 0 | S6: =IFERROR(VLOOKUP($A6,Filtro!$A$5:$AK$2912,17,FALSE),0) -> 0 | T6: =IFERROR(VLOOKUP($A6,Filtro!$A$5:$AK$2912,18,FALSE),0) -> 0 | U6: =IFERROR(VLOOKUP($A6,Filtro!$A$5:$AK$2912,19,FALSE),0) -> 0 | V6: =IFERROR(VLOOKUP($A6,Filtro!$A$5:$AK$2912,20,FALSE),0) -> 0 | W6: =IFERROR(VLOOKUP($A6,Filtro!$A$5:$AK$2912,21,FALSE),0) -> 0 | X6: =IFERROR(VLOOKUP($A6,Filtro!$A$5:$AK$2912,22,FALSE),0) -> 0 | Y6: =IFERROR(VLOOKUP($A6,Filtro!$A$5:$AK$2912,23,FALSE),0) -> 0 | Z6: =IFERROR(VLOOKUP($A6,Filtro!$A$5:$AK$2912,24,FALSE),0) -> 0 | AA6: =IFERROR(VLOOKUP($A6,Filtro!$A$5:$AK$2912,25,FALSE),0) -> 0 | AB6: =IFERROR(VLOOKUP($A6,Filtro!$A$5:$AK$2912,26,FALSE),0) -> 0 | AC6: =IFERROR(VLOOKUP($A6,Filtro!$A$5:$AK$2912,27,FALSE),0) -> 2033 | AD6: =IFERROR(VLOOKUP($A6,Filtro!$A$5:$AK$2912,28,FALSE),0) -> 0 | AE6: =IFERROR(VLOOKUP($A6,Filtro!$A$5:$AK$2912,29,FALSE),0) -> 0 | AF6: =IFERROR(VLOOKUP($A6,Filtro!$A$5:$AK$2912,30,FALSE),0) -> 0 | AG6: =IFERROR(VLOOKUP($A6,Filtro!$A$5:$AK$2912,31,FALSE),0) -> 0 | AH6: =IFERROR(VLOOKUP($A6,Filtro!$A$5:$AK$2912,32,FALSE),0) -> 0 | AI6: =IFERROR(VLOOKUP($A6,Filtro!$A$5:$AK$2912,33,FALSE),0) -> 0 | AJ6: =IFERROR(VLOOKUP($A6,Filtro!$A$5:$AK$2912,34,FALSE),0) -> 0 | AK6: =IFERROR(VLOOKUP($A6,Filtro!$A$5:$AK$2912,35,FALSE),0) -> 0 | AL6: =IFERROR(VLOOKUP($A6,Filtro!$A$5:$AK$2912,36,FALSE),0) -> 660,650 | AM6: =IFERROR(VLOOKUP($A6,Filtro!$A$5:$AK$2912,37,FALSE),0) -> 18,389,600
A7: 01014276 | B7: 0101202 | C7: Consulta Médica de Especialidad en Geriatría | D7: =IFERROR(VLOOKUP($A7,Filtro!$A$5:$AK$2912,2,FALSE),0) -> 565 | E7: =IFERROR(VLOOKUP($A7,Filtro!$A$5:$AK$2912,3,FALSE),0) -> 565 | F7: =IFERROR(VLOOKUP($A7,Filtro!$A$5:$AK$2912,4,FALSE),0) -> 565 | G7: =IFERROR(VLOOKUP($A7,Filtro!$A$5:$AK$2912,5,FALSE),0) -> 0 | H7: =IFERROR(VLOOKUP($A7,Filtro!$A$5:$AK$2912,6,FALSE),0) -> 0 | I7: =IFERROR(VLOOKUP($A7,Filtro!$A$5:$AK$2912,7,FALSE),0) -> 0 | J7: =IFERROR(VLOOKUP($A7,Filtro!$A$5:$AK$2912,8,FALSE),0) -> 0 | K7: =IFERROR(VLOOKUP($A7,Filtro!$A$5:$AK$2912,9,FALSE),0) -> 0 | L7: =IFERROR(VLOOKUP($A7,Filtro!$A$5:$AK$2912,10,FALSE),0) -> 0 | M7: =IFERROR(VLOOKUP($A7,Filtro!$A$5:$AK$2912,11,FALSE),0) -> 0 | N7: =IFERROR(VLOOKUP($A7,Filtro!$A$5:$AK$2912,12,FALSE),0) -> 0 | O7: =IFERROR(VLOOKUP($A7,Filtro!$A$5:$AK$2912,13,FALSE),0) -> 0 | P7: =IFERROR(VLOOKUP($A7,Filtro!$A$5:$AK$2912,14,FALSE),0) -> 0 | Q7: =IFERROR(VLOOKUP($A7,Filtro!$A$5:$AK$2912,15,FALSE),0) -> 0 | R7: =IFERROR(VLOOKUP($A7,Filtro!$A$5:$AK$2912,16,FALSE),0) -> 0 | S7: =IFERROR(VLOOKUP($A7,Filtro!$A$5:$AK$2912,17,FALSE),0) -> 0 | T7: =IFERROR(VLOOKUP($A7,Filtro!$A$5:$AK$2912,18,FALSE),0) -> 0 | U7: =IFERROR(VLOOKUP($A7,Filtro!$A$5:$AK$2912,19,FALSE),0) -> 0 | V7: =IFERROR(VLOOKUP($A7,Filtro!$A$5:$AK$2912,20,FALSE),0) -> 0 | W7: =IFERROR(VLOOKUP($A7,Filtro!$A$5:$AK$2912,21,FALSE),0) -> 0 | X7: =IFERROR(VLOOKUP($A7,Filtro!$A$5:$AK$2912,22,FALSE),0) -> 0 | Y7: =IFERROR(VLOOKUP($A7,Filtro!$A$5:$AK$2912,23,FALSE),0) -> 0 | Z7: =IFERROR(VLOOKUP($A7,Filtro!$A$5:$AK$2912,24,FALSE),0) -> 0 | AA7: =IFERROR(VLOOKUP($A7,Filtro!$A$5:$AK$2912,25,FALSE),0) -> 0 | AB7: =IFERROR(VLOOKUP($A7,Filtro!$A$5:$AK$2912,26,FALSE),0) -> 0 | AC7: =IFERROR(VLOOKUP($A7,Filtro!$A$5:$AK$2912,27,FALSE),0) -> 565 | AD7: =IFERROR(VLOOKUP($A7,Filtro!$A$5:$AK$2912,28,FALSE),0) -> 0 | AE7: =IFERROR(VLOOKUP($A7,Filtro!$A$5:$AK$2912,29,FALSE),0) -> 0 | AF7: =IFERROR(VLOOKUP($A7,Filtro!$A$5:$AK$2912,30,FALSE),0) -> 0 | AG7: =IFERROR(VLOOKUP($A7,Filtro!$A$5:$AK$2912,31,FALSE),0) -> 0 | AH7: =IFERROR(VLOOKUP($A7,Filtro!$A$5:$AK$2912,32,FALSE),0) -> 0 | AI7: =IFERROR(VLOOKUP($A7,Filtro!$A$5:$AK$2912,33,FALSE),0) -> 0 | AJ7: =IFERROR(VLOOKUP($A7,Filtro!$A$5:$AK$2912,34,FALSE),0) -> 0 | AK7: =IFERROR(VLOOKUP($A7,Filtro!$A$5:$AK$2912,35,FALSE),0) -> 0 | AL7: =IFERROR(VLOOKUP($A7,Filtro!$A$5:$AK$2912,36,FALSE),0) -> 660,650 | AM7: =IFERROR(VLOOKUP($A7,Filtro!$A$5:$AK$2912,37,FALSE),0) -> 5,113,250
A8: 01014277 | B8: 0101203 | C8: Consulta Médica de Especialidad en Neurocirugía | D8: =IFERROR(VLOOKUP($A8,Filtro!$A$5:$AK$2912,2,FALSE),0) -> 2693 | E8: =IFERROR(VLOOKUP($A8,Filtro!$A$5:$AK$2912,3,FALSE),0) -> 2693 | F8: =IFERROR(VLOOKUP($A8,Filtro!$A$5:$AK$2912,4,FALSE),0) -> 2693 | G8: =IFERROR(VLOOKUP($A8,Filtro!$A$5:$AK$2912,5,FALSE),0) -> 0 | H8: =IFERROR(VLOOKUP($A8,Filtro!$A$5:$AK$2912,6,FALSE),0) -> 0 | I8: =IFERROR(VLOOKUP($A8,Filtro!$A$5:$AK$2912,7,FALSE),0) -> 0 | J8: =IFERROR(VLOOKUP($A8,Filtro!$A$5:$AK$2912,8,FALSE),0) -> 0 | K8: =IFERROR(VLOOKUP($A8,Filtro!$A$5:$AK$2912,9,FALSE),0) -> 0 | L8: =IFERROR(VLOOKUP($A8,Filtro!$A$5:$AK$2912,10,FALSE),0) -> 0 | M8: =IFERROR(VLOOKUP($A8,Filtro!$A$5:$AK$2912,11,FALSE),0) -> 0 | N8: =IFERROR(VLOOKUP($A8,Filtro!$A$5:$AK$2912,12,FALSE),0) -> 0 | O8: =IFERROR(VLOOKUP($A8,Filtro!$A$5:$AK$2912,13,FALSE),0) -> 0 | P8: =IFERROR(VLOOKUP($A8,Filtro!$A$5:$AK$2912,14,FALSE),0) -> 0 | Q8: =IFERROR(VLOOKUP($A8,Filtro!$A$5:$AK$2912,15,FALSE),0) -> 0 | R8: =IFERROR(VLOOKUP($A8,Filtro!$A$5:$AK$2912,16,FALSE),0) -> 0 | S8: =IFERROR(VLOOKUP($A8,Filtro!$A$5:$AK$2912,17,FALSE),0) -> 0 | T8: =IFERROR(VLOOKUP($A8,Filtro!$A$5:$AK$2912,18,FALSE),0) -> 0 | U8: =IFERROR(VLOOKUP($A8,Filtro!$A$5:$AK$2912,19,FALSE),0) -> 0 | V8: =IFERROR(VLOOKUP($A8,Filtro!$A$5:$AK$2912,20,FALSE),0) -> 0 | W8: =IFERROR(VLOOKUP($A8,Filtro!$A$5:$AK$2912,21,FALSE),0) -> 0 | X8: =IFERROR(VLOOKUP($A8,Filtro!$A$5:$AK$2912,22,FALSE),0) -> 0 | Y8: =IFERROR(VLOOKUP($A8,Filtro!$A$5:$AK$2912,23,FALSE),0) -> 0 | Z8: =IFERROR(VLOOKUP($A8,Filtro!$A$5:$AK$2912,24,FALSE),0) -> 0 | AA8: =IFERROR(VLOOKUP($A8,Filtro!$A$5:$AK$2912,25,FALSE),0) -> 0 | AB8: =IFERROR(VLOOKUP($A8,Filtro!$A$5:$AK$2912,26,FALSE),0) -> 0 | AC8: =IFERROR(VLOOKUP($A8,Filtro!$A$5:$AK$2912,27,FALSE),0) -> 2693 | AD8: =IFERROR(VLOOKUP($A8,Filtro!$A$5:$AK$2912,28,FALSE),0) -> 0 | AE8: =IFERROR(VLOOKUP($A8,Filtro!$A$5:$AK$2912,29,FALSE),0) -> 0 | AF8: =IFERROR(VLOOKUP($A8,Filtro!$A$5:$AK$2912,30,FALSE),0) -> 0 | AG8: =IFERROR(VLOOKUP($A8,Filtro!$A$5:$AK$2912,31,FALSE),0) -> 0 | AH8: =IFERROR(VLOOKUP($A8,Filtro!$A$5:$AK$2912,32,FALSE),0) -> 0 | AI8: =IFERROR(VLOOKUP($A8,Filtro!$A$5:$AK$2912,33,FALSE),0) -> 0 | AJ8: =IFERROR(VLOOKUP($A8,Filtro!$A$5:$AK$2912,34,FALSE),0) -> 0 | AK8: =IFERROR(VLOOKUP($A8,Filtro!$A$5:$AK$2912,35,FALSE),0) -> 0 | AL8: =IFERROR(VLOOKUP($A8,Filtro!$A$5:$AK$2912,36,FALSE),0) -> 660,650 | AM8: =IFERROR(VLOOKUP($A8,Filtro!$A$5:$AK$2912,37,FALSE),0) -> 24,371,650
A9: 01014278 | B9: 0101204 | C9: Consulta Médica de Especialidad en Oftalmología | D9: =IFERROR(VLOOKUP($A9,Filtro!$A$5:$AK$2912,2,FALSE),0) -> 8900 | E9: =IFERROR(VLOOKUP($A9,Filtro!$A$5:$AK$2912,3,FALSE),0) -> 8877 | F9: =IFERROR(VLOOKUP($A9,Filtro!$A$5:$AK$2912,4,FALSE),0) -> 8877 | G9: =IFERROR(VLOOKUP($A9,Filtro!$A$5:$AK$2912,5,FALSE),0) -> 0 | H9: =IFERROR(VLOOKUP($A9,Filtro!$A$5:$AK$2912,6,FALSE),0) -> 23 | I9: =IFERROR(VLOOKUP($A9,Filtro!$A$5:$AK$2912,7,FALSE),0) -> 0 | J9: =IFERROR(VLOOKUP($A9,Filtro!$A$5:$AK$2912,8,FALSE),0) -> 0 | K9: =IFERROR(VLOOKUP($A9,Filtro!$A$5:$AK$2912,9,FALSE),0) -> 0 | L9: =IFERROR(VLOOKUP($A9,Filtro!$A$5:$AK$2912,10,FALSE),0) -> 0 | M9: =IFERROR(VLOOKUP($A9,Filtro!$A$5:$AK$2912,11,FALSE),0) -> 0 | N9: =IFERROR(VLOOKUP($A9,Filtro!$A$5:$AK$2912,12,FALSE),0) -> 0 | O9: =IFERROR(VLOOKUP($A9,Filtro!$A$5:$AK$2912,13,FALSE),0) -> 0 | P9: =IFERROR(VLOOKUP($A9,Filtro!$A$5:$AK$2912,14,FALSE),0) -> 0 | Q9: =IFERROR(VLOOKUP($A9,Filtro!$A$5:$AK$2912,15,FALSE),0) -> 0 | R9: =IFERROR(VLOOKUP($A9,Filtro!$A$5:$AK$2912,16,FALSE),0) -> 0 | S9: =IFERROR(VLOOKUP($A9,Filtro!$A$5:$AK$2912,17,FALSE),0) -> 0 | T9: =IFERROR(VLOOKUP($A9,Filtro!$A$5:$AK$2912,18,FALSE),0) -> 0 | U9: =IFERROR(VLOOKUP($A9,Filtro!$A$5:$AK$2912,19,FALSE),0) -> 0 | V9: =IFERROR(VLOOKUP($A9,Filtro!$A$5:$AK$2912,20,FALSE),0) -> 0 | W9: =IFERROR(VLOOKUP($A9,Filtro!$A$5:$AK$2912,21,FALSE),0) -> 0 | X9: =IFERROR(VLOOKUP($A9,Filtro!$A$5:$AK$2912,22,FALSE),0) -> 0 | Y9: =IFERROR(VLOOKUP($A9,Filtro!$A$5:$AK$2912,23,FALSE),0) -> 0 | Z9: =IFERROR(VLOOKUP($A9,Filtro!$A$5:$AK$2912,24,FALSE),0) -> 0 | AA9: =IFERROR(VLOOKUP($A9,Filtro!$A$5:$AK$2912,25,FALSE),0) -> 0 | AB9: =IFERROR(VLOOKUP($A9,Filtro!$A$5:$AK$2912,26,FALSE),0) -> 0 | AC9: =IFERROR(VLOOKUP($A9,Filtro!$A$5:$AK$2912,27,FALSE),0) -> 8900 | AD9: =IFERROR(VLOOKUP($A9,Filtro!$A$5:$AK$2912,28,FALSE),0) -> 0 | AE9: =IFERROR(VLOOKUP($A9,Filtro!$A$5:$AK$2912,29,FALSE),0) -> 131 | AF9: =IFERROR(VLOOKUP($A9,Filtro!$A$5:$AK$2912,30,FALSE),0) -> 0 | AG9: =IFERROR(VLOOKUP($A9,Filtro!$A$5:$AK$2912,31,FALSE),0) -> 0 | AH9: =IFERROR(VLOOKUP($A9,Filtro!$A$5:$AK$2912,32,FALSE),0) -> 0 | AI9: =IFERROR(VLOOKUP($A9,Filtro!$A$5:$AK$2912,33,FALSE),0) -> 0 | AJ9: =IFERROR(VLOOKUP($A9,Filtro!$A$5:$AK$2912,34,FALSE),0) -> 0 | AK9: =IFERROR(VLOOKUP($A9,Filtro!$A$5:$AK$2912,35,FALSE),0) -> 0 | AL9: =IFERROR(VLOOKUP($A9,Filtro!$A$5:$AK$2912,36,FALSE),0) -> 660,650 | AM9: =IFERROR(VLOOKUP($A9,Filtro!$A$5:$AK$2912,37,FALSE),0) -> 80,336,850
A10: 01014279 | B10: 0101205 | C10: Consulta Médica de Especialidad en Otorrinolaringología | D10: =IFERROR(VLOOKUP($A10,Filtro!$A$5:$AK$2912,2,FALSE),0) -> 8203 | E10: =IFERROR(VLOOKUP($A10,Filtro!$A$5:$AK$2912,3,FALSE),0) -> 8190 | F10: =IFERROR(VLOOKUP($A10,Filtro!$A$5:$AK$2912,4,FALSE),0) -> 8190 | G10: =IFERROR(VLOOKUP($A10,Filtro!$A$5:$AK$2912,5,FALSE),0) -> 0 | H10: =IFERROR(VLOOKUP($A10,Filtro!$A$5:$AK$2912,6,FALSE),0) -> 13 | I10: =IFERROR(VLOOKUP($A10,Filtro!$A$5:$AK$2912,7,FALSE),0) -> 0 | J10: =IFERROR(VLOOKUP($A10,Filtro!$A$5:$AK$2912,8,FALSE),0) -> 0 | K10: =IFERROR(VLOOKUP($A10,Filtro!$A$5:$AK$2912,9,FALSE),0) -> 0 | L10: =IFERROR(VLOOKUP($A10,Filtro!$A$5:$AK$2912,10,FALSE),0) -> 0 | M10: =IFERROR(VLOOKUP($A10,Filtro!$A$5:$AK$2912,11,FALSE),0) -> 0 | N10: =IFERROR(VLOOKUP($A10,Filtro!$A$5:$AK$2912,12,FALSE),0) -> 0 | O10: =IFERROR(VLOOKUP($A10,Filtro!$A$5:$AK$2912,13,FALSE),0) -> 0 | P10: =IFERROR(VLOOKUP($A10,Filtro!$A$5:$AK$2912,14,FALSE),0) -> 0 | Q10: =IFERROR(VLOOKUP($A10,Filtro!$A$5:$AK$2912,15,FALSE),0) -> 0 | R10: =IFERROR(VLOOKUP($A10,Filtro!$A$5:$AK$2912,16,FALSE),0) -> 0 | S10: =IFERROR(VLOOKUP($A10,Filtro!$A$5:$AK$2912,17,FALSE),0) -> 0 | T10: =IFERROR(VLOOKUP($A10,Filtro!$A$5:$AK$2912,18,FALSE),0) -> 0 | U10: =IFERROR(VLOOKUP($A10,Filtro!$A$5:$AK$2912,19,FALSE),0) -> 0 | V10: =IFERROR(VLOOKUP($A10,Filtro!$A$5:$AK$2912,20,FALSE),0) -> 0 | W10: =IFERROR(VLOOKUP($A10,Filtro!$A$5:$AK$2912,21,FALSE),0) -> 0 | X10: =IFERROR(VLOOKUP($A10,Filtro!$A$5:$AK$2912,22,FALSE),0) -> 0 | Y10: =IFERROR(VLOOKUP($A10,Filtro!$A$5:$AK$2912,23,FALSE),0) -> 0 | Z10: =IFERROR(VLOOKUP($A10,Filtro!$A$5:$AK$2912,24,FALSE),0) -> 0 | AA10: =IFERROR(VLOOKUP($A10,Filtro!$A$5:$AK$2912,25,FALSE),0) -> 0 | AB10: =IFERROR(VLOOKUP($A10,Filtro!$A$5:$AK$2912,26,FALSE),0) -> 0 | AC10: =IFERROR(VLOOKUP($A10,Filtro!$A$5:$AK$2912,27,FALSE),0) -> 8203 | AD10: =IFERROR(VLOOKUP($A10,Filtro!$A$5:$AK$2912,28,FALSE),0) -> 0 | AE10: =IFERROR(VLOOKUP($A10,Filtro!$A$5:$AK$2912,29,FALSE),0) -> 1141 | AF10: =IFERROR(VLOOKUP($A10,Filtro!$A$5:$AK$2912,30,FALSE),0) -> 0 | AG10: =IFERROR(VLOOKUP($A10,Filtro!$A$5:$AK$2912,31,FALSE),0) -> 0 | AH10: =IFERROR(VLOOKUP($A10,Filtro!$A$5:$AK$2912,32,FALSE),0) -> 0 | AI10: =IFERROR(VLOOKUP($A10,Filtro!$A$5:$AK$2912,33,FALSE),0) -> 0 | AJ10: =IFERROR(VLOOKUP($A10,Filtro!$A$5:$AK$2912,34,FALSE),0) -> 0 | AK10: =IFERROR(VLOOKUP($A10,Filtro!$A$5:$AK$2912,35,FALSE),0) -> 0 | AL10: =IFERROR(VLOOKUP($A10,Filtro!$A$5:$AK$2912,36,FALSE),0) -> 660,650 | AM10: =IFERROR(VLOOKUP($A10,Filtro!$A$5:$AK$2912,37,FALSE),0) -> 74,119,500
A11: 01014280 | B11: 0101206 | C11: Consulta Médica de Especialidad en Reumatología | D11: =IFERROR(VLOOKUP($A11,Filtro!$A$5:$AK$2912,2,FALSE),0) -> 2175 | E11: =IFERROR(VLOOKUP($A11,Filtro!$A$5:$AK$2912,3,FALSE),0) -> 2174 | F11: =IFERROR(VLOOKUP($A11,Filtro!$A$5:$AK$2912,4,FALSE),0) -> 2174 | G11: =IFERROR(VLOOKUP($A11,Filtro!$A$5:$AK$2912,5,FALSE),0) -> 0 | H11: =IFERROR(VLOOKUP($A11,Filtro!$A$5:$AK$2912,6,FALSE),0) -> 1 | I11: =IFERROR(VLOOKUP($A11,Filtro!$A$5:$AK$2912,7,FALSE),0) -> 0 | J11: =IFERROR(VLOOKUP($A11,Filtro!$A$5:$AK$2912,8,FALSE),0) -> 0 | K11: =IFERROR(VLOOKUP($A11,Filtro!$A$5:$AK$2912,9,FALSE),0) -> 0 | L11: =IFERROR(VLOOKUP($A11,Filtro!$A$5:$AK$2912,10,FALSE),0) -> 0 | M11: =IFERROR(VLOOKUP($A11,Filtro!$A$5:$AK$2912,11,FALSE),0) -> 0 | N11: =IFERROR(VLOOKUP($A11,Filtro!$A$5:$AK$2912,12,FALSE),0) -> 0 | O11: =IFERROR(VLOOKUP($A11,Filtro!$A$5:$AK$2912,13,FALSE),0) -> 0 | P11: =IFERROR(VLOOKUP($A11,Filtro!$A$5:$AK$2912,14,FALSE),0) -> 0 | Q11: =IFERROR(VLOOKUP($A11,Filtro!$A$5:$AK$2912,15,FALSE),0) -> 0 | R11: =IFERROR(VLOOKUP($A11,Filtro!$A$5:$AK$2912,16,FALSE),0) -> 0 | S11: =IFERROR(VLOOKUP($A11,Filtro!$A$5:$AK$2912,17,FALSE),0) -> 0 | T11: =IFERROR(VLOOKUP($A11,Filtro!$A$5:$AK$2912,18,FALSE),0) -> 0 | U11: =IFERROR(VLOOKUP($A11,Filtro!$A$5:$AK$2912,19,FALSE),0) -> 0 | V11: =IFERROR(VLOOKUP($A11,Filtro!$A$5:$AK$2912,20,FALSE),0) -> 0 | W11: =IFERROR(VLOOKUP($A11,Filtro!$A$5:$AK$2912,21,FALSE),0) -> 0 | X11: =IFERROR(VLOOKUP($A11,Filtro!$A$5:$AK$2912,22,FALSE),0) -> 0 | Y11: =IFERROR(VLOOKUP($A11,Filtro!$A$5:$AK$2912,23,FALSE),0) -> 0 | Z11: =IFERROR(VLOOKUP($A11,Filtro!$A$5:$AK$2912,24,FALSE),0) -> 0 | AA11: =IFERROR(VLOOKUP($A11,Filtro!$A$5:$AK$2912,25,FALSE),0) -> 0 | AB11: =IFERROR(VLOOKUP($A11,Filtro!$A$5:$AK$2912,26,FALSE),0) -> 0 | AC11: =IFERROR(VLOOKUP($A11,Filtro!$A$5:$AK$2912,27,FALSE),0) -> 2175 | AD11: =IFERROR(VLOOKUP($A11,Filtro!$A$5:$AK$2912,28,FALSE),0) -> 0 | AE11: =IFERROR(VLOOKUP($A11,Filtro!$A$5:$AK$2912,29,FALSE),0) -> 0 | AF11: =IFERROR(VLOOKUP($A11,Filtro!$A$5:$AK$2912,30,FALSE),0) -> 0 | AG11: =IFERROR(VLOOKUP($A11,Filtro!$A$5:$AK$2912,31,FALSE),0) -> 0 | AH11: =IFERROR(VLOOKUP($A11,Filtro!$A$5:$AK$2912,32,FALSE),0) -> 0 | AI11: =IFERROR(VLOOKUP($A11,Filtro!$A$5:$AK$2912,33,FALSE),0) -> 0 | AJ11: =IFERROR(VLOOKUP($A11,Filtro!$A$5:$AK$2912,34,FALSE),0) -> 0 | AK11: =IFERROR(VLOOKUP($A11,Filtro!$A$5:$AK$2912,35,FALSE),0) -> 0 | AL11: =IFERROR(VLOOKUP($A11,Filtro!$A$5:$AK$2912,36,FALSE),0) -> 660,650 | AM11: =IFERROR(VLOOKUP($A11,Filtro!$A$5:$AK$2912,37,FALSE),0) -> 19,674,700
A12: 01014281 | B12: 0101207 | C12: Consulta Médica de Especialidad en Endocrinología Adulto | D12: =IFERROR(VLOOKUP($A12,Filtro!$A$5:$AK$2912,2,FALSE),0) -> 2233 | E12: =IFERROR(VLOOKUP($A12,Filtro!$A$5:$AK$2912,3,FALSE),0) -> 2233 | F12: =IFERROR(VLOOKUP($A12,Filtro!$A$5:$AK$2912,4,FALSE),0) -> 2233 | G12: =IFERROR(VLOOKUP($A12,Filtro!$A$5:$AK$2912,5,FALSE),0) -> 0 | H12: =IFERROR(VLOOKUP($A12,Filtro!$A$5:$AK$2912,6,FALSE),0) -> 0 | I12: =IFERROR(VLOOKUP($A12,Filtro!$A$5:$AK$2912,7,FALSE),0) -> 0 | J12: =IFERROR(VLOOKUP($A12,Filtro!$A$5:$AK$2912,8,FALSE),0) -> 0 | K12: =IFERROR(VLOOKUP($A12,Filtro!$A$5:$AK$2912,9,FALSE),0) -> 0 | L12: =IFERROR(VLOOKUP($A12,Filtro!$A$5:$AK$2912,10,FALSE),0) -> 0 | M12: =IFERROR(VLOOKUP($A12,Filtro!$A$5:$AK$2912,11,FALSE),0) -> 0 | N12: =IFERROR(VLOOKUP($A12,Filtro!$A$5:$AK$2912,12,FALSE),0) -> 0 | O12: =IFERROR(VLOOKUP($A12,Filtro!$A$5:$AK$2912,13,FALSE),0) -> 0 | P12: =IFERROR(VLOOKUP($A12,Filtro!$A$5:$AK$2912,14,FALSE),0) -> 0 | Q12: =IFERROR(VLOOKUP($A12,Filtro!$A$5:$AK$2912,15,FALSE),0) -> 0 | R12: =IFERROR(VLOOKUP($A12,Filtro!$A$5:$AK$2912,16,FALSE),0) -> 0 | S12: =IFERROR(VLOOKUP($A12,Filtro!$A$5:$AK$2912,17,FALSE),0) -> 0 | T12: =IFERROR(VLOOKUP($A12,Filtro!$A$5:$AK$2912,18,FALSE),0) -> 0 | U12: =IFERROR(VLOOKUP($A12,Filtro!$A$5:$AK$2912,19,FALSE),0) -> 0 | V12: =IFERROR(VLOOKUP($A12,Filtro!$A$5:$AK$2912,20,FALSE),0) -> 0 | W12: =IFERROR(VLOOKUP($A12,Filtro!$A$5:$AK$2912,21,FALSE),0) -> 0 | X12: =IFERROR(VLOOKUP($A12,Filtro!$A$5:$AK$2912,22,FALSE),0) -> 0 | Y12: =IFERROR(VLOOKUP($A12,Filtro!$A$5:$AK$2912,23,FALSE),0) -> 0 | Z12: =IFERROR(VLOOKUP($A12,Filtro!$A$5:$AK$2912,24,FALSE),0) -> 0 | AA12: =IFERROR(VLOOKUP($A12,Filtro!$A$5:$AK$2912,25,FALSE),0) -> 0 | AB12: =IFERROR(VLOOKUP($A12,Filtro!$A$5:$AK$2912,26,FALSE),0) -> 0 | AC12: =IFERROR(VLOOKUP($A12,Filtro!$A$5:$AK$2912,27,FALSE),0) -> 2233 | AD12: =IFERROR(VLOOKUP($A12,Filtro!$A$5:$AK$2912,28,FALSE),0) -> 0 | AE12: =IFERROR(VLOOKUP($A12,Filtro!$A$5:$AK$2912,29,FALSE),0) -> 0 | AF12: =IFERROR(VLOOKUP($A12,Filtro!$A$5:$AK$2912,30,FALSE),0) -> 0 | AG12: =IFERROR(VLOOKUP($A12,Filtro!$A$5:$AK$2912,31,FALSE),0) -> 0 | AH12: =IFERROR(VLOOKUP($A12,Filtro!$A$5:$AK$2912,32,FALSE),0) -> 0 | AI12: =IFERROR(VLOOKUP($A12,Filtro!$A$5:$AK$2912,33,FALSE),0) -> 0 | AJ12: =IFERROR(VLOOKUP($A12,Filtro!$A$5:$AK$2912,34,FALSE),0) -> 0 | AK12: =IFERROR(VLOOKUP($A12,Filtro!$A$5:$AK$2912,35,FALSE),0) -> 0 | AL12: =IFERROR(VLOOKUP($A12,Filtro!$A$5:$AK$2912,36,FALSE),0) -> 660,650 | AM12: =IFERROR(VLOOKUP($A12,Filtro!$A$5:$AK$2912,37,FALSE),0) -> 20,208,650
A13: 01014282 | B13: 0101208 | C13: Consulta Médica de Especialidad en Endocrinología Pediátrica | D13: =IFERROR(VLOOKUP($A13,Filtro!$A$5:$AK$2912,2,FALSE),0) -> 2027 | E13: =IFERROR(VLOOKUP($A13,Filtro!$A$5:$AK$2912,3,FALSE),0) -> 2027 | F13: =IFERROR(VLOOKUP($A13,Filtro!$A$5:$AK$2912,4,FALSE),0) -> 2027 | G13: =IFERROR(VLOOKUP($A13,Filtro!$A$5:$AK$2912,5,FALSE),0) -> 0 | H13: =IFERROR(VLOOKUP($A13,Filtro!$A$5:$AK$2912,6,FALSE),0) -> 0 | I13: =IFERROR(VLOOKUP($A13,Filtro!$A$5:$AK$2912,7,FALSE),0) -> 0 | J13: =IFERROR(VLOOKUP($A13,Filtro!$A$5:$AK$2912,8,FALSE),0) -> 0 | K13: =IFERROR(VLOOKUP($A13,Filtro!$A$5:$AK$2912,9,FALSE),0) -> 0 | L13: =IFERROR(VLOOKUP($A13,Filtro!$A$5:$AK$2912,10,FALSE),0) -> 0 | M13: =IFERROR(VLOOKUP($A13,Filtro!$A$5:$AK$2912,11,FALSE),0) -> 0 | N13: =IFERROR(VLOOKUP($A13,Filtro!$A$5:$AK$2912,12,FALSE),0) -> 0 | O13: =IFERROR(VLOOKUP($A13,Filtro!$A$5:$AK$2912,13,FALSE),0) -> 0 | P13: =IFERROR(VLOOKUP($A13,Filtro!$A$5:$AK$2912,14,FALSE),0) -> 0 | Q13: =IFERROR(VLOOKUP($A13,Filtro!$A$5:$AK$2912,15,FALSE),0) -> 0 | R13: =IFERROR(VLOOKUP($A13,Filtro!$A$5:$AK$2912,16,FALSE),0) -> 0 | S13: =IFERROR(VLOOKUP($A13,Filtro!$A$5:$AK$2912,17,FALSE),0) -> 0 | T13: =IFERROR(VLOOKUP($A13,Filtro!$A$5:$AK$2912,18,FALSE),0) -> 0 | U13: =IFERROR(VLOOKUP($A13,Filtro!$A$5:$AK$2912,19,FALSE),0) -> 0 | V13: =IFERROR(VLOOKUP($A13,Filtro!$A$5:$AK$2912,20,FALSE),0) -> 0 | W13: =IFERROR(VLOOKUP($A13,Filtro!$A$5:$AK$2912,21,FALSE),0) -> 0 | X13: =IFERROR(VLOOKUP($A13,Filtro!$A$5:$AK$2912,22,FALSE),0) -> 0 | Y13: =IFERROR(VLOOKUP($A13,Filtro!$A$5:$AK$2912,23,FALSE),0) -> 0 | Z13: =IFERROR(VLOOKUP($A13,Filtro!$A$5:$AK$2912,24,FALSE),0) -> 0 | AA13: =IFERROR(VLOOKUP($A13,Filtro!$A$5:$AK$2912,25,FALSE),0) -> 0 | AB13: =IFERROR(VLOOKUP($A13,Filtro!$A$5:$AK$2912,26,FALSE),0) -> 0 | AC13: =IFERROR(VLOOKUP($A13,Filtro!$A$5:$AK$2912,27,FALSE),0) -> 2027 | AD13: =IFERROR(VLOOKUP($A13,Filtro!$A$5:$AK$2912,28,FALSE),0) -> 0 | AE13: =IFERROR(VLOOKUP($A13,Filtro!$A$5:$AK$2912,29,FALSE),0) -> 0 | AF13: =IFERROR(VLOOKUP($A13,Filtro!$A$5:$AK$2912,30,FALSE),0) -> 0 | AG13: =IFERROR(VLOOKUP($A13,Filtro!$A$5:$AK$2912,31,FALSE),0) -> 0 | AH13: =IFERROR(VLOOKUP($A13,Filtro!$A$5:$AK$2912,32,FALSE),0) -> 0 | AI13: =IFERROR(VLOOKUP($A13,Filtro!$A$5:$AK$2912,33,FALSE),0) -> 0 | AJ13: =IFERROR(VLOOKUP($A13,Filtro!$A$5:$AK$2912,34,FALSE),0) -> 0 | AK13: =IFERROR(VLOOKUP($A13,Filtro!$A$5:$AK$2912,35,FALSE),0) -> 0 | AL13: =IFERROR(VLOOKUP($A13,Filtro!$A$5:$AK$2912,36,FALSE),0) -> 660,650 | AM13: =IFERROR(VLOOKUP($A13,Filtro!$A$5:$AK$2912,37,FALSE),0) -> 18,344,350
A14: 01014283 | B14: 0101209 | C14: Consulta Médica de Especialidad en Neurología Adultos | D14: =IFERROR(VLOOKUP($A14,Filtro!$A$5:$AK$2912,2,FALSE),0) -> 4213 | E14: =IFERROR(VLOOKUP($A14,Filtro!$A$5:$AK$2912,3,FALSE),0) -> 4211 | F14: =IFERROR(VLOOKUP($A14,Filtro!$A$5:$AK$2912,4,FALSE),0) -> 4211 | G14: =IFERROR(VLOOKUP($A14,Filtro!$A$5:$AK$2912,5,FALSE),0) -> 0 | H14: =IFERROR(VLOOKUP($A14,Filtro!$A$5:$AK$2912,6,FALSE),0) -> 2 | I14: =IFERROR(VLOOKUP($A14,Filtro!$A$5:$AK$2912,7,FALSE),0) -> 0 | J14: =IFERROR(VLOOKUP($A14,Filtro!$A$5:$AK$2912,8,FALSE),0) -> 0 | K14: =IFERROR(VLOOKUP($A14,Filtro!$A$5:$AK$2912,9,FALSE),0) -> 0 | L14: =IFERROR(VLOOKUP($A14,Filtro!$A$5:$AK$2912,10,FALSE),0) -> 0 | M14: =IFERROR(VLOOKUP($A14,Filtro!$A$5:$AK$2912,11,FALSE),0) -> 0 | N14: =IFERROR(VLOOKUP($A14,Filtro!$A$5:$AK$2912,12,FALSE),0) -> 0 | O14: =IFERROR(VLOOKUP($A14,Filtro!$A$5:$AK$2912,13,FALSE),0) -> 0 | P14: =IFERROR(VLOOKUP($A14,Filtro!$A$5:$AK$2912,14,FALSE),0) -> 0 | Q14: =IFERROR(VLOOKUP($A14,Filtro!$A$5:$AK$2912,15,FALSE),0) -> 0 | R14: =IFERROR(VLOOKUP($A14,Filtro!$A$5:$AK$2912,16,FALSE),0) -> 0 | S14: =IFERROR(VLOOKUP($A14,Filtro!$A$5:$AK$2912,17,FALSE),0) -> 0 | T14: =IFERROR(VLOOKUP($A14,Filtro!$A$5:$AK$2912,18,FALSE),0) -> 0 | U14: =IFERROR(VLOOKUP($A14,Filtro!$A$5:$AK$2912,19,FALSE),0) -> 0 | V14: =IFERROR(VLOOKUP($A14,Filtro!$A$5:$AK$2912,20,FALSE),0) -> 0 | W14: =IFERROR(VLOOKUP($A14,Filtro!$A$5:$AK$2912,21,FALSE),0) -> 0 | X14: =IFERROR(VLOOKUP($A14,Filtro!$A$5:$AK$2912,22,FALSE),0) -> 0 | Y14: =IFERROR(VLOOKUP($A14,Filtro!$A$5:$AK$2912,23,FALSE),0) -> 0 | Z14: =IFERROR(VLOOKUP($A14,Filtro!$A$5:$AK$2912,24,FALSE),0) -> 0 | AA14: =IFERROR(VLOOKUP($A14,Filtro!$A$5:$AK$2912,25,FALSE),0) -> 0 | AB14: =IFERROR(VLOOKUP($A14,Filtro!$A$5:$AK$2912,26,FALSE),0) -> 0 | AC14: =IFERROR(VLOOKUP($A14,Filtro!$A$5:$AK$2912,27,FALSE),0) -> 4213 | AD14: =IFERROR(VLOOKUP($A14,Filtro!$A$5:$AK$2912,28,FALSE),0) -> 0 | AE14: =IFERROR(VLOOKUP($A14,Filtro!$A$5:$AK$2912,29,FALSE),0) -> 158 | AF14: =IFERROR(VLOOKUP($A14,Filtro!$A$5:$AK$2912,30,FALSE),0) -> 0 | AG14: =IFERROR(VLOOKUP($A14,Filtro!$A$5:$AK$2912,31,FALSE),0) -> 0 | AH14: =IFERROR(VLOOKUP($A14,Filtro!$A$5:$AK$2912,32,FALSE),0) -> 0 | AI14: =IFERROR(VLOOKUP($A14,Filtro!$A$5:$AK$2912,33,FALSE),0) -> 0 | AJ14: =IFERROR(VLOOKUP($A14,Filtro!$A$5:$AK$2912,34,FALSE),0) -> 0 | AK14: =IFERROR(VLOOKUP($A14,Filtro!$A$5:$AK$2912,35,FALSE),0) -> 0 | AL14: =IFERROR(VLOOKUP($A14,Filtro!$A$5:$AK$2912,36,FALSE),0) -> 660,650 | AM14: =IFERROR(VLOOKUP($A14,Filtro!$A$5:$AK$2912,37,FALSE),0) -> 38,109,550
A15: 01014284 | B15: 0101210 | C15: Consulta Médica de Especialidad en Neurología Pediátrica | D15: =IFERROR(VLOOKUP($A15,Filtro!$A$5:$AK$2912,2,FALSE),0) -> 3177 | E15: =IFERROR(VLOOKUP($A15,Filtro!$A$5:$AK$2912,3,FALSE),0) -> 3174 | F15: =IFERROR(VLOOKUP($A15,Filtro!$A$5:$AK$2912,4,FALSE),0) -> 3174 | G15: =IFERROR(VLOOKUP($A15,Filtro!$A$5:$AK$2912,5,FALSE),0) -> 0 | H15: =IFERROR(VLOOKUP($A15,Filtro!$A$5:$AK$2912,6,FALSE),0) -> 3 | I15: =IFERROR(VLOOKUP($A15,Filtro!$A$5:$AK$2912,7,FALSE),0) -> 0 | J15: =IFERROR(VLOOKUP($A15,Filtro!$A$5:$AK$2912,8,FALSE),0) -> 0 | K15: =IFERROR(VLOOKUP($A15,Filtro!$A$5:$AK$2912,9,FALSE),0) -> 0 | L15: =IFERROR(VLOOKUP($A15,Filtro!$A$5:$AK$2912,10,FALSE),0) -> 0 | M15: =IFERROR(VLOOKUP($A15,Filtro!$A$5:$AK$2912,11,FALSE),0) -> 0 | N15: =IFERROR(VLOOKUP($A15,Filtro!$A$5:$AK$2912,12,FALSE),0) -> 0 | O15: =IFERROR(VLOOKUP($A15,Filtro!$A$5:$AK$2912,13,FALSE),0) -> 0 | P15: =IFERROR(VLOOKUP($A15,Filtro!$A$5:$AK$2912,14,FALSE),0) -> 0 | Q15: =IFERROR(VLOOKUP($A15,Filtro!$A$5:$AK$2912,15,FALSE),0) -> 0 | R15: =IFERROR(VLOOKUP($A15,Filtro!$A$5:$AK$2912,16,FALSE),0) -> 0 | S15: =IFERROR(VLOOKUP($A15,Filtro!$A$5:$AK$2912,17,FALSE),0) -> 0 | T15: =IFERROR(VLOOKUP($A15,Filtro!$A$5:$AK$2912,18,FALSE),0) -> 0 | U15: =IFERROR(VLOOKUP($A15,Filtro!$A$5:$AK$2912,19,FALSE),0) -> 0 | V15: =IFERROR(VLOOKUP($A15,Filtro!$A$5:$AK$2912,20,FALSE),0) -> 0 | W15: =IFERROR(VLOOKUP($A15,Filtro!$A$5:$AK$2912,21,FALSE),0) -> 0 | X15: =IFERROR(VLOOKUP($A15,Filtro!$A$5:$AK$2912,22,FALSE),0) -> 0 | Y15: =IFERROR(VLOOKUP($A15,Filtro!$A$5:$AK$2912,23,FALSE),0) -> 0 | Z15: =IFERROR(VLOOKUP($A15,Filtro!$A$5:$AK$2912,24,FALSE),0) -> 0 | AA15: =IFERROR(VLOOKUP($A15,Filtro!$A$5:$AK$2912,25,FALSE),0) -> 0 | AB15: =IFERROR(VLOOKUP($A15,Filtro!$A$5:$AK$2912,26,FALSE),0) -> 0 | AC15: =IFERROR(VLOOKUP($A15,Filtro!$A$5:$AK$2912,27,FALSE),0) -> 3177 | AD15: =IFERROR(VLOOKUP($A15,Filtro!$A$5:$AK$2912,28,FALSE),0) -> 0 | AE15: =IFERROR(VLOOKUP($A15,Filtro!$A$5:$AK$2912,29,FALSE),0) -> 0 | AF15: =IFERROR(VLOOKUP($A15,Filtro!$A$5:$AK$2912,30,FALSE),0) -> 0 | AG15: =IFERROR(VLOOKUP($A15,Filtro!$A$5:$AK$2912,31,FALSE),0) -> 0 | AH15: =IFERROR(VLOOKUP($A15,Filtro!$A$5:$AK$2912,32,FALSE),0) -> 0 | AI15: =IFERROR(VLOOKUP($A15,Filtro!$A$5:$AK$2912,33,FALSE),0) -> 0 | AJ15: =IFERROR(VLOOKUP($A15,Filtro!$A$5:$AK$2912,34,FALSE),0) -> 0 | AK15: =IFERROR(VLOOKUP($A15,Filtro!$A$5:$AK$2912,35,FALSE),0) -> 0 | AL15: =IFERROR(VLOOKUP($A15,Filtro!$A$5:$AK$2912,36,FALSE),0) -> 660,650 | AM15: =IFERROR(VLOOKUP($A15,Filtro!$A$5:$AK$2912,37,FALSE),0) -> 28,724,700
A16: 01014285 | B16: 0101211 | C16: Consulta Médica de Especialidad en Oncología Médica | D16: =IFERROR(VLOOKUP($A16,Filtro!$A$5:$AK$2912,2,FALSE),0) -> 4056 | E16: =IFERROR(VLOOKUP($A16,Filtro!$A$5:$AK$2912,3,FALSE),0) -> 4054 | F16: =IFERROR(VLOOKUP($A16,Filtro!$A$5:$AK$2912,4,FALSE),0) -> 4054 | G16: =IFERROR(VLOOKUP($A16,Filtro!$A$5:$AK$2912,5,FALSE),0) -> 0 | H16: =IFERROR(VLOOKUP($A16,Filtro!$A$5:$AK$2912,6,FALSE),0) -> 2 | I16: =IFERROR(VLOOKUP($A16,Filtro!$A$5:$AK$2912,7,FALSE),0) -> 0 | J16: =IFERROR(VLOOKUP($A16,Filtro!$A$5:$AK$2912,8,FALSE),0) -> 0 | K16: =IFERROR(VLOOKUP($A16,Filtro!$A$5:$AK$2912,9,FALSE),0) -> 0 | L16: =IFERROR(VLOOKUP($A16,Filtro!$A$5:$AK$2912,10,FALSE),0) -> 0 | M16: =IFERROR(VLOOKUP($A16,Filtro!$A$5:$AK$2912,11,FALSE),0) -> 0 | N16: =IFERROR(VLOOKUP($A16,Filtro!$A$5:$AK$2912,12,FALSE),0) -> 0 | O16: =IFERROR(VLOOKUP($A16,Filtro!$A$5:$AK$2912,13,FALSE),0) -> 0 | P16: =IFERROR(VLOOKUP($A16,Filtro!$A$5:$AK$2912,14,FALSE),0) -> 0 | Q16: =IFERROR(VLOOKUP($A16,Filtro!$A$5:$AK$2912,15,FALSE),0) -> 0 | R16: =IFERROR(VLOOKUP($A16,Filtro!$A$5:$AK$2912,16,FALSE),0) -> 0 | S16: =IFERROR(VLOOKUP($A16,Filtro!$A$5:$AK$2912,17,FALSE),0) -> 0 | T16: =IFERROR(VLOOKUP($A16,Filtro!$A$5:$AK$2912,18,FALSE),0) -> 0 | U16: =IFERROR(VLOOKUP($A16,Filtro!$A$5:$AK$2912,19,FALSE),0) -> 0 | V16: =IFERROR(VLOOKUP($A16,Filtro!$A$5:$AK$2912,20,FALSE),0) -> 0 | W16: =IFERROR(VLOOKUP($A16,Filtro!$A$5:$AK$2912,21,FALSE),0) -> 0 | X16: =IFERROR(VLOOKUP($A16,Filtro!$A$5:$AK$2912,22,FALSE),0) -> 0 | Y16: =IFERROR(VLOOKUP($A16,Filtro!$A$5:$AK$2912,23,FALSE),0) -> 0 | Z16: =IFERROR(VLOOKUP($A16,Filtro!$A$5:$AK$2912,24,FALSE),0) -> 0 | AA16: =IFERROR(VLOOKUP($A16,Filtro!$A$5:$AK$2912,25,FALSE),0) -> 0 | AB16: =IFERROR(VLOOKUP($A16,Filtro!$A$5:$AK$2912,26,FALSE),0) -> 0 | AC16: =IFERROR(VLOOKUP($A16,Filtro!$A$5:$AK$2912,27,FALSE),0) -> 4056 | AD16: =IFERROR(VLOOKUP($A16,Filtro!$A$5:$AK$2912,28,FALSE),0) -> 0 | AE16: =IFERROR(VLOOKUP($A16,Filtro!$A$5:$AK$2912,29,FALSE),0) -> 0 | AF16: =IFERROR(VLOOKUP($A16,Filtro!$A$5:$AK$2912,30,FALSE),0) -> 0 | AG16: =IFERROR(VLOOKUP($A16,Filtro!$A$5:$AK$2912,31,FALSE),0) -> 0 | AH16: =IFERROR(VLOOKUP($A16,Filtro!$A$5:$AK$2912,32,FALSE),0) -> 0 | AI16: =IFERROR(VLOOKUP($A16,Filtro!$A$5:$AK$2912,33,FALSE),0) -> 0 | AJ16: =IFERROR(VLOOKUP($A16,Filtro!$A$5:$AK$2912,34,FALSE),0) -> 0 | AK16: =IFERROR(VLOOKUP($A16,Filtro!$A$5:$AK$2912,35,FALSE),0) -> 0 | AL16: =IFERROR(VLOOKUP($A16,Filtro!$A$5:$AK$2912,36,FALSE),0) -> 660,650 | AM16: =IFERROR(VLOOKUP($A16,Filtro!$A$5:$AK$2912,37,FALSE),0) -> 36,688,700
A17: 01014286 | B17: 0101212 | C17: Consulta Médica de Especialidad en Psiquiatría adultos | D17: =IFERROR(VLOOKUP($A17,Filtro!$A$5:$AK$2912,2,FALSE),0) -> 7342 | E17: =IFERROR(VLOOKUP($A17,Filtro!$A$5:$AK$2912,3,FALSE),0) -> 7314 | F17: =IFERROR(VLOOKUP($A17,Filtro!$A$5:$AK$2912,4,FALSE),0) -> 7314 | G17: =IFERROR(VLOOKUP($A17,Filtro!$A$5:$AK$2912,5,FALSE),0) -> 0 | H17: =IFERROR(VLOOKUP($A17,Filtro!$A$5:$AK$2912,6,FALSE),0) -> 28 | I17: =IFERROR(VLOOKUP($A17,Filtro!$A$5:$AK$2912,7,FALSE),0) -> 0 | J17: =IFERROR(VLOOKUP($A17,Filtro!$A$5:$AK$2912,8,FALSE),0) -> 0 | K17: =IFERROR(VLOOKUP($A17,Filtro!$A$5:$AK$2912,9,FALSE),0) -> 0 | L17: =IFERROR(VLOOKUP($A17,Filtro!$A$5:$AK$2912,10,FALSE),0) -> 0 | M17: =IFERROR(VLOOKUP($A17,Filtro!$A$5:$AK$2912,11,FALSE),0) -> 0 | N17: =IFERROR(VLOOKUP($A17,Filtro!$A$5:$AK$2912,12,FALSE),0) -> 0 | O17: =IFERROR(VLOOKUP($A17,Filtro!$A$5:$AK$2912,13,FALSE),0) -> 0 | P17: =IFERROR(VLOOKUP($A17,Filtro!$A$5:$AK$2912,14,FALSE),0) -> 0 | Q17: =IFERROR(VLOOKUP($A17,Filtro!$A$5:$AK$2912,15,FALSE),0) -> 0 | R17: =IFERROR(VLOOKUP($A17,Filtro!$A$5:$AK$2912,16,FALSE),0) -> 0 | S17: =IFERROR(VLOOKUP($A17,Filtro!$A$5:$AK$2912,17,FALSE),0) -> 0 | T17: =IFERROR(VLOOKUP($A17,Filtro!$A$5:$AK$2912,18,FALSE),0) -> 0 | U17: =IFERROR(VLOOKUP($A17,Filtro!$A$5:$AK$2912,19,FALSE),0) -> 0 | V17: =IFERROR(VLOOKUP($A17,Filtro!$A$5:$AK$2912,20,FALSE),0) -> 0 | W17: =IFERROR(VLOOKUP($A17,Filtro!$A$5:$AK$2912,21,FALSE),0) -> 0 | X17: =IFERROR(VLOOKUP($A17,Filtro!$A$5:$AK$2912,22,FALSE),0) -> 0 | Y17: =IFERROR(VLOOKUP($A17,Filtro!$A$5:$AK$2912,23,FALSE),0) -> 0 | Z17: =IFERROR(VLOOKUP($A17,Filtro!$A$5:$AK$2912,24,FALSE),0) -> 0 | AA17: =IFERROR(VLOOKUP($A17,Filtro!$A$5:$AK$2912,25,FALSE),0) -> 0 | AB17: =IFERROR(VLOOKUP($A17,Filtro!$A$5:$AK$2912,26,FALSE),0) -> 0 | AC17: =IFERROR(VLOOKUP($A17,Filtro!$A$5:$AK$2912,27,FALSE),0) -> 7342 | AD17: =IFERROR(VLOOKUP($A17,Filtro!$A$5:$AK$2912,28,FALSE),0) -> 0 | AE17: =IFERROR(VLOOKUP($A17,Filtro!$A$5:$AK$2912,29,FALSE),0) -> 0 | AF17: =IFERROR(VLOOKUP($A17,Filtro!$A$5:$AK$2912,30,FALSE),0) -> 0 | AG17: =IFERROR(VLOOKUP($A17,Filtro!$A$5:$AK$2912,31,FALSE),0) -> 0 | AH17: =IFERROR(VLOOKUP($A17,Filtro!$A$5:$AK$2912,32,FALSE),0) -> 0 | AI17: =IFERROR(VLOOKUP($A17,Filtro!$A$5:$AK$2912,33,FALSE),0) -> 0 | AJ17: =IFERROR(VLOOKUP($A17,Filtro!$A$5:$AK$2912,34,FALSE),0) -> 0 | AK17: =IFERROR(VLOOKUP($A17,Filtro!$A$5:$AK$2912,35,FALSE),0) -> 0 | AL17: =IFERROR(VLOOKUP($A17,Filtro!$A$5:$AK$2912,36,FALSE),0) -> 660,650 | AM17: =IFERROR(VLOOKUP($A17,Filtro!$A$5:$AK$2912,37,FALSE),0) -> 66,191,700
A18: 01014287 | B18: 0101213 | C18: Consulta Médica de Especialidad en Psiquiatría pediátrica y de la adolescencia | D18: =IFERROR(VLOOKUP($A18,Filtro!$A$5:$AK$2912,2,FALSE),0) -> 1968 | E18: =IFERROR(VLOOKUP($A18,Filtro!$A$5:$AK$2912,3,FALSE),0) -> 1966 | F18: =IFERROR(VLOOKUP($A18,Filtro!$A$5:$AK$2912,4,FALSE),0) -> 1966 | G18: =IFERROR(VLOOKUP($A18,Filtro!$A$5:$AK$2912,5,FALSE),0) -> 0 | H18: =IFERROR(VLOOKUP($A18,Filtro!$A$5:$AK$2912,6,FALSE),0) -> 2 | I18: =IFERROR(VLOOKUP($A18,Filtro!$A$5:$AK$2912,7,FALSE),0) -> 0 | J18: =IFERROR(VLOOKUP($A18,Filtro!$A$5:$AK$2912,8,FALSE),0) -> 0 | K18: =IFERROR(VLOOKUP($A18,Filtro!$A$5:$AK$2912,9,FALSE),0) -> 0 | L18: =IFERROR(VLOOKUP($A18,Filtro!$A$5:$AK$2912,10,FALSE),0) -> 0 | M18: =IFERROR(VLOOKUP($A18,Filtro!$A$5:$AK$2912,11,FALSE),0) -> 0 | N18: =IFERROR(VLOOKUP($A18,Filtro!$A$5:$AK$2912,12,FALSE),0) -> 0 | O18: =IFERROR(VLOOKUP($A18,Filtro!$A$5:$AK$2912,13,FALSE),0) -> 0 | P18: =IFERROR(VLOOKUP($A18,Filtro!$A$5:$AK$2912,14,FALSE),0) -> 0 | Q18: =IFERROR(VLOOKUP($A18,Filtro!$A$5:$AK$2912,15,FALSE),0) -> 0 | R18: =IFERROR(VLOOKUP($A18,Filtro!$A$5:$AK$2912,16,FALSE),0) -> 0 | S18: =IFERROR(VLOOKUP($A18,Filtro!$A$5:$AK$2912,17,FALSE),0) -> 0 | T18: =IFERROR(VLOOKUP($A18,Filtro!$A$5:$AK$2912,18,FALSE),0) -> 0 | U18: =IFERROR(VLOOKUP($A18,Filtro!$A$5:$AK$2912,19,FALSE),0) -> 0 | V18: =IFERROR(VLOOKUP($A18,Filtro!$A$5:$AK$2912,20,FALSE),0) -> 0 | W18: =IFERROR(VLOOKUP($A18,Filtro!$A$5:$AK$2912,21,FALSE),0) -> 0 | X18: =IFERROR(VLOOKUP($A18,Filtro!$A$5:$AK$2912,22,FALSE),0) -> 0 | Y18: =IFERROR(VLOOKUP($A18,Filtro!$A$5:$AK$2912,23,FALSE),0) -> 0 | Z18: =IFERROR(VLOOKUP($A18,Filtro!$A$5:$AK$2912,24,FALSE),0) -> 0 | AA18: =IFERROR(VLOOKUP($A18,Filtro!$A$5:$AK$2912,25,FALSE),0) -> 0 | AB18: =IFERROR(VLOOKUP($A18,Filtro!$A$5:$AK$2912,26,FALSE),0) -> 0 | AC18: =IFERROR(VLOOKUP($A18,Filtro!$A$5:$AK$2912,27,FALSE),0) -> 1968 | AD18: =IFERROR(VLOOKUP($A18,Filtro!$A$5:$AK$2912,28,FALSE),0) -> 0 | AE18: =IFERROR(VLOOKUP($A18,Filtro!$A$5:$AK$2912,29,FALSE),0) -> 0 | AF18: =IFERROR(VLOOKUP($A18,Filtro!$A$5:$AK$2912,30,FALSE),0) -> 0 | AG18: =IFERROR(VLOOKUP($A18,Filtro!$A$5:$AK$2912,31,FALSE),0) -> 0 | AH18: =IFERROR(VLOOKUP($A18,Filtro!$A$5:$AK$2912,32,FALSE),0) -> 0 | AI18: =IFERROR(VLOOKUP($A18,Filtro!$A$5:$AK$2912,33,FALSE),0) -> 0 | AJ18: =IFERROR(VLOOKUP($A18,Filtro!$A$5:$AK$2912,34,FALSE),0) -> 0 | AK18: =IFERROR(VLOOKUP($A18,Filtro!$A$5:$AK$2912,35,FALSE),0) -> 0 | AL18: =IFERROR(VLOOKUP($A18,Filtro!$A$5:$AK$2912,36,FALSE),0) -> 660,650 | AM18: =IFERROR(VLOOKUP($A18,Filtro!$A$5:$AK$2912,37,FALSE),0) -> 17,792,300
A19: 01014288 | B19: 0101300 | C19: Consulta Médica otras Especialidades | D19: =IFERROR(VLOOKUP($A19,Filtro!$A$5:$AK$2912,2,FALSE),0) -> 4955 | E19: =IFERROR(VLOOKUP($A19,Filtro!$A$5:$AK$2912,3,FALSE),0) -> 4955 | F19: =IFERROR(VLOOKUP($A19,Filtro!$A$5:$AK$2912,4,FALSE),0) -> 4955 | G19: =IFERROR(VLOOKUP($A19,Filtro!$A$5:$AK$2912,5,FALSE),0) -> 0 | H19: =IFERROR(VLOOKUP($A19,Filtro!$A$5:$AK$2912,6,FALSE),0) -> 0 | I19: =IFERROR(VLOOKUP($A19,Filtro!$A$5:$AK$2912,7,FALSE),0) -> 0 | J19: =IFERROR(VLOOKUP($A19,Filtro!$A$5:$AK$2912,8,FALSE),0) -> 0 | K19: =IFERROR(VLOOKUP($A19,Filtro!$A$5:$AK$2912,9,FALSE),0) -> 0 | L19: =IFERROR(VLOOKUP($A19,Filtro!$A$5:$AK$2912,10,FALSE),0) -> 0 | M19: =IFERROR(VLOOKUP($A19,Filtro!$A$5:$AK$2912,11,FALSE),0) -> 0 | N19: =IFERROR(VLOOKUP($A19,Filtro!$A$5:$AK$2912,12,FALSE),0) -> 0 | O19: =IFERROR(VLOOKUP($A19,Filtro!$A$5:$AK$2912,13,FALSE),0) -> 0 | P19: =IFERROR(VLOOKUP($A19,Filtro!$A$5:$AK$2912,14,FALSE),0) -> 0 | Q19: =IFERROR(VLOOKUP($A19,Filtro!$A$5:$AK$2912,15,FALSE),0) -> 0 | R19: =IFERROR(VLOOKUP($A19,Filtro!$A$5:$AK$2912,16,FALSE),0) -> 0 | S19: =IFERROR(VLOOKUP($A19,Filtro!$A$5:$AK$2912,17,FALSE),0) -> 0 | T19: =IFERROR(VLOOKUP($A19,Filtro!$A$5:$AK$2912,18,FALSE),0) -> 0 | U19: =IFERROR(VLOOKUP($A19,Filtro!$A$5:$AK$2912,19,FALSE),0) -> 0 | V19: =IFERROR(VLOOKUP($A19,Filtro!$A$5:$AK$2912,20,FALSE),0) -> 0 | W19: =IFERROR(VLOOKUP($A19,Filtro!$A$5:$AK$2912,21,FALSE),0) -> 0 | X19: =IFERROR(VLOOKUP($A19,Filtro!$A$5:$AK$2912,22,FALSE),0) -> 0 | Y19: =IFERROR(VLOOKUP($A19,Filtro!$A$5:$AK$2912,23,FALSE),0) -> 0 | Z19: =IFERROR(VLOOKUP($A19,Filtro!$A$5:$AK$2912,24,FALSE),0) -> 0 | AA19: =IFERROR(VLOOKUP($A19,Filtro!$A$5:$AK$2912,25,FALSE),0) -> 0 | AB19: =IFERROR(VLOOKUP($A19,Filtro!$A$5:$AK$2912,26,FALSE),0) -> 0 | AC19: =IFERROR(VLOOKUP($A19,Filtro!$A$5:$AK$2912,27,FALSE),0) -> 4955 | AD19: =IFERROR(VLOOKUP($A19,Filtro!$A$5:$AK$2912,28,FALSE),0) -> 0 | AE19: =IFERROR(VLOOKUP($A19,Filtro!$A$5:$AK$2912,29,FALSE),0) -> 0 | AF19: =IFERROR(VLOOKUP($A19,Filtro!$A$5:$AK$2912,30,FALSE),0) -> 0 | AG19: =IFERROR(VLOOKUP($A19,Filtro!$A$5:$AK$2912,31,FALSE),0) -> 0 | AH19: =IFERROR(VLOOKUP($A19,Filtro!$A$5:$AK$2912,32,FALSE),0) -> 0 | AI19: =IFERROR(VLOOKUP($A19,Filtro!$A$5:$AK$2912,33,FALSE),0) -> 0 | AJ19: =IFERROR(VLOOKUP($A19,Filtro!$A$5:$AK$2912,34,FALSE),0) -> 0 | AK19: =IFERROR(VLOOKUP($A19,Filtro!$A$5:$AK$2912,35,FALSE),0) -> 0 | AL19: =IFERROR(VLOOKUP($A19,Filtro!$A$5:$AK$2912,36,FALSE),0) -> 660,650 | AM19: =IFERROR(VLOOKUP($A19,Filtro!$A$5:$AK$2912,37,FALSE),0) -> 44,842,750
A20: 01014289 | B20: 0101301 | C20: Consulta Médica de Especialidad en Cardiología | D20: =IFERROR(VLOOKUP($A20,Filtro!$A$5:$AK$2912,2,FALSE),0) -> 5998 | E20: =IFERROR(VLOOKUP($A20,Filtro!$A$5:$AK$2912,3,FALSE),0) -> 5993 | F20: =IFERROR(VLOOKUP($A20,Filtro!$A$5:$AK$2912,4,FALSE),0) -> 5993 | G20: =IFERROR(VLOOKUP($A20,Filtro!$A$5:$AK$2912,5,FALSE),0) -> 0 | H20: =IFERROR(VLOOKUP($A20,Filtro!$A$5:$AK$2912,6,FALSE),0) -> 5 | I20: =IFERROR(VLOOKUP($A20,Filtro!$A$5:$AK$2912,7,FALSE),0) -> 0 | J20: =IFERROR(VLOOKUP($A20,Filtro!$A$5:$AK$2912,8,FALSE),0) -> 0 | K20: =IFERROR(VLOOKUP($A20,Filtro!$A$5:$AK$2912,9,FALSE),0) -> 0 | L20: =IFERROR(VLOOKUP($A20,Filtro!$A$5:$AK$2912,10,FALSE),0) -> 0 | M20: =IFERROR(VLOOKUP($A20,Filtro!$A$5:$AK$2912,11,FALSE),0) -> 0 | N20: =IFERROR(VLOOKUP($A20,Filtro!$A$5:$AK$2912,12,FALSE),0) -> 0 | O20: =IFERROR(VLOOKUP($A20,Filtro!$A$5:$AK$2912,13,FALSE),0) -> 0 | P20: =IFERROR(VLOOKUP($A20,Filtro!$A$5:$AK$2912,14,FALSE),0) -> 0 | Q20: =IFERROR(VLOOKUP($A20,Filtro!$A$5:$AK$2912,15,FALSE),0) -> 0 | R20: =IFERROR(VLOOKUP($A20,Filtro!$A$5:$AK$2912,16,FALSE),0) -> 0 | S20: =IFERROR(VLOOKUP($A20,Filtro!$A$5:$AK$2912,17,FALSE),0) -> 0 | T20: =IFERROR(VLOOKUP($A20,Filtro!$A$5:$AK$2912,18,FALSE),0) -> 0 | U20: =IFERROR(VLOOKUP($A20,Filtro!$A$5:$AK$2912,19,FALSE),0) -> 0 | V20: =IFERROR(VLOOKUP($A20,Filtro!$A$5:$AK$2912,20,FALSE),0) -> 0 | W20: =IFERROR(VLOOKUP($A20,Filtro!$A$5:$AK$2912,21,FALSE),0) -> 0 | X20: =IFERROR(VLOOKUP($A20,Filtro!$A$5:$AK$2912,22,FALSE),0) -> 0 | Y20: =IFERROR(VLOOKUP($A20,Filtro!$A$5:$AK$2912,23,FALSE),0) -> 0 | Z20: =IFERROR(VLOOKUP($A20,Filtro!$A$5:$AK$2912,24,FALSE),0) -> 0 | AA20: =IFERROR(VLOOKUP($A20,Filtro!$A$5:$AK$2912,25,FALSE),0) -> 0 | AB20: =IFERROR(VLOOKUP($A20,Filtro!$A$5:$AK$2912,26,FALSE),0) -> 0 | AC20: =IFERROR(VLOOKUP($A20,Filtro!$A$5:$AK$2912,27,FALSE),0) -> 5998 | AD20: =IFERROR(VLOOKUP($A20,Filtro!$A$5:$AK$2912,28,FALSE),0) -> 0 | AE20: =IFERROR(VLOOKUP($A20,Filtro!$A$5:$AK$2912,29,FALSE),0) -> 8 | AF20: =IFERROR(VLOOKUP($A20,Filtro!$A$5:$AK$2912,30,FALSE),0) -> 0 | AG20: =IFERROR(VLOOKUP($A20,Filtro!$A$5:$AK$2912,31,FALSE),0) -> 0 | AH20: =IFERROR(VLOOKUP($A20,Filtro!$A$5:$AK$2912,32,FALSE),0) -> 0 | AI20: =IFERROR(VLOOKUP($A20,Filtro!$A$5:$AK$2912,33,FALSE),0) -> 0 | AJ20: =IFERROR(VLOOKUP($A20,Filtro!$A$5:$AK$2912,34,FALSE),0) -> 0 | AK20: =IFERROR(VLOOKUP($A20,Filtro!$A$5:$AK$2912,35,FALSE),0) -> 0 | AL20: =IFERROR(VLOOKUP($A20,Filtro!$A$5:$AK$2912,36,FALSE),0) -> 660,650 | AM20: =IFERROR(VLOOKUP($A20,Filtro!$A$5:$AK$2912,37,FALSE),0) -> 54,236,650
A21: 01014290 | B21: 0101302 | C21: Consulta Médica de Especialidad en Hematología | D21: =IFERROR(VLOOKUP($A21,Filtro!$A$5:$AK$2912,2,FALSE),0) -> 3147 | E21: =IFERROR(VLOOKUP($A21,Filtro!$A$5:$AK$2912,3,FALSE),0) -> 3144 | F21: =IFERROR(VLOOKUP($A21,Filtro!$A$5:$AK$2912,4,FALSE),0) -> 3144 | G21: =IFERROR(VLOOKUP($A21,Filtro!$A$5:$AK$2912,5,FALSE),0) -> 0 | H21: =IFERROR(VLOOKUP($A21,Filtro!$A$5:$AK$2912,6,FALSE),0) -> 3 | I21: =IFERROR(VLOOKUP($A21,Filtro!$A$5:$AK$2912,7,FALSE),0) -> 0 | J21: =IFERROR(VLOOKUP($A21,Filtro!$A$5:$AK$2912,8,FALSE),0) -> 0 | K21: =IFERROR(VLOOKUP($A21,Filtro!$A$5:$AK$2912,9,FALSE),0) -> 0 | L21: =IFERROR(VLOOKUP($A21,Filtro!$A$5:$AK$2912,10,FALSE),0) -> 0 | M21: =IFERROR(VLOOKUP($A21,Filtro!$A$5:$AK$2912,11,FALSE),0) -> 0 | N21: =IFERROR(VLOOKUP($A21,Filtro!$A$5:$AK$2912,12,FALSE),0) -> 0 | O21: =IFERROR(VLOOKUP($A21,Filtro!$A$5:$AK$2912,13,FALSE),0) -> 0 | P21: =IFERROR(VLOOKUP($A21,Filtro!$A$5:$AK$2912,14,FALSE),0) -> 0 | Q21: =IFERROR(VLOOKUP($A21,Filtro!$A$5:$AK$2912,15,FALSE),0) -> 0 | R21: =IFERROR(VLOOKUP($A21,Filtro!$A$5:$AK$2912,16,FALSE),0) -> 0 | S21: =IFERROR(VLOOKUP($A21,Filtro!$A$5:$AK$2912,17,FALSE),0) -> 0 | T21: =IFERROR(VLOOKUP($A21,Filtro!$A$5:$AK$2912,18,FALSE),0) -> 0 | U21: =IFERROR(VLOOKUP($A21,Filtro!$A$5:$AK$2912,19,FALSE),0) -> 0 | V21: =IFERROR(VLOOKUP($A21,Filtro!$A$5:$AK$2912,20,FALSE),0) -> 0 | W21: =IFERROR(VLOOKUP($A21,Filtro!$A$5:$AK$2912,21,FALSE),0) -> 0 | X21: =IFERROR(VLOOKUP($A21,Filtro!$A$5:$AK$2912,22,FALSE),0) -> 0 | Y21: =IFERROR(VLOOKUP($A21,Filtro!$A$5:$AK$2912,23,FALSE),0) -> 0 | Z21: =IFERROR(VLOOKUP($A21,Filtro!$A$5:$AK$2912,24,FALSE),0) -> 0 | AA21: =IFERROR(VLOOKUP($A21,Filtro!$A$5:$AK$2912,25,FALSE),0) -> 0 | AB21: =IFERROR(VLOOKUP($A21,Filtro!$A$5:$AK$2912,26,FALSE),0) -> 0 | AC21: =IFERROR(VLOOKUP($A21,Filtro!$A$5:$AK$2912,27,FALSE),0) -> 3147 | AD21: =IFERROR(VLOOKUP($A21,Filtro!$A$5:$AK$2912,28,FALSE),0) -> 0 | AE21: =IFERROR(VLOOKUP($A21,Filtro!$A$5:$AK$2912,29,FALSE),0) -> 0 | AF21: =IFERROR(VLOOKUP($A21,Filtro!$A$5:$AK$2912,30,FALSE),0) -> 0 | AG21: =IFERROR(VLOOKUP($A21,Filtro!$A$5:$AK$2912,31,FALSE),0) -> 0 | AH21: =IFERROR(VLOOKUP($A21,Filtro!$A$5:$AK$2912,32,FALSE),0) -> 0 | AI21: =IFERROR(VLOOKUP($A21,Filtro!$A$5:$AK$2912,33,FALSE),0) -> 0 | AJ21: =IFERROR(VLOOKUP($A21,Filtro!$A$5:$AK$2912,34,FALSE),0) -> 0 | AK21: =IFERROR(VLOOKUP($A21,Filtro!$A$5:$AK$2912,35,FALSE),0) -> 0 | AL21: =IFERROR(VLOOKUP($A21,Filtro!$A$5:$AK$2912,36,FALSE),0) -> 660,650 | AM21: =IFERROR(VLOOKUP($A21,Filtro!$A$5:$AK$2912,37,FALSE),0) -> 28,453,200
A22: 01014291 | B22: 0101303 | C22: Consulta Médica de Especialidad en Infectología | D22: =IFERROR(VLOOKUP($A22,Filtro!$A$5:$AK$2912,2,FALSE),0) -> 2289 | E22: =IFERROR(VLOOKUP($A22,Filtro!$A$5:$AK$2912,3,FALSE),0) -> 2287 | F22: =IFERROR(VLOOKUP($A22,Filtro!$A$5:$AK$2912,4,FALSE),0) -> 2287 | G22: =IFERROR(VLOOKUP($A22,Filtro!$A$5:$AK$2912,5,FALSE),0) -> 0 | H22: =IFERROR(VLOOKUP($A22,Filtro!$A$5:$AK$2912,6,FALSE),0) -> 2 | I22: =IFERROR(VLOOKUP($A22,Filtro!$A$5:$AK$2912,7,FALSE),0) -> 0 | J22: =IFERROR(VLOOKUP($A22,Filtro!$A$5:$AK$2912,8,FALSE),0) -> 0 | K22: =IFERROR(VLOOKUP($A22,Filtro!$A$5:$AK$2912,9,FALSE),0) -> 0 | L22: =IFERROR(VLOOKUP($A22,Filtro!$A$5:$AK$2912,10,FALSE),0) -> 0 | M22: =IFERROR(VLOOKUP($A22,Filtro!$A$5:$AK$2912,11,FALSE),0) -> 0 | N22: =IFERROR(VLOOKUP($A22,Filtro!$A$5:$AK$2912,12,FALSE),0) -> 0 | O22: =IFERROR(VLOOKUP($A22,Filtro!$A$5:$AK$2912,13,FALSE),0) -> 0 | P22: =IFERROR(VLOOKUP($A22,Filtro!$A$5:$AK$2912,14,FALSE),0) -> 0 | Q22: =IFERROR(VLOOKUP($A22,Filtro!$A$5:$AK$2912,15,FALSE),0) -> 0 | R22: =IFERROR(VLOOKUP($A22,Filtro!$A$5:$AK$2912,16,FALSE),0) -> 0 | S22: =IFERROR(VLOOKUP($A22,Filtro!$A$5:$AK$2912,17,FALSE),0) -> 0 | T22: =IFERROR(VLOOKUP($A22,Filtro!$A$5:$AK$2912,18,FALSE),0) -> 0 | U22: =IFERROR(VLOOKUP($A22,Filtro!$A$5:$AK$2912,19,FALSE),0) -> 0 | V22: =IFERROR(VLOOKUP($A22,Filtro!$A$5:$AK$2912,20,FALSE),0) -> 0 | W22: =IFERROR(VLOOKUP($A22,Filtro!$A$5:$AK$2912,21,FALSE),0) -> 0 | X22: =IFERROR(VLOOKUP($A22,Filtro!$A$5:$AK$2912,22,FALSE),0) -> 0 | Y22: =IFERROR(VLOOKUP($A22,Filtro!$A$5:$AK$2912,23,FALSE),0) -> 0 | Z22: =IFERROR(VLOOKUP($A22,Filtro!$A$5:$AK$2912,24,FALSE),0) -> 0 | AA22: =IFERROR(VLOOKUP($A22,Filtro!$A$5:$AK$2912,25,FALSE),0) -> 0 | AB22: =IFERROR(VLOOKUP($A22,Filtro!$A$5:$AK$2912,26,FALSE),0) -> 0 | AC22: =IFERROR(VLOOKUP($A22,Filtro!$A$5:$AK$2912,27,FALSE),0) -> 2289 | AD22: =IFERROR(VLOOKUP($A22,Filtro!$A$5:$AK$2912,28,FALSE),0) -> 0 | AE22: =IFERROR(VLOOKUP($A22,Filtro!$A$5:$AK$2912,29,FALSE),0) -> 0 | AF22: =IFERROR(VLOOKUP($A22,Filtro!$A$5:$AK$2912,30,FALSE),0) -> 0 | AG22: =IFERROR(VLOOKUP($A22,Filtro!$A$5:$AK$2912,31,FALSE),0) -> 0 | AH22: =IFERROR(VLOOKUP($A22,Filtro!$A$5:$AK$2912,32,FALSE),0) -> 0 | AI22: =IFERROR(VLOOKUP($A22,Filtro!$A$5:$AK$2912,33,FALSE),0) -> 0 | AJ22: =IFERROR(VLOOKUP($A22,Filtro!$A$5:$AK$2912,34,FALSE),0) -> 0 | AK22: =IFERROR(VLOOKUP($A22,Filtro!$A$5:$AK$2912,35,FALSE),0) -> 0 | AL22: =IFERROR(VLOOKUP($A22,Filtro!$A$5:$AK$2912,36,FALSE),0) -> 660,650 | AM22: =IFERROR(VLOOKUP($A22,Filtro!$A$5:$AK$2912,37,FALSE),0) -> 20,697,350
A23: 01014292 | B23: 0101304 | C23: Consulta Médica de Especialidad en Inmunología | D23: =IFERROR(VLOOKUP($A23,Filtro!$A$5:$AK$2912,2,FALSE),0) -> 753 | E23: =IFERROR(VLOOKUP($A23,Filtro!$A$5:$AK$2912,3,FALSE),0) -> 753 | F23: =IFERROR(VLOOKUP($A23,Filtro!$A$5:$AK$2912,4,FALSE),0) -> 753 | G23: =IFERROR(VLOOKUP($A23,Filtro!$A$5:$AK$2912,5,FALSE),0) -> 0 | H23: =IFERROR(VLOOKUP($A23,Filtro!$A$5:$AK$2912,6,FALSE),0) -> 0 | I23: =IFERROR(VLOOKUP($A23,Filtro!$A$5:$AK$2912,7,FALSE),0) -> 0 | J23: =IFERROR(VLOOKUP($A23,Filtro!$A$5:$AK$2912,8,FALSE),0) -> 0 | K23: =IFERROR(VLOOKUP($A23,Filtro!$A$5:$AK$2912,9,FALSE),0) -> 0 | L23: =IFERROR(VLOOKUP($A23,Filtro!$A$5:$AK$2912,10,FALSE),0) -> 0 | M23: =IFERROR(VLOOKUP($A23,Filtro!$A$5:$AK$2912,11,FALSE),0) -> 0 | N23: =IFERROR(VLOOKUP($A23,Filtro!$A$5:$AK$2912,12,FALSE),0) -> 0 | O23: =IFERROR(VLOOKUP($A23,Filtro!$A$5:$AK$2912,13,FALSE),0) -> 0 | P23: =IFERROR(VLOOKUP($A23,Filtro!$A$5:$AK$2912,14,FALSE),0) -> 0 | Q23: =IFERROR(VLOOKUP($A23,Filtro!$A$5:$AK$2912,15,FALSE),0) -> 0 | R23: =IFERROR(VLOOKUP($A23,Filtro!$A$5:$AK$2912,16,FALSE),0) -> 0 | S23: =IFERROR(VLOOKUP($A23,Filtro!$A$5:$AK$2912,17,FALSE),0) -> 0 | T23: =IFERROR(VLOOKUP($A23,Filtro!$A$5:$AK$2912,18,FALSE),0) -> 0 | U23: =IFERROR(VLOOKUP($A23,Filtro!$A$5:$AK$2912,19,FALSE),0) -> 0 | V23: =IFERROR(VLOOKUP($A23,Filtro!$A$5:$AK$2912,20,FALSE),0) -> 0 | W23: =IFERROR(VLOOKUP($A23,Filtro!$A$5:$AK$2912,21,FALSE),0) -> 0 | X23: =IFERROR(VLOOKUP($A23,Filtro!$A$5:$AK$2912,22,FALSE),0) -> 0 | Y23: =IFERROR(VLOOKUP($A23,Filtro!$A$5:$AK$2912,23,FALSE),0) -> 0 | Z23: =IFERROR(VLOOKUP($A23,Filtro!$A$5:$AK$2912,24,FALSE),0) -> 0 | AA23: =IFERROR(VLOOKUP($A23,Filtro!$A$5:$AK$2912,25,FALSE),0) -> 0 | AB23: =IFERROR(VLOOKUP($A23,Filtro!$A$5:$AK$2912,26,FALSE),0) -> 0 | AC23: =IFERROR(VLOOKUP($A23,Filtro!$A$5:$AK$2912,27,FALSE),0) -> 753 | AD23: =IFERROR(VLOOKUP($A23,Filtro!$A$5:$AK$2912,28,FALSE),0) -> 0 | AE23: =IFERROR(VLOOKUP($A23,Filtro!$A$5:$AK$2912,29,FALSE),0) -> 0 | AF23: =IFERROR(VLOOKUP($A23,Filtro!$A$5:$AK$2912,30,FALSE),0) -> 0 | AG23: =IFERROR(VLOOKUP($A23,Filtro!$A$5:$AK$2912,31,FALSE),0) -> 0 | AH23: =IFERROR(VLOOKUP($A23,Filtro!$A$5:$AK$2912,32,FALSE),0) -> 0 | AI23: =IFERROR(VLOOKUP($A23,Filtro!$A$5:$AK$2912,33,FALSE),0) -> 0 | AJ23: =IFERROR(VLOOKUP($A23,Filtro!$A$5:$AK$2912,34,FALSE),0) -> 0 | AK23: =IFERROR(VLOOKUP($A23,Filtro!$A$5:$AK$2912,35,FALSE),0) -> 0 | AL23: =IFERROR(VLOOKUP($A23,Filtro!$A$5:$AK$2912,36,FALSE),0) -> 660,650 | AM23: =IFERROR(VLOOKUP($A23,Filtro!$A$5:$AK$2912,37,FALSE),0) -> 6,814,650
A24: 01014293 | B24: 0101305 | C24: Consulta Médica de Especialidad en Medicina Familiar | D24: =IFERROR(VLOOKUP($A24,Filtro!$A$5:$AK$2912,2,FALSE),0) -> 0 | E24: =IFERROR(VLOOKUP($A24,Filtro!$A$5:$AK$2912,3,FALSE),0) -> 0 | F24: =IFERROR(VLOOKUP($A24,Filtro!$A$5:$AK$2912,4,FALSE),0) -> 0 | G24: =IFERROR(VLOOKUP($A24,Filtro!$A$5:$AK$2912,5,FALSE),0) -> 0 | H24: =IFERROR(VLOOKUP($A24,Filtro!$A$5:$AK$2912,6,FALSE),0) -> 0 | I24: =IFERROR(VLOOKUP($A24,Filtro!$A$5:$AK$2912,7,FALSE),0) -> 0 | J24: =IFERROR(VLOOKUP($A24,Filtro!$A$5:$AK$2912,8,FALSE),0) -> 0 | K24: =IFERROR(VLOOKUP($A24,Filtro!$A$5:$AK$2912,9,FALSE),0) -> 0 | L24: =IFERROR(VLOOKUP($A24,Filtro!$A$5:$AK$2912,10,FALSE),0) -> 0 | M24: =IFERROR(VLOOKUP($A24,Filtro!$A$5:$AK$2912,11,FALSE),0) -> 0 | N24: =IFERROR(VLOOKUP($A24,Filtro!$A$5:$AK$2912,12,FALSE),0) -> 0 | O24: =IFERROR(VLOOKUP($A24,Filtro!$A$5:$AK$2912,13,FALSE),0) -> 0 | P24: =IFERROR(VLOOKUP($A24,Filtro!$A$5:$AK$2912,14,FALSE),0) -> 0 | Q24: =IFERROR(VLOOKUP($A24,Filtro!$A$5:$AK$2912,15,FALSE),0) -> 0 | R24: =IFERROR(VLOOKUP($A24,Filtro!$A$5:$AK$2912,16,FALSE),0) -> 0 | S24: =IFERROR(VLOOKUP($A24,Filtro!$A$5:$AK$2912,17,FALSE),0) -> 0 | T24: =IFERROR(VLOOKUP($A24,Filtro!$A$5:$AK$2912,18,FALSE),0) -> 0 | U24: =IFERROR(VLOOKUP($A24,Filtro!$A$5:$AK$2912,19,FALSE),0) -> 0 | V24: =IFERROR(VLOOKUP($A24,Filtro!$A$5:$AK$2912,20,FALSE),0) -> 0 | W24: =IFERROR(VLOOKUP($A24,Filtro!$A$5:$AK$2912,21,FALSE),0) -> 0 | X24: =IFERROR(VLOOKUP($A24,Filtro!$A$5:$AK$2912,22,FALSE),0) -> 0 | Y24: =IFERROR(VLOOKUP($A24,Filtro!$A$5:$AK$2912,23,FALSE),0) -> 0 | Z24: =IFERROR(VLOOKUP($A24,Filtro!$A$5:$AK$2912,24,FALSE),0) -> 0 | AA24: =IFERROR(VLOOKUP($A24,Filtro!$A$5:$AK$2912,25,FALSE),0) -> 0 | AB24: =IFERROR(VLOOKUP($A24,Filtro!$A$5:$AK$2912,26,FALSE),0) -> 0 | AC24: =IFERROR(VLOOKUP($A24,Filtro!$A$5:$AK$2912,27,FALSE),0) -> 0 | AD24: =IFERROR(VLOOKUP($A24,Filtro!$A$5:$AK$2912,28,FALSE),0) -> 0 | AE24: =IFERROR(VLOOKUP($A24,Filtro!$A$5:$AK$2912,29,FALSE),0) -> 0 | AF24: =IFERROR(VLOOKUP($A24,Filtro!$A$5:$AK$2912,30,FALSE),0) -> 0 | AG24: =IFERROR(VLOOKUP($A24,Filtro!$A$5:$AK$2912,31,FALSE),0) -> 0 | AH24: =IFERROR(VLOOKUP($A24,Filtro!$A$5:$AK$2912,32,FALSE),0) -> 0 | AI24: =IFERROR(VLOOKUP($A24,Filtro!$A$5:$AK$2912,33,FALSE),0) -> 0 | AJ24: =IFERROR(VLOOKUP($A24,Filtro!$A$5:$AK$2912,34,FALSE),0) -> 0 | AK24: =IFERROR(VLOOKUP($A24,Filtro!$A$5:$AK$2912,35,FALSE),0) -> 0 | AL24: =IFERROR(VLOOKUP($A24,Filtro!$A$5:$AK$2912,36,FALSE),0) -> 660,650 | AM24: =IFERROR(VLOOKUP($A24,Filtro!$A$5:$AK$2912,37,FALSE),0) -> 0
A25: 01014294 | B25: 0101306 | C25: Consulta Médica de Especialidad en Medicina Física y Rehabilitación | D25: =IFERROR(VLOOKUP($A25,Filtro!$A$5:$AK$2912,2,FALSE),0) -> 2619 | E25: =IFERROR(VLOOKUP($A25,Filtro!$A$5:$AK$2912,3,FALSE),0) -> 2618 | F25: =IFERROR(VLOOKUP($A25,Filtro!$A$5:$AK$2912,4,FALSE),0) -> 2618 | G25: =IFERROR(VLOOKUP($A25,Filtro!$A$5:$AK$2912,5,FALSE),0) -> 0 | H25: =IFERROR(VLOOKUP($A25,Filtro!$A$5:$AK$2912,6,FALSE),0) -> 1 | I25: =IFERROR(VLOOKUP($A25,Filtro!$A$5:$AK$2912,7,FALSE),0) -> 0 | J25: =IFERROR(VLOOKUP($A25,Filtro!$A$5:$AK$2912,8,FALSE),0) -> 0 | K25: =IFERROR(VLOOKUP($A25,Filtro!$A$5:$AK$2912,9,FALSE),0) -> 0 | L25: =IFERROR(VLOOKUP($A25,Filtro!$A$5:$AK$2912,10,FALSE),0) -> 0 | M25: =IFERROR(VLOOKUP($A25,Filtro!$A$5:$AK$2912,11,FALSE),0) -> 0 | N25: =IFERROR(VLOOKUP($A25,Filtro!$A$5:$AK$2912,12,FALSE),0) -> 0 | O25: =IFERROR(VLOOKUP($A25,Filtro!$A$5:$AK$2912,13,FALSE),0) -> 0 | P25: =IFERROR(VLOOKUP($A25,Filtro!$A$5:$AK$2912,14,FALSE),0) -> 0 | Q25: =IFERROR(VLOOKUP($A25,Filtro!$A$5:$AK$2912,15,FALSE),0) -> 0 | R25: =IFERROR(VLOOKUP($A25,Filtro!$A$5:$AK$2912,16,FALSE),0) -> 0 | S25: =IFERROR(VLOOKUP($A25,Filtro!$A$5:$AK$2912,17,FALSE),0) -> 0 | T25: =IFERROR(VLOOKUP($A25,Filtro!$A$5:$AK$2912,18,FALSE),0) -> 0 | U25: =IFERROR(VLOOKUP($A25,Filtro!$A$5:$AK$2912,19,FALSE),0) -> 0 | V25: =IFERROR(VLOOKUP($A25,Filtro!$A$5:$AK$2912,20,FALSE),0) -> 0 | W25: =IFERROR(VLOOKUP($A25,Filtro!$A$5:$AK$2912,21,FALSE),0) -> 0 | X25: =IFERROR(VLOOKUP($A25,Filtro!$A$5:$AK$2912,22,FALSE),0) -> 0 | Y25: =IFERROR(VLOOKUP($A25,Filtro!$A$5:$AK$2912,23,FALSE),0) -> 0 | Z25: =IFERROR(VLOOKUP($A25,Filtro!$A$5:$AK$2912,24,FALSE),0) -> 0 | AA25: =IFERROR(VLOOKUP($A25,Filtro!$A$5:$AK$2912,25,FALSE),0) -> 0 | AB25: =IFERROR(VLOOKUP($A25,Filtro!$A$5:$AK$2912,26,FALSE),0) -> 0 | AC25: =IFERROR(VLOOKUP($A25,Filtro!$A$5:$AK$2912,27,FALSE),0) -> 2749 | AD25: =IFERROR(VLOOKUP($A25,Filtro!$A$5:$AK$2912,28,FALSE),0) -> 0 | AE25: =IFERROR(VLOOKUP($A25,Filtro!$A$5:$AK$2912,29,FALSE),0) -> 0 | AF25: =IFERROR(VLOOKUP($A25,Filtro!$A$5:$AK$2912,30,FALSE),0) -> 0 | AG25: =IFERROR(VLOOKUP($A25,Filtro!$A$5:$AK$2912,31,FALSE),0) -> 0 | AH25: =IFERROR(VLOOKUP($A25,Filtro!$A$5:$AK$2912,32,FALSE),0) -> 0 | AI25: =IFERROR(VLOOKUP($A25,Filtro!$A$5:$AK$2912,33,FALSE),0) -> 0 | AJ25: =IFERROR(VLOOKUP($A25,Filtro!$A$5:$AK$2912,34,FALSE),0) -> 0 | AK25: =IFERROR(VLOOKUP($A25,Filtro!$A$5:$AK$2912,35,FALSE),0) -> 0 | AL25: =IFERROR(VLOOKUP($A25,Filtro!$A$5:$AK$2912,36,FALSE),0) -> 660,650 | AM25: =IFERROR(VLOOKUP($A25,Filtro!$A$5:$AK$2912,37,FALSE),0) -> 23,692,900
A26: 01014295 | B26: 0101307 | C26: Consulta Médica de Especialidad en Medicina Interna | D26: =IFERROR(VLOOKUP($A26,Filtro!$A$5:$AK$2912,2,FALSE),0) -> 14483 | E26: =IFERROR(VLOOKUP($A26,Filtro!$A$5:$AK$2912,3,FALSE),0) -> 14444 | F26: =IFERROR(VLOOKUP($A26,Filtro!$A$5:$AK$2912,4,FALSE),0) -> 14444 | G26: =IFERROR(VLOOKUP($A26,Filtro!$A$5:$AK$2912,5,FALSE),0) -> 0 | H26: =IFERROR(VLOOKUP($A26,Filtro!$A$5:$AK$2912,6,FALSE),0) -> 39 | I26: =IFERROR(VLOOKUP($A26,Filtro!$A$5:$AK$2912,7,FALSE),0) -> 0 | J26: =IFERROR(VLOOKUP($A26,Filtro!$A$5:$AK$2912,8,FALSE),0) -> 0 | K26: =IFERROR(VLOOKUP($A26,Filtro!$A$5:$AK$2912,9,FALSE),0) -> 0 | L26: =IFERROR(VLOOKUP($A26,Filtro!$A$5:$AK$2912,10,FALSE),0) -> 0 | M26: =IFERROR(VLOOKUP($A26,Filtro!$A$5:$AK$2912,11,FALSE),0) -> 0 | N26: =IFERROR(VLOOKUP($A26,Filtro!$A$5:$AK$2912,12,FALSE),0) -> 0 | O26: =IFERROR(VLOOKUP($A26,Filtro!$A$5:$AK$2912,13,FALSE),0) -> 0 | P26: =IFERROR(VLOOKUP($A26,Filtro!$A$5:$AK$2912,14,FALSE),0) -> 0 | Q26: =IFERROR(VLOOKUP($A26,Filtro!$A$5:$AK$2912,15,FALSE),0) -> 0 | R26: =IFERROR(VLOOKUP($A26,Filtro!$A$5:$AK$2912,16,FALSE),0) -> 0 | S26: =IFERROR(VLOOKUP($A26,Filtro!$A$5:$AK$2912,17,FALSE),0) -> 0 | T26: =IFERROR(VLOOKUP($A26,Filtro!$A$5:$AK$2912,18,FALSE),0) -> 0 | U26: =IFERROR(VLOOKUP($A26,Filtro!$A$5:$AK$2912,19,FALSE),0) -> 0 | V26: =IFERROR(VLOOKUP($A26,Filtro!$A$5:$AK$2912,20,FALSE),0) -> 0 | W26: =IFERROR(VLOOKUP($A26,Filtro!$A$5:$AK$2912,21,FALSE),0) -> 0 | X26: =IFERROR(VLOOKUP($A26,Filtro!$A$5:$AK$2912,22,FALSE),0) -> 0 | Y26: =IFERROR(VLOOKUP($A26,Filtro!$A$5:$AK$2912,23,FALSE),0) -> 0 | Z26: =IFERROR(VLOOKUP($A26,Filtro!$A$5:$AK$2912,24,FALSE),0) -> 0 | AA26: =IFERROR(VLOOKUP($A26,Filtro!$A$5:$AK$2912,25,FALSE),0) -> 0 | AB26: =IFERROR(VLOOKUP($A26,Filtro!$A$5:$AK$2912,26,FALSE),0) -> 0 | AC26: =IFERROR(VLOOKUP($A26,Filtro!$A$5:$AK$2912,27,FALSE),0) -> 14600 | AD26: =IFERROR(VLOOKUP($A26,Filtro!$A$5:$AK$2912,28,FALSE),0) -> 3 | AE26: =IFERROR(VLOOKUP($A26,Filtro!$A$5:$AK$2912,29,FALSE),0) -> 129 | AF26: =IFERROR(VLOOKUP($A26,Filtro!$A$5:$AK$2912,30,FALSE),0) -> 0 | AG26: =IFERROR(VLOOKUP($A26,Filtro!$A$5:$AK$2912,31,FALSE),0) -> 0 | AH26: =IFERROR(VLOOKUP($A26,Filtro!$A$5:$AK$2912,32,FALSE),0) -> 0 | AI26: =IFERROR(VLOOKUP($A26,Filtro!$A$5:$AK$2912,33,FALSE),0) -> 0 | AJ26: =IFERROR(VLOOKUP($A26,Filtro!$A$5:$AK$2912,34,FALSE),0) -> 0 | AK26: =IFERROR(VLOOKUP($A26,Filtro!$A$5:$AK$2912,35,FALSE),0) -> 0 | AL26: =IFERROR(VLOOKUP($A26,Filtro!$A$5:$AK$2912,36,FALSE),0) -> 660,650 | AM26: =IFERROR(VLOOKUP($A26,Filtro!$A$5:$AK$2912,37,FALSE),0) -> 130,718,200
A27: 01012816 | B27: 0101308 | C27: Consulta Médica de Especialidad en Obstetricia y Ginecología | D27: =IFERROR(VLOOKUP($A27,Filtro!$A$5:$AK$2912,2,FALSE),0) -> 18910 | E27: =IFERROR(VLOOKUP($A27,Filtro!$A$5:$AK$2912,3,FALSE),0) -> 18892 | F27: =IFERROR(VLOOKUP($A27,Filtro!$A$5:$AK$2912,4,FALSE),0) -> 18892 | G27: =IFERROR(VLOOKUP($A27,Filtro!$A$5:$AK$2912,5,FALSE),0) -> 0 | H27: =IFERROR(VLOOKUP($A27,Filtro!$A$5:$AK$2912,6,FALSE),0) -> 18 | I27: =IFERROR(VLOOKUP($A27,Filtro!$A$5:$AK$2912,7,FALSE),0) -> 0 | J27: =IFERROR(VLOOKUP($A27,Filtro!$A$5:$AK$2912,8,FALSE),0) -> 0 | K27: =IFERROR(VLOOKUP($A27,Filtro!$A$5:$AK$2912,9,FALSE),0) -> 0 | L27: =IFERROR(VLOOKUP($A27,Filtro!$A$5:$AK$2912,10,FALSE),0) -> 0 | M27: =IFERROR(VLOOKUP($A27,Filtro!$A$5:$AK$2912,11,FALSE),0) -> 0 | N27: =IFERROR(VLOOKUP($A27,Filtro!$A$5:$AK$2912,12,FALSE),0) -> 0 | O27: =IFERROR(VLOOKUP($A27,Filtro!$A$5:$AK$2912,13,FALSE),0) -> 0 | P27: =IFERROR(VLOOKUP($A27,Filtro!$A$5:$AK$2912,14,FALSE),0) -> 0 | Q27: =IFERROR(VLOOKUP($A27,Filtro!$A$5:$AK$2912,15,FALSE),0) -> 0 | R27: =IFERROR(VLOOKUP($A27,Filtro!$A$5:$AK$2912,16,FALSE),0) -> 0 | S27: =IFERROR(VLOOKUP($A27,Filtro!$A$5:$AK$2912,17,FALSE),0) -> 0 | T27: =IFERROR(VLOOKUP($A27,Filtro!$A$5:$AK$2912,18,FALSE),0) -> 0 | U27: =IFERROR(VLOOKUP($A27,Filtro!$A$5:$AK$2912,19,FALSE),0) -> 0 | V27: =IFERROR(VLOOKUP($A27,Filtro!$A$5:$AK$2912,20,FALSE),0) -> 0 | W27: =IFERROR(VLOOKUP($A27,Filtro!$A$5:$AK$2912,21,FALSE),0) -> 0 | X27: =IFERROR(VLOOKUP($A27,Filtro!$A$5:$AK$2912,22,FALSE),0) -> 0 | Y27: =IFERROR(VLOOKUP($A27,Filtro!$A$5:$AK$2912,23,FALSE),0) -> 0 | Z27: =IFERROR(VLOOKUP($A27,Filtro!$A$5:$AK$2912,24,FALSE),0) -> 0 | AA27: =IFERROR(VLOOKUP($A27,Filtro!$A$5:$AK$2912,25,FALSE),0) -> 0 | AB27: =IFERROR(VLOOKUP($A27,Filtro!$A$5:$AK$2912,26,FALSE),0) -> 208 | AC27: =IFERROR(VLOOKUP($A27,Filtro!$A$5:$AK$2912,27,FALSE),0) -> 17853 | AD27: =IFERROR(VLOOKUP($A27,Filtro!$A$5:$AK$2912,28,FALSE),0) -> 730 | AE27: =IFERROR(VLOOKUP($A27,Filtro!$A$5:$AK$2912,29,FALSE),0) -> 0 | AF27: =IFERROR(VLOOKUP($A27,Filtro!$A$5:$AK$2912,30,FALSE),0) -> 0 | AG27: =IFERROR(VLOOKUP($A27,Filtro!$A$5:$AK$2912,31,FALSE),0) -> 0 | AH27: =IFERROR(VLOOKUP($A27,Filtro!$A$5:$AK$2912,32,FALSE),0) -> 0 | AI27: =IFERROR(VLOOKUP($A27,Filtro!$A$5:$AK$2912,33,FALSE),0) -> 0 | AJ27: =IFERROR(VLOOKUP($A27,Filtro!$A$5:$AK$2912,34,FALSE),0) -> 0 | AK27: =IFERROR(VLOOKUP($A27,Filtro!$A$5:$AK$2912,35,FALSE),0) -> 0 | AL27: =IFERROR(VLOOKUP($A27,Filtro!$A$5:$AK$2912,36,FALSE),0) -> 660,650 | AM27: =IFERROR(VLOOKUP($A27,Filtro!$A$5:$AK$2912,37,FALSE),0) -> 170,972,600
A28: 01014296 | B28: 0101309 | C28: Consulta Médica de Especialidad en Pediatría | D28: =IFERROR(VLOOKUP($A28,Filtro!$A$5:$AK$2912,2,FALSE),0) -> 5857 | E28: =IFERROR(VLOOKUP($A28,Filtro!$A$5:$AK$2912,3,FALSE),0) -> 5851 | F28: =IFERROR(VLOOKUP($A28,Filtro!$A$5:$AK$2912,4,FALSE),0) -> 5851 | G28: =IFERROR(VLOOKUP($A28,Filtro!$A$5:$AK$2912,5,FALSE),0) -> 0 | H28: =IFERROR(VLOOKUP($A28,Filtro!$A$5:$AK$2912,6,FALSE),0) -> 6 | I28: =IFERROR(VLOOKUP($A28,Filtro!$A$5:$AK$2912,7,FALSE),0) -> 0 | J28: =IFERROR(VLOOKUP($A28,Filtro!$A$5:$AK$2912,8,FALSE),0) -> 0 | K28: =IFERROR(VLOOKUP($A28,Filtro!$A$5:$AK$2912,9,FALSE),0) -> 0 | L28: =IFERROR(VLOOKUP($A28,Filtro!$A$5:$AK$2912,10,FALSE),0) -> 0 | M28: =IFERROR(VLOOKUP($A28,Filtro!$A$5:$AK$2912,11,FALSE),0) -> 0 | N28: =IFERROR(VLOOKUP($A28,Filtro!$A$5:$AK$2912,12,FALSE),0) -> 0 | O28: =IFERROR(VLOOKUP($A28,Filtro!$A$5:$AK$2912,13,FALSE),0) -> 0 | P28: =IFERROR(VLOOKUP($A28,Filtro!$A$5:$AK$2912,14,FALSE),0) -> 0 | Q28: =IFERROR(VLOOKUP($A28,Filtro!$A$5:$AK$2912,15,FALSE),0) -> 0 | R28: =IFERROR(VLOOKUP($A28,Filtro!$A$5:$AK$2912,16,FALSE),0) -> 0 | S28: =IFERROR(VLOOKUP($A28,Filtro!$A$5:$AK$2912,17,FALSE),0) -> 0 | T28: =IFERROR(VLOOKUP($A28,Filtro!$A$5:$AK$2912,18,FALSE),0) -> 0 | U28: =IFERROR(VLOOKUP($A28,Filtro!$A$5:$AK$2912,19,FALSE),0) -> 0 | V28: =IFERROR(VLOOKUP($A28,Filtro!$A$5:$AK$2912,20,FALSE),0) -> 0 | W28: =IFERROR(VLOOKUP($A28,Filtro!$A$5:$AK$2912,21,FALSE),0) -> 0 | X28: =IFERROR(VLOOKUP($A28,Filtro!$A$5:$AK$2912,22,FALSE),0) -> 0 | Y28: =IFERROR(VLOOKUP($A28,Filtro!$A$5:$AK$2912,23,FALSE),0) -> 0 | Z28: =IFERROR(VLOOKUP($A28,Filtro!$A$5:$AK$2912,24,FALSE),0) -> 0 | AA28: =IFERROR(VLOOKUP($A28,Filtro!$A$5:$AK$2912,25,FALSE),0) -> 0 | AB28: =IFERROR(VLOOKUP($A28,Filtro!$A$5:$AK$2912,26,FALSE),0) -> 0 | AC28: =IFERROR(VLOOKUP($A28,Filtro!$A$5:$AK$2912,27,FALSE),0) -> 5726 | AD28: =IFERROR(VLOOKUP($A28,Filtro!$A$5:$AK$2912,28,FALSE),0) -> 0 | AE28: =IFERROR(VLOOKUP($A28,Filtro!$A$5:$AK$2912,29,FALSE),0) -> 0 | AF28: =IFERROR(VLOOKUP($A28,Filtro!$A$5:$AK$2912,30,FALSE),0) -> 0 | AG28: =IFERROR(VLOOKUP($A28,Filtro!$A$5:$AK$2912,31,FALSE),0) -> 0 | AH28: =IFERROR(VLOOKUP($A28,Filtro!$A$5:$AK$2912,32,FALSE),0) -> 0 | AI28: =IFERROR(VLOOKUP($A28,Filtro!$A$5:$AK$2912,33,FALSE),0) -> 0 | AJ28: =IFERROR(VLOOKUP($A28,Filtro!$A$5:$AK$2912,34,FALSE),0) -> 0 | AK28: =IFERROR(VLOOKUP($A28,Filtro!$A$5:$AK$2912,35,FALSE),0) -> 0 | AL28: =IFERROR(VLOOKUP($A28,Filtro!$A$5:$AK$2912,36,FALSE),0) -> 660,650 | AM28: =IFERROR(VLOOKUP($A28,Filtro!$A$5:$AK$2912,37,FALSE),0) -> 52,951,550
A29: 01014297 | B29: 0101310 | C29: Consulta Médica de Especialidad en Traumatología y Ortopedia | D29: =IFERROR(VLOOKUP($A29,Filtro!$A$5:$AK$2912,2,FALSE),0) -> 14306 | E29: =IFERROR(VLOOKUP($A29,Filtro!$A$5:$AK$2912,3,FALSE),0) -> 14213 | F29: =IFERROR(VLOOKUP($A29,Filtro!$A$5:$AK$2912,4,FALSE),0) -> 14213 | G29: =IFERROR(VLOOKUP($A29,Filtro!$A$5:$AK$2912,5,FALSE),0) -> 0 | H29: =IFERROR(VLOOKUP($A29,Filtro!$A$5:$AK$2912,6,FALSE),0) -> 93 | I29: =IFERROR(VLOOKUP($A29,Filtro!$A$5:$AK$2912,7,FALSE),0) -> 0 | J29: =IFERROR(VLOOKUP($A29,Filtro!$A$5:$AK$2912,8,FALSE),0) -> 0 | K29: =IFERROR(VLOOKUP($A29,Filtro!$A$5:$AK$2912,9,FALSE),0) -> 0 | L29: =IFERROR(VLOOKUP($A29,Filtro!$A$5:$AK$2912,10,FALSE),0) -> 0 | M29: =IFERROR(VLOOKUP($A29,Filtro!$A$5:$AK$2912,11,FALSE),0) -> 0 | N29: =IFERROR(VLOOKUP($A29,Filtro!$A$5:$AK$2912,12,FALSE),0) -> 0 | O29: =IFERROR(VLOOKUP($A29,Filtro!$A$5:$AK$2912,13,FALSE),0) -> 0 | P29: =IFERROR(VLOOKUP($A29,Filtro!$A$5:$AK$2912,14,FALSE),0) -> 0 | Q29: =IFERROR(VLOOKUP($A29,Filtro!$A$5:$AK$2912,15,FALSE),0) -> 0 | R29: =IFERROR(VLOOKUP($A29,Filtro!$A$5:$AK$2912,16,FALSE),0) -> 0 | S29: =IFERROR(VLOOKUP($A29,Filtro!$A$5:$AK$2912,17,FALSE),0) -> 0 | T29: =IFERROR(VLOOKUP($A29,Filtro!$A$5:$AK$2912,18,FALSE),0) -> 0 | U29: =IFERROR(VLOOKUP($A29,Filtro!$A$5:$AK$2912,19,FALSE),0) -> 0 | V29: =IFERROR(VLOOKUP($A29,Filtro!$A$5:$AK$2912,20,FALSE),0) -> 0 | W29: =IFERROR(VLOOKUP($A29,Filtro!$A$5:$AK$2912,21,FALSE),0) -> 0 | X29: =IFERROR(VLOOKUP($A29,Filtro!$A$5:$AK$2912,22,FALSE),0) -> 0 | Y29: =IFERROR(VLOOKUP($A29,Filtro!$A$5:$AK$2912,23,FALSE),0) -> 0 | Z29: =IFERROR(VLOOKUP($A29,Filtro!$A$5:$AK$2912,24,FALSE),0) -> 0 | AA29: =IFERROR(VLOOKUP($A29,Filtro!$A$5:$AK$2912,25,FALSE),0) -> 0 | AB29: =IFERROR(VLOOKUP($A29,Filtro!$A$5:$AK$2912,26,FALSE),0) -> 0 | AC29: =IFERROR(VLOOKUP($A29,Filtro!$A$5:$AK$2912,27,FALSE),0) -> 14306 | AD29: =IFERROR(VLOOKUP($A29,Filtro!$A$5:$AK$2912,28,FALSE),0) -> 0 | AE29: =IFERROR(VLOOKUP($A29,Filtro!$A$5:$AK$2912,29,FALSE),0) -> 283 | AF29: =IFERROR(VLOOKUP($A29,Filtro!$A$5:$AK$2912,30,FALSE),0) -> 0 | AG29: =IFERROR(VLOOKUP($A29,Filtro!$A$5:$AK$2912,31,FALSE),0) -> 0 | AH29: =IFERROR(VLOOKUP($A29,Filtro!$A$5:$AK$2912,32,FALSE),0) -> 0 | AI29: =IFERROR(VLOOKUP($A29,Filtro!$A$5:$AK$2912,33,FALSE),0) -> 0 | AJ29: =IFERROR(VLOOKUP($A29,Filtro!$A$5:$AK$2912,34,FALSE),0) -> 0 | AK29: =IFERROR(VLOOKUP($A29,Filtro!$A$5:$AK$2912,35,FALSE),0) -> 0 | AL29: =IFERROR(VLOOKUP($A29,Filtro!$A$5:$AK$2912,36,FALSE),0) -> 660,650 | AM29: =IFERROR(VLOOKUP($A29,Filtro!$A$5:$AK$2912,37,FALSE),0) -> 128,627,650
A30: 01014298 | B30: 0101311 | C30: Consulta Médica de Especialidad en Urología | D30: =IFERROR(VLOOKUP($A30,Filtro!$A$5:$AK$2912,2,FALSE),0) -> 7778 | E30: =IFERROR(VLOOKUP($A30,Filtro!$A$5:$AK$2912,3,FALSE),0) -> 7775 | F30: =IFERROR(VLOOKUP($A30,Filtro!$A$5:$AK$2912,4,FALSE),0) -> 7775 | G30: =IFERROR(VLOOKUP($A30,Filtro!$A$5:$AK$2912,5,FALSE),0) -> 0 | H30: =IFERROR(VLOOKUP($A30,Filtro!$A$5:$AK$2912,6,FALSE),0) -> 3 | I30: =IFERROR(VLOOKUP($A30,Filtro!$A$5:$AK$2912,7,FALSE),0) -> 0 | J30: =IFERROR(VLOOKUP($A30,Filtro!$A$5:$AK$2912,8,FALSE),0) -> 0 | K30: =IFERROR(VLOOKUP($A30,Filtro!$A$5:$AK$2912,9,FALSE),0) -> 0 | L30: =IFERROR(VLOOKUP($A30,Filtro!$A$5:$AK$2912,10,FALSE),0) -> 0 | M30: =IFERROR(VLOOKUP($A30,Filtro!$A$5:$AK$2912,11,FALSE),0) -> 0 | N30: =IFERROR(VLOOKUP($A30,Filtro!$A$5:$AK$2912,12,FALSE),0) -> 0 | O30: =IFERROR(VLOOKUP($A30,Filtro!$A$5:$AK$2912,13,FALSE),0) -> 0 | P30: =IFERROR(VLOOKUP($A30,Filtro!$A$5:$AK$2912,14,FALSE),0) -> 0 | Q30: =IFERROR(VLOOKUP($A30,Filtro!$A$5:$AK$2912,15,FALSE),0) -> 0 | R30: =IFERROR(VLOOKUP($A30,Filtro!$A$5:$AK$2912,16,FALSE),0) -> 0 | S30: =IFERROR(VLOOKUP($A30,Filtro!$A$5:$AK$2912,17,FALSE),0) -> 0 | T30: =IFERROR(VLOOKUP($A30,Filtro!$A$5:$AK$2912,18,FALSE),0) -> 0 | U30: =IFERROR(VLOOKUP($A30,Filtro!$A$5:$AK$2912,19,FALSE),0) -> 0 | V30: =IFERROR(VLOOKUP($A30,Filtro!$A$5:$AK$2912,20,FALSE),0) -> 0 | W30: =IFERROR(VLOOKUP($A30,Filtro!$A$5:$AK$2912,21,FALSE),0) -> 0 | X30: =IFERROR(VLOOKUP($A30,Filtro!$A$5:$AK$2912,22,FALSE),0) -> 0 | Y30: =IFERROR(VLOOKUP($A30,Filtro!$A$5:$AK$2912,23,FALSE),0) -> 0 | Z30: =IFERROR(VLOOKUP($A30,Filtro!$A$5:$AK$2912,24,FALSE),0) -> 0 | AA30: =IFERROR(VLOOKUP($A30,Filtro!$A$5:$AK$2912,25,FALSE),0) -> 0 | AB30: =IFERROR(VLOOKUP($A30,Filtro!$A$5:$AK$2912,26,FALSE),0) -> 0 | AC30: =IFERROR(VLOOKUP($A30,Filtro!$A$5:$AK$2912,27,FALSE),0) -> 7778 | AD30: =IFERROR(VLOOKUP($A30,Filtro!$A$5:$AK$2912,28,FALSE),0) -> 0 | AE30: =IFERROR(VLOOKUP($A30,Filtro!$A$5:$AK$2912,29,FALSE),0) -> 1235 | AF30: =IFERROR(VLOOKUP($A30,Filtro!$A$5:$AK$2912,30,FALSE),0) -> 0 | AG30: =IFERROR(VLOOKUP($A30,Filtro!$A$5:$AK$2912,31,FALSE),0) -> 0 | AH30: =IFERROR(VLOOKUP($A30,Filtro!$A$5:$AK$2912,32,FALSE),0) -> 0 | AI30: =IFERROR(VLOOKUP($A30,Filtro!$A$5:$AK$2912,33,FALSE),0) -> 0 | AJ30: =IFERROR(VLOOKUP($A30,Filtro!$A$5:$AK$2912,34,FALSE),0) -> 0 | AK30: =IFERROR(VLOOKUP($A30,Filtro!$A$5:$AK$2912,35,FALSE),0) -> 0 | AL30: =IFERROR(VLOOKUP($A30,Filtro!$A$5:$AK$2912,36,FALSE),0) -> 660,650 | AM30: =IFERROR(VLOOKUP($A30,Filtro!$A$5:$AK$2912,37,FALSE),0) -> 70,363,750
A31: 01014299 | B31: 0101312 | C31: Consulta Médica de Especialidad en Cirugía General | D31: =IFERROR(VLOOKUP($A31,Filtro!$A$5:$AK$2912,2,FALSE),0) -> 9986 | E31: =IFERROR(VLOOKUP($A31,Filtro!$A$5:$AK$2912,3,FALSE),0) -> 9984 | F31: =IFERROR(VLOOKUP($A31,Filtro!$A$5:$AK$2912,4,FALSE),0) -> 9984 | G31: =IFERROR(VLOOKUP($A31,Filtro!$A$5:$AK$2912,5,FALSE),0) -> 0 | H31: =IFERROR(VLOOKUP($A31,Filtro!$A$5:$AK$2912,6,FALSE),0) -> 2 | I31: =IFERROR(VLOOKUP($A31,Filtro!$A$5:$AK$2912,7,FALSE),0) -> 0 | J31: =IFERROR(VLOOKUP($A31,Filtro!$A$5:$AK$2912,8,FALSE),0) -> 0 | K31: =IFERROR(VLOOKUP($A31,Filtro!$A$5:$AK$2912,9,FALSE),0) -> 0 | L31: =IFERROR(VLOOKUP($A31,Filtro!$A$5:$AK$2912,10,FALSE),0) -> 0 | M31: =IFERROR(VLOOKUP($A31,Filtro!$A$5:$AK$2912,11,FALSE),0) -> 0 | N31: =IFERROR(VLOOKUP($A31,Filtro!$A$5:$AK$2912,12,FALSE),0) -> 0 | O31: =IFERROR(VLOOKUP($A31,Filtro!$A$5:$AK$2912,13,FALSE),0) -> 0 | P31: =IFERROR(VLOOKUP($A31,Filtro!$A$5:$AK$2912,14,FALSE),0) -> 0 | Q31: =IFERROR(VLOOKUP($A31,Filtro!$A$5:$AK$2912,15,FALSE),0) -> 0 | R31: =IFERROR(VLOOKUP($A31,Filtro!$A$5:$AK$2912,16,FALSE),0) -> 0 | S31: =IFERROR(VLOOKUP($A31,Filtro!$A$5:$AK$2912,17,FALSE),0) -> 0 | T31: =IFERROR(VLOOKUP($A31,Filtro!$A$5:$AK$2912,18,FALSE),0) -> 0 | U31: =IFERROR(VLOOKUP($A31,Filtro!$A$5:$AK$2912,19,FALSE),0) -> 0 | V31: =IFERROR(VLOOKUP($A31,Filtro!$A$5:$AK$2912,20,FALSE),0) -> 0 | W31: =IFERROR(VLOOKUP($A31,Filtro!$A$5:$AK$2912,21,FALSE),0) -> 0 | X31: =IFERROR(VLOOKUP($A31,Filtro!$A$5:$AK$2912,22,FALSE),0) -> 0 | Y31: =IFERROR(VLOOKUP($A31,Filtro!$A$5:$AK$2912,23,FALSE),0) -> 0 | Z31: =IFERROR(VLOOKUP($A31,Filtro!$A$5:$AK$2912,24,FALSE),0) -> 0 | AA31: =IFERROR(VLOOKUP($A31,Filtro!$A$5:$AK$2912,25,FALSE),0) -> 0 | AB31: =IFERROR(VLOOKUP($A31,Filtro!$A$5:$AK$2912,26,FALSE),0) -> 0 | AC31: =IFERROR(VLOOKUP($A31,Filtro!$A$5:$AK$2912,27,FALSE),0) -> 9986 | AD31: =IFERROR(VLOOKUP($A31,Filtro!$A$5:$AK$2912,28,FALSE),0) -> 0 | AE31: =IFERROR(VLOOKUP($A31,Filtro!$A$5:$AK$2912,29,FALSE),0) -> 1368 | AF31: =IFERROR(VLOOKUP($A31,Filtro!$A$5:$AK$2912,30,FALSE),0) -> 0 | AG31: =IFERROR(VLOOKUP($A31,Filtro!$A$5:$AK$2912,31,FALSE),0) -> 0 | AH31: =IFERROR(VLOOKUP($A31,Filtro!$A$5:$AK$2912,32,FALSE),0) -> 0 | AI31: =IFERROR(VLOOKUP($A31,Filtro!$A$5:$AK$2912,33,FALSE),0) -> 0 | AJ31: =IFERROR(VLOOKUP($A31,Filtro!$A$5:$AK$2912,34,FALSE),0) -> 0 | AK31: =IFERROR(VLOOKUP($A31,Filtro!$A$5:$AK$2912,35,FALSE),0) -> 0 | AL31: =IFERROR(VLOOKUP($A31,Filtro!$A$5:$AK$2912,36,FALSE),0) -> 660,650 | AM31: =IFERROR(VLOOKUP($A31,Filtro!$A$5:$AK$2912,37,FALSE),0) -> 90,355,200
A32: 01014300 | B32: 0101313 | C32: Consulta Médica de Especialidad en Cirugía de Cabeza, Cuello y Maxilofacial | D32: =IFERROR(VLOOKUP($A32,Filtro!$A$5:$AK$2912,2,FALSE),0) -> 452 | E32: =IFERROR(VLOOKUP($A32,Filtro!$A$5:$AK$2912,3,FALSE),0) -> 450 | F32: =IFERROR(VLOOKUP($A32,Filtro!$A$5:$AK$2912,4,FALSE),0) -> 450 | G32: =IFERROR(VLOOKUP($A32,Filtro!$A$5:$AK$2912,5,FALSE),0) -> 0 | H32: =IFERROR(VLOOKUP($A32,Filtro!$A$5:$AK$2912,6,FALSE),0) -> 2 | I32: =IFERROR(VLOOKUP($A32,Filtro!$A$5:$AK$2912,7,FALSE),0) -> 0 | J32: =IFERROR(VLOOKUP($A32,Filtro!$A$5:$AK$2912,8,FALSE),0) -> 0 | K32: =IFERROR(VLOOKUP($A32,Filtro!$A$5:$AK$2912,9,FALSE),0) -> 0 | L32: =IFERROR(VLOOKUP($A32,Filtro!$A$5:$AK$2912,10,FALSE),0) -> 0 | M32: =IFERROR(VLOOKUP($A32,Filtro!$A$5:$AK$2912,11,FALSE),0) -> 0 | N32: =IFERROR(VLOOKUP($A32,Filtro!$A$5:$AK$2912,12,FALSE),0) -> 0 | O32: =IFERROR(VLOOKUP($A32,Filtro!$A$5:$AK$2912,13,FALSE),0) -> 0 | P32: =IFERROR(VLOOKUP($A32,Filtro!$A$5:$AK$2912,14,FALSE),0) -> 0 | Q32: =IFERROR(VLOOKUP($A32,Filtro!$A$5:$AK$2912,15,FALSE),0) -> 0 | R32: =IFERROR(VLOOKUP($A32,Filtro!$A$5:$AK$2912,16,FALSE),0) -> 0 | S32: =IFERROR(VLOOKUP($A32,Filtro!$A$5:$AK$2912,17,FALSE),0) -> 0 | T32: =IFERROR(VLOOKUP($A32,Filtro!$A$5:$AK$2912,18,FALSE),0) -> 0 | U32: =IFERROR(VLOOKUP($A32,Filtro!$A$5:$AK$2912,19,FALSE),0) -> 0 | V32: =IFERROR(VLOOKUP($A32,Filtro!$A$5:$AK$2912,20,FALSE),0) -> 0 | W32: =IFERROR(VLOOKUP($A32,Filtro!$A$5:$AK$2912,21,FALSE),0) -> 0 | X32: =IFERROR(VLOOKUP($A32,Filtro!$A$5:$AK$2912,22,FALSE),0) -> 0 | Y32: =IFERROR(VLOOKUP($A32,Filtro!$A$5:$AK$2912,23,FALSE),0) -> 0 | Z32: =IFERROR(VLOOKUP($A32,Filtro!$A$5:$AK$2912,24,FALSE),0) -> 0 | AA32: =IFERROR(VLOOKUP($A32,Filtro!$A$5:$AK$2912,25,FALSE),0) -> 0 | AB32: =IFERROR(VLOOKUP($A32,Filtro!$A$5:$AK$2912,26,FALSE),0) -> 0 | AC32: =IFERROR(VLOOKUP($A32,Filtro!$A$5:$AK$2912,27,FALSE),0) -> 452 | AD32: =IFERROR(VLOOKUP($A32,Filtro!$A$5:$AK$2912,28,FALSE),0) -> 0 | AE32: =IFERROR(VLOOKUP($A32,Filtro!$A$5:$AK$2912,29,FALSE),0) -> 0 | AF32: =IFERROR(VLOOKUP($A32,Filtro!$A$5:$AK$2912,30,FALSE),0) -> 0 | AG32: =IFERROR(VLOOKUP($A32,Filtro!$A$5:$AK$2912,31,FALSE),0) -> 0 | AH32: =IFERROR(VLOOKUP($A32,Filtro!$A$5:$AK$2912,32,FALSE),0) -> 0 | AI32: =IFERROR(VLOOKUP($A32,Filtro!$A$5:$AK$2912,33,FALSE),0) -> 0 | AJ32: =IFERROR(VLOOKUP($A32,Filtro!$A$5:$AK$2912,34,FALSE),0) -> 0 | AK32: =IFERROR(VLOOKUP($A32,Filtro!$A$5:$AK$2912,35,FALSE),0) -> 0 | AL32: =IFERROR(VLOOKUP($A32,Filtro!$A$5:$AK$2912,36,FALSE),0) -> 660,650 | AM32: =IFERROR(VLOOKUP($A32,Filtro!$A$5:$AK$2912,37,FALSE),0) -> 4,072,500
A33: 01014301 | B33: 0101314 | C33: Consulta Médica de Especialidad en Cirugía Cardiovascular | D33: =IFERROR(VLOOKUP($A33,Filtro!$A$5:$AK$2912,2,FALSE),0) -> 0 | E33: =IFERROR(VLOOKUP($A33,Filtro!$A$5:$AK$2912,3,FALSE),0) -> 0 | F33: =IFERROR(VLOOKUP($A33,Filtro!$A$5:$AK$2912,4,FALSE),0) -> 0 | G33: =IFERROR(VLOOKUP($A33,Filtro!$A$5:$AK$2912,5,FALSE),0) -> 0 | H33: =IFERROR(VLOOKUP($A33,Filtro!$A$5:$AK$2912,6,FALSE),0) -> 0 | I33: =IFERROR(VLOOKUP($A33,Filtro!$A$5:$AK$2912,7,FALSE),0) -> 0 | J33: =IFERROR(VLOOKUP($A33,Filtro!$A$5:$AK$2912,8,FALSE),0) -> 0 | K33: =IFERROR(VLOOKUP($A33,Filtro!$A$5:$AK$2912,9,FALSE),0) -> 0 | L33: =IFERROR(VLOOKUP($A33,Filtro!$A$5:$AK$2912,10,FALSE),0) -> 0 | M33: =IFERROR(VLOOKUP($A33,Filtro!$A$5:$AK$2912,11,FALSE),0) -> 0 | N33: =IFERROR(VLOOKUP($A33,Filtro!$A$5:$AK$2912,12,FALSE),0) -> 0 | O33: =IFERROR(VLOOKUP($A33,Filtro!$A$5:$AK$2912,13,FALSE),0) -> 0 | P33: =IFERROR(VLOOKUP($A33,Filtro!$A$5:$AK$2912,14,FALSE),0) -> 0 | Q33: =IFERROR(VLOOKUP($A33,Filtro!$A$5:$AK$2912,15,FALSE),0) -> 0 | R33: =IFERROR(VLOOKUP($A33,Filtro!$A$5:$AK$2912,16,FALSE),0) -> 0 | S33: =IFERROR(VLOOKUP($A33,Filtro!$A$5:$AK$2912,17,FALSE),0) -> 0 | T33: =IFERROR(VLOOKUP($A33,Filtro!$A$5:$AK$2912,18,FALSE),0) -> 0 | U33: =IFERROR(VLOOKUP($A33,Filtro!$A$5:$AK$2912,19,FALSE),0) -> 0 | V33: =IFERROR(VLOOKUP($A33,Filtro!$A$5:$AK$2912,20,FALSE),0) -> 0 | W33: =IFERROR(VLOOKUP($A33,Filtro!$A$5:$AK$2912,21,FALSE),0) -> 0 | X33: =IFERROR(VLOOKUP($A33,Filtro!$A$5:$AK$2912,22,FALSE),0) -> 0 | Y33: =IFERROR(VLOOKUP($A33,Filtro!$A$5:$AK$2912,23,FALSE),0) -> 0 | Z33: =IFERROR(VLOOKUP($A33,Filtro!$A$5:$AK$2912,24,FALSE),0) -> 0 | AA33: =IFERROR(VLOOKUP($A33,Filtro!$A$5:$AK$2912,25,FALSE),0) -> 0 | AB33: =IFERROR(VLOOKUP($A33,Filtro!$A$5:$AK$2912,26,FALSE),0) -> 0 | AC33: =IFERROR(VLOOKUP($A33,Filtro!$A$5:$AK$2912,27,FALSE),0) -> 0 | AD33: =IFERROR(VLOOKUP($A33,Filtro!$A$5:$AK$2912,28,FALSE),0) -> 0 | AE33: =IFERROR(VLOOKUP($A33,Filtro!$A$5:$AK$2912,29,FALSE),0) -> 0 | AF33: =IFERROR(VLOOKUP($A33,Filtro!$A$5:$AK$2912,30,FALSE),0) -> 0 | AG33: =IFERROR(VLOOKUP($A33,Filtro!$A$5:$AK$2912,31,FALSE),0) -> 0 | AH33: =IFERROR(VLOOKUP($A33,Filtro!$A$5:$AK$2912,32,FALSE),0) -> 0 | AI33: =IFERROR(VLOOKUP($A33,Filtro!$A$5:$AK$2912,33,FALSE),0) -> 0 | AJ33: =IFERROR(VLOOKUP($A33,Filtro!$A$5:$AK$2912,34,FALSE),0) -> 0 | AK33: =IFERROR(VLOOKUP($A33,Filtro!$A$5:$AK$2912,35,FALSE),0) -> 0 | AL33: =IFERROR(VLOOKUP($A33,Filtro!$A$5:$AK$2912,36,FALSE),0) -> 660,650 | AM33: =IFERROR(VLOOKUP($A33,Filtro!$A$5:$AK$2912,37,FALSE),0) -> 0
A34: 01014302 | B34: 0101315 | C34: Consulta Médica de Especialidad en Cirugía de Tórax | D34: =IFERROR(VLOOKUP($A34,Filtro!$A$5:$AK$2912,2,FALSE),0) -> 381 | E34: =IFERROR(VLOOKUP($A34,Filtro!$A$5:$AK$2912,3,FALSE),0) -> 381 | F34: =IFERROR(VLOOKUP($A34,Filtro!$A$5:$AK$2912,4,FALSE),0) -> 381 | G34: =IFERROR(VLOOKUP($A34,Filtro!$A$5:$AK$2912,5,FALSE),0) -> 0 | H34: =IFERROR(VLOOKUP($A34,Filtro!$A$5:$AK$2912,6,FALSE),0) -> 0 | I34: =IFERROR(VLOOKUP($A34,Filtro!$A$5:$AK$2912,7,FALSE),0) -> 0 | J34: =IFERROR(VLOOKUP($A34,Filtro!$A$5:$AK$2912,8,FALSE),0) -> 0 | K34: =IFERROR(VLOOKUP($A34,Filtro!$A$5:$AK$2912,9,FALSE),0) -> 0 | L34: =IFERROR(VLOOKUP($A34,Filtro!$A$5:$AK$2912,10,FALSE),0) -> 0 | M34: =IFERROR(VLOOKUP($A34,Filtro!$A$5:$AK$2912,11,FALSE),0) -> 0 | N34: =IFERROR(VLOOKUP($A34,Filtro!$A$5:$AK$2912,12,FALSE),0) -> 0 | O34: =IFERROR(VLOOKUP($A34,Filtro!$A$5:$AK$2912,13,FALSE),0) -> 0 | P34: =IFERROR(VLOOKUP($A34,Filtro!$A$5:$AK$2912,14,FALSE),0) -> 0 | Q34: =IFERROR(VLOOKUP($A34,Filtro!$A$5:$AK$2912,15,FALSE),0) -> 0 | R34: =IFERROR(VLOOKUP($A34,Filtro!$A$5:$AK$2912,16,FALSE),0) -> 0 | S34: =IFERROR(VLOOKUP($A34,Filtro!$A$5:$AK$2912,17,FALSE),0) -> 0 | T34: =IFERROR(VLOOKUP($A34,Filtro!$A$5:$AK$2912,18,FALSE),0) -> 0 | U34: =IFERROR(VLOOKUP($A34,Filtro!$A$5:$AK$2912,19,FALSE),0) -> 0 | V34: =IFERROR(VLOOKUP($A34,Filtro!$A$5:$AK$2912,20,FALSE),0) -> 0 | W34: =IFERROR(VLOOKUP($A34,Filtro!$A$5:$AK$2912,21,FALSE),0) -> 0 | X34: =IFERROR(VLOOKUP($A34,Filtro!$A$5:$AK$2912,22,FALSE),0) -> 0 | Y34: =IFERROR(VLOOKUP($A34,Filtro!$A$5:$AK$2912,23,FALSE),0) -> 0 | Z34: =IFERROR(VLOOKUP($A34,Filtro!$A$5:$AK$2912,24,FALSE),0) -> 0 | AA34: =IFERROR(VLOOKUP($A34,Filtro!$A$5:$AK$2912,25,FALSE),0) -> 0 | AB34: =IFERROR(VLOOKUP($A34,Filtro!$A$5:$AK$2912,26,FALSE),0) -> 0 | AC34: =IFERROR(VLOOKUP($A34,Filtro!$A$5:$AK$2912,27,FALSE),0) -> 381 | AD34: =IFERROR(VLOOKUP($A34,Filtro!$A$5:$AK$2912,28,FALSE),0) -> 0 | AE34: =IFERROR(VLOOKUP($A34,Filtro!$A$5:$AK$2912,29,FALSE),0) -> 0 | AF34: =IFERROR(VLOOKUP($A34,Filtro!$A$5:$AK$2912,30,FALSE),0) -> 0 | AG34: =IFERROR(VLOOKUP($A34,Filtro!$A$5:$AK$2912,31,FALSE),0) -> 0 | AH34: =IFERROR(VLOOKUP($A34,Filtro!$A$5:$AK$2912,32,FALSE),0) -> 0 | AI34: =IFERROR(VLOOKUP($A34,Filtro!$A$5:$AK$2912,33,FALSE),0) -> 0 | AJ34: =IFERROR(VLOOKUP($A34,Filtro!$A$5:$AK$2912,34,FALSE),0) -> 0 | AK34: =IFERROR(VLOOKUP($A34,Filtro!$A$5:$AK$2912,35,FALSE),0) -> 0 | AL34: =IFERROR(VLOOKUP($A34,Filtro!$A$5:$AK$2912,36,FALSE),0) -> 660,650 | AM34: =IFERROR(VLOOKUP($A34,Filtro!$A$5:$AK$2912,37,FALSE),0) -> 3,448,050
A35: 01014303 | B35: 0101316 | C35: Consulta Médica de Especialidad en Cirugía Plástica y Reparadora | D35: =IFERROR(VLOOKUP($A35,Filtro!$A$5:$AK$2912,2,FALSE),0) -> 135 | E35: =IFERROR(VLOOKUP($A35,Filtro!$A$5:$AK$2912,3,FALSE),0) -> 135 | F35: =IFERROR(VLOOKUP($A35,Filtro!$A$5:$AK$2912,4,FALSE),0) -> 135 | G35: =IFERROR(VLOOKUP($A35,Filtro!$A$5:$AK$2912,5,FALSE),0) -> 0 | H35: =IFERROR(VLOOKUP($A35,Filtro!$A$5:$AK$2912,6,FALSE),0) -> 0 | I35: =IFERROR(VLOOKUP($A35,Filtro!$A$5:$AK$2912,7,FALSE),0) -> 0 | J35: =IFERROR(VLOOKUP($A35,Filtro!$A$5:$AK$2912,8,FALSE),0) -> 0 | K35: =IFERROR(VLOOKUP($A35,Filtro!$A$5:$AK$2912,9,FALSE),0) -> 0 | L35: =IFERROR(VLOOKUP($A35,Filtro!$A$5:$AK$2912,10,FALSE),0) -> 0 | M35: =IFERROR(VLOOKUP($A35,Filtro!$A$5:$AK$2912,11,FALSE),0) -> 0 | N35: =IFERROR(VLOOKUP($A35,Filtro!$A$5:$AK$2912,12,FALSE),0) -> 0 | O35: =IFERROR(VLOOKUP($A35,Filtro!$A$5:$AK$2912,13,FALSE),0) -> 0 | P35: =IFERROR(VLOOKUP($A35,Filtro!$A$5:$AK$2912,14,FALSE),0) -> 0 | Q35: =IFERROR(VLOOKUP($A35,Filtro!$A$5:$AK$2912,15,FALSE),0) -> 0 | R35: =IFERROR(VLOOKUP($A35,Filtro!$A$5:$AK$2912,16,FALSE),0) -> 0 | S35: =IFERROR(VLOOKUP($A35,Filtro!$A$5:$AK$2912,17,FALSE),0) -> 0 | T35: =IFERROR(VLOOKUP($A35,Filtro!$A$5:$AK$2912,18,FALSE),0) -> 0 | U35: =IFERROR(VLOOKUP($A35,Filtro!$A$5:$AK$2912,19,FALSE),0) -> 0 | V35: =IFERROR(VLOOKUP($A35,Filtro!$A$5:$AK$2912,20,FALSE),0) -> 0 | W35: =IFERROR(VLOOKUP($A35,Filtro!$A$5:$AK$2912,21,FALSE),0) -> 0 | X35: =IFERROR(VLOOKUP($A35,Filtro!$A$5:$AK$2912,22,FALSE),0) -> 0 | Y35: =IFERROR(VLOOKUP($A35,Filtro!$A$5:$AK$2912,23,FALSE),0) -> 0 | Z35: =IFERROR(VLOOKUP($A35,Filtro!$A$5:$AK$2912,24,FALSE),0) -> 0 | AA35: =IFERROR(VLOOKUP($A35,Filtro!$A$5:$AK$2912,25,FALSE),0) -> 0 | AB35: =IFERROR(VLOOKUP($A35,Filtro!$A$5:$AK$2912,26,FALSE),0) -> 0 | AC35: =IFERROR(VLOOKUP($A35,Filtro!$A$5:$AK$2912,27,FALSE),0) -> 135 | AD35: =IFERROR(VLOOKUP($A35,Filtro!$A$5:$AK$2912,28,FALSE),0) -> 0 | AE35: =IFERROR(VLOOKUP($A35,Filtro!$A$5:$AK$2912,29,FALSE),0) -> 0 | AF35: =IFERROR(VLOOKUP($A35,Filtro!$A$5:$AK$2912,30,FALSE),0) -> 0 | AG35: =IFERROR(VLOOKUP($A35,Filtro!$A$5:$AK$2912,31,FALSE),0) -> 0 | AH35: =IFERROR(VLOOKUP($A35,Filtro!$A$5:$AK$2912,32,FALSE),0) -> 0 | AI35: =IFERROR(VLOOKUP($A35,Filtro!$A$5:$AK$2912,33,FALSE),0) -> 0 | AJ35: =IFERROR(VLOOKUP($A35,Filtro!$A$5:$AK$2912,34,FALSE),0) -> 0 | AK35: =IFERROR(VLOOKUP($A35,Filtro!$A$5:$AK$2912,35,FALSE),0) -> 0 | AL35: =IFERROR(VLOOKUP($A35,Filtro!$A$5:$AK$2912,36,FALSE),0) -> 660,650 | AM35: =IFERROR(VLOOKUP($A35,Filtro!$A$5:$AK$2912,37,FALSE),0) -> 1,221,750
A36: 01014304 | B36: 0101317 | C36: Consulta Médica de Especialidad en Cirugía Pediátrica | D36: =IFERROR(VLOOKUP($A36,Filtro!$A$5:$AK$2912,2,FALSE),0) -> 4230 | E36: =IFERROR(VLOOKUP($A36,Filtro!$A$5:$AK$2912,3,FALSE),0) -> 4225 | F36: =IFERROR(VLOOKUP($A36,Filtro!$A$5:$AK$2912,4,FALSE),0) -> 4225 | G36: =IFERROR(VLOOKUP($A36,Filtro!$A$5:$AK$2912,5,FALSE),0) -> 0 | H36: =IFERROR(VLOOKUP($A36,Filtro!$A$5:$AK$2912,6,FALSE),0) -> 5 | I36: =IFERROR(VLOOKUP($A36,Filtro!$A$5:$AK$2912,7,FALSE),0) -> 0 | J36: =IFERROR(VLOOKUP($A36,Filtro!$A$5:$AK$2912,8,FALSE),0) -> 0 | K36: =IFERROR(VLOOKUP($A36,Filtro!$A$5:$AK$2912,9,FALSE),0) -> 0 | L36: =IFERROR(VLOOKUP($A36,Filtro!$A$5:$AK$2912,10,FALSE),0) -> 0 | M36: =IFERROR(VLOOKUP($A36,Filtro!$A$5:$AK$2912,11,FALSE),0) -> 0 | N36: =IFERROR(VLOOKUP($A36,Filtro!$A$5:$AK$2912,12,FALSE),0) -> 0 | O36: =IFERROR(VLOOKUP($A36,Filtro!$A$5:$AK$2912,13,FALSE),0) -> 0 | P36: =IFERROR(VLOOKUP($A36,Filtro!$A$5:$AK$2912,14,FALSE),0) -> 0 | Q36: =IFERROR(VLOOKUP($A36,Filtro!$A$5:$AK$2912,15,FALSE),0) -> 0 | R36: =IFERROR(VLOOKUP($A36,Filtro!$A$5:$AK$2912,16,FALSE),0) -> 0 | S36: =IFERROR(VLOOKUP($A36,Filtro!$A$5:$AK$2912,17,FALSE),0) -> 0 | T36: =IFERROR(VLOOKUP($A36,Filtro!$A$5:$AK$2912,18,FALSE),0) -> 0 | U36: =IFERROR(VLOOKUP($A36,Filtro!$A$5:$AK$2912,19,FALSE),0) -> 0 | V36: =IFERROR(VLOOKUP($A36,Filtro!$A$5:$AK$2912,20,FALSE),0) -> 0 | W36: =IFERROR(VLOOKUP($A36,Filtro!$A$5:$AK$2912,21,FALSE),0) -> 0 | X36: =IFERROR(VLOOKUP($A36,Filtro!$A$5:$AK$2912,22,FALSE),0) -> 0 | Y36: =IFERROR(VLOOKUP($A36,Filtro!$A$5:$AK$2912,23,FALSE),0) -> 0 | Z36: =IFERROR(VLOOKUP($A36,Filtro!$A$5:$AK$2912,24,FALSE),0) -> 0 | AA36: =IFERROR(VLOOKUP($A36,Filtro!$A$5:$AK$2912,25,FALSE),0) -> 0 | AB36: =IFERROR(VLOOKUP($A36,Filtro!$A$5:$AK$2912,26,FALSE),0) -> 0 | AC36: =IFERROR(VLOOKUP($A36,Filtro!$A$5:$AK$2912,27,FALSE),0) -> 4230 | AD36: =IFERROR(VLOOKUP($A36,Filtro!$A$5:$AK$2912,28,FALSE),0) -> 0 | AE36: =IFERROR(VLOOKUP($A36,Filtro!$A$5:$AK$2912,29,FALSE),0) -> 0 | AF36: =IFERROR(VLOOKUP($A36,Filtro!$A$5:$AK$2912,30,FALSE),0) -> 0 | AG36: =IFERROR(VLOOKUP($A36,Filtro!$A$5:$AK$2912,31,FALSE),0) -> 0 | AH36: =IFERROR(VLOOKUP($A36,Filtro!$A$5:$AK$2912,32,FALSE),0) -> 0 | AI36: =IFERROR(VLOOKUP($A36,Filtro!$A$5:$AK$2912,33,FALSE),0) -> 0 | AJ36: =IFERROR(VLOOKUP($A36,Filtro!$A$5:$AK$2912,34,FALSE),0) -> 0 | AK36: =IFERROR(VLOOKUP($A36,Filtro!$A$5:$AK$2912,35,FALSE),0) -> 0 | AL36: =IFERROR(VLOOKUP($A36,Filtro!$A$5:$AK$2912,36,FALSE),0) -> 660,650 | AM36: =IFERROR(VLOOKUP($A36,Filtro!$A$5:$AK$2912,37,FALSE),0) -> 38,236,250
A37: 01014305 | B37: 0101318 | C37: Consulta Médica de Especialidad en Cirugía Vascular Periférica | D37: =IFERROR(VLOOKUP($A37,Filtro!$A$5:$AK$2912,2,FALSE),0) -> 1096 | E37: =IFERROR(VLOOKUP($A37,Filtro!$A$5:$AK$2912,3,FALSE),0) -> 1096 | F37: =IFERROR(VLOOKUP($A37,Filtro!$A$5:$AK$2912,4,FALSE),0) -> 1096 | G37: =IFERROR(VLOOKUP($A37,Filtro!$A$5:$AK$2912,5,FALSE),0) -> 0 | H37: =IFERROR(VLOOKUP($A37,Filtro!$A$5:$AK$2912,6,FALSE),0) -> 0 | I37: =IFERROR(VLOOKUP($A37,Filtro!$A$5:$AK$2912,7,FALSE),0) -> 0 | J37: =IFERROR(VLOOKUP($A37,Filtro!$A$5:$AK$2912,8,FALSE),0) -> 0 | K37: =IFERROR(VLOOKUP($A37,Filtro!$A$5:$AK$2912,9,FALSE),0) -> 0 | L37: =IFERROR(VLOOKUP($A37,Filtro!$A$5:$AK$2912,10,FALSE),0) -> 0 | M37: =IFERROR(VLOOKUP($A37,Filtro!$A$5:$AK$2912,11,FALSE),0) -> 0 | N37: =IFERROR(VLOOKUP($A37,Filtro!$A$5:$AK$2912,12,FALSE),0) -> 0 | O37: =IFERROR(VLOOKUP($A37,Filtro!$A$5:$AK$2912,13,FALSE),0) -> 0 | P37: =IFERROR(VLOOKUP($A37,Filtro!$A$5:$AK$2912,14,FALSE),0) -> 0 | Q37: =IFERROR(VLOOKUP($A37,Filtro!$A$5:$AK$2912,15,FALSE),0) -> 0 | R37: =IFERROR(VLOOKUP($A37,Filtro!$A$5:$AK$2912,16,FALSE),0) -> 0 | S37: =IFERROR(VLOOKUP($A37,Filtro!$A$5:$AK$2912,17,FALSE),0) -> 0 | T37: =IFERROR(VLOOKUP($A37,Filtro!$A$5:$AK$2912,18,FALSE),0) -> 0 | U37: =IFERROR(VLOOKUP($A37,Filtro!$A$5:$AK$2912,19,FALSE),0) -> 0 | V37: =IFERROR(VLOOKUP($A37,Filtro!$A$5:$AK$2912,20,FALSE),0) -> 0 | W37: =IFERROR(VLOOKUP($A37,Filtro!$A$5:$AK$2912,21,FALSE),0) -> 0 | X37: =IFERROR(VLOOKUP($A37,Filtro!$A$5:$AK$2912,22,FALSE),0) -> 0 | Y37: =IFERROR(VLOOKUP($A37,Filtro!$A$5:$AK$2912,23,FALSE),0) -> 0 | Z37: =IFERROR(VLOOKUP($A37,Filtro!$A$5:$AK$2912,24,FALSE),0) -> 0 | AA37: =IFERROR(VLOOKUP($A37,Filtro!$A$5:$AK$2912,25,FALSE),0) -> 0 | AB37: =IFERROR(VLOOKUP($A37,Filtro!$A$5:$AK$2912,26,FALSE),0) -> 0 | AC37: =IFERROR(VLOOKUP($A37,Filtro!$A$5:$AK$2912,27,FALSE),0) -> 1096 | AD37: =IFERROR(VLOOKUP($A37,Filtro!$A$5:$AK$2912,28,FALSE),0) -> 0 | AE37: =IFERROR(VLOOKUP($A37,Filtro!$A$5:$AK$2912,29,FALSE),0) -> 0 | AF37: =IFERROR(VLOOKUP($A37,Filtro!$A$5:$AK$2912,30,FALSE),0) -> 0 | AG37: =IFERROR(VLOOKUP($A37,Filtro!$A$5:$AK$2912,31,FALSE),0) -> 0 | AH37: =IFERROR(VLOOKUP($A37,Filtro!$A$5:$AK$2912,32,FALSE),0) -> 0 | AI37: =IFERROR(VLOOKUP($A37,Filtro!$A$5:$AK$2912,33,FALSE),0) -> 0 | AJ37: =IFERROR(VLOOKUP($A37,Filtro!$A$5:$AK$2912,34,FALSE),0) -> 0 | AK37: =IFERROR(VLOOKUP($A37,Filtro!$A$5:$AK$2912,35,FALSE),0) -> 0 | AL37: =IFERROR(VLOOKUP($A37,Filtro!$A$5:$AK$2912,36,FALSE),0) -> 660,650 | AM37: =IFERROR(VLOOKUP($A37,Filtro!$A$5:$AK$2912,37,FALSE),0) -> 9,918,800
A38: 01014306 | B38: 0101319 | C38: Consulta Médica de Especialidad en Coloproctología | D38: =IFERROR(VLOOKUP($A38,Filtro!$A$5:$AK$2912,2,FALSE),0) -> 1191 | E38: =IFERROR(VLOOKUP($A38,Filtro!$A$5:$AK$2912,3,FALSE),0) -> 1191 | F38: =IFERROR(VLOOKUP($A38,Filtro!$A$5:$AK$2912,4,FALSE),0) -> 1191 | G38: =IFERROR(VLOOKUP($A38,Filtro!$A$5:$AK$2912,5,FALSE),0) -> 0 | H38: =IFERROR(VLOOKUP($A38,Filtro!$A$5:$AK$2912,6,FALSE),0) -> 0 | I38: =IFERROR(VLOOKUP($A38,Filtro!$A$5:$AK$2912,7,FALSE),0) -> 0 | J38: =IFERROR(VLOOKUP($A38,Filtro!$A$5:$AK$2912,8,FALSE),0) -> 0 | K38: =IFERROR(VLOOKUP($A38,Filtro!$A$5:$AK$2912,9,FALSE),0) -> 0 | L38: =IFERROR(VLOOKUP($A38,Filtro!$A$5:$AK$2912,10,FALSE),0) -> 0 | M38: =IFERROR(VLOOKUP($A38,Filtro!$A$5:$AK$2912,11,FALSE),0) -> 0 | N38: =IFERROR(VLOOKUP($A38,Filtro!$A$5:$AK$2912,12,FALSE),0) -> 0 | O38: =IFERROR(VLOOKUP($A38,Filtro!$A$5:$AK$2912,13,FALSE),0) -> 0 | P38: =IFERROR(VLOOKUP($A38,Filtro!$A$5:$AK$2912,14,FALSE),0) -> 0 | Q38: =IFERROR(VLOOKUP($A38,Filtro!$A$5:$AK$2912,15,FALSE),0) -> 0 | R38: =IFERROR(VLOOKUP($A38,Filtro!$A$5:$AK$2912,16,FALSE),0) -> 0 | S38: =IFERROR(VLOOKUP($A38,Filtro!$A$5:$AK$2912,17,FALSE),0) -> 0 | T38: =IFERROR(VLOOKUP($A38,Filtro!$A$5:$AK$2912,18,FALSE),0) -> 0 | U38: =IFERROR(VLOOKUP($A38,Filtro!$A$5:$AK$2912,19,FALSE),0) -> 0 | V38: =IFERROR(VLOOKUP($A38,Filtro!$A$5:$AK$2912,20,FALSE),0) -> 0 | W38: =IFERROR(VLOOKUP($A38,Filtro!$A$5:$AK$2912,21,FALSE),0) -> 0 | X38: =IFERROR(VLOOKUP($A38,Filtro!$A$5:$AK$2912,22,FALSE),0) -> 0 | Y38: =IFERROR(VLOOKUP($A38,Filtro!$A$5:$AK$2912,23,FALSE),0) -> 0 | Z38: =IFERROR(VLOOKUP($A38,Filtro!$A$5:$AK$2912,24,FALSE),0) -> 0 | AA38: =IFERROR(VLOOKUP($A38,Filtro!$A$5:$AK$2912,25,FALSE),0) -> 0 | AB38: =IFERROR(VLOOKUP($A38,Filtro!$A$5:$AK$2912,26,FALSE),0) -> 0 | AC38: =IFERROR(VLOOKUP($A38,Filtro!$A$5:$AK$2912,27,FALSE),0) -> 1191 | AD38: =IFERROR(VLOOKUP($A38,Filtro!$A$5:$AK$2912,28,FALSE),0) -> 0 | AE38: =IFERROR(VLOOKUP($A38,Filtro!$A$5:$AK$2912,29,FALSE),0) -> 0 | AF38: =IFERROR(VLOOKUP($A38,Filtro!$A$5:$AK$2912,30,FALSE),0) -> 0 | AG38: =IFERROR(VLOOKUP($A38,Filtro!$A$5:$AK$2912,31,FALSE),0) -> 0 | AH38: =IFERROR(VLOOKUP($A38,Filtro!$A$5:$AK$2912,32,FALSE),0) -> 0 | AI38: =IFERROR(VLOOKUP($A38,Filtro!$A$5:$AK$2912,33,FALSE),0) -> 0 | AJ38: =IFERROR(VLOOKUP($A38,Filtro!$A$5:$AK$2912,34,FALSE),0) -> 0 | AK38: =IFERROR(VLOOKUP($A38,Filtro!$A$5:$AK$2912,35,FALSE),0) -> 0 | AL38: =IFERROR(VLOOKUP($A38,Filtro!$A$5:$AK$2912,36,FALSE),0) -> 660,650 | AM38: =IFERROR(VLOOKUP($A38,Filtro!$A$5:$AK$2912,37,FALSE),0) -> 10,778,550
A39: 01014307 | B39: 0101320 | C39: Consulta Médica de Especialidad en Diabetología | D39: =IFERROR(VLOOKUP($A39,Filtro!$A$5:$AK$2912,2,FALSE),0) -> 307 | E39: =IFERROR(VLOOKUP($A39,Filtro!$A$5:$AK$2912,3,FALSE),0) -> 307 | F39: =IFERROR(VLOOKUP($A39,Filtro!$A$5:$AK$2912,4,FALSE),0) -> 307 | G39: =IFERROR(VLOOKUP($A39,Filtro!$A$5:$AK$2912,5,FALSE),0) -> 0 | H39: =IFERROR(VLOOKUP($A39,Filtro!$A$5:$AK$2912,6,FALSE),0) -> 0 | I39: =IFERROR(VLOOKUP($A39,Filtro!$A$5:$AK$2912,7,FALSE),0) -> 0 | J39: =IFERROR(VLOOKUP($A39,Filtro!$A$5:$AK$2912,8,FALSE),0) -> 0 | K39: =IFERROR(VLOOKUP($A39,Filtro!$A$5:$AK$2912,9,FALSE),0) -> 0 | L39: =IFERROR(VLOOKUP($A39,Filtro!$A$5:$AK$2912,10,FALSE),0) -> 0 | M39: =IFERROR(VLOOKUP($A39,Filtro!$A$5:$AK$2912,11,FALSE),0) -> 0 | N39: =IFERROR(VLOOKUP($A39,Filtro!$A$5:$AK$2912,12,FALSE),0) -> 0 | O39: =IFERROR(VLOOKUP($A39,Filtro!$A$5:$AK$2912,13,FALSE),0) -> 0 | P39: =IFERROR(VLOOKUP($A39,Filtro!$A$5:$AK$2912,14,FALSE),0) -> 0 | Q39: =IFERROR(VLOOKUP($A39,Filtro!$A$5:$AK$2912,15,FALSE),0) -> 0 | R39: =IFERROR(VLOOKUP($A39,Filtro!$A$5:$AK$2912,16,FALSE),0) -> 0 | S39: =IFERROR(VLOOKUP($A39,Filtro!$A$5:$AK$2912,17,FALSE),0) -> 0 | T39: =IFERROR(VLOOKUP($A39,Filtro!$A$5:$AK$2912,18,FALSE),0) -> 0 | U39: =IFERROR(VLOOKUP($A39,Filtro!$A$5:$AK$2912,19,FALSE),0) -> 0 | V39: =IFERROR(VLOOKUP($A39,Filtro!$A$5:$AK$2912,20,FALSE),0) -> 0 | W39: =IFERROR(VLOOKUP($A39,Filtro!$A$5:$AK$2912,21,FALSE),0) -> 0 | X39: =IFERROR(VLOOKUP($A39,Filtro!$A$5:$AK$2912,22,FALSE),0) -> 0 | Y39: =IFERROR(VLOOKUP($A39,Filtro!$A$5:$AK$2912,23,FALSE),0) -> 0 | Z39: =IFERROR(VLOOKUP($A39,Filtro!$A$5:$AK$2912,24,FALSE),0) -> 0 | AA39: =IFERROR(VLOOKUP($A39,Filtro!$A$5:$AK$2912,25,FALSE),0) -> 0 | AB39: =IFERROR(VLOOKUP($A39,Filtro!$A$5:$AK$2912,26,FALSE),0) -> 0 | AC39: =IFERROR(VLOOKUP($A39,Filtro!$A$5:$AK$2912,27,FALSE),0) -> 307 | AD39: =IFERROR(VLOOKUP($A39,Filtro!$A$5:$AK$2912,28,FALSE),0) -> 0 | AE39: =IFERROR(VLOOKUP($A39,Filtro!$A$5:$AK$2912,29,FALSE),0) -> 0 | AF39: =IFERROR(VLOOKUP($A39,Filtro!$A$5:$AK$2912,30,FALSE),0) -> 0 | AG39: =IFERROR(VLOOKUP($A39,Filtro!$A$5:$AK$2912,31,FALSE),0) -> 0 | AH39: =IFERROR(VLOOKUP($A39,Filtro!$A$5:$AK$2912,32,FALSE),0) -> 0 | AI39: =IFERROR(VLOOKUP($A39,Filtro!$A$5:$AK$2912,33,FALSE),0) -> 0 | AJ39: =IFERROR(VLOOKUP($A39,Filtro!$A$5:$AK$2912,34,FALSE),0) -> 0 | AK39: =IFERROR(VLOOKUP($A39,Filtro!$A$5:$AK$2912,35,FALSE),0) -> 0 | AL39: =IFERROR(VLOOKUP($A39,Filtro!$A$5:$AK$2912,36,FALSE),0) -> 660,650 | AM39: =IFERROR(VLOOKUP($A39,Filtro!$A$5:$AK$2912,37,FALSE),0) -> 2,778,350
A40: 01014308 | B40: 0101321 | C40: Consulta Médica de Especialidad en Enfermedades Respiratorias Adulto | D40: =IFERROR(VLOOKUP($A40,Filtro!$A$5:$AK$2912,2,FALSE),0) -> 2061 | E40: =IFERROR(VLOOKUP($A40,Filtro!$A$5:$AK$2912,3,FALSE),0) -> 2061 | F40: =IFERROR(VLOOKUP($A40,Filtro!$A$5:$AK$2912,4,FALSE),0) -> 2061 | G40: =IFERROR(VLOOKUP($A40,Filtro!$A$5:$AK$2912,5,FALSE),0) -> 0 | H40: =IFERROR(VLOOKUP($A40,Filtro!$A$5:$AK$2912,6,FALSE),0) -> 0 | I40: =IFERROR(VLOOKUP($A40,Filtro!$A$5:$AK$2912,7,FALSE),0) -> 0 | J40: =IFERROR(VLOOKUP($A40,Filtro!$A$5:$AK$2912,8,FALSE),0) -> 0 | K40: =IFERROR(VLOOKUP($A40,Filtro!$A$5:$AK$2912,9,FALSE),0) -> 0 | L40: =IFERROR(VLOOKUP($A40,Filtro!$A$5:$AK$2912,10,FALSE),0) -> 0 | M40: =IFERROR(VLOOKUP($A40,Filtro!$A$5:$AK$2912,11,FALSE),0) -> 0 | N40: =IFERROR(VLOOKUP($A40,Filtro!$A$5:$AK$2912,12,FALSE),0) -> 0 | O40: =IFERROR(VLOOKUP($A40,Filtro!$A$5:$AK$2912,13,FALSE),0) -> 0 | P40: =IFERROR(VLOOKUP($A40,Filtro!$A$5:$AK$2912,14,FALSE),0) -> 0 | Q40: =IFERROR(VLOOKUP($A40,Filtro!$A$5:$AK$2912,15,FALSE),0) -> 0 | R40: =IFERROR(VLOOKUP($A40,Filtro!$A$5:$AK$2912,16,FALSE),0) -> 0 | S40: =IFERROR(VLOOKUP($A40,Filtro!$A$5:$AK$2912,17,FALSE),0) -> 0 | T40: =IFERROR(VLOOKUP($A40,Filtro!$A$5:$AK$2912,18,FALSE),0) -> 0 | U40: =IFERROR(VLOOKUP($A40,Filtro!$A$5:$AK$2912,19,FALSE),0) -> 0 | V40: =IFERROR(VLOOKUP($A40,Filtro!$A$5:$AK$2912,20,FALSE),0) -> 0 | W40: =IFERROR(VLOOKUP($A40,Filtro!$A$5:$AK$2912,21,FALSE),0) -> 0 | X40: =IFERROR(VLOOKUP($A40,Filtro!$A$5:$AK$2912,22,FALSE),0) -> 0 | Y40: =IFERROR(VLOOKUP($A40,Filtro!$A$5:$AK$2912,23,FALSE),0) -> 0 | Z40: =IFERROR(VLOOKUP($A40,Filtro!$A$5:$AK$2912,24,FALSE),0) -> 0 | AA40: =IFERROR(VLOOKUP($A40,Filtro!$A$5:$AK$2912,25,FALSE),0) -> 0 | AB40: =IFERROR(VLOOKUP($A40,Filtro!$A$5:$AK$2912,26,FALSE),0) -> 0 | AC40: =IFERROR(VLOOKUP($A40,Filtro!$A$5:$AK$2912,27,FALSE),0) -> 2061 | AD40: =IFERROR(VLOOKUP($A40,Filtro!$A$5:$AK$2912,28,FALSE),0) -> 0 | AE40: =IFERROR(VLOOKUP($A40,Filtro!$A$5:$AK$2912,29,FALSE),0) -> 0 | AF40: =IFERROR(VLOOKUP($A40,Filtro!$A$5:$AK$2912,30,FALSE),0) -> 0 | AG40: =IFERROR(VLOOKUP($A40,Filtro!$A$5:$AK$2912,31,FALSE),0) -> 0 | AH40: =IFERROR(VLOOKUP($A40,Filtro!$A$5:$AK$2912,32,FALSE),0) -> 0 | AI40: =IFERROR(VLOOKUP($A40,Filtro!$A$5:$AK$2912,33,FALSE),0) -> 0 | AJ40: =IFERROR(VLOOKUP($A40,Filtro!$A$5:$AK$2912,34,FALSE),0) -> 0 | AK40: =IFERROR(VLOOKUP($A40,Filtro!$A$5:$AK$2912,35,FALSE),0) -> 0 | AL40: =IFERROR(VLOOKUP($A40,Filtro!$A$5:$AK$2912,36,FALSE),0) -> 660,650 | AM40: =IFERROR(VLOOKUP($A40,Filtro!$A$5:$AK$2912,37,FALSE),0) -> 18,652,050
A41: 01014309 | B41: 0101322 | C41: Consulta Médica de Especialidad en Enfermedades Respiratorias Pediátricas | D41: =IFERROR(VLOOKUP($A41,Filtro!$A$5:$AK$2912,2,FALSE),0) -> 1891 | E41: =IFERROR(VLOOKUP($A41,Filtro!$A$5:$AK$2912,3,FALSE),0) -> 1890 | F41: =IFERROR(VLOOKUP($A41,Filtro!$A$5:$AK$2912,4,FALSE),0) -> 1890 | G41: =IFERROR(VLOOKUP($A41,Filtro!$A$5:$AK$2912,5,FALSE),0) -> 0 | H41: =IFERROR(VLOOKUP($A41,Filtro!$A$5:$AK$2912,6,FALSE),0) -> 1 | I41: =IFERROR(VLOOKUP($A41,Filtro!$A$5:$AK$2912,7,FALSE),0) -> 0 | J41: =IFERROR(VLOOKUP($A41,Filtro!$A$5:$AK$2912,8,FALSE),0) -> 0 | K41: =IFERROR(VLOOKUP($A41,Filtro!$A$5:$AK$2912,9,FALSE),0) -> 0 | L41: =IFERROR(VLOOKUP($A41,Filtro!$A$5:$AK$2912,10,FALSE),0) -> 0 | M41: =IFERROR(VLOOKUP($A41,Filtro!$A$5:$AK$2912,11,FALSE),0) -> 0 | N41: =IFERROR(VLOOKUP($A41,Filtro!$A$5:$AK$2912,12,FALSE),0) -> 0 | O41: =IFERROR(VLOOKUP($A41,Filtro!$A$5:$AK$2912,13,FALSE),0) -> 0 | P41: =IFERROR(VLOOKUP($A41,Filtro!$A$5:$AK$2912,14,FALSE),0) -> 0 | Q41: =IFERROR(VLOOKUP($A41,Filtro!$A$5:$AK$2912,15,FALSE),0) -> 0 | R41: =IFERROR(VLOOKUP($A41,Filtro!$A$5:$AK$2912,16,FALSE),0) -> 0 | S41: =IFERROR(VLOOKUP($A41,Filtro!$A$5:$AK$2912,17,FALSE),0) -> 0 | T41: =IFERROR(VLOOKUP($A41,Filtro!$A$5:$AK$2912,18,FALSE),0) -> 0 | U41: =IFERROR(VLOOKUP($A41,Filtro!$A$5:$AK$2912,19,FALSE),0) -> 0 | V41: =IFERROR(VLOOKUP($A41,Filtro!$A$5:$AK$2912,20,FALSE),0) -> 0 | W41: =IFERROR(VLOOKUP($A41,Filtro!$A$5:$AK$2912,21,FALSE),0) -> 0 | X41: =IFERROR(VLOOKUP($A41,Filtro!$A$5:$AK$2912,22,FALSE),0) -> 0 | Y41: =IFERROR(VLOOKUP($A41,Filtro!$A$5:$AK$2912,23,FALSE),0) -> 0 | Z41: =IFERROR(VLOOKUP($A41,Filtro!$A$5:$AK$2912,24,FALSE),0) -> 0 | AA41: =IFERROR(VLOOKUP($A41,Filtro!$A$5:$AK$2912,25,FALSE),0) -> 0 | AB41: =IFERROR(VLOOKUP($A41,Filtro!$A$5:$AK$2912,26,FALSE),0) -> 0 | AC41: =IFERROR(VLOOKUP($A41,Filtro!$A$5:$AK$2912,27,FALSE),0) -> 1891 | AD41: =IFERROR(VLOOKUP($A41,Filtro!$A$5:$AK$2912,28,FALSE),0) -> 0 | AE41: =IFERROR(VLOOKUP($A41,Filtro!$A$5:$AK$2912,29,FALSE),0) -> 0 | AF41: =IFERROR(VLOOKUP($A41,Filtro!$A$5:$AK$2912,30,FALSE),0) -> 0 | AG41: =IFERROR(VLOOKUP($A41,Filtro!$A$5:$AK$2912,31,FALSE),0) -> 0 | AH41: =IFERROR(VLOOKUP($A41,Filtro!$A$5:$AK$2912,32,FALSE),0) -> 0 | AI41: =IFERROR(VLOOKUP($A41,Filtro!$A$5:$AK$2912,33,FALSE),0) -> 0 | AJ41: =IFERROR(VLOOKUP($A41,Filtro!$A$5:$AK$2912,34,FALSE),0) -> 0 | AK41: =IFERROR(VLOOKUP($A41,Filtro!$A$5:$AK$2912,35,FALSE),0) -> 0 | AL41: =IFERROR(VLOOKUP($A41,Filtro!$A$5:$AK$2912,36,FALSE),0) -> 660,650 | AM41: =IFERROR(VLOOKUP($A41,Filtro!$A$5:$AK$2912,37,FALSE),0) -> 17,104,500
A42: 01014310 | B42: 0101323 | C42: Consulta Médica de Especialidad en Gastroenterología Adulto | D42: =IFERROR(VLOOKUP($A42,Filtro!$A$5:$AK$2912,2,FALSE),0) -> 2176 | E42: =IFERROR(VLOOKUP($A42,Filtro!$A$5:$AK$2912,3,FALSE),0) -> 2176 | F42: =IFERROR(VLOOKUP($A42,Filtro!$A$5:$AK$2912,4,FALSE),0) -> 2176 | G42: =IFERROR(VLOOKUP($A42,Filtro!$A$5:$AK$2912,5,FALSE),0) -> 0 | H42: =IFERROR(VLOOKUP($A42,Filtro!$A$5:$AK$2912,6,FALSE),0) -> 0 | I42: =IFERROR(VLOOKUP($A42,Filtro!$A$5:$AK$2912,7,FALSE),0) -> 0 | J42: =IFERROR(VLOOKUP($A42,Filtro!$A$5:$AK$2912,8,FALSE),0) -> 0 | K42: =IFERROR(VLOOKUP($A42,Filtro!$A$5:$AK$2912,9,FALSE),0) -> 0 | L42: =IFERROR(VLOOKUP($A42,Filtro!$A$5:$AK$2912,10,FALSE),0) -> 0 | M42: =IFERROR(VLOOKUP($A42,Filtro!$A$5:$AK$2912,11,FALSE),0) -> 0 | N42: =IFERROR(VLOOKUP($A42,Filtro!$A$5:$AK$2912,12,FALSE),0) -> 0 | O42: =IFERROR(VLOOKUP($A42,Filtro!$A$5:$AK$2912,13,FALSE),0) -> 0 | P42: =IFERROR(VLOOKUP($A42,Filtro!$A$5:$AK$2912,14,FALSE),0) -> 0 | Q42: =IFERROR(VLOOKUP($A42,Filtro!$A$5:$AK$2912,15,FALSE),0) -> 0 | R42: =IFERROR(VLOOKUP($A42,Filtro!$A$5:$AK$2912,16,FALSE),0) -> 0 | S42: =IFERROR(VLOOKUP($A42,Filtro!$A$5:$AK$2912,17,FALSE),0) -> 0 | T42: =IFERROR(VLOOKUP($A42,Filtro!$A$5:$AK$2912,18,FALSE),0) -> 0 | U42: =IFERROR(VLOOKUP($A42,Filtro!$A$5:$AK$2912,19,FALSE),0) -> 0 | V42: =IFERROR(VLOOKUP($A42,Filtro!$A$5:$AK$2912,20,FALSE),0) -> 0 | W42: =IFERROR(VLOOKUP($A42,Filtro!$A$5:$AK$2912,21,FALSE),0) -> 0 | X42: =IFERROR(VLOOKUP($A42,Filtro!$A$5:$AK$2912,22,FALSE),0) -> 0 | Y42: =IFERROR(VLOOKUP($A42,Filtro!$A$5:$AK$2912,23,FALSE),0) -> 0 | Z42: =IFERROR(VLOOKUP($A42,Filtro!$A$5:$AK$2912,24,FALSE),0) -> 0 | AA42: =IFERROR(VLOOKUP($A42,Filtro!$A$5:$AK$2912,25,FALSE),0) -> 0 | AB42: =IFERROR(VLOOKUP($A42,Filtro!$A$5:$AK$2912,26,FALSE),0) -> 0 | AC42: =IFERROR(VLOOKUP($A42,Filtro!$A$5:$AK$2912,27,FALSE),0) -> 2176 | AD42: =IFERROR(VLOOKUP($A42,Filtro!$A$5:$AK$2912,28,FALSE),0) -> 0 | AE42: =IFERROR(VLOOKUP($A42,Filtro!$A$5:$AK$2912,29,FALSE),0) -> 0 | AF42: =IFERROR(VLOOKUP($A42,Filtro!$A$5:$AK$2912,30,FALSE),0) -> 0 | AG42: =IFERROR(VLOOKUP($A42,Filtro!$A$5:$AK$2912,31,FALSE),0) -> 0 | AH42: =IFERROR(VLOOKUP($A42,Filtro!$A$5:$AK$2912,32,FALSE),0) -> 0 | AI42: =IFERROR(VLOOKUP($A42,Filtro!$A$5:$AK$2912,33,FALSE),0) -> 0 | AJ42: =IFERROR(VLOOKUP($A42,Filtro!$A$5:$AK$2912,34,FALSE),0) -> 0 | AK42: =IFERROR(VLOOKUP($A42,Filtro!$A$5:$AK$2912,35,FALSE),0) -> 0 | AL42: =IFERROR(VLOOKUP($A42,Filtro!$A$5:$AK$2912,36,FALSE),0) -> 660,650 | AM42: =IFERROR(VLOOKUP($A42,Filtro!$A$5:$AK$2912,37,FALSE),0) -> 19,692,800
A43: 01014311 | B43: 0101324 | C43: Consulta Médica de Especialidad en Gastroenterología Pediátrico | D43: =IFERROR(VLOOKUP($A43,Filtro!$A$5:$AK$2912,2,FALSE),0) -> 1497 | E43: =IFERROR(VLOOKUP($A43,Filtro!$A$5:$AK$2912,3,FALSE),0) -> 1497 | F43: =IFERROR(VLOOKUP($A43,Filtro!$A$5:$AK$2912,4,FALSE),0) -> 1497 | G43: =IFERROR(VLOOKUP($A43,Filtro!$A$5:$AK$2912,5,FALSE),0) -> 0 | H43: =IFERROR(VLOOKUP($A43,Filtro!$A$5:$AK$2912,6,FALSE),0) -> 0 | I43: =IFERROR(VLOOKUP($A43,Filtro!$A$5:$AK$2912,7,FALSE),0) -> 0 | J43: =IFERROR(VLOOKUP($A43,Filtro!$A$5:$AK$2912,8,FALSE),0) -> 0 | K43: =IFERROR(VLOOKUP($A43,Filtro!$A$5:$AK$2912,9,FALSE),0) -> 0 | L43: =IFERROR(VLOOKUP($A43,Filtro!$A$5:$AK$2912,10,FALSE),0) -> 0 | M43: =IFERROR(VLOOKUP($A43,Filtro!$A$5:$AK$2912,11,FALSE),0) -> 0 | N43: =IFERROR(VLOOKUP($A43,Filtro!$A$5:$AK$2912,12,FALSE),0) -> 0 | O43: =IFERROR(VLOOKUP($A43,Filtro!$A$5:$AK$2912,13,FALSE),0) -> 0 | P43: =IFERROR(VLOOKUP($A43,Filtro!$A$5:$AK$2912,14,FALSE),0) -> 0 | Q43: =IFERROR(VLOOKUP($A43,Filtro!$A$5:$AK$2912,15,FALSE),0) -> 0 | R43: =IFERROR(VLOOKUP($A43,Filtro!$A$5:$AK$2912,16,FALSE),0) -> 0 | S43: =IFERROR(VLOOKUP($A43,Filtro!$A$5:$AK$2912,17,FALSE),0) -> 0 | T43: =IFERROR(VLOOKUP($A43,Filtro!$A$5:$AK$2912,18,FALSE),0) -> 0 | U43: =IFERROR(VLOOKUP($A43,Filtro!$A$5:$AK$2912,19,FALSE),0) -> 0 | V43: =IFERROR(VLOOKUP($A43,Filtro!$A$5:$AK$2912,20,FALSE),0) -> 0 | W43: =IFERROR(VLOOKUP($A43,Filtro!$A$5:$AK$2912,21,FALSE),0) -> 0 | X43: =IFERROR(VLOOKUP($A43,Filtro!$A$5:$AK$2912,22,FALSE),0) -> 0 | Y43: =IFERROR(VLOOKUP($A43,Filtro!$A$5:$AK$2912,23,FALSE),0) -> 0 | Z43: =IFERROR(VLOOKUP($A43,Filtro!$A$5:$AK$2912,24,FALSE),0) -> 0 | AA43: =IFERROR(VLOOKUP($A43,Filtro!$A$5:$AK$2912,25,FALSE),0) -> 0 | AB43: =IFERROR(VLOOKUP($A43,Filtro!$A$5:$AK$2912,26,FALSE),0) -> 0 | AC43: =IFERROR(VLOOKUP($A43,Filtro!$A$5:$AK$2912,27,FALSE),0) -> 1497 | AD43: =IFERROR(VLOOKUP($A43,Filtro!$A$5:$AK$2912,28,FALSE),0) -> 0 | AE43: =IFERROR(VLOOKUP($A43,Filtro!$A$5:$AK$2912,29,FALSE),0) -> 0 | AF43: =IFERROR(VLOOKUP($A43,Filtro!$A$5:$AK$2912,30,FALSE),0) -> 0 | AG43: =IFERROR(VLOOKUP($A43,Filtro!$A$5:$AK$2912,31,FALSE),0) -> 0 | AH43: =IFERROR(VLOOKUP($A43,Filtro!$A$5:$AK$2912,32,FALSE),0) -> 0 | AI43: =IFERROR(VLOOKUP($A43,Filtro!$A$5:$AK$2912,33,FALSE),0) -> 0 | AJ43: =IFERROR(VLOOKUP($A43,Filtro!$A$5:$AK$2912,34,FALSE),0) -> 0 | AK43: =IFERROR(VLOOKUP($A43,Filtro!$A$5:$AK$2912,35,FALSE),0) -> 0 | AL43: =IFERROR(VLOOKUP($A43,Filtro!$A$5:$AK$2912,36,FALSE),0) -> 660,650 | AM43: =IFERROR(VLOOKUP($A43,Filtro!$A$5:$AK$2912,37,FALSE),0) -> 13,547,850
A44: 01014312 | B44: 0101325 | C44: Consulta Médica de Especialidad en Genética Clínica | D44: =IFERROR(VLOOKUP($A44,Filtro!$A$5:$AK$2912,2,FALSE),0) -> 0 | E44: =IFERROR(VLOOKUP($A44,Filtro!$A$5:$AK$2912,3,FALSE),0) -> 0 | F44: =IFERROR(VLOOKUP($A44,Filtro!$A$5:$AK$2912,4,FALSE),0) -> 0 | G44: =IFERROR(VLOOKUP($A44,Filtro!$A$5:$AK$2912,5,FALSE),0) -> 0 | H44: =IFERROR(VLOOKUP($A44,Filtro!$A$5:$AK$2912,6,FALSE),0) -> 0 | I44: =IFERROR(VLOOKUP($A44,Filtro!$A$5:$AK$2912,7,FALSE),0) -> 0 | J44: =IFERROR(VLOOKUP($A44,Filtro!$A$5:$AK$2912,8,FALSE),0) -> 0 | K44: =IFERROR(VLOOKUP($A44,Filtro!$A$5:$AK$2912,9,FALSE),0) -> 0 | L44: =IFERROR(VLOOKUP($A44,Filtro!$A$5:$AK$2912,10,FALSE),0) -> 0 | M44: =IFERROR(VLOOKUP($A44,Filtro!$A$5:$AK$2912,11,FALSE),0) -> 0 | N44: =IFERROR(VLOOKUP($A44,Filtro!$A$5:$AK$2912,12,FALSE),0) -> 0 | O44: =IFERROR(VLOOKUP($A44,Filtro!$A$5:$AK$2912,13,FALSE),0) -> 0 | P44: =IFERROR(VLOOKUP($A44,Filtro!$A$5:$AK$2912,14,FALSE),0) -> 0 | Q44: =IFERROR(VLOOKUP($A44,Filtro!$A$5:$AK$2912,15,FALSE),0) -> 0 | R44: =IFERROR(VLOOKUP($A44,Filtro!$A$5:$AK$2912,16,FALSE),0) -> 0 | S44: =IFERROR(VLOOKUP($A44,Filtro!$A$5:$AK$2912,17,FALSE),0) -> 0 | T44: =IFERROR(VLOOKUP($A44,Filtro!$A$5:$AK$2912,18,FALSE),0) -> 0 | U44: =IFERROR(VLOOKUP($A44,Filtro!$A$5:$AK$2912,19,FALSE),0) -> 0 | V44: =IFERROR(VLOOKUP($A44,Filtro!$A$5:$AK$2912,20,FALSE),0) -> 0 | W44: =IFERROR(VLOOKUP($A44,Filtro!$A$5:$AK$2912,21,FALSE),0) -> 0 | X44: =IFERROR(VLOOKUP($A44,Filtro!$A$5:$AK$2912,22,FALSE),0) -> 0 | Y44: =IFERROR(VLOOKUP($A44,Filtro!$A$5:$AK$2912,23,FALSE),0) -> 0 | Z44: =IFERROR(VLOOKUP($A44,Filtro!$A$5:$AK$2912,24,FALSE),0) -> 0 | AA44: =IFERROR(VLOOKUP($A44,Filtro!$A$5:$AK$2912,25,FALSE),0) -> 0 | AB44: =IFERROR(VLOOKUP($A44,Filtro!$A$5:$AK$2912,26,FALSE),0) -> 0 | AC44: =IFERROR(VLOOKUP($A44,Filtro!$A$5:$AK$2912,27,FALSE),0) -> 0 | AD44: =IFERROR(VLOOKUP($A44,Filtro!$A$5:$AK$2912,28,FALSE),0) -> 0 | AE44: =IFERROR(VLOOKUP($A44,Filtro!$A$5:$AK$2912,29,FALSE),0) -> 0 | AF44: =IFERROR(VLOOKUP($A44,Filtro!$A$5:$AK$2912,30,FALSE),0) -> 0 | AG44: =IFERROR(VLOOKUP($A44,Filtro!$A$5:$AK$2912,31,FALSE),0) -> 0 | AH44: =IFERROR(VLOOKUP($A44,Filtro!$A$5:$AK$2912,32,FALSE),0) -> 0 | AI44: =IFERROR(VLOOKUP($A44,Filtro!$A$5:$AK$2912,33,FALSE),0) -> 0 | AJ44: =IFERROR(VLOOKUP($A44,Filtro!$A$5:$AK$2912,34,FALSE),0) -> 0 | AK44: =IFERROR(VLOOKUP($A44,Filtro!$A$5:$AK$2912,35,FALSE),0) -> 0 | AL44: =IFERROR(VLOOKUP($A44,Filtro!$A$5:$AK$2912,36,FALSE),0) -> 660,650 | AM44: =IFERROR(VLOOKUP($A44,Filtro!$A$5:$AK$2912,37,FALSE),0) -> 0
A45: 01014313 | B45: 0101326 | C45: Consulta Médica de Especialidad en Nefrología Adulto | D45: =IFERROR(VLOOKUP($A45,Filtro!$A$5:$AK$2912,2,FALSE),0) -> 3345 | E45: =IFERROR(VLOOKUP($A45,Filtro!$A$5:$AK$2912,3,FALSE),0) -> 3343 | F45: =IFERROR(VLOOKUP($A45,Filtro!$A$5:$AK$2912,4,FALSE),0) -> 3343 | G45: =IFERROR(VLOOKUP($A45,Filtro!$A$5:$AK$2912,5,FALSE),0) -> 0 | H45: =IFERROR(VLOOKUP($A45,Filtro!$A$5:$AK$2912,6,FALSE),0) -> 2 | I45: =IFERROR(VLOOKUP($A45,Filtro!$A$5:$AK$2912,7,FALSE),0) -> 0 | J45: =IFERROR(VLOOKUP($A45,Filtro!$A$5:$AK$2912,8,FALSE),0) -> 0 | K45: =IFERROR(VLOOKUP($A45,Filtro!$A$5:$AK$2912,9,FALSE),0) -> 0 | L45: =IFERROR(VLOOKUP($A45,Filtro!$A$5:$AK$2912,10,FALSE),0) -> 0 | M45: =IFERROR(VLOOKUP($A45,Filtro!$A$5:$AK$2912,11,FALSE),0) -> 0 | N45: =IFERROR(VLOOKUP($A45,Filtro!$A$5:$AK$2912,12,FALSE),0) -> 0 | O45: =IFERROR(VLOOKUP($A45,Filtro!$A$5:$AK$2912,13,FALSE),0) -> 0 | P45: =IFERROR(VLOOKUP($A45,Filtro!$A$5:$AK$2912,14,FALSE),0) -> 0 | Q45: =IFERROR(VLOOKUP($A45,Filtro!$A$5:$AK$2912,15,FALSE),0) -> 0 | R45: =IFERROR(VLOOKUP($A45,Filtro!$A$5:$AK$2912,16,FALSE),0) -> 0 | S45: =IFERROR(VLOOKUP($A45,Filtro!$A$5:$AK$2912,17,FALSE),0) -> 0 | T45: =IFERROR(VLOOKUP($A45,Filtro!$A$5:$AK$2912,18,FALSE),0) -> 0 | U45: =IFERROR(VLOOKUP($A45,Filtro!$A$5:$AK$2912,19,FALSE),0) -> 0 | V45: =IFERROR(VLOOKUP($A45,Filtro!$A$5:$AK$2912,20,FALSE),0) -> 0 | W45: =IFERROR(VLOOKUP($A45,Filtro!$A$5:$AK$2912,21,FALSE),0) -> 0 | X45: =IFERROR(VLOOKUP($A45,Filtro!$A$5:$AK$2912,22,FALSE),0) -> 0 | Y45: =IFERROR(VLOOKUP($A45,Filtro!$A$5:$AK$2912,23,FALSE),0) -> 0 | Z45: =IFERROR(VLOOKUP($A45,Filtro!$A$5:$AK$2912,24,FALSE),0) -> 0 | AA45: =IFERROR(VLOOKUP($A45,Filtro!$A$5:$AK$2912,25,FALSE),0) -> 0 | AB45: =IFERROR(VLOOKUP($A45,Filtro!$A$5:$AK$2912,26,FALSE),0) -> 0 | AC45: =IFERROR(VLOOKUP($A45,Filtro!$A$5:$AK$2912,27,FALSE),0) -> 3345 | AD45: =IFERROR(VLOOKUP($A45,Filtro!$A$5:$AK$2912,28,FALSE),0) -> 0 | AE45: =IFERROR(VLOOKUP($A45,Filtro!$A$5:$AK$2912,29,FALSE),0) -> 0 | AF45: =IFERROR(VLOOKUP($A45,Filtro!$A$5:$AK$2912,30,FALSE),0) -> 0 | AG45: =IFERROR(VLOOKUP($A45,Filtro!$A$5:$AK$2912,31,FALSE),0) -> 0 | AH45: =IFERROR(VLOOKUP($A45,Filtro!$A$5:$AK$2912,32,FALSE),0) -> 0 | AI45: =IFERROR(VLOOKUP($A45,Filtro!$A$5:$AK$2912,33,FALSE),0) -> 0 | AJ45: =IFERROR(VLOOKUP($A45,Filtro!$A$5:$AK$2912,34,FALSE),0) -> 0 | AK45: =IFERROR(VLOOKUP($A45,Filtro!$A$5:$AK$2912,35,FALSE),0) -> 0 | AL45: =IFERROR(VLOOKUP($A45,Filtro!$A$5:$AK$2912,36,FALSE),0) -> 660,650 | AM45: =IFERROR(VLOOKUP($A45,Filtro!$A$5:$AK$2912,37,FALSE),0) -> 30,254,150
A46: 01014314 | B46: 0101327 | C46: Consulta Médica de Especialidad en Nefrología Pediátrico | D46: =IFERROR(VLOOKUP($A46,Filtro!$A$5:$AK$2912,2,FALSE),0) -> 830 | E46: =IFERROR(VLOOKUP($A46,Filtro!$A$5:$AK$2912,3,FALSE),0) -> 830 | F46: =IFERROR(VLOOKUP($A46,Filtro!$A$5:$AK$2912,4,FALSE),0) -> 830 | G46: =IFERROR(VLOOKUP($A46,Filtro!$A$5:$AK$2912,5,FALSE),0) -> 0 | H46: =IFERROR(VLOOKUP($A46,Filtro!$A$5:$AK$2912,6,FALSE),0) -> 0 | I46: =IFERROR(VLOOKUP($A46,Filtro!$A$5:$AK$2912,7,FALSE),0) -> 0 | J46: =IFERROR(VLOOKUP($A46,Filtro!$A$5:$AK$2912,8,FALSE),0) -> 0 | K46: =IFERROR(VLOOKUP($A46,Filtro!$A$5:$AK$2912,9,FALSE),0) -> 0 | L46: =IFERROR(VLOOKUP($A46,Filtro!$A$5:$AK$2912,10,FALSE),0) -> 0 | M46: =IFERROR(VLOOKUP($A46,Filtro!$A$5:$AK$2912,11,FALSE),0) -> 0 | N46: =IFERROR(VLOOKUP($A46,Filtro!$A$5:$AK$2912,12,FALSE),0) -> 0 | O46: =IFERROR(VLOOKUP($A46,Filtro!$A$5:$AK$2912,13,FALSE),0) -> 0 | P46: =IFERROR(VLOOKUP($A46,Filtro!$A$5:$AK$2912,14,FALSE),0) -> 0 | Q46: =IFERROR(VLOOKUP($A46,Filtro!$A$5:$AK$2912,15,FALSE),0) -> 0 | R46: =IFERROR(VLOOKUP($A46,Filtro!$A$5:$AK$2912,16,FALSE),0) -> 0 | S46: =IFERROR(VLOOKUP($A46,Filtro!$A$5:$AK$2912,17,FALSE),0) -> 0 | T46: =IFERROR(VLOOKUP($A46,Filtro!$A$5:$AK$2912,18,FALSE),0) -> 0 | U46: =IFERROR(VLOOKUP($A46,Filtro!$A$5:$AK$2912,19,FALSE),0) -> 0 | V46: =IFERROR(VLOOKUP($A46,Filtro!$A$5:$AK$2912,20,FALSE),0) -> 0 | W46: =IFERROR(VLOOKUP($A46,Filtro!$A$5:$AK$2912,21,FALSE),0) -> 0 | X46: =IFERROR(VLOOKUP($A46,Filtro!$A$5:$AK$2912,22,FALSE),0) -> 0 | Y46: =IFERROR(VLOOKUP($A46,Filtro!$A$5:$AK$2912,23,FALSE),0) -> 0 | Z46: =IFERROR(VLOOKUP($A46,Filtro!$A$5:$AK$2912,24,FALSE),0) -> 0 | AA46: =IFERROR(VLOOKUP($A46,Filtro!$A$5:$AK$2912,25,FALSE),0) -> 0 | AB46: =IFERROR(VLOOKUP($A46,Filtro!$A$5:$AK$2912,26,FALSE),0) -> 0 | AC46: =IFERROR(VLOOKUP($A46,Filtro!$A$5:$AK$2912,27,FALSE),0) -> 830 | AD46: =IFERROR(VLOOKUP($A46,Filtro!$A$5:$AK$2912,28,FALSE),0) -> 0 | AE46: =IFERROR(VLOOKUP($A46,Filtro!$A$5:$AK$2912,29,FALSE),0) -> 0 | AF46: =IFERROR(VLOOKUP($A46,Filtro!$A$5:$AK$2912,30,FALSE),0) -> 0 | AG46: =IFERROR(VLOOKUP($A46,Filtro!$A$5:$AK$2912,31,FALSE),0) -> 0 | AH46: =IFERROR(VLOOKUP($A46,Filtro!$A$5:$AK$2912,32,FALSE),0) -> 0 | AI46: =IFERROR(VLOOKUP($A46,Filtro!$A$5:$AK$2912,33,FALSE),0) -> 0 | AJ46: =IFERROR(VLOOKUP($A46,Filtro!$A$5:$AK$2912,34,FALSE),0) -> 0 | AK46: =IFERROR(VLOOKUP($A46,Filtro!$A$5:$AK$2912,35,FALSE),0) -> 0 | AL46: =IFERROR(VLOOKUP($A46,Filtro!$A$5:$AK$2912,36,FALSE),0) -> 660,650 | AM46: =IFERROR(VLOOKUP($A46,Filtro!$A$5:$AK$2912,37,FALSE),0) -> 7,511,500
A47: 01014315 | B47: 0101328 | C47: Consulta Médica de Especialidad en Neonatología | D47: =IFERROR(VLOOKUP($A47,Filtro!$A$5:$AK$2912,2,FALSE),0) -> 802 | E47: =IFERROR(VLOOKUP($A47,Filtro!$A$5:$AK$2912,3,FALSE),0) -> 802 | F47: =IFERROR(VLOOKUP($A47,Filtro!$A$5:$AK$2912,4,FALSE),0) -> 802 | G47: =IFERROR(VLOOKUP($A47,Filtro!$A$5:$AK$2912,5,FALSE),0) -> 0 | H47: =IFERROR(VLOOKUP($A47,Filtro!$A$5:$AK$2912,6,FALSE),0) -> 0 | I47: =IFERROR(VLOOKUP($A47,Filtro!$A$5:$AK$2912,7,FALSE),0) -> 0 | J47: =IFERROR(VLOOKUP($A47,Filtro!$A$5:$AK$2912,8,FALSE),0) -> 0 | K47: =IFERROR(VLOOKUP($A47,Filtro!$A$5:$AK$2912,9,FALSE),0) -> 0 | L47: =IFERROR(VLOOKUP($A47,Filtro!$A$5:$AK$2912,10,FALSE),0) -> 0 | M47: =IFERROR(VLOOKUP($A47,Filtro!$A$5:$AK$2912,11,FALSE),0) -> 0 | N47: =IFERROR(VLOOKUP($A47,Filtro!$A$5:$AK$2912,12,FALSE),0) -> 0 | O47: =IFERROR(VLOOKUP($A47,Filtro!$A$5:$AK$2912,13,FALSE),0) -> 0 | P47: =IFERROR(VLOOKUP($A47,Filtro!$A$5:$AK$2912,14,FALSE),0) -> 0 | Q47: =IFERROR(VLOOKUP($A47,Filtro!$A$5:$AK$2912,15,FALSE),0) -> 0 | R47: =IFERROR(VLOOKUP($A47,Filtro!$A$5:$AK$2912,16,FALSE),0) -> 0 | S47: =IFERROR(VLOOKUP($A47,Filtro!$A$5:$AK$2912,17,FALSE),0) -> 0 | T47: =IFERROR(VLOOKUP($A47,Filtro!$A$5:$AK$2912,18,FALSE),0) -> 0 | U47: =IFERROR(VLOOKUP($A47,Filtro!$A$5:$AK$2912,19,FALSE),0) -> 0 | V47: =IFERROR(VLOOKUP($A47,Filtro!$A$5:$AK$2912,20,FALSE),0) -> 0 | W47: =IFERROR(VLOOKUP($A47,Filtro!$A$5:$AK$2912,21,FALSE),0) -> 0 | X47: =IFERROR(VLOOKUP($A47,Filtro!$A$5:$AK$2912,22,FALSE),0) -> 0 | Y47: =IFERROR(VLOOKUP($A47,Filtro!$A$5:$AK$2912,23,FALSE),0) -> 0 | Z47: =IFERROR(VLOOKUP($A47,Filtro!$A$5:$AK$2912,24,FALSE),0) -> 0 | AA47: =IFERROR(VLOOKUP($A47,Filtro!$A$5:$AK$2912,25,FALSE),0) -> 0 | AB47: =IFERROR(VLOOKUP($A47,Filtro!$A$5:$AK$2912,26,FALSE),0) -> 0 | AC47: =IFERROR(VLOOKUP($A47,Filtro!$A$5:$AK$2912,27,FALSE),0) -> 802 | AD47: =IFERROR(VLOOKUP($A47,Filtro!$A$5:$AK$2912,28,FALSE),0) -> 0 | AE47: =IFERROR(VLOOKUP($A47,Filtro!$A$5:$AK$2912,29,FALSE),0) -> 0 | AF47: =IFERROR(VLOOKUP($A47,Filtro!$A$5:$AK$2912,30,FALSE),0) -> 0 | AG47: =IFERROR(VLOOKUP($A47,Filtro!$A$5:$AK$2912,31,FALSE),0) -> 0 | AH47: =IFERROR(VLOOKUP($A47,Filtro!$A$5:$AK$2912,32,FALSE),0) -> 0 | AI47: =IFERROR(VLOOKUP($A47,Filtro!$A$5:$AK$2912,33,FALSE),0) -> 0 | AJ47: =IFERROR(VLOOKUP($A47,Filtro!$A$5:$AK$2912,34,FALSE),0) -> 0 | AK47: =IFERROR(VLOOKUP($A47,Filtro!$A$5:$AK$2912,35,FALSE),0) -> 0 | AL47: =IFERROR(VLOOKUP($A47,Filtro!$A$5:$AK$2912,36,FALSE),0) -> 660,650 | AM47: =IFERROR(VLOOKUP($A47,Filtro!$A$5:$AK$2912,37,FALSE),0) -> 7,258,100
A48: 01014316 | B48: 0101329 | C48: Consulta Médica de Especialidad en Anestesiología | D48: =IFERROR(VLOOKUP($A48,Filtro!$A$5:$AK$2912,2,FALSE),0) -> 2726 | E48: =IFERROR(VLOOKUP($A48,Filtro!$A$5:$AK$2912,3,FALSE),0) -> 2726 | F48: =IFERROR(VLOOKUP($A48,Filtro!$A$5:$AK$2912,4,FALSE),0) -> 2726 | G48: =IFERROR(VLOOKUP($A48,Filtro!$A$5:$AK$2912,5,FALSE),0) -> 0 | H48: =IFERROR(VLOOKUP($A48,Filtro!$A$5:$AK$2912,6,FALSE),0) -> 0 | I48: =IFERROR(VLOOKUP($A48,Filtro!$A$5:$AK$2912,7,FALSE),0) -> 0 | J48: =IFERROR(VLOOKUP($A48,Filtro!$A$5:$AK$2912,8,FALSE),0) -> 0 | K48: =IFERROR(VLOOKUP($A48,Filtro!$A$5:$AK$2912,9,FALSE),0) -> 0 | L48: =IFERROR(VLOOKUP($A48,Filtro!$A$5:$AK$2912,10,FALSE),0) -> 0 | M48: =IFERROR(VLOOKUP($A48,Filtro!$A$5:$AK$2912,11,FALSE),0) -> 0 | N48: =IFERROR(VLOOKUP($A48,Filtro!$A$5:$AK$2912,12,FALSE),0) -> 0 | O48: =IFERROR(VLOOKUP($A48,Filtro!$A$5:$AK$2912,13,FALSE),0) -> 0 | P48: =IFERROR(VLOOKUP($A48,Filtro!$A$5:$AK$2912,14,FALSE),0) -> 0 | Q48: =IFERROR(VLOOKUP($A48,Filtro!$A$5:$AK$2912,15,FALSE),0) -> 0 | R48: =IFERROR(VLOOKUP($A48,Filtro!$A$5:$AK$2912,16,FALSE),0) -> 0 | S48: =IFERROR(VLOOKUP($A48,Filtro!$A$5:$AK$2912,17,FALSE),0) -> 0 | T48: =IFERROR(VLOOKUP($A48,Filtro!$A$5:$AK$2912,18,FALSE),0) -> 0 | U48: =IFERROR(VLOOKUP($A48,Filtro!$A$5:$AK$2912,19,FALSE),0) -> 0 | V48: =IFERROR(VLOOKUP($A48,Filtro!$A$5:$AK$2912,20,FALSE),0) -> 0 | W48: =IFERROR(VLOOKUP($A48,Filtro!$A$5:$AK$2912,21,FALSE),0) -> 0 | X48: =IFERROR(VLOOKUP($A48,Filtro!$A$5:$AK$2912,22,FALSE),0) -> 0 | Y48: =IFERROR(VLOOKUP($A48,Filtro!$A$5:$AK$2912,23,FALSE),0) -> 0 | Z48: =IFERROR(VLOOKUP($A48,Filtro!$A$5:$AK$2912,24,FALSE),0) -> 0 | AA48: =IFERROR(VLOOKUP($A48,Filtro!$A$5:$AK$2912,25,FALSE),0) -> 0 | AB48: =IFERROR(VLOOKUP($A48,Filtro!$A$5:$AK$2912,26,FALSE),0) -> 0 | AC48: =IFERROR(VLOOKUP($A48,Filtro!$A$5:$AK$2912,27,FALSE),0) -> 2726 | AD48: =IFERROR(VLOOKUP($A48,Filtro!$A$5:$AK$2912,28,FALSE),0) -> 0 | AE48: =IFERROR(VLOOKUP($A48,Filtro!$A$5:$AK$2912,29,FALSE),0) -> 0 | AF48: =IFERROR(VLOOKUP($A48,Filtro!$A$5:$AK$2912,30,FALSE),0) -> 0 | AG48: =IFERROR(VLOOKUP($A48,Filtro!$A$5:$AK$2912,31,FALSE),0) -> 0 | AH48: =IFERROR(VLOOKUP($A48,Filtro!$A$5:$AK$2912,32,FALSE),0) -> 0 | AI48: =IFERROR(VLOOKUP($A48,Filtro!$A$5:$AK$2912,33,FALSE),0) -> 0 | AJ48: =IFERROR(VLOOKUP($A48,Filtro!$A$5:$AK$2912,34,FALSE),0) -> 0 | AK48: =IFERROR(VLOOKUP($A48,Filtro!$A$5:$AK$2912,35,FALSE),0) -> 0 | AL48: =IFERROR(VLOOKUP($A48,Filtro!$A$5:$AK$2912,36,FALSE),0) -> 660,650 | AM48: =IFERROR(VLOOKUP($A48,Filtro!$A$5:$AK$2912,37,FALSE),0) -> 24,670,300
A49: 01014703 | B49: 0101330 | C49: Consulta Médica de Especialidad en Medicina de Urgencia | D49: =IFERROR(VLOOKUP($A49,Filtro!$A$5:$AK$2912,2,FALSE),0) -> 0 | E49: =IFERROR(VLOOKUP($A49,Filtro!$A$5:$AK$2912,3,FALSE),0) -> 0 | F49: =IFERROR(VLOOKUP($A49,Filtro!$A$5:$AK$2912,4,FALSE),0) -> 0 | G49: =IFERROR(VLOOKUP($A49,Filtro!$A$5:$AK$2912,5,FALSE),0) -> 0 | H49: =IFERROR(VLOOKUP($A49,Filtro!$A$5:$AK$2912,6,FALSE),0) -> 0 | I49: =IFERROR(VLOOKUP($A49,Filtro!$A$5:$AK$2912,7,FALSE),0) -> 0 | J49: =IFERROR(VLOOKUP($A49,Filtro!$A$5:$AK$2912,8,FALSE),0) -> 0 | K49: =IFERROR(VLOOKUP($A49,Filtro!$A$5:$AK$2912,9,FALSE),0) -> 0 | L49: =IFERROR(VLOOKUP($A49,Filtro!$A$5:$AK$2912,10,FALSE),0) -> 0 | M49: =IFERROR(VLOOKUP($A49,Filtro!$A$5:$AK$2912,11,FALSE),0) -> 0 | N49: =IFERROR(VLOOKUP($A49,Filtro!$A$5:$AK$2912,12,FALSE),0) -> 0 | O49: =IFERROR(VLOOKUP($A49,Filtro!$A$5:$AK$2912,13,FALSE),0) -> 0 | P49: =IFERROR(VLOOKUP($A49,Filtro!$A$5:$AK$2912,14,FALSE),0) -> 0 | Q49: =IFERROR(VLOOKUP($A49,Filtro!$A$5:$AK$2912,15,FALSE),0) -> 0 | R49: =IFERROR(VLOOKUP($A49,Filtro!$A$5:$AK$2912,16,FALSE),0) -> 0 | S49: =IFERROR(VLOOKUP($A49,Filtro!$A$5:$AK$2912,17,FALSE),0) -> 0 | T49: =IFERROR(VLOOKUP($A49,Filtro!$A$5:$AK$2912,18,FALSE),0) -> 0 | U49: =IFERROR(VLOOKUP($A49,Filtro!$A$5:$AK$2912,19,FALSE),0) -> 0 | V49: =IFERROR(VLOOKUP($A49,Filtro!$A$5:$AK$2912,20,FALSE),0) -> 0 | W49: =IFERROR(VLOOKUP($A49,Filtro!$A$5:$AK$2912,21,FALSE),0) -> 0 | X49: =IFERROR(VLOOKUP($A49,Filtro!$A$5:$AK$2912,22,FALSE),0) -> 0 | Y49: =IFERROR(VLOOKUP($A49,Filtro!$A$5:$AK$2912,23,FALSE),0) -> 0 | Z49: =IFERROR(VLOOKUP($A49,Filtro!$A$5:$AK$2912,24,FALSE),0) -> 0 | AA49: =IFERROR(VLOOKUP($A49,Filtro!$A$5:$AK$2912,25,FALSE),0) -> 0 | AB49: =IFERROR(VLOOKUP($A49,Filtro!$A$5:$AK$2912,26,FALSE),0) -> 0 | AC49: =IFERROR(VLOOKUP($A49,Filtro!$A$5:$AK$2912,27,FALSE),0) -> 0 | AD49: =IFERROR(VLOOKUP($A49,Filtro!$A$5:$AK$2912,28,FALSE),0) -> 0 | AE49: =IFERROR(VLOOKUP($A49,Filtro!$A$5:$AK$2912,29,FALSE),0) -> 0 | AF49: =IFERROR(VLOOKUP($A49,Filtro!$A$5:$AK$2912,30,FALSE),0) -> 0 | AG49: =IFERROR(VLOOKUP($A49,Filtro!$A$5:$AK$2912,31,FALSE),0) -> 0 | AH49: =IFERROR(VLOOKUP($A49,Filtro!$A$5:$AK$2912,32,FALSE),0) -> 0 | AI49: =IFERROR(VLOOKUP($A49,Filtro!$A$5:$AK$2912,33,FALSE),0) -> 0 | AJ49: =IFERROR(VLOOKUP($A49,Filtro!$A$5:$AK$2912,34,FALSE),0) -> 0 | AK49: =IFERROR(VLOOKUP($A49,Filtro!$A$5:$AK$2912,35,FALSE),0) -> 0 | AL49: =IFERROR(VLOOKUP($A49,Filtro!$A$5:$AK$2912,36,FALSE),0) -> 27,150 | AM49: =IFERROR(VLOOKUP($A49,Filtro!$A$5:$AK$2912,37,FALSE),0) -> 0
A50: 01014317 | B50: 0101331 | C50: Consulta Médica de Especialidad en Radioterapia Oncológica | D50: =IFERROR(VLOOKUP($A50,Filtro!$A$5:$AK$2912,2,FALSE),0) -> 0 | E50: =IFERROR(VLOOKUP($A50,Filtro!$A$5:$AK$2912,3,FALSE),0) -> 0 | F50: =IFERROR(VLOOKUP($A50,Filtro!$A$5:$AK$2912,4,FALSE),0) -> 0 | G50: =IFERROR(VLOOKUP($A50,Filtro!$A$5:$AK$2912,5,FALSE),0) -> 0 | H50: =IFERROR(VLOOKUP($A50,Filtro!$A$5:$AK$2912,6,FALSE),0) -> 0 | I50: =IFERROR(VLOOKUP($A50,Filtro!$A$5:$AK$2912,7,FALSE),0) -> 0 | J50: =IFERROR(VLOOKUP($A50,Filtro!$A$5:$AK$2912,8,FALSE),0) -> 0 | K50: =IFERROR(VLOOKUP($A50,Filtro!$A$5:$AK$2912,9,FALSE),0) -> 0 | L50: =IFERROR(VLOOKUP($A50,Filtro!$A$5:$AK$2912,10,FALSE),0) -> 0 | M50: =IFERROR(VLOOKUP($A50,Filtro!$A$5:$AK$2912,11,FALSE),0) -> 0 | N50: =IFERROR(VLOOKUP($A50,Filtro!$A$5:$AK$2912,12,FALSE),0) -> 0 | O50: =IFERROR(VLOOKUP($A50,Filtro!$A$5:$AK$2912,13,FALSE),0) -> 0 | P50: =IFERROR(VLOOKUP($A50,Filtro!$A$5:$AK$2912,14,FALSE),0) -> 0 | Q50: =IFERROR(VLOOKUP($A50,Filtro!$A$5:$AK$2912,15,FALSE),0) -> 0 | R50: =IFERROR(VLOOKUP($A50,Filtro!$A$5:$AK$2912,16,FALSE),0) -> 0 | S50: =IFERROR(VLOOKUP($A50,Filtro!$A$5:$AK$2912,17,FALSE),0) -> 0 | T50: =IFERROR(VLOOKUP($A50,Filtro!$A$5:$AK$2912,18,FALSE),0) -> 0 | U50: =IFERROR(VLOOKUP($A50,Filtro!$A$5:$AK$2912,19,FALSE),0) -> 0 | V50: =IFERROR(VLOOKUP($A50,Filtro!$A$5:$AK$2912,20,FALSE),0) -> 0 | W50: =IFERROR(VLOOKUP($A50,Filtro!$A$5:$AK$2912,21,FALSE),0) -> 0 | X50: =IFERROR(VLOOKUP($A50,Filtro!$A$5:$AK$2912,22,FALSE),0) -> 0 | Y50: =IFERROR(VLOOKUP($A50,Filtro!$A$5:$AK$2912,23,FALSE),0) -> 0 | Z50: =IFERROR(VLOOKUP($A50,Filtro!$A$5:$AK$2912,24,FALSE),0) -> 0 | AA50: =IFERROR(VLOOKUP($A50,Filtro!$A$5:$AK$2912,25,FALSE),0) -> 0 | AB50: =IFERROR(VLOOKUP($A50,Filtro!$A$5:$AK$2912,26,FALSE),0) -> 0 | AC50: =IFERROR(VLOOKUP($A50,Filtro!$A$5:$AK$2912,27,FALSE),0) -> 0 | AD50: =IFERROR(VLOOKUP($A50,Filtro!$A$5:$AK$2912,28,FALSE),0) -> 0 | AE50: =IFERROR(VLOOKUP($A50,Filtro!$A$5:$AK$2912,29,FALSE),0) -> 0 | AF50: =IFERROR(VLOOKUP($A50,Filtro!$A$5:$AK$2912,30,FALSE),0) -> 0 | AG50: =IFERROR(VLOOKUP($A50,Filtro!$A$5:$AK$2912,31,FALSE),0) -> 0 | AH50: =IFERROR(VLOOKUP($A50,Filtro!$A$5:$AK$2912,32,FALSE),0) -> 0 | AI50: =IFERROR(VLOOKUP($A50,Filtro!$A$5:$AK$2912,33,FALSE),0) -> 0 | AJ50: =IFERROR(VLOOKUP($A50,Filtro!$A$5:$AK$2912,34,FALSE),0) -> 0 | AK50: =IFERROR(VLOOKUP($A50,Filtro!$A$5:$AK$2912,35,FALSE),0) -> 0 | AL50: =IFERROR(VLOOKUP($A50,Filtro!$A$5:$AK$2912,36,FALSE),0) -> 660,650 | AM50: =IFERROR(VLOOKUP($A50,Filtro!$A$5:$AK$2912,37,FALSE),0) -> 0
A51: 01014318 | B51: 0101332 | C51: Consulta Médica de Especialidad en Ginecología Pediátrica y de la Adolescencia | D51: =IFERROR(VLOOKUP($A51,Filtro!$A$5:$AK$2912,2,FALSE),0) -> 118 | E51: =IFERROR(VLOOKUP($A51,Filtro!$A$5:$AK$2912,3,FALSE),0) -> 117 | F51: =IFERROR(VLOOKUP($A51,Filtro!$A$5:$AK$2912,4,FALSE),0) -> 117 | G51: =IFERROR(VLOOKUP($A51,Filtro!$A$5:$AK$2912,5,FALSE),0) -> 0 | H51: =IFERROR(VLOOKUP($A51,Filtro!$A$5:$AK$2912,6,FALSE),0) -> 1 | I51: =IFERROR(VLOOKUP($A51,Filtro!$A$5:$AK$2912,7,FALSE),0) -> 0 | J51: =IFERROR(VLOOKUP($A51,Filtro!$A$5:$AK$2912,8,FALSE),0) -> 0 | K51: =IFERROR(VLOOKUP($A51,Filtro!$A$5:$AK$2912,9,FALSE),0) -> 0 | L51: =IFERROR(VLOOKUP($A51,Filtro!$A$5:$AK$2912,10,FALSE),0) -> 0 | M51: =IFERROR(VLOOKUP($A51,Filtro!$A$5:$AK$2912,11,FALSE),0) -> 0 | N51: =IFERROR(VLOOKUP($A51,Filtro!$A$5:$AK$2912,12,FALSE),0) -> 0 | O51: =IFERROR(VLOOKUP($A51,Filtro!$A$5:$AK$2912,13,FALSE),0) -> 0 | P51: =IFERROR(VLOOKUP($A51,Filtro!$A$5:$AK$2912,14,FALSE),0) -> 0 | Q51: =IFERROR(VLOOKUP($A51,Filtro!$A$5:$AK$2912,15,FALSE),0) -> 0 | R51: =IFERROR(VLOOKUP($A51,Filtro!$A$5:$AK$2912,16,FALSE),0) -> 0 | S51: =IFERROR(VLOOKUP($A51,Filtro!$A$5:$AK$2912,17,FALSE),0) -> 0 | T51: =IFERROR(VLOOKUP($A51,Filtro!$A$5:$AK$2912,18,FALSE),0) -> 0 | U51: =IFERROR(VLOOKUP($A51,Filtro!$A$5:$AK$2912,19,FALSE),0) -> 0 | V51: =IFERROR(VLOOKUP($A51,Filtro!$A$5:$AK$2912,20,FALSE),0) -> 0 | W51: =IFERROR(VLOOKUP($A51,Filtro!$A$5:$AK$2912,21,FALSE),0) -> 0 | X51: =IFERROR(VLOOKUP($A51,Filtro!$A$5:$AK$2912,22,FALSE),0) -> 0 | Y51: =IFERROR(VLOOKUP($A51,Filtro!$A$5:$AK$2912,23,FALSE),0) -> 0 | Z51: =IFERROR(VLOOKUP($A51,Filtro!$A$5:$AK$2912,24,FALSE),0) -> 0 | AA51: =IFERROR(VLOOKUP($A51,Filtro!$A$5:$AK$2912,25,FALSE),0) -> 0 | AB51: =IFERROR(VLOOKUP($A51,Filtro!$A$5:$AK$2912,26,FALSE),0) -> 0 | AC51: =IFERROR(VLOOKUP($A51,Filtro!$A$5:$AK$2912,27,FALSE),0) -> 118 | AD51: =IFERROR(VLOOKUP($A51,Filtro!$A$5:$AK$2912,28,FALSE),0) -> 0 | AE51: =IFERROR(VLOOKUP($A51,Filtro!$A$5:$AK$2912,29,FALSE),0) -> 0 | AF51: =IFERROR(VLOOKUP($A51,Filtro!$A$5:$AK$2912,30,FALSE),0) -> 0 | AG51: =IFERROR(VLOOKUP($A51,Filtro!$A$5:$AK$2912,31,FALSE),0) -> 0 | AH51: =IFERROR(VLOOKUP($A51,Filtro!$A$5:$AK$2912,32,FALSE),0) -> 0 | AI51: =IFERROR(VLOOKUP($A51,Filtro!$A$5:$AK$2912,33,FALSE),0) -> 0 | AJ51: =IFERROR(VLOOKUP($A51,Filtro!$A$5:$AK$2912,34,FALSE),0) -> 0 | AK51: =IFERROR(VLOOKUP($A51,Filtro!$A$5:$AK$2912,35,FALSE),0) -> 0 | AL51: =IFERROR(VLOOKUP($A51,Filtro!$A$5:$AK$2912,36,FALSE),0) -> 660,650 | AM51: =IFERROR(VLOOKUP($A51,Filtro!$A$5:$AK$2912,37,FALSE),0) -> 1,058,850
A52: 01014704 | B52: 0101333 | C52: Consulta Médica de Especialidad en Medicina Materno Fetal | D52: =IFERROR(VLOOKUP($A52,Filtro!$A$5:$AK$2912,2,FALSE),0) -> 0 | E52: =IFERROR(VLOOKUP($A52,Filtro!$A$5:$AK$2912,3,FALSE),0) -> 0 | F52: =IFERROR(VLOOKUP($A52,Filtro!$A$5:$AK$2912,4,FALSE),0) -> 0 | G52: =IFERROR(VLOOKUP($A52,Filtro!$A$5:$AK$2912,5,FALSE),0) -> 0 | H52: =IFERROR(VLOOKUP($A52,Filtro!$A$5:$AK$2912,6,FALSE),0) -> 0 | I52: =IFERROR(VLOOKUP($A52,Filtro!$A$5:$AK$2912,7,FALSE),0) -> 0 | J52: =IFERROR(VLOOKUP($A52,Filtro!$A$5:$AK$2912,8,FALSE),0) -> 0 | K52: =IFERROR(VLOOKUP($A52,Filtro!$A$5:$AK$2912,9,FALSE),0) -> 0 | L52: =IFERROR(VLOOKUP($A52,Filtro!$A$5:$AK$2912,10,FALSE),0) -> 0 | M52: =IFERROR(VLOOKUP($A52,Filtro!$A$5:$AK$2912,11,FALSE),0) -> 0 | N52: =IFERROR(VLOOKUP($A52,Filtro!$A$5:$AK$2912,12,FALSE),0) -> 0 | O52: =IFERROR(VLOOKUP($A52,Filtro!$A$5:$AK$2912,13,FALSE),0) -> 0 | P52: =IFERROR(VLOOKUP($A52,Filtro!$A$5:$AK$2912,14,FALSE),0) -> 0 | Q52: =IFERROR(VLOOKUP($A52,Filtro!$A$5:$AK$2912,15,FALSE),0) -> 0 | R52: =IFERROR(VLOOKUP($A52,Filtro!$A$5:$AK$2912,16,FALSE),0) -> 0 | S52: =IFERROR(VLOOKUP($A52,Filtro!$A$5:$AK$2912,17,FALSE),0) -> 0 | T52: =IFERROR(VLOOKUP($A52,Filtro!$A$5:$AK$2912,18,FALSE),0) -> 0 | U52: =IFERROR(VLOOKUP($A52,Filtro!$A$5:$AK$2912,19,FALSE),0) -> 0 | V52: =IFERROR(VLOOKUP($A52,Filtro!$A$5:$AK$2912,20,FALSE),0) -> 0 | W52: =IFERROR(VLOOKUP($A52,Filtro!$A$5:$AK$2912,21,FALSE),0) -> 0 | X52: =IFERROR(VLOOKUP($A52,Filtro!$A$5:$AK$2912,22,FALSE),0) -> 0 | Y52: =IFERROR(VLOOKUP($A52,Filtro!$A$5:$AK$2912,23,FALSE),0) -> 0 | Z52: =IFERROR(VLOOKUP($A52,Filtro!$A$5:$AK$2912,24,FALSE),0) -> 0 | AA52: =IFERROR(VLOOKUP($A52,Filtro!$A$5:$AK$2912,25,FALSE),0) -> 0 | AB52: =IFERROR(VLOOKUP($A52,Filtro!$A$5:$AK$2912,26,FALSE),0) -> 0 | AC52: =IFERROR(VLOOKUP($A52,Filtro!$A$5:$AK$2912,27,FALSE),0) -> 0 | AD52: =IFERROR(VLOOKUP($A52,Filtro!$A$5:$AK$2912,28,FALSE),0) -> 0 | AE52: =IFERROR(VLOOKUP($A52,Filtro!$A$5:$AK$2912,29,FALSE),0) -> 0 | AF52: =IFERROR(VLOOKUP($A52,Filtro!$A$5:$AK$2912,30,FALSE),0) -> 0 | AG52: =IFERROR(VLOOKUP($A52,Filtro!$A$5:$AK$2912,31,FALSE),0) -> 0 | AH52: =IFERROR(VLOOKUP($A52,Filtro!$A$5:$AK$2912,32,FALSE),0) -> 0 | AI52: =IFERROR(VLOOKUP($A52,Filtro!$A$5:$AK$2912,33,FALSE),0) -> 0 | AJ52: =IFERROR(VLOOKUP($A52,Filtro!$A$5:$AK$2912,34,FALSE),0) -> 0 | AK52: =IFERROR(VLOOKUP($A52,Filtro!$A$5:$AK$2912,35,FALSE),0) -> 0 | AL52: =IFERROR(VLOOKUP($A52,Filtro!$A$5:$AK$2912,36,FALSE),0) -> 27,150 | AM52: =IFERROR(VLOOKUP($A52,Filtro!$A$5:$AK$2912,37,FALSE),0) -> 0
A53: 01014319 | B53: 0101334 | C53: Consulta Médica de Especialidad en Medicina Nuclear | D53: =IFERROR(VLOOKUP($A53,Filtro!$A$5:$AK$2912,2,FALSE),0) -> 0 | E53: =IFERROR(VLOOKUP($A53,Filtro!$A$5:$AK$2912,3,FALSE),0) -> 0 | F53: =IFERROR(VLOOKUP($A53,Filtro!$A$5:$AK$2912,4,FALSE),0) -> 0 | G53: =IFERROR(VLOOKUP($A53,Filtro!$A$5:$AK$2912,5,FALSE),0) -> 0 | H53: =IFERROR(VLOOKUP($A53,Filtro!$A$5:$AK$2912,6,FALSE),0) -> 0 | I53: =IFERROR(VLOOKUP($A53,Filtro!$A$5:$AK$2912,7,FALSE),0) -> 0 | J53: =IFERROR(VLOOKUP($A53,Filtro!$A$5:$AK$2912,8,FALSE),0) -> 0 | K53: =IFERROR(VLOOKUP($A53,Filtro!$A$5:$AK$2912,9,FALSE),0) -> 0 | L53: =IFERROR(VLOOKUP($A53,Filtro!$A$5:$AK$2912,10,FALSE),0) -> 0 | M53: =IFERROR(VLOOKUP($A53,Filtro!$A$5:$AK$2912,11,FALSE),0) -> 0 | N53: =IFERROR(VLOOKUP($A53,Filtro!$A$5:$AK$2912,12,FALSE),0) -> 0 | O53: =IFERROR(VLOOKUP($A53,Filtro!$A$5:$AK$2912,13,FALSE),0) -> 0 | P53: =IFERROR(VLOOKUP($A53,Filtro!$A$5:$AK$2912,14,FALSE),0) -> 0 | Q53: =IFERROR(VLOOKUP($A53,Filtro!$A$5:$AK$2912,15,FALSE),0) -> 0 | R53: =IFERROR(VLOOKUP($A53,Filtro!$A$5:$AK$2912,16,FALSE),0) -> 0 | S53: =IFERROR(VLOOKUP($A53,Filtro!$A$5:$AK$2912,17,FALSE),0) -> 0 | T53: =IFERROR(VLOOKUP($A53,Filtro!$A$5:$AK$2912,18,FALSE),0) -> 0 | U53: =IFERROR(VLOOKUP($A53,Filtro!$A$5:$AK$2912,19,FALSE),0) -> 0 | V53: =IFERROR(VLOOKUP($A53,Filtro!$A$5:$AK$2912,20,FALSE),0) -> 0 | W53: =IFERROR(VLOOKUP($A53,Filtro!$A$5:$AK$2912,21,FALSE),0) -> 0 | X53: =IFERROR(VLOOKUP($A53,Filtro!$A$5:$AK$2912,22,FALSE),0) -> 0 | Y53: =IFERROR(VLOOKUP($A53,Filtro!$A$5:$AK$2912,23,FALSE),0) -> 0 | Z53: =IFERROR(VLOOKUP($A53,Filtro!$A$5:$AK$2912,24,FALSE),0) -> 0 | AA53: =IFERROR(VLOOKUP($A53,Filtro!$A$5:$AK$2912,25,FALSE),0) -> 0 | AB53: =IFERROR(VLOOKUP($A53,Filtro!$A$5:$AK$2912,26,FALSE),0) -> 0 | AC53: =IFERROR(VLOOKUP($A53,Filtro!$A$5:$AK$2912,27,FALSE),0) -> 0 | AD53: =IFERROR(VLOOKUP($A53,Filtro!$A$5:$AK$2912,28,FALSE),0) -> 0 | AE53: =IFERROR(VLOOKUP($A53,Filtro!$A$5:$AK$2912,29,FALSE),0) -> 0 | AF53: =IFERROR(VLOOKUP($A53,Filtro!$A$5:$AK$2912,30,FALSE),0) -> 0 | AG53: =IFERROR(VLOOKUP($A53,Filtro!$A$5:$AK$2912,31,FALSE),0) -> 0 | AH53: =IFERROR(VLOOKUP($A53,Filtro!$A$5:$AK$2912,32,FALSE),0) -> 0 | AI53: =IFERROR(VLOOKUP($A53,Filtro!$A$5:$AK$2912,33,FALSE),0) -> 0 | AJ53: =IFERROR(VLOOKUP($A53,Filtro!$A$5:$AK$2912,34,FALSE),0) -> 0 | AK53: =IFERROR(VLOOKUP($A53,Filtro!$A$5:$AK$2912,35,FALSE),0) -> 0 | AL53: =IFERROR(VLOOKUP($A53,Filtro!$A$5:$AK$2912,36,FALSE),0) -> 660,650 | AM53: =IFERROR(VLOOKUP($A53,Filtro!$A$5:$AK$2912,37,FALSE),0) -> 0
C54: TOTAL ARANCEL MAI | D54: =SUM(D6:D53) -> 163904 | E54: =SUM(E6:E53) -> 163646 | F54: =SUM(F6:F53) -> 163646 | G54: =SUM(G6:G53) -> 0 | H54: =SUM(H6:H53) -> 258 | AB54: =SUM(AB6:AB53) -> 208 | AC54: 162963 | AD54: 733 | AE54: 4453 | AF54: 0 | AG54: 0 | AH54: 0 | AI54: 0 | AJ54: 0 | AK54: 0 | AM54: =SUM(AM6:AM53) -> 1,480,996,300
C55: OTRAS CONSULTAS MEDICAS
A56: 01010014 | B56: 0101001 | C56: Consulta Medicina General | D56: =IFERROR(VLOOKUP($A56,Filtro!$A$5:$AK$2912,2,FALSE),0) -> 30817 | E56: =IFERROR(VLOOKUP($A56,Filtro!$A$5:$AK$2912,3,FALSE),0) -> 30817 | F56: =IFERROR(VLOOKUP($A56,Filtro!$A$5:$AK$2912,4,FALSE),0) -> 30817 | G56: =IFERROR(VLOOKUP($A56,Filtro!$A$5:$AK$2912,5,FALSE),0) -> 0 | H56: =IFERROR(VLOOKUP($A56,Filtro!$A$5:$AK$2912,6,FALSE),0) -> 0 | I56: =IFERROR(VLOOKUP($A56,Filtro!$A$5:$AK$2912,7,FALSE),0) -> 0 | J56: =IFERROR(VLOOKUP($A56,Filtro!$A$5:$AK$2912,8,FALSE),0) -> 0 | K56: =IFERROR(VLOOKUP($A56,Filtro!$A$5:$AK$2912,9,FALSE),0) -> 0 | L56: =IFERROR(VLOOKUP($A56,Filtro!$A$5:$AK$2912,10,FALSE),0) -> 0 | M56: =IFERROR(VLOOKUP($A56,Filtro!$A$5:$AK$2912,11,FALSE),0) -> 0 | N56: =IFERROR(VLOOKUP($A56,Filtro!$A$5:$AK$2912,12,FALSE),0) -> 0 | O56: =IFERROR(VLOOKUP($A56,Filtro!$A$5:$AK$2912,13,FALSE),0) -> 0 | P56: =IFERROR(VLOOKUP($A56,Filtro!$A$5:$AK$2912,14,FALSE),0) -> 0 | Q56: =IFERROR(VLOOKUP($A56,Filtro!$A$5:$AK$2912,15,FALSE),0) -> 0 | R56: =IFERROR(VLOOKUP($A56,Filtro!$A$5:$AK$2912,16,FALSE),0) -> 0 | S56: =IFERROR(VLOOKUP($A56,Filtro!$A$5:$AK$2912,17,FALSE),0) -> 0 | T56: =IFERROR(VLOOKUP($A56,Filtro!$A$5:$AK$2912,18,FALSE),0) -> 0 | U56: =IFERROR(VLOOKUP($A56,Filtro!$A$5:$AK$2912,19,FALSE),0) -> 0 | V56: =IFERROR(VLOOKUP($A56,Filtro!$A$5:$AK$2912,20,FALSE),0) -> 0 | W56: =IFERROR(VLOOKUP($A56,Filtro!$A$5:$AK$2912,21,FALSE),0) -> 0 | X56: =IFERROR(VLOOKUP($A56,Filtro!$A$5:$AK$2912,22,FALSE),0) -> 0 | Y56: =IFERROR(VLOOKUP($A56,Filtro!$A$5:$AK$2912,23,FALSE),0) -> 0 | Z56: =IFERROR(VLOOKUP($A56,Filtro!$A$5:$AK$2912,24,FALSE),0) -> 0 | AA56: =IFERROR(VLOOKUP($A56,Filtro!$A$5:$AK$2912,25,FALSE),0) -> 0 | AB56: =IFERROR(VLOOKUP($A56,Filtro!$A$5:$AK$2912,26,FALSE),0) -> 0 | AC56: =IFERROR(VLOOKUP($A56,Filtro!$A$5:$AK$2912,27,FALSE),0) -> 30817 | AD56: =IFERROR(VLOOKUP($A56,Filtro!$A$5:$AK$2912,28,FALSE),0) -> 0 | AE56: =IFERROR(VLOOKUP($A56,Filtro!$A$5:$AK$2912,29,FALSE),0) -> 0 | AF56: =IFERROR(VLOOKUP($A56,Filtro!$A$5:$AK$2912,30,FALSE),0) -> 0 | AG56: =IFERROR(VLOOKUP($A56,Filtro!$A$5:$AK$2912,31,FALSE),0) -> 0 | AH56: =IFERROR(VLOOKUP($A56,Filtro!$A$5:$AK$2912,32,FALSE),0) -> 0 | AI56: =IFERROR(VLOOKUP($A56,Filtro!$A$5:$AK$2912,33,FALSE),0) -> 0 | AJ56: =IFERROR(VLOOKUP($A56,Filtro!$A$5:$AK$2912,34,FALSE),0) -> 0 | AK56: =IFERROR(VLOOKUP($A56,Filtro!$A$5:$AK$2912,35,FALSE),0) -> 0 | AL56: =IFERROR(VLOOKUP($A56,Filtro!$A$5:$AK$2912,36,FALSE),0) -> 464,280 | AM56: =IFERROR(VLOOKUP($A56,Filtro!$A$5:$AK$2912,37,FALSE),0) -> 195,996,120
A57: 01014320 | B57: 0101007 | C57: Atención médica del recién nacido en sala de parto o pabellón quirúrgico c/s reanimación cardio-respiratoria | D57: =IFERROR(VLOOKUP($A57,Filtro!$A$5:$AK$2912,2,FALSE),0) -> 1727 | E57: =IFERROR(VLOOKUP($A57,Filtro!$A$5:$AK$2912,3,FALSE),0) -> 1687 | F57: =IFERROR(VLOOKUP($A57,Filtro!$A$5:$AK$2912,4,FALSE),0) -> 1534 | G57: =IFERROR(VLOOKUP($A57,Filtro!$A$5:$AK$2912,5,FALSE),0) -> 153 | H57: =IFERROR(VLOOKUP($A57,Filtro!$A$5:$AK$2912,6,FALSE),0) -> 40 | I57: =IFERROR(VLOOKUP($A57,Filtro!$A$5:$AK$2912,7,FALSE),0) -> 0 | J57: =IFERROR(VLOOKUP($A57,Filtro!$A$5:$AK$2912,8,FALSE),0) -> 0 | K57: =IFERROR(VLOOKUP($A57,Filtro!$A$5:$AK$2912,9,FALSE),0) -> 0 | L57: =IFERROR(VLOOKUP($A57,Filtro!$A$5:$AK$2912,10,FALSE),0) -> 0 | M57: =IFERROR(VLOOKUP($A57,Filtro!$A$5:$AK$2912,11,FALSE),0) -> 0 | N57: =IFERROR(VLOOKUP($A57,Filtro!$A$5:$AK$2912,12,FALSE),0) -> 0 | O57: =IFERROR(VLOOKUP($A57,Filtro!$A$5:$AK$2912,13,FALSE),0) -> 0 | P57: =IFERROR(VLOOKUP($A57,Filtro!$A$5:$AK$2912,14,FALSE),0) -> 0 | Q57: =IFERROR(VLOOKUP($A57,Filtro!$A$5:$AK$2912,15,FALSE),0) -> 0 | R57: =IFERROR(VLOOKUP($A57,Filtro!$A$5:$AK$2912,16,FALSE),0) -> 0 | S57: =IFERROR(VLOOKUP($A57,Filtro!$A$5:$AK$2912,17,FALSE),0) -> 0 | T57: =IFERROR(VLOOKUP($A57,Filtro!$A$5:$AK$2912,18,FALSE),0) -> 0 | U57: =IFERROR(VLOOKUP($A57,Filtro!$A$5:$AK$2912,19,FALSE),0) -> 0 | V57: =IFERROR(VLOOKUP($A57,Filtro!$A$5:$AK$2912,20,FALSE),0) -> 0 | W57: =IFERROR(VLOOKUP($A57,Filtro!$A$5:$AK$2912,21,FALSE),0) -> 0 | X57: =IFERROR(VLOOKUP($A57,Filtro!$A$5:$AK$2912,22,FALSE),0) -> 0 | Y57: =IFERROR(VLOOKUP($A57,Filtro!$A$5:$AK$2912,23,FALSE),0) -> 0 | Z57: =IFERROR(VLOOKUP($A57,Filtro!$A$5:$AK$2912,24,FALSE),0) -> 0 | AA57: =IFERROR(VLOOKUP($A57,Filtro!$A$5:$AK$2912,25,FALSE),0) -> 0 | AB57: =IFERROR(VLOOKUP($A57,Filtro!$A$5:$AK$2912,26,FALSE),0) -> 710 | AC57: =IFERROR(VLOOKUP($A57,Filtro!$A$5:$AK$2912,27,FALSE),0) -> 557 | AD57: =IFERROR(VLOOKUP($A57,Filtro!$A$5:$AK$2912,28,FALSE),0) -> 460 | AE57: =IFERROR(VLOOKUP($A57,Filtro!$A$5:$AK$2912,29,FALSE),0) -> 0 | AF57: =IFERROR(VLOOKUP($A57,Filtro!$A$5:$AK$2912,30,FALSE),0) -> 0 | AG57: =IFERROR(VLOOKUP($A57,Filtro!$A$5:$AK$2912,31,FALSE),0) -> 0 | AH57: =IFERROR(VLOOKUP($A57,Filtro!$A$5:$AK$2912,32,FALSE),0) -> 0 | AI57: =IFERROR(VLOOKUP($A57,Filtro!$A$5:$AK$2912,33,FALSE),0) -> 0 | AJ57: =IFERROR(VLOOKUP($A57,Filtro!$A$5:$AK$2912,34,FALSE),0) -> 0 | AK57: =IFERROR(VLOOKUP($A57,Filtro!$A$5:$AK$2912,35,FALSE),0) -> 0 | AL57: =IFERROR(VLOOKUP($A57,Filtro!$A$5:$AK$2912,36,FALSE),0) -> 1,225,670 | AM57: =IFERROR(VLOOKUP($A57,Filtro!$A$5:$AK$2912,37,FALSE),0) -> 25,755,860
A58: 01014321 | B58: 0101103 | C58: Consulta en Unidades de Urgencia Hospitalaria | D58: =IFERROR(VLOOKUP($A58,Filtro!$A$5:$AK$2912,2,FALSE),0) -> 130760 | E58: =IFERROR(VLOOKUP($A58,Filtro!$A$5:$AK$2912,3,FALSE),0) -> 121707 | F58: =IFERROR(VLOOKUP($A58,Filtro!$A$5:$AK$2912,4,FALSE),0) -> 121707 | G58: =IFERROR(VLOOKUP($A58,Filtro!$A$5:$AK$2912,5,FALSE),0) -> 0 | H58: =IFERROR(VLOOKUP($A58,Filtro!$A$5:$AK$2912,6,FALSE),0) -> 9053 | I58: =IFERROR(VLOOKUP($A58,Filtro!$A$5:$AK$2912,7,FALSE),0) -> 0 | J58: =IFERROR(VLOOKUP($A58,Filtro!$A$5:$AK$2912,8,FALSE),0) -> 0 | K58: =IFERROR(VLOOKUP($A58,Filtro!$A$5:$AK$2912,9,FALSE),0) -> 0 | L58: =IFERROR(VLOOKUP($A58,Filtro!$A$5:$AK$2912,10,FALSE),0) -> 0 | M58: =IFERROR(VLOOKUP($A58,Filtro!$A$5:$AK$2912,11,FALSE),0) -> 0 | N58: =IFERROR(VLOOKUP($A58,Filtro!$A$5:$AK$2912,12,FALSE),0) -> 0 | O58: =IFERROR(VLOOKUP($A58,Filtro!$A$5:$AK$2912,13,FALSE),0) -> 0 | P58: =IFERROR(VLOOKUP($A58,Filtro!$A$5:$AK$2912,14,FALSE),0) -> 0 | Q58: =IFERROR(VLOOKUP($A58,Filtro!$A$5:$AK$2912,15,FALSE),0) -> 0 | R58: =IFERROR(VLOOKUP($A58,Filtro!$A$5:$AK$2912,16,FALSE),0) -> 0 | S58: =IFERROR(VLOOKUP($A58,Filtro!$A$5:$AK$2912,17,FALSE),0) -> 0 | T58: =IFERROR(VLOOKUP($A58,Filtro!$A$5:$AK$2912,18,FALSE),0) -> 0 | U58: =IFERROR(VLOOKUP($A58,Filtro!$A$5:$AK$2912,19,FALSE),0) -> 0 | V58: =IFERROR(VLOOKUP($A58,Filtro!$A$5:$AK$2912,20,FALSE),0) -> 0 | W58: =IFERROR(VLOOKUP($A58,Filtro!$A$5:$AK$2912,21,FALSE),0) -> 0 | X58: =IFERROR(VLOOKUP($A58,Filtro!$A$5:$AK$2912,22,FALSE),0) -> 0 | Y58: =IFERROR(VLOOKUP($A58,Filtro!$A$5:$AK$2912,23,FALSE),0) -> 0 | Z58: =IFERROR(VLOOKUP($A58,Filtro!$A$5:$AK$2912,24,FALSE),0) -> 0 | AA58: =IFERROR(VLOOKUP($A58,Filtro!$A$5:$AK$2912,25,FALSE),0) -> 0 | AB58: =IFERROR(VLOOKUP($A58,Filtro!$A$5:$AK$2912,26,FALSE),0) -> 0 | AC58: =IFERROR(VLOOKUP($A58,Filtro!$A$5:$AK$2912,27,FALSE),0) -> 4487 | AD58: =IFERROR(VLOOKUP($A58,Filtro!$A$5:$AK$2912,28,FALSE),0) -> 119813 | AE58: =IFERROR(VLOOKUP($A58,Filtro!$A$5:$AK$2912,29,FALSE),0) -> 0 | AF58: =IFERROR(VLOOKUP($A58,Filtro!$A$5:$AK$2912,30,FALSE),0) -> 0 | AG58: =IFERROR(VLOOKUP($A58,Filtro!$A$5:$AK$2912,31,FALSE),0) -> 0 | AH58: =IFERROR(VLOOKUP($A58,Filtro!$A$5:$AK$2912,32,FALSE),0) -> 0 | AI58: =IFERROR(VLOOKUP($A58,Filtro!$A$5:$AK$2912,33,FALSE),0) -> 0 | AJ58: =IFERROR(VLOOKUP($A58,Filtro!$A$5:$AK$2912,34,FALSE),0) -> 0 | AK58: =IFERROR(VLOOKUP($A58,Filtro!$A$5:$AK$2912,35,FALSE),0) -> 0 | AL58: =IFERROR(VLOOKUP($A58,Filtro!$A$5:$AK$2912,36,FALSE),0) -> 660,650 | AM58: =IFERROR(VLOOKUP($A58,Filtro!$A$5:$AK$2912,37,FALSE),0) -> 1,101,448,350
C59: TOTAL OTRAS CONSULTAS MÉDICAS | D59: =SUM(D56:D58) -> 163304 | E59: =SUM(E56:E58) -> 154211 | F59: 154058 | G59: 153 | H59: 9093 | AB59: =SUM(AB56:AB58) -> 710 | AC59: =SUM(AC56:AC58) -> 35861 | AD59: 120273 | AE59: 0 | AF59: 0 | AG59: 0 | AH59: 0 | AI59: 0 | AJ59: 0 | AK59: 0 | AM59: 1323200330
C60: TOTAL PRODUCCION | D60: =SUM(D54+D59) -> 327208 | E60: =SUM(E54+E59) -> 317857 | F60: =SUM(F54+F59) -> 317704 | G60: =SUM(G54+G59) -> 153 | H60: =SUM(H54+H59) -> 9351 | AB60: =SUM(AB54+AB59) -> 918 | AC60: =SUM(AC54+AC59) -> 198824 | AD60: 121006 | AE60: 4453 | AF60: 0 | AG60: 0 | AH60: 0 | AI60: 0 | AJ60: 0 | AK60: 0 | AM60: =SUM(AM54+AM59) -> 2804196630
C61: CONSULTAS POR OTROS PROFESIONALES DE LA SALUD
A62: 01010020 | B62: 0102002 | C62: Control de salud niño con EDP por enfermera | D62: =IFERROR(VLOOKUP($A62,Filtro!$A$5:$AK$2912,2,FALSE),0) -> 11755 | E62: =IFERROR(VLOOKUP($A62,Filtro!$A$5:$AK$2912,3,FALSE),0) -> 11755 | F62: =IFERROR(VLOOKUP($A62,Filtro!$A$5:$AK$2912,4,FALSE),0) -> 11755 | G62: =IFERROR(VLOOKUP($A62,Filtro!$A$5:$AK$2912,5,FALSE),0) -> 0 | H62: =IFERROR(VLOOKUP($A62,Filtro!$A$5:$AK$2912,6,FALSE),0) -> 0 | I62: =IFERROR(VLOOKUP($A62,Filtro!$A$5:$AK$2912,7,FALSE),0) -> 0 | J62: =IFERROR(VLOOKUP($A62,Filtro!$A$5:$AK$2912,8,FALSE),0) -> 0 | K62: =IFERROR(VLOOKUP($A62,Filtro!$A$5:$AK$2912,9,FALSE),0) -> 0 | L62: =IFERROR(VLOOKUP($A62,Filtro!$A$5:$AK$2912,10,FALSE),0) -> 0 | M62: =IFERROR(VLOOKUP($A62,Filtro!$A$5:$AK$2912,11,FALSE),0) -> 0 | N62: =IFERROR(VLOOKUP($A62,Filtro!$A$5:$AK$2912,12,FALSE),0) -> 0 | O62: =IFERROR(VLOOKUP($A62,Filtro!$A$5:$AK$2912,13,FALSE),0) -> 0 | P62: =IFERROR(VLOOKUP($A62,Filtro!$A$5:$AK$2912,14,FALSE),0) -> 0 | Q62: =IFERROR(VLOOKUP($A62,Filtro!$A$5:$AK$2912,15,FALSE),0) -> 0 | R62: =IFERROR(VLOOKUP($A62,Filtro!$A$5:$AK$2912,16,FALSE),0) -> 0 | S62: =IFERROR(VLOOKUP($A62,Filtro!$A$5:$AK$2912,17,FALSE),0) -> 0 | T62: =IFERROR(VLOOKUP($A62,Filtro!$A$5:$AK$2912,18,FALSE),0) -> 0 | U62: =IFERROR(VLOOKUP($A62,Filtro!$A$5:$AK$2912,19,FALSE),0) -> 0 | V62: =IFERROR(VLOOKUP($A62,Filtro!$A$5:$AK$2912,20,FALSE),0) -> 0 | W62: =IFERROR(VLOOKUP($A62,Filtro!$A$5:$AK$2912,21,FALSE),0) -> 0 | X62: =IFERROR(VLOOKUP($A62,Filtro!$A$5:$AK$2912,22,FALSE),0) -> 0 | Y62: =IFERROR(VLOOKUP($A62,Filtro!$A$5:$AK$2912,23,FALSE),0) -> 0 | Z62: =IFERROR(VLOOKUP($A62,Filtro!$A$5:$AK$2912,24,FALSE),0) -> 0 | AA62: =IFERROR(VLOOKUP($A62,Filtro!$A$5:$AK$2912,25,FALSE),0) -> 0 | AB62: =IFERROR(VLOOKUP($A62,Filtro!$A$5:$AK$2912,26,FALSE),0) -> 1 | AC62: =IFERROR(VLOOKUP($A62,Filtro!$A$5:$AK$2912,27,FALSE),0) -> 2501 | AD62: =IFERROR(VLOOKUP($A62,Filtro!$A$5:$AK$2912,28,FALSE),0) -> 9253 | AE62: =IFERROR(VLOOKUP($A62,Filtro!$A$5:$AK$2912,29,FALSE),0) -> 0 | AF62: =IFERROR(VLOOKUP($A62,Filtro!$A$5:$AK$2912,30,FALSE),0) -> 0 | AG62: =IFERROR(VLOOKUP($A62,Filtro!$A$5:$AK$2912,31,FALSE),0) -> 0 | AH62: =IFERROR(VLOOKUP($A62,Filtro!$A$5:$AK$2912,32,FALSE),0) -> 0 | AI62: =IFERROR(VLOOKUP($A62,Filtro!$A$5:$AK$2912,33,FALSE),0) -> 0 | AJ62: =IFERROR(VLOOKUP($A62,Filtro!$A$5:$AK$2912,34,FALSE),0) -> 0 | AK62: =IFERROR(VLOOKUP($A62,Filtro!$A$5:$AK$2912,35,FALSE),0) -> 0 | AL62: =IFERROR(VLOOKUP($A62,Filtro!$A$5:$AK$2912,36,FALSE),0) -> 175,930 | AM62: =IFERROR(VLOOKUP($A62,Filtro!$A$5:$AK$2912,37,FALSE),0) -> 28,329,550
A63: 01010021 | B63: 0102003 | C63: Consulta o control por auxiliar de enfermería | D63: =IFERROR(VLOOKUP($A63,Filtro!$A$5:$AK$2912,2,FALSE),0) -> 4666 | E63: =IFERROR(VLOOKUP($A63,Filtro!$A$5:$AK$2912,3,FALSE),0) -> 4666 | F63: =IFERROR(VLOOKUP($A63,Filtro!$A$5:$AK$2912,4,FALSE),0) -> 4666 | G63: =IFERROR(VLOOKUP($A63,Filtro!$A$5:$AK$2912,5,FALSE),0) -> 0 | H63: =IFERROR(VLOOKUP($A63,Filtro!$A$5:$AK$2912,6,FALSE),0) -> 0 | I63: =IFERROR(VLOOKUP($A63,Filtro!$A$5:$AK$2912,7,FALSE),0) -> 0 | J63: =IFERROR(VLOOKUP($A63,Filtro!$A$5:$AK$2912,8,FALSE),0) -> 0 | K63: =IFERROR(VLOOKUP($A63,Filtro!$A$5:$AK$2912,9,FALSE),0) -> 0 | L63: =IFERROR(VLOOKUP($A63,Filtro!$A$5:$AK$2912,10,FALSE),0) -> 0 | M63: =IFERROR(VLOOKUP($A63,Filtro!$A$5:$AK$2912,11,FALSE),0) -> 0 | N63: =IFERROR(VLOOKUP($A63,Filtro!$A$5:$AK$2912,12,FALSE),0) -> 0 | O63: =IFERROR(VLOOKUP($A63,Filtro!$A$5:$AK$2912,13,FALSE),0) -> 0 | P63: =IFERROR(VLOOKUP($A63,Filtro!$A$5:$AK$2912,14,FALSE),0) -> 0 | Q63: =IFERROR(VLOOKUP($A63,Filtro!$A$5:$AK$2912,15,FALSE),0) -> 0 | R63: =IFERROR(VLOOKUP($A63,Filtro!$A$5:$AK$2912,16,FALSE),0) -> 0 | S63: =IFERROR(VLOOKUP($A63,Filtro!$A$5:$AK$2912,17,FALSE),0) -> 0 | T63: =IFERROR(VLOOKUP($A63,Filtro!$A$5:$AK$2912,18,FALSE),0) -> 0 | U63: =IFERROR(VLOOKUP($A63,Filtro!$A$5:$AK$2912,19,FALSE),0) -> 0 | V63: =IFERROR(VLOOKUP($A63,Filtro!$A$5:$AK$2912,20,FALSE),0) -> 0 | W63: =IFERROR(VLOOKUP($A63,Filtro!$A$5:$AK$2912,21,FALSE),0) -> 0 | X63: =IFERROR(VLOOKUP($A63,Filtro!$A$5:$AK$2912,22,FALSE),0) -> 0 | Y63: =IFERROR(VLOOKUP($A63,Filtro!$A$5:$AK$2912,23,FALSE),0) -> 0 | Z63: =IFERROR(VLOOKUP($A63,Filtro!$A$5:$AK$2912,24,FALSE),0) -> 0 | AA63: =IFERROR(VLOOKUP($A63,Filtro!$A$5:$AK$2912,25,FALSE),0) -> 0 | AB63: =IFERROR(VLOOKUP($A63,Filtro!$A$5:$AK$2912,26,FALSE),0) -> 0 | AC63: =IFERROR(VLOOKUP($A63,Filtro!$A$5:$AK$2912,27,FALSE),0) -> 1792 | AD63: =IFERROR(VLOOKUP($A63,Filtro!$A$5:$AK$2912,28,FALSE),0) -> 2874 | AE63: =IFERROR(VLOOKUP($A63,Filtro!$A$5:$AK$2912,29,FALSE),0) -> 0 | AF63: =IFERROR(VLOOKUP($A63,Filtro!$A$5:$AK$2912,30,FALSE),0) -> 0 | AG63: =IFERROR(VLOOKUP($A63,Filtro!$A$5:$AK$2912,31,FALSE),0) -> 0 | AH63: =IFERROR(VLOOKUP($A63,Filtro!$A$5:$AK$2912,32,FALSE),0) -> 0 | AI63: =IFERROR(VLOOKUP($A63,Filtro!$A$5:$AK$2912,33,FALSE),0) -> 0 | AJ63: =IFERROR(VLOOKUP($A63,Filtro!$A$5:$AK$2912,34,FALSE),0) -> 0 | AK63: =IFERROR(VLOOKUP($A63,Filtro!$A$5:$AK$2912,35,FALSE),0) -> 0 | AL63: =IFERROR(VLOOKUP($A63,Filtro!$A$5:$AK$2912,36,FALSE),0) -> 56,940 | AM63: =IFERROR(VLOOKUP($A63,Filtro!$A$5:$AK$2912,37,FALSE),0) -> 3,639,480
A64: 01010022 | B64: 0102005 | C64: Consulta por fonoaudiólogo | D64: =IFERROR(VLOOKUP($A64,Filtro!$A$5:$AK$2912,2,FALSE),0) -> 18812 | E64: =IFERROR(VLOOKUP($A64,Filtro!$A$5:$AK$2912,3,FALSE),0) -> 18801 | F64: =IFERROR(VLOOKUP($A64,Filtro!$A$5:$AK$2912,4,FALSE),0) -> 18801 | G64: =IFERROR(VLOOKUP($A64,Filtro!$A$5:$AK$2912,5,FALSE),0) -> 0 | H64: =IFERROR(VLOOKUP($A64,Filtro!$A$5:$AK$2912,6,FALSE),0) -> 11 | I64: =IFERROR(VLOOKUP($A64,Filtro!$A$5:$AK$2912,7,FALSE),0) -> 0 | J64: =IFERROR(VLOOKUP($A64,Filtro!$A$5:$AK$2912,8,FALSE),0) -> 0 | K64: =IFERROR(VLOOKUP($A64,Filtro!$A$5:$AK$2912,9,FALSE),0) -> 0 | L64: =IFERROR(VLOOKUP($A64,Filtro!$A$5:$AK$2912,10,FALSE),0) -> 0 | M64: =IFERROR(VLOOKUP($A64,Filtro!$A$5:$AK$2912,11,FALSE),0) -> 0 | N64: =IFERROR(VLOOKUP($A64,Filtro!$A$5:$AK$2912,12,FALSE),0) -> 0 | O64: =IFERROR(VLOOKUP($A64,Filtro!$A$5:$AK$2912,13,FALSE),0) -> 0 | P64: =IFERROR(VLOOKUP($A64,Filtro!$A$5:$AK$2912,14,FALSE),0) -> 0 | Q64: =IFERROR(VLOOKUP($A64,Filtro!$A$5:$AK$2912,15,FALSE),0) -> 0 | R64: =IFERROR(VLOOKUP($A64,Filtro!$A$5:$AK$2912,16,FALSE),0) -> 0 | S64: =IFERROR(VLOOKUP($A64,Filtro!$A$5:$AK$2912,17,FALSE),0) -> 0 | T64: =IFERROR(VLOOKUP($A64,Filtro!$A$5:$AK$2912,18,FALSE),0) -> 0 | U64: =IFERROR(VLOOKUP($A64,Filtro!$A$5:$AK$2912,19,FALSE),0) -> 0 | V64: =IFERROR(VLOOKUP($A64,Filtro!$A$5:$AK$2912,20,FALSE),0) -> 0 | W64: =IFERROR(VLOOKUP($A64,Filtro!$A$5:$AK$2912,21,FALSE),0) -> 0 | X64: =IFERROR(VLOOKUP($A64,Filtro!$A$5:$AK$2912,22,FALSE),0) -> 0 | Y64: =IFERROR(VLOOKUP($A64,Filtro!$A$5:$AK$2912,23,FALSE),0) -> 0 | Z64: =IFERROR(VLOOKUP($A64,Filtro!$A$5:$AK$2912,24,FALSE),0) -> 0 | AA64: =IFERROR(VLOOKUP($A64,Filtro!$A$5:$AK$2912,25,FALSE),0) -> 0 | AB64: =IFERROR(VLOOKUP($A64,Filtro!$A$5:$AK$2912,26,FALSE),0) -> 4233 | AC64: =IFERROR(VLOOKUP($A64,Filtro!$A$5:$AK$2912,27,FALSE),0) -> 4940 | AD64: =IFERROR(VLOOKUP($A64,Filtro!$A$5:$AK$2912,28,FALSE),0) -> 9639 | AE64: =IFERROR(VLOOKUP($A64,Filtro!$A$5:$AK$2912,29,FALSE),0) -> 0 | AF64: =IFERROR(VLOOKUP($A64,Filtro!$A$5:$AK$2912,30,FALSE),0) -> 0 | AG64: =IFERROR(VLOOKUP($A64,Filtro!$A$5:$AK$2912,31,FALSE),0) -> 0 | AH64: =IFERROR(VLOOKUP($A64,Filtro!$A$5:$AK$2912,32,FALSE),0) -> 0 | AI64: =IFERROR(VLOOKUP($A64,Filtro!$A$5:$AK$2912,33,FALSE),0) -> 0 | AJ64: =IFERROR(VLOOKUP($A64,Filtro!$A$5:$AK$2912,34,FALSE),0) -> 0 | AK64: =IFERROR(VLOOKUP($A64,Filtro!$A$5:$AK$2912,35,FALSE),0) -> 0 | AL64: =IFERROR(VLOOKUP($A64,Filtro!$A$5:$AK$2912,36,FALSE),0) -> 140,160 | AM64: =IFERROR(VLOOKUP($A64,Filtro!$A$5:$AK$2912,37,FALSE),0) -> 36,097,920
A65: 01014322 | B65: 0102008 | C65: Consulta o control por enfermera | D65: =IFERROR(VLOOKUP($A65,Filtro!$A$5:$AK$2912,2,FALSE),0) -> 44615 | E65: =IFERROR(VLOOKUP($A65,Filtro!$A$5:$AK$2912,3,FALSE),0) -> 44482 | F65: =IFERROR(VLOOKUP($A65,Filtro!$A$5:$AK$2912,4,FALSE),0) -> 44482 | G65: =IFERROR(VLOOKUP($A65,Filtro!$A$5:$AK$2912,5,FALSE),0) -> 0 | H65: =IFERROR(VLOOKUP($A65,Filtro!$A$5:$AK$2912,6,FALSE),0) -> 133 | I65: =IFERROR(VLOOKUP($A65,Filtro!$A$5:$AK$2912,7,FALSE),0) -> 0 | J65: =IFERROR(VLOOKUP($A65,Filtro!$A$5:$AK$2912,8,FALSE),0) -> 0 | K65: =IFERROR(VLOOKUP($A65,Filtro!$A$5:$AK$2912,9,FALSE),0) -> 0 | L65: =IFERROR(VLOOKUP($A65,Filtro!$A$5:$AK$2912,10,FALSE),0) -> 0 | M65: =IFERROR(VLOOKUP($A65,Filtro!$A$5:$AK$2912,11,FALSE),0) -> 0 | N65: =IFERROR(VLOOKUP($A65,Filtro!$A$5:$AK$2912,12,FALSE),0) -> 0 | O65: =IFERROR(VLOOKUP($A65,Filtro!$A$5:$AK$2912,13,FALSE),0) -> 0 | P65: =IFERROR(VLOOKUP($A65,Filtro!$A$5:$AK$2912,14,FALSE),0) -> 0 | Q65: =IFERROR(VLOOKUP($A65,Filtro!$A$5:$AK$2912,15,FALSE),0) -> 0 | R65: =IFERROR(VLOOKUP($A65,Filtro!$A$5:$AK$2912,16,FALSE),0) -> 0 | S65: =IFERROR(VLOOKUP($A65,Filtro!$A$5:$AK$2912,17,FALSE),0) -> 0 | T65: =IFERROR(VLOOKUP($A65,Filtro!$A$5:$AK$2912,18,FALSE),0) -> 0 | U65: =IFERROR(VLOOKUP($A65,Filtro!$A$5:$AK$2912,19,FALSE),0) -> 0 | V65: =IFERROR(VLOOKUP($A65,Filtro!$A$5:$AK$2912,20,FALSE),0) -> 0 | W65: =IFERROR(VLOOKUP($A65,Filtro!$A$5:$AK$2912,21,FALSE),0) -> 0 | X65: =IFERROR(VLOOKUP($A65,Filtro!$A$5:$AK$2912,22,FALSE),0) -> 0 | Y65: =IFERROR(VLOOKUP($A65,Filtro!$A$5:$AK$2912,23,FALSE),0) -> 0 | Z65: =IFERROR(VLOOKUP($A65,Filtro!$A$5:$AK$2912,24,FALSE),0) -> 0 | AA65: =IFERROR(VLOOKUP($A65,Filtro!$A$5:$AK$2912,25,FALSE),0) -> 0 | AB65: =IFERROR(VLOOKUP($A65,Filtro!$A$5:$AK$2912,26,FALSE),0) -> 0 | AC65: =IFERROR(VLOOKUP($A65,Filtro!$A$5:$AK$2912,27,FALSE),0) -> 41390 | AD65: =IFERROR(VLOOKUP($A65,Filtro!$A$5:$AK$2912,28,FALSE),0) -> 3225 | AE65: =IFERROR(VLOOKUP($A65,Filtro!$A$5:$AK$2912,29,FALSE),0) -> 0 | AF65: =IFERROR(VLOOKUP($A65,Filtro!$A$5:$AK$2912,30,FALSE),0) -> 0 | AG65: =IFERROR(VLOOKUP($A65,Filtro!$A$5:$AK$2912,31,FALSE),0) -> 0 | AH65: =IFERROR(VLOOKUP($A65,Filtro!$A$5:$AK$2912,32,FALSE),0) -> 0 | AI65: =IFERROR(VLOOKUP($A65,Filtro!$A$5:$AK$2912,33,FALSE),0) -> 0 | AJ65: =IFERROR(VLOOKUP($A65,Filtro!$A$5:$AK$2912,34,FALSE),0) -> 0 | AK65: =IFERROR(VLOOKUP($A65,Filtro!$A$5:$AK$2912,35,FALSE),0) -> 0 | AL65: =IFERROR(VLOOKUP($A65,Filtro!$A$5:$AK$2912,36,FALSE),0) -> 102,930 | AM65: =IFERROR(VLOOKUP($A65,Filtro!$A$5:$AK$2912,37,FALSE),0) -> 62,719,620
A66: 01014323 | B66: 0102009 | C66: Consulta o control por matrona | D66: =IFERROR(VLOOKUP($A66,Filtro!$A$5:$AK$2912,2,FALSE),0) -> 22363 | E66: =IFERROR(VLOOKUP($A66,Filtro!$A$5:$AK$2912,3,FALSE),0) -> 22277 | F66: =IFERROR(VLOOKUP($A66,Filtro!$A$5:$AK$2912,4,FALSE),0) -> 22277 | G66: =IFERROR(VLOOKUP($A66,Filtro!$A$5:$AK$2912,5,FALSE),0) -> 0 | H66: =IFERROR(VLOOKUP($A66,Filtro!$A$5:$AK$2912,6,FALSE),0) -> 86 | I66: =IFERROR(VLOOKUP($A66,Filtro!$A$5:$AK$2912,7,FALSE),0) -> 0 | J66: =IFERROR(VLOOKUP($A66,Filtro!$A$5:$AK$2912,8,FALSE),0) -> 0 | K66: =IFERROR(VLOOKUP($A66,Filtro!$A$5:$AK$2912,9,FALSE),0) -> 0 | L66: =IFERROR(VLOOKUP($A66,Filtro!$A$5:$AK$2912,10,FALSE),0) -> 0 | M66: =IFERROR(VLOOKUP($A66,Filtro!$A$5:$AK$2912,11,FALSE),0) -> 0 | N66: =IFERROR(VLOOKUP($A66,Filtro!$A$5:$AK$2912,12,FALSE),0) -> 0 | O66: =IFERROR(VLOOKUP($A66,Filtro!$A$5:$AK$2912,13,FALSE),0) -> 0 | P66: =IFERROR(VLOOKUP($A66,Filtro!$A$5:$AK$2912,14,FALSE),0) -> 0 | Q66: =IFERROR(VLOOKUP($A66,Filtro!$A$5:$AK$2912,15,FALSE),0) -> 0 | R66: =IFERROR(VLOOKUP($A66,Filtro!$A$5:$AK$2912,16,FALSE),0) -> 0 | S66: =IFERROR(VLOOKUP($A66,Filtro!$A$5:$AK$2912,17,FALSE),0) -> 0 | T66: =IFERROR(VLOOKUP($A66,Filtro!$A$5:$AK$2912,18,FALSE),0) -> 0 | U66: =IFERROR(VLOOKUP($A66,Filtro!$A$5:$AK$2912,19,FALSE),0) -> 0 | V66: =IFERROR(VLOOKUP($A66,Filtro!$A$5:$AK$2912,20,FALSE),0) -> 0 | W66: =IFERROR(VLOOKUP($A66,Filtro!$A$5:$AK$2912,21,FALSE),0) -> 0 | X66: =IFERROR(VLOOKUP($A66,Filtro!$A$5:$AK$2912,22,FALSE),0) -> 0 | Y66: =IFERROR(VLOOKUP($A66,Filtro!$A$5:$AK$2912,23,FALSE),0) -> 0 | Z66: =IFERROR(VLOOKUP($A66,Filtro!$A$5:$AK$2912,24,FALSE),0) -> 0 | AA66: =IFERROR(VLOOKUP($A66,Filtro!$A$5:$AK$2912,25,FALSE),0) -> 0 | AB66: =IFERROR(VLOOKUP($A66,Filtro!$A$5:$AK$2912,26,FALSE),0) -> 0 | AC66: =IFERROR(VLOOKUP($A66,Filtro!$A$5:$AK$2912,27,FALSE),0) -> 20125 | AD66: =IFERROR(VLOOKUP($A66,Filtro!$A$5:$AK$2912,28,FALSE),0) -> 2238 | AE66: =IFERROR(VLOOKUP($A66,Filtro!$A$5:$AK$2912,29,FALSE),0) -> 0 | AF66: =IFERROR(VLOOKUP($A66,Filtro!$A$5:$AK$2912,30,FALSE),0) -> 0 | AG66: =IFERROR(VLOOKUP($A66,Filtro!$A$5:$AK$2912,31,FALSE),0) -> 0 | AH66: =IFERROR(VLOOKUP($A66,Filtro!$A$5:$AK$2912,32,FALSE),0) -> 0 | AI66: =IFERROR(VLOOKUP($A66,Filtro!$A$5:$AK$2912,33,FALSE),0) -> 0 | AJ66: =IFERROR(VLOOKUP($A66,Filtro!$A$5:$AK$2912,34,FALSE),0) -> 0 | AK66: =IFERROR(VLOOKUP($A66,Filtro!$A$5:$AK$2912,35,FALSE),0) -> 0 | AL66: =IFERROR(VLOOKUP($A66,Filtro!$A$5:$AK$2912,36,FALSE),0) -> 102,930 | AM66: =IFERROR(VLOOKUP($A66,Filtro!$A$5:$AK$2912,37,FALSE),0) -> 31,410,570
A67: 01014324 | B67: 0102010 | C67: Consulta o control por nutricionista | D67: =IFERROR(VLOOKUP($A67,Filtro!$A$5:$AK$2912,2,FALSE),0) -> 11308 | E67: =IFERROR(VLOOKUP($A67,Filtro!$A$5:$AK$2912,3,FALSE),0) -> 11291 | F67: =IFERROR(VLOOKUP($A67,Filtro!$A$5:$AK$2912,4,FALSE),0) -> 11291 | G67: =IFERROR(VLOOKUP($A67,Filtro!$A$5:$AK$2912,5,FALSE),0) -> 0 | H67: =IFERROR(VLOOKUP($A67,Filtro!$A$5:$AK$2912,6,FALSE),0) -> 17 | I67: =IFERROR(VLOOKUP($A67,Filtro!$A$5:$AK$2912,7,FALSE),0) -> 0 | J67: =IFERROR(VLOOKUP($A67,Filtro!$A$5:$AK$2912,8,FALSE),0) -> 0 | K67: =IFERROR(VLOOKUP($A67,Filtro!$A$5:$AK$2912,9,FALSE),0) -> 0 | L67: =IFERROR(VLOOKUP($A67,Filtro!$A$5:$AK$2912,10,FALSE),0) -> 0 | M67: =IFERROR(VLOOKUP($A67,Filtro!$A$5:$AK$2912,11,FALSE),0) -> 0 | N67: =IFERROR(VLOOKUP($A67,Filtro!$A$5:$AK$2912,12,FALSE),0) -> 0 | O67: =IFERROR(VLOOKUP($A67,Filtro!$A$5:$AK$2912,13,FALSE),0) -> 0 | P67: =IFERROR(VLOOKUP($A67,Filtro!$A$5:$AK$2912,14,FALSE),0) -> 0 | Q67: =IFERROR(VLOOKUP($A67,Filtro!$A$5:$AK$2912,15,FALSE),0) -> 0 | R67: =IFERROR(VLOOKUP($A67,Filtro!$A$5:$AK$2912,16,FALSE),0) -> 0 | S67: =IFERROR(VLOOKUP($A67,Filtro!$A$5:$AK$2912,17,FALSE),0) -> 0 | T67: =IFERROR(VLOOKUP($A67,Filtro!$A$5:$AK$2912,18,FALSE),0) -> 0 | U67: =IFERROR(VLOOKUP($A67,Filtro!$A$5:$AK$2912,19,FALSE),0) -> 0 | V67: =IFERROR(VLOOKUP($A67,Filtro!$A$5:$AK$2912,20,FALSE),0) -> 0 | W67: =IFERROR(VLOOKUP($A67,Filtro!$A$5:$AK$2912,21,FALSE),0) -> 0 | X67: =IFERROR(VLOOKUP($A67,Filtro!$A$5:$AK$2912,22,FALSE),0) -> 0 | Y67: =IFERROR(VLOOKUP($A67,Filtro!$A$5:$AK$2912,23,FALSE),0) -> 0 | Z67: =IFERROR(VLOOKUP($A67,Filtro!$A$5:$AK$2912,24,FALSE),0) -> 0 | AA67: =IFERROR(VLOOKUP($A67,Filtro!$A$5:$AK$2912,25,FALSE),0) -> 0 | AB67: =IFERROR(VLOOKUP($A67,Filtro!$A$5:$AK$2912,26,FALSE),0) -> 0 | AC67: =IFERROR(VLOOKUP($A67,Filtro!$A$5:$AK$2912,27,FALSE),0) -> 11308 | AD67: =IFERROR(VLOOKUP($A67,Filtro!$A$5:$AK$2912,28,FALSE),0) -> 0 | AE67: =IFERROR(VLOOKUP($A67,Filtro!$A$5:$AK$2912,29,FALSE),0) -> 0 | AF67: =IFERROR(VLOOKUP($A67,Filtro!$A$5:$AK$2912,30,FALSE),0) -> 0 | AG67: =IFERROR(VLOOKUP($A67,Filtro!$A$5:$AK$2912,31,FALSE),0) -> 0 | AH67: =IFERROR(VLOOKUP($A67,Filtro!$A$5:$AK$2912,32,FALSE),0) -> 0 | AI67: =IFERROR(VLOOKUP($A67,Filtro!$A$5:$AK$2912,33,FALSE),0) -> 0 | AJ67: =IFERROR(VLOOKUP($A67,Filtro!$A$5:$AK$2912,34,FALSE),0) -> 0 | AK67: =IFERROR(VLOOKUP($A67,Filtro!$A$5:$AK$2912,35,FALSE),0) -> 0 | AL67: =IFERROR(VLOOKUP($A67,Filtro!$A$5:$AK$2912,36,FALSE),0) -> 102,930 | AM67: =IFERROR(VLOOKUP($A67,Filtro!$A$5:$AK$2912,37,FALSE),0) -> 15,920,310
C68: TOTAL ARANCEL MAI | D68: =SUM(D62:D67) -> 113519 | E68: =SUM(E62:E67) -> 113272 | F68: =SUM(F62:F67) -> 113272 | G68: =SUM(G62:G67) -> 0 | H68: =SUM(H62:H67) -> 247 | AB68: =SUM(AB62:AB67) -> 4234 | AC68: 82056 | AD68: 27229 | AE68: 0 | AF68: 0 | AG68: 0 | AH68: 0 | AI68: 0 | AJ68: 0 | AK68: 0 | AM68: =SUM(AM62:AM67) -> 178,117,450
A69: 01010025 | B69: 01010025 | C69: Consulta por otros profesionales | D69: =IFERROR(VLOOKUP($A69,Filtro!$A$5:$AK$2912,2,FALSE),0) -> 11690 | E69: =IFERROR(VLOOKUP($A69,Filtro!$A$5:$AK$2912,3,FALSE),0) -> 11641 | F69: =IFERROR(VLOOKUP($A69,Filtro!$A$5:$AK$2912,4,FALSE),0) -> 11641 | G69: =IFERROR(VLOOKUP($A69,Filtro!$A$5:$AK$2912,5,FALSE),0) -> 0 | H69: =IFERROR(VLOOKUP($A69,Filtro!$A$5:$AK$2912,6,FALSE),0) -> 49 | I69: =IFERROR(VLOOKUP($A69,Filtro!$A$5:$AK$2912,7,FALSE),0) -> 0 | J69: =IFERROR(VLOOKUP($A69,Filtro!$A$5:$AK$2912,8,FALSE),0) -> 0 | K69: =IFERROR(VLOOKUP($A69,Filtro!$A$5:$AK$2912,9,FALSE),0) -> 0 | L69: =IFERROR(VLOOKUP($A69,Filtro!$A$5:$AK$2912,10,FALSE),0) -> 0 | M69: =IFERROR(VLOOKUP($A69,Filtro!$A$5:$AK$2912,11,FALSE),0) -> 0 | N69: =IFERROR(VLOOKUP($A69,Filtro!$A$5:$AK$2912,12,FALSE),0) -> 0 | O69: =IFERROR(VLOOKUP($A69,Filtro!$A$5:$AK$2912,13,FALSE),0) -> 0 | P69: =IFERROR(VLOOKUP($A69,Filtro!$A$5:$AK$2912,14,FALSE),0) -> 0 | Q69: =IFERROR(VLOOKUP($A69,Filtro!$A$5:$AK$2912,15,FALSE),0) -> 0 | R69: =IFERROR(VLOOKUP($A69,Filtro!$A$5:$AK$2912,16,FALSE),0) -> 0 | S69: =IFERROR(VLOOKUP($A69,Filtro!$A$5:$AK$2912,17,FALSE),0) -> 0 | T69: =IFERROR(VLOOKUP($A69,Filtro!$A$5:$AK$2912,18,FALSE),0) -> 0 | U69: =IFERROR(VLOOKUP($A69,Filtro!$A$5:$AK$2912,19,FALSE),0) -> 0 | V69: =IFERROR(VLOOKUP($A69,Filtro!$A$5:$AK$2912,20,FALSE),0) -> 0 | W69: =IFERROR(VLOOKUP($A69,Filtro!$A$5:$AK$2912,21,FALSE),0) -> 0 | X69: =IFERROR(VLOOKUP($A69,Filtro!$A$5:$AK$2912,22,FALSE),0) -> 0 | Y69: =IFERROR(VLOOKUP($A69,Filtro!$A$5:$AK$2912,23,FALSE),0) -> 0 | Z69: =IFERROR(VLOOKUP($A69,Filtro!$A$5:$AK$2912,24,FALSE),0) -> 0 | AA69: =IFERROR(VLOOKUP($A69,Filtro!$A$5:$AK$2912,25,FALSE),0) -> 0 | AB69: =IFERROR(VLOOKUP($A69,Filtro!$A$5:$AK$2912,26,FALSE),0) -> 0 | AC69: =IFERROR(VLOOKUP($A69,Filtro!$A$5:$AK$2912,27,FALSE),0) -> 11690 | AD69: =IFERROR(VLOOKUP($A69,Filtro!$A$5:$AK$2912,28,FALSE),0) -> 0 | AE69: =IFERROR(VLOOKUP($A69,Filtro!$A$5:$AK$2912,29,FALSE),0) -> 310 | AF69: =IFERROR(VLOOKUP($A69,Filtro!$A$5:$AK$2912,30,FALSE),0) -> 0 | AG69: =IFERROR(VLOOKUP($A69,Filtro!$A$5:$AK$2912,31,FALSE),0) -> 0 | AH69: =IFERROR(VLOOKUP($A69,Filtro!$A$5:$AK$2912,32,FALSE),0) -> 0 | AI69: =IFERROR(VLOOKUP($A69,Filtro!$A$5:$AK$2912,33,FALSE),0) -> 0 | AJ69: =IFERROR(VLOOKUP($A69,Filtro!$A$5:$AK$2912,34,FALSE),0) -> 0 | AK69: =IFERROR(VLOOKUP($A69,Filtro!$A$5:$AK$2912,35,FALSE),0) -> 0 | AL69: =IFERROR(VLOOKUP($A69,Filtro!$A$5:$AK$2912,36,FALSE),0) -> 0 | AM69: =IFERROR(VLOOKUP($A69,Filtro!$A$5:$AK$2912,37,FALSE),0) -> 0
A70: 01012817 | B70: 01012817 | C70: Consulta por Trabajador(a) Social | D70: =IFERROR(VLOOKUP($A70,Filtro!$A$5:$AK$2912,2,FALSE),0) -> 6366 | E70: =IFERROR(VLOOKUP($A70,Filtro!$A$5:$AK$2912,3,FALSE),0) -> 6183 | F70: =IFERROR(VLOOKUP($A70,Filtro!$A$5:$AK$2912,4,FALSE),0) -> 6183 | G70: =IFERROR(VLOOKUP($A70,Filtro!$A$5:$AK$2912,5,FALSE),0) -> 0 | H70: =IFERROR(VLOOKUP($A70,Filtro!$A$5:$AK$2912,6,FALSE),0) -> 183 | I70: =IFERROR(VLOOKUP($A70,Filtro!$A$5:$AK$2912,7,FALSE),0) -> 0 | J70: =IFERROR(VLOOKUP($A70,Filtro!$A$5:$AK$2912,8,FALSE),0) -> 0 | K70: =IFERROR(VLOOKUP($A70,Filtro!$A$5:$AK$2912,9,FALSE),0) -> 0 | L70: =IFERROR(VLOOKUP($A70,Filtro!$A$5:$AK$2912,10,FALSE),0) -> 0 | M70: =IFERROR(VLOOKUP($A70,Filtro!$A$5:$AK$2912,11,FALSE),0) -> 0 | N70: =IFERROR(VLOOKUP($A70,Filtro!$A$5:$AK$2912,12,FALSE),0) -> 0 | O70: =IFERROR(VLOOKUP($A70,Filtro!$A$5:$AK$2912,13,FALSE),0) -> 0 | P70: =IFERROR(VLOOKUP($A70,Filtro!$A$5:$AK$2912,14,FALSE),0) -> 0 | Q70: =IFERROR(VLOOKUP($A70,Filtro!$A$5:$AK$2912,15,FALSE),0) -> 0 | R70: =IFERROR(VLOOKUP($A70,Filtro!$A$5:$AK$2912,16,FALSE),0) -> 0 | S70: =IFERROR(VLOOKUP($A70,Filtro!$A$5:$AK$2912,17,FALSE),0) -> 0 | T70: =IFERROR(VLOOKUP($A70,Filtro!$A$5:$AK$2912,18,FALSE),0) -> 0 | U70: =IFERROR(VLOOKUP($A70,Filtro!$A$5:$AK$2912,19,FALSE),0) -> 0 | V70: =IFERROR(VLOOKUP($A70,Filtro!$A$5:$AK$2912,20,FALSE),0) -> 0 | W70: =IFERROR(VLOOKUP($A70,Filtro!$A$5:$AK$2912,21,FALSE),0) -> 0 | X70: =IFERROR(VLOOKUP($A70,Filtro!$A$5:$AK$2912,22,FALSE),0) -> 0 | Y70: =IFERROR(VLOOKUP($A70,Filtro!$A$5:$AK$2912,23,FALSE),0) -> 0 | Z70: =IFERROR(VLOOKUP($A70,Filtro!$A$5:$AK$2912,24,FALSE),0) -> 0 | AA70: =IFERROR(VLOOKUP($A70,Filtro!$A$5:$AK$2912,25,FALSE),0) -> 0 | AB70: =IFERROR(VLOOKUP($A70,Filtro!$A$5:$AK$2912,26,FALSE),0) -> 0 | AC70: =IFERROR(VLOOKUP($A70,Filtro!$A$5:$AK$2912,27,FALSE),0) -> 6366 | AD70: =IFERROR(VLOOKUP($A70,Filtro!$A$5:$AK$2912,28,FALSE),0) -> 0 | AE70: =IFERROR(VLOOKUP($A70,Filtro!$A$5:$AK$2912,29,FALSE),0) -> 0 | AF70: =IFERROR(VLOOKUP($A70,Filtro!$A$5:$AK$2912,30,FALSE),0) -> 0 | AG70: =IFERROR(VLOOKUP($A70,Filtro!$A$5:$AK$2912,31,FALSE),0) -> 0 | AH70: =IFERROR(VLOOKUP($A70,Filtro!$A$5:$AK$2912,32,FALSE),0) -> 0 | AI70: =IFERROR(VLOOKUP($A70,Filtro!$A$5:$AK$2912,33,FALSE),0) -> 0 | AJ70: =IFERROR(VLOOKUP($A70,Filtro!$A$5:$AK$2912,34,FALSE),0) -> 0 | AK70: =IFERROR(VLOOKUP($A70,Filtro!$A$5:$AK$2912,35,FALSE),0) -> 0 | AL70: =IFERROR(VLOOKUP($A70,Filtro!$A$5:$AK$2912,36,FALSE),0) -> 0 | AM70: =IFERROR(VLOOKUP($A70,Filtro!$A$5:$AK$2912,37,FALSE),0) -> 0
C71: TOTAL ARANCEL MLE Y NO ARANCELADO | D71: =SUM(D69:D70) -> 18056 | E71: =SUM(E69:E70) -> 17824 | F71: =SUM(F69:F70) -> 17824 | G71: =SUM(G69:G70) -> 0 | H71: =SUM(H69:H70) -> 232 | AB71: =SUM(AB69:AB70) -> 0 | AC71: 18056 | AD71: 0 | AE71: 310 | AF71: 0 | AG71: 0 | AH71: 0 | AI71: 0 | AJ71: 0 | AK71: =SUM(AK69:AK70) -> 0
C72: TOTAL PRODUCCION | D72: =SUM(D68+D71) -> 131575 | E72: =SUM(E68+E71) -> 131096 | F72: =SUM(F68+F71) -> 131096 | G72: =SUM(G68+G71) -> 0 | H72: =SUM(H68+H71) -> 479 | AB72: =SUM(AB68+AB71) -> 4234 | AC72: 100112 | AD72: 27229 | AE72: 310 | AF72: 0 | AG72: 0 | AH72: 0 | AI72: 0 | AJ72: 0 | AK72: 0 | AM72: =SUM(AM68+AM71) -> 178,117,450
C73: TELEMEDICINA POR PROFESIONALES MÉDICOS
C74: TELECONSULTAS
A75: 01013100 | B75: 0108001 | C75: Teleconsulta Medicina General | D75: =IFERROR(VLOOKUP($A75,Filtro!$A$5:$AK$2912,2,FALSE),0) -> 0 | E75: =IFERROR(VLOOKUP($A75,Filtro!$A$5:$AK$2912,3,FALSE),0) -> 0 | F75: =IFERROR(VLOOKUP($A75,Filtro!$A$5:$AK$2912,4,FALSE),0) -> 0 | G75: =IFERROR(VLOOKUP($A75,Filtro!$A$5:$AK$2912,5,FALSE),0) -> 0 | H75: =IFERROR(VLOOKUP($A75,Filtro!$A$5:$AK$2912,6,FALSE),0) -> 0 | I75: =IFERROR(VLOOKUP($A75,Filtro!$A$5:$AK$2912,7,FALSE),0) -> 0 | J75: =IFERROR(VLOOKUP($A75,Filtro!$A$5:$AK$2912,8,FALSE),0) -> 0 | K75: =IFERROR(VLOOKUP($A75,Filtro!$A$5:$AK$2912,9,FALSE),0) -> 0 | L75: =IFERROR(VLOOKUP($A75,Filtro!$A$5:$AK$2912,10,FALSE),0) -> 0 | M75: =IFERROR(VLOOKUP($A75,Filtro!$A$5:$AK$2912,11,FALSE),0) -> 0 | N75: =IFERROR(VLOOKUP($A75,Filtro!$A$5:$AK$2912,12,FALSE),0) -> 0 | O75: =IFERROR(VLOOKUP($A75,Filtro!$A$5:$AK$2912,13,FALSE),0) -> 0 | P75: =IFERROR(VLOOKUP($A75,Filtro!$A$5:$AK$2912,14,FALSE),0) -> 0 | Q75: =IFERROR(VLOOKUP($A75,Filtro!$A$5:$AK$2912,15,FALSE),0) -> 0 | R75: =IFERROR(VLOOKUP($A75,Filtro!$A$5:$AK$2912,16,FALSE),0) -> 0 | S75: =IFERROR(VLOOKUP($A75,Filtro!$A$5:$AK$2912,17,FALSE),0) -> 0 | T75: =IFERROR(VLOOKUP($A75,Filtro!$A$5:$AK$2912,18,FALSE),0) -> 0 | U75: =IFERROR(VLOOKUP($A75,Filtro!$A$5:$AK$2912,19,FALSE),0) -> 0 | V75: =IFERROR(VLOOKUP($A75,Filtro!$A$5:$AK$2912,20,FALSE),0) -> 0 | W75: =IFERROR(VLOOKUP($A75,Filtro!$A$5:$AK$2912,21,FALSE),0) -> 0 | X75: =IFERROR(VLOOKUP($A75,Filtro!$A$5:$AK$2912,22,FALSE),0) -> 0 | Y75: =IFERROR(VLOOKUP($A75,Filtro!$A$5:$AK$2912,23,FALSE),0) -> 0 | Z75: =IFERROR(VLOOKUP($A75,Filtro!$A$5:$AK$2912,24,FALSE),0) -> 0 | AA75: =IFERROR(VLOOKUP($A75,Filtro!$A$5:$AK$2912,25,FALSE),0) -> 0 | AB75: =IFERROR(VLOOKUP($A75,Filtro!$A$5:$AK$2912,26,FALSE),0) -> 0 | AC75: =IFERROR(VLOOKUP($A75,Filtro!$A$5:$AK$2912,27,FALSE),0) -> 0 | AD75: =IFERROR(VLOOKUP($A75,Filtro!$A$5:$AK$2912,28,FALSE),0) -> 0 | AE75: =IFERROR(VLOOKUP($A75,Filtro!$A$5:$AK$2912,29,FALSE),0) -> 0 | AF75: =IFERROR(VLOOKUP($A75,Filtro!$A$5:$AK$2912,30,FALSE),0) -> 0 | AG75: =IFERROR(VLOOKUP($A75,Filtro!$A$5:$AK$2912,31,FALSE),0) -> 0 | AH75: =IFERROR(VLOOKUP($A75,Filtro!$A$5:$AK$2912,32,FALSE),0) -> 0 | AI75: =IFERROR(VLOOKUP($A75,Filtro!$A$5:$AK$2912,33,FALSE),0) -> 0 | AJ75: =IFERROR(VLOOKUP($A75,Filtro!$A$5:$AK$2912,34,FALSE),0) -> 0 | AK75: =IFERROR(VLOOKUP($A75,Filtro!$A$5:$AK$2912,35,FALSE),0) -> 0 | AL75: =IFERROR(VLOOKUP($A75,Filtro!$A$5:$AK$2912,36,FALSE),0) -> 386,170 | AM75: =IFERROR(VLOOKUP($A75,Filtro!$A$5:$AK$2912,37,FALSE),0) -> 0
A76: 01014325 | B76: 0108201 | C76: Teleconsulta Médica de Especialidad en Dermatología | D76: =IFERROR(VLOOKUP($A76,Filtro!$A$5:$AK$2912,2,FALSE),0) -> 9 | E76: =IFERROR(VLOOKUP($A76,Filtro!$A$5:$AK$2912,3,FALSE),0) -> 9 | F76: =IFERROR(VLOOKUP($A76,Filtro!$A$5:$AK$2912,4,FALSE),0) -> 9 | G76: =IFERROR(VLOOKUP($A76,Filtro!$A$5:$AK$2912,5,FALSE),0) -> 0 | H76: =IFERROR(VLOOKUP($A76,Filtro!$A$5:$AK$2912,6,FALSE),0) -> 0 | I76: =IFERROR(VLOOKUP($A76,Filtro!$A$5:$AK$2912,7,FALSE),0) -> 0 | J76: =IFERROR(VLOOKUP($A76,Filtro!$A$5:$AK$2912,8,FALSE),0) -> 0 | K76: =IFERROR(VLOOKUP($A76,Filtro!$A$5:$AK$2912,9,FALSE),0) -> 0 | L76: =IFERROR(VLOOKUP($A76,Filtro!$A$5:$AK$2912,10,FALSE),0) -> 0 | M76: =IFERROR(VLOOKUP($A76,Filtro!$A$5:$AK$2912,11,FALSE),0) -> 0 | N76: =IFERROR(VLOOKUP($A76,Filtro!$A$5:$AK$2912,12,FALSE),0) -> 0 | O76: =IFERROR(VLOOKUP($A76,Filtro!$A$5:$AK$2912,13,FALSE),0) -> 0 | P76: =IFERROR(VLOOKUP($A76,Filtro!$A$5:$AK$2912,14,FALSE),0) -> 0 | Q76: =IFERROR(VLOOKUP($A76,Filtro!$A$5:$AK$2912,15,FALSE),0) -> 0 | R76: =IFERROR(VLOOKUP($A76,Filtro!$A$5:$AK$2912,16,FALSE),0) -> 0 | S76: =IFERROR(VLOOKUP($A76,Filtro!$A$5:$AK$2912,17,FALSE),0) -> 0 | T76: =IFERROR(VLOOKUP($A76,Filtro!$A$5:$AK$2912,18,FALSE),0) -> 0 | U76: =IFERROR(VLOOKUP($A76,Filtro!$A$5:$AK$2912,19,FALSE),0) -> 0 | V76: =IFERROR(VLOOKUP($A76,Filtro!$A$5:$AK$2912,20,FALSE),0) -> 0 | W76: =IFERROR(VLOOKUP($A76,Filtro!$A$5:$AK$2912,21,FALSE),0) -> 0 | X76: =IFERROR(VLOOKUP($A76,Filtro!$A$5:$AK$2912,22,FALSE),0) -> 0 | Y76: =IFERROR(VLOOKUP($A76,Filtro!$A$5:$AK$2912,23,FALSE),0) -> 0 | Z76: =IFERROR(VLOOKUP($A76,Filtro!$A$5:$AK$2912,24,FALSE),0) -> 0 | AA76: =IFERROR(VLOOKUP($A76,Filtro!$A$5:$AK$2912,25,FALSE),0) -> 0 | AB76: =IFERROR(VLOOKUP($A76,Filtro!$A$5:$AK$2912,26,FALSE),0) -> 0 | AC76: =IFERROR(VLOOKUP($A76,Filtro!$A$5:$AK$2912,27,FALSE),0) -> 9 | AD76: =IFERROR(VLOOKUP($A76,Filtro!$A$5:$AK$2912,28,FALSE),0) -> 0 | AE76: =IFERROR(VLOOKUP($A76,Filtro!$A$5:$AK$2912,29,FALSE),0) -> 0 | AF76: =IFERROR(VLOOKUP($A76,Filtro!$A$5:$AK$2912,30,FALSE),0) -> 0 | AG76: =IFERROR(VLOOKUP($A76,Filtro!$A$5:$AK$2912,31,FALSE),0) -> 0 | AH76: =IFERROR(VLOOKUP($A76,Filtro!$A$5:$AK$2912,32,FALSE),0) -> 0 | AI76: =IFERROR(VLOOKUP($A76,Filtro!$A$5:$AK$2912,33,FALSE),0) -> 0 | AJ76: =IFERROR(VLOOKUP($A76,Filtro!$A$5:$AK$2912,34,FALSE),0) -> 0 | AK76: =IFERROR(VLOOKUP($A76,Filtro!$A$5:$AK$2912,35,FALSE),0) -> 0 | AL76: =IFERROR(VLOOKUP($A76,Filtro!$A$5:$AK$2912,36,FALSE),0) -> 549,690 | AM76: =IFERROR(VLOOKUP($A76,Filtro!$A$5:$AK$2912,37,FALSE),0) -> 67,770
A77: 01014326 | B77: 0108202 | C77: Teleconsulta Médica de Especialidad en Geriatría | D77: =IFERROR(VLOOKUP($A77,Filtro!$A$5:$AK$2912,2,FALSE),0) -> 1 | E77: =IFERROR(VLOOKUP($A77,Filtro!$A$5:$AK$2912,3,FALSE),0) -> 1 | F77: =IFERROR(VLOOKUP($A77,Filtro!$A$5:$AK$2912,4,FALSE),0) -> 1 | G77: =IFERROR(VLOOKUP($A77,Filtro!$A$5:$AK$2912,5,FALSE),0) -> 0 | H77: =IFERROR(VLOOKUP($A77,Filtro!$A$5:$AK$2912,6,FALSE),0) -> 0 | I77: =IFERROR(VLOOKUP($A77,Filtro!$A$5:$AK$2912,7,FALSE),0) -> 0 | J77: =IFERROR(VLOOKUP($A77,Filtro!$A$5:$AK$2912,8,FALSE),0) -> 0 | K77: =IFERROR(VLOOKUP($A77,Filtro!$A$5:$AK$2912,9,FALSE),0) -> 0 | L77: =IFERROR(VLOOKUP($A77,Filtro!$A$5:$AK$2912,10,FALSE),0) -> 0 | M77: =IFERROR(VLOOKUP($A77,Filtro!$A$5:$AK$2912,11,FALSE),0) -> 0 | N77: =IFERROR(VLOOKUP($A77,Filtro!$A$5:$AK$2912,12,FALSE),0) -> 0 | O77: =IFERROR(VLOOKUP($A77,Filtro!$A$5:$AK$2912,13,FALSE),0) -> 0 | P77: =IFERROR(VLOOKUP($A77,Filtro!$A$5:$AK$2912,14,FALSE),0) -> 0 | Q77: =IFERROR(VLOOKUP($A77,Filtro!$A$5:$AK$2912,15,FALSE),0) -> 0 | R77: =IFERROR(VLOOKUP($A77,Filtro!$A$5:$AK$2912,16,FALSE),0) -> 0 | S77: =IFERROR(VLOOKUP($A77,Filtro!$A$5:$AK$2912,17,FALSE),0) -> 0 | T77: =IFERROR(VLOOKUP($A77,Filtro!$A$5:$AK$2912,18,FALSE),0) -> 0 | U77: =IFERROR(VLOOKUP($A77,Filtro!$A$5:$AK$2912,19,FALSE),0) -> 0 | V77: =IFERROR(VLOOKUP($A77,Filtro!$A$5:$AK$2912,20,FALSE),0) -> 0 | W77: =IFERROR(VLOOKUP($A77,Filtro!$A$5:$AK$2912,21,FALSE),0) -> 0 | X77: =IFERROR(VLOOKUP($A77,Filtro!$A$5:$AK$2912,22,FALSE),0) -> 0 | Y77: =IFERROR(VLOOKUP($A77,Filtro!$A$5:$AK$2912,23,FALSE),0) -> 0 | Z77: =IFERROR(VLOOKUP($A77,Filtro!$A$5:$AK$2912,24,FALSE),0) -> 0 | AA77: =IFERROR(VLOOKUP($A77,Filtro!$A$5:$AK$2912,25,FALSE),0) -> 0 | AB77: =IFERROR(VLOOKUP($A77,Filtro!$A$5:$AK$2912,26,FALSE),0) -> 0 | AC77: =IFERROR(VLOOKUP($A77,Filtro!$A$5:$AK$2912,27,FALSE),0) -> 1 | AD77: =IFERROR(VLOOKUP($A77,Filtro!$A$5:$AK$2912,28,FALSE),0) -> 0 | AE77: =IFERROR(VLOOKUP($A77,Filtro!$A$5:$AK$2912,29,FALSE),0) -> 0 | AF77: =IFERROR(VLOOKUP($A77,Filtro!$A$5:$AK$2912,30,FALSE),0) -> 0 | AG77: =IFERROR(VLOOKUP($A77,Filtro!$A$5:$AK$2912,31,FALSE),0) -> 0 | AH77: =IFERROR(VLOOKUP($A77,Filtro!$A$5:$AK$2912,32,FALSE),0) -> 0 | AI77: =IFERROR(VLOOKUP($A77,Filtro!$A$5:$AK$2912,33,FALSE),0) -> 0 | AJ77: =IFERROR(VLOOKUP($A77,Filtro!$A$5:$AK$2912,34,FALSE),0) -> 0 | AK77: =IFERROR(VLOOKUP($A77,Filtro!$A$5:$AK$2912,35,FALSE),0) -> 0 | AL77: =IFERROR(VLOOKUP($A77,Filtro!$A$5:$AK$2912,36,FALSE),0) -> 549,690 | AM77: =IFERROR(VLOOKUP($A77,Filtro!$A$5:$AK$2912,37,FALSE),0) -> 7,530
A78: 01014327 | B78: 0108206 | C78: Teleconsulta Médica de Especialidad en Reumatología | D78: =IFERROR(VLOOKUP($A78,Filtro!$A$5:$AK$2912,2,FALSE),0) -> 42 | E78: =IFERROR(VLOOKUP($A78,Filtro!$A$5:$AK$2912,3,FALSE),0) -> 42 | F78: =IFERROR(VLOOKUP($A78,Filtro!$A$5:$AK$2912,4,FALSE),0) -> 42 | G78: =IFERROR(VLOOKUP($A78,Filtro!$A$5:$AK$2912,5,FALSE),0) -> 0 | H78: =IFERROR(VLOOKUP($A78,Filtro!$A$5:$AK$2912,6,FALSE),0) -> 0 | I78: =IFERROR(VLOOKUP($A78,Filtro!$A$5:$AK$2912,7,FALSE),0) -> 0 | J78: =IFERROR(VLOOKUP($A78,Filtro!$A$5:$AK$2912,8,FALSE),0) -> 0 | K78: =IFERROR(VLOOKUP($A78,Filtro!$A$5:$AK$2912,9,FALSE),0) -> 0 | L78: =IFERROR(VLOOKUP($A78,Filtro!$A$5:$AK$2912,10,FALSE),0) -> 0 | M78: =IFERROR(VLOOKUP($A78,Filtro!$A$5:$AK$2912,11,FALSE),0) -> 0 | N78: =IFERROR(VLOOKUP($A78,Filtro!$A$5:$AK$2912,12,FALSE),0) -> 0 | O78: =IFERROR(VLOOKUP($A78,Filtro!$A$5:$AK$2912,13,FALSE),0) -> 0 | P78: =IFERROR(VLOOKUP($A78,Filtro!$A$5:$AK$2912,14,FALSE),0) -> 0 | Q78: =IFERROR(VLOOKUP($A78,Filtro!$A$5:$AK$2912,15,FALSE),0) -> 0 | R78: =IFERROR(VLOOKUP($A78,Filtro!$A$5:$AK$2912,16,FALSE),0) -> 0 | S78: =IFERROR(VLOOKUP($A78,Filtro!$A$5:$AK$2912,17,FALSE),0) -> 0 | T78: =IFERROR(VLOOKUP($A78,Filtro!$A$5:$AK$2912,18,FALSE),0) -> 0 | U78: =IFERROR(VLOOKUP($A78,Filtro!$A$5:$AK$2912,19,FALSE),0) -> 0 | V78: =IFERROR(VLOOKUP($A78,Filtro!$A$5:$AK$2912,20,FALSE),0) -> 0 | W78: =IFERROR(VLOOKUP($A78,Filtro!$A$5:$AK$2912,21,FALSE),0) -> 0 | X78: =IFERROR(VLOOKUP($A78,Filtro!$A$5:$AK$2912,22,FALSE),0) -> 0 | Y78: =IFERROR(VLOOKUP($A78,Filtro!$A$5:$AK$2912,23,FALSE),0) -> 0 | Z78: =IFERROR(VLOOKUP($A78,Filtro!$A$5:$AK$2912,24,FALSE),0) -> 0 | AA78: =IFERROR(VLOOKUP($A78,Filtro!$A$5:$AK$2912,25,FALSE),0) -> 0 | AB78: =IFERROR(VLOOKUP($A78,Filtro!$A$5:$AK$2912,26,FALSE),0) -> 0 | AC78: =IFERROR(VLOOKUP($A78,Filtro!$A$5:$AK$2912,27,FALSE),0) -> 42 | AD78: =IFERROR(VLOOKUP($A78,Filtro!$A$5:$AK$2912,28,FALSE),0) -> 0 | AE78: =IFERROR(VLOOKUP($A78,Filtro!$A$5:$AK$2912,29,FALSE),0) -> 0 | AF78: =IFERROR(VLOOKUP($A78,Filtro!$A$5:$AK$2912,30,FALSE),0) -> 0 | AG78: =IFERROR(VLOOKUP($A78,Filtro!$A$5:$AK$2912,31,FALSE),0) -> 0 | AH78: =IFERROR(VLOOKUP($A78,Filtro!$A$5:$AK$2912,32,FALSE),0) -> 0 | AI78: =IFERROR(VLOOKUP($A78,Filtro!$A$5:$AK$2912,33,FALSE),0) -> 0 | AJ78: =IFERROR(VLOOKUP($A78,Filtro!$A$5:$AK$2912,34,FALSE),0) -> 0 | AK78: =IFERROR(VLOOKUP($A78,Filtro!$A$5:$AK$2912,35,FALSE),0) -> 0 | AL78: =IFERROR(VLOOKUP($A78,Filtro!$A$5:$AK$2912,36,FALSE),0) -> 549,690 | AM78: =IFERROR(VLOOKUP($A78,Filtro!$A$5:$AK$2912,37,FALSE),0) -> 316,260
A79: 01014328 | B79: 0108207 | C79: Teleconsulta Médica de Especialidad en Endocrinología Adulto | D79: =IFERROR(VLOOKUP($A79,Filtro!$A$5:$AK$2912,2,FALSE),0) -> 155 | E79: =IFERROR(VLOOKUP($A79,Filtro!$A$5:$AK$2912,3,FALSE),0) -> 155 | F79: =IFERROR(VLOOKUP($A79,Filtro!$A$5:$AK$2912,4,FALSE),0) -> 155 | G79: =IFERROR(VLOOKUP($A79,Filtro!$A$5:$AK$2912,5,FALSE),0) -> 0 | H79: =IFERROR(VLOOKUP($A79,Filtro!$A$5:$AK$2912,6,FALSE),0) -> 0 | I79: =IFERROR(VLOOKUP($A79,Filtro!$A$5:$AK$2912,7,FALSE),0) -> 0 | J79: =IFERROR(VLOOKUP($A79,Filtro!$A$5:$AK$2912,8,FALSE),0) -> 0 | K79: =IFERROR(VLOOKUP($A79,Filtro!$A$5:$AK$2912,9,FALSE),0) -> 0 | L79: =IFERROR(VLOOKUP($A79,Filtro!$A$5:$AK$2912,10,FALSE),0) -> 0 | M79: =IFERROR(VLOOKUP($A79,Filtro!$A$5:$AK$2912,11,FALSE),0) -> 0 | N79: =IFERROR(VLOOKUP($A79,Filtro!$A$5:$AK$2912,12,FALSE),0) -> 0 | O79: =IFERROR(VLOOKUP($A79,Filtro!$A$5:$AK$2912,13,FALSE),0) -> 0 | P79: =IFERROR(VLOOKUP($A79,Filtro!$A$5:$AK$2912,14,FALSE),0) -> 0 | Q79: =IFERROR(VLOOKUP($A79,Filtro!$A$5:$AK$2912,15,FALSE),0) -> 0 | R79: =IFERROR(VLOOKUP($A79,Filtro!$A$5:$AK$2912,16,FALSE),0) -> 0 | S79: =IFERROR(VLOOKUP($A79,Filtro!$A$5:$AK$2912,17,FALSE),0) -> 0 | T79: =IFERROR(VLOOKUP($A79,Filtro!$A$5:$AK$2912,18,FALSE),0) -> 0 | U79: =IFERROR(VLOOKUP($A79,Filtro!$A$5:$AK$2912,19,FALSE),0) -> 0 | V79: =IFERROR(VLOOKUP($A79,Filtro!$A$5:$AK$2912,20,FALSE),0) -> 0 | W79: =IFERROR(VLOOKUP($A79,Filtro!$A$5:$AK$2912,21,FALSE),0) -> 0 | X79: =IFERROR(VLOOKUP($A79,Filtro!$A$5:$AK$2912,22,FALSE),0) -> 0 | Y79: =IFERROR(VLOOKUP($A79,Filtro!$A$5:$AK$2912,23,FALSE),0) -> 0 | Z79: =IFERROR(VLOOKUP($A79,Filtro!$A$5:$AK$2912,24,FALSE),0) -> 0 | AA79: =IFERROR(VLOOKUP($A79,Filtro!$A$5:$AK$2912,25,FALSE),0) -> 0 | AB79: =IFERROR(VLOOKUP($A79,Filtro!$A$5:$AK$2912,26,FALSE),0) -> 0 | AC79: =IFERROR(VLOOKUP($A79,Filtro!$A$5:$AK$2912,27,FALSE),0) -> 155 | AD79: =IFERROR(VLOOKUP($A79,Filtro!$A$5:$AK$2912,28,FALSE),0) -> 0 | AE79: =IFERROR(VLOOKUP($A79,Filtro!$A$5:$AK$2912,29,FALSE),0) -> 0 | AF79: =IFERROR(VLOOKUP($A79,Filtro!$A$5:$AK$2912,30,FALSE),0) -> 0 | AG79: =IFERROR(VLOOKUP($A79,Filtro!$A$5:$AK$2912,31,FALSE),0) -> 0 | AH79: =IFERROR(VLOOKUP($A79,Filtro!$A$5:$AK$2912,32,FALSE),0) -> 0 | AI79: =IFERROR(VLOOKUP($A79,Filtro!$A$5:$AK$2912,33,FALSE),0) -> 0 | AJ79: =IFERROR(VLOOKUP($A79,Filtro!$A$5:$AK$2912,34,FALSE),0) -> 0 | AK79: =IFERROR(VLOOKUP($A79,Filtro!$A$5:$AK$2912,35,FALSE),0) -> 0 | AL79: =IFERROR(VLOOKUP($A79,Filtro!$A$5:$AK$2912,36,FALSE),0) -> 549,690 | AM79: =IFERROR(VLOOKUP($A79,Filtro!$A$5:$AK$2912,37,FALSE),0) -> 1,167,150
A80: 01014329 | B80: 0108208 | C80: Teleconsulta Médica de Especialidad en Endocrinología Pediátrica | D80: =IFERROR(VLOOKUP($A80,Filtro!$A$5:$AK$2912,2,FALSE),0) -> 53 | E80: =IFERROR(VLOOKUP($A80,Filtro!$A$5:$AK$2912,3,FALSE),0) -> 53 | F80: =IFERROR(VLOOKUP($A80,Filtro!$A$5:$AK$2912,4,FALSE),0) -> 53 | G80: =IFERROR(VLOOKUP($A80,Filtro!$A$5:$AK$2912,5,FALSE),0) -> 0 | H80: =IFERROR(VLOOKUP($A80,Filtro!$A$5:$AK$2912,6,FALSE),0) -> 0 | I80: =IFERROR(VLOOKUP($A80,Filtro!$A$5:$AK$2912,7,FALSE),0) -> 0 | J80: =IFERROR(VLOOKUP($A80,Filtro!$A$5:$AK$2912,8,FALSE),0) -> 0 | K80: =IFERROR(VLOOKUP($A80,Filtro!$A$5:$AK$2912,9,FALSE),0) -> 0 | L80: =IFERROR(VLOOKUP($A80,Filtro!$A$5:$AK$2912,10,FALSE),0) -> 0 | M80: =IFERROR(VLOOKUP($A80,Filtro!$A$5:$AK$2912,11,FALSE),0) -> 0 | N80: =IFERROR(VLOOKUP($A80,Filtro!$A$5:$AK$2912,12,FALSE),0) -> 0 | O80: =IFERROR(VLOOKUP($A80,Filtro!$A$5:$AK$2912,13,FALSE),0) -> 0 | P80: =IFERROR(VLOOKUP($A80,Filtro!$A$5:$AK$2912,14,FALSE),0) -> 0 | Q80: =IFERROR(VLOOKUP($A80,Filtro!$A$5:$AK$2912,15,FALSE),0) -> 0 | R80: =IFERROR(VLOOKUP($A80,Filtro!$A$5:$AK$2912,16,FALSE),0) -> 0 | S80: =IFERROR(VLOOKUP($A80,Filtro!$A$5:$AK$2912,17,FALSE),0) -> 0 | T80: =IFERROR(VLOOKUP($A80,Filtro!$A$5:$AK$2912,18,FALSE),0) -> 0 | U80: =IFERROR(VLOOKUP($A80,Filtro!$A$5:$AK$2912,19,FALSE),0) -> 0 | V80: =IFERROR(VLOOKUP($A80,Filtro!$A$5:$AK$2912,20,FALSE),0) -> 0 | W80: =IFERROR(VLOOKUP($A80,Filtro!$A$5:$AK$2912,21,FALSE),0) -> 0 | X80: =IFERROR(VLOOKUP($A80,Filtro!$A$5:$AK$2912,22,FALSE),0) -> 0 | Y80: =IFERROR(VLOOKUP($A80,Filtro!$A$5:$AK$2912,23,FALSE),0) -> 0 | Z80: =IFERROR(VLOOKUP($A80,Filtro!$A$5:$AK$2912,24,FALSE),0) -> 0 | AA80: =IFERROR(VLOOKUP($A80,Filtro!$A$5:$AK$2912,25,FALSE),0) -> 0 | AB80: =IFERROR(VLOOKUP($A80,Filtro!$A$5:$AK$2912,26,FALSE),0) -> 0 | AC80: =IFERROR(VLOOKUP($A80,Filtro!$A$5:$AK$2912,27,FALSE),0) -> 53 | AD80: =IFERROR(VLOOKUP($A80,Filtro!$A$5:$AK$2912,28,FALSE),0) -> 0 | AE80: =IFERROR(VLOOKUP($A80,Filtro!$A$5:$AK$2912,29,FALSE),0) -> 0 | AF80: =IFERROR(VLOOKUP($A80,Filtro!$A$5:$AK$2912,30,FALSE),0) -> 0 | AG80: =IFERROR(VLOOKUP($A80,Filtro!$A$5:$AK$2912,31,FALSE),0) -> 0 | AH80: =IFERROR(VLOOKUP($A80,Filtro!$A$5:$AK$2912,32,FALSE),0) -> 0 | AI80: =IFERROR(VLOOKUP($A80,Filtro!$A$5:$AK$2912,33,FALSE),0) -> 0 | AJ80: =IFERROR(VLOOKUP($A80,Filtro!$A$5:$AK$2912,34,FALSE),0) -> 0 | AK80: =IFERROR(VLOOKUP($A80,Filtro!$A$5:$AK$2912,35,FALSE),0) -> 0 | AL80: =IFERROR(VLOOKUP($A80,Filtro!$A$5:$AK$2912,36,FALSE),0) -> 549,690 | AM80: =IFERROR(VLOOKUP($A80,Filtro!$A$5:$AK$2912,37,FALSE),0) -> 399,090
A81: 01014330 | B81: 0108209 | C81: Teleconsulta Médica de Especialidad en Neurología Adultos | D81: =IFERROR(VLOOKUP($A81,Filtro!$A$5:$AK$2912,2,FALSE),0) -> 124 | E81: =IFERROR(VLOOKUP($A81,Filtro!$A$5:$AK$2912,3,FALSE),0) -> 124 | F81: =IFERROR(VLOOKUP($A81,Filtro!$A$5:$AK$2912,4,FALSE),0) -> 124 | G81: =IFERROR(VLOOKUP($A81,Filtro!$A$5:$AK$2912,5,FALSE),0) -> 0 | H81: =IFERROR(VLOOKUP($A81,Filtro!$A$5:$AK$2912,6,FALSE),0) -> 0 | I81: =IFERROR(VLOOKUP($A81,Filtro!$A$5:$AK$2912,7,FALSE),0) -> 0 | J81: =IFERROR(VLOOKUP($A81,Filtro!$A$5:$AK$2912,8,FALSE),0) -> 0 | K81: =IFERROR(VLOOKUP($A81,Filtro!$A$5:$AK$2912,9,FALSE),0) -> 0 | L81: =IFERROR(VLOOKUP($A81,Filtro!$A$5:$AK$2912,10,FALSE),0) -> 0 | M81: =IFERROR(VLOOKUP($A81,Filtro!$A$5:$AK$2912,11,FALSE),0) -> 0 | N81: =IFERROR(VLOOKUP($A81,Filtro!$A$5:$AK$2912,12,FALSE),0) -> 0 | O81: =IFERROR(VLOOKUP($A81,Filtro!$A$5:$AK$2912,13,FALSE),0) -> 0 | P81: =IFERROR(VLOOKUP($A81,Filtro!$A$5:$AK$2912,14,FALSE),0) -> 0 | Q81: =IFERROR(VLOOKUP($A81,Filtro!$A$5:$AK$2912,15,FALSE),0) -> 0 | R81: =IFERROR(VLOOKUP($A81,Filtro!$A$5:$AK$2912,16,FALSE),0) -> 0 | S81: =IFERROR(VLOOKUP($A81,Filtro!$A$5:$AK$2912,17,FALSE),0) -> 0 | T81: =IFERROR(VLOOKUP($A81,Filtro!$A$5:$AK$2912,18,FALSE),0) -> 0 | U81: =IFERROR(VLOOKUP($A81,Filtro!$A$5:$AK$2912,19,FALSE),0) -> 0 | V81: =IFERROR(VLOOKUP($A81,Filtro!$A$5:$AK$2912,20,FALSE),0) -> 0 | W81: =IFERROR(VLOOKUP($A81,Filtro!$A$5:$AK$2912,21,FALSE),0) -> 0 | X81: =IFERROR(VLOOKUP($A81,Filtro!$A$5:$AK$2912,22,FALSE),0) -> 0 | Y81: =IFERROR(VLOOKUP($A81,Filtro!$A$5:$AK$2912,23,FALSE),0) -> 0 | Z81: =IFERROR(VLOOKUP($A81,Filtro!$A$5:$AK$2912,24,FALSE),0) -> 0 | AA81: =IFERROR(VLOOKUP($A81,Filtro!$A$5:$AK$2912,25,FALSE),0) -> 0 | AB81: =IFERROR(VLOOKUP($A81,Filtro!$A$5:$AK$2912,26,FALSE),0) -> 13 | AC81: =IFERROR(VLOOKUP($A81,Filtro!$A$5:$AK$2912,27,FALSE),0) -> 111 | AD81: =IFERROR(VLOOKUP($A81,Filtro!$A$5:$AK$2912,28,FALSE),0) -> 0 | AE81: =IFERROR(VLOOKUP($A81,Filtro!$A$5:$AK$2912,29,FALSE),0) -> 0 | AF81: =IFERROR(VLOOKUP($A81,Filtro!$A$5:$AK$2912,30,FALSE),0) -> 0 | AG81: =IFERROR(VLOOKUP($A81,Filtro!$A$5:$AK$2912,31,FALSE),0) -> 0 | AH81: =IFERROR(VLOOKUP($A81,Filtro!$A$5:$AK$2912,32,FALSE),0) -> 0 | AI81: =IFERROR(VLOOKUP($A81,Filtro!$A$5:$AK$2912,33,FALSE),0) -> 0 | AJ81: =IFERROR(VLOOKUP($A81,Filtro!$A$5:$AK$2912,34,FALSE),0) -> 0 | AK81: =IFERROR(VLOOKUP($A81,Filtro!$A$5:$AK$2912,35,FALSE),0) -> 0 | AL81: =IFERROR(VLOOKUP($A81,Filtro!$A$5:$AK$2912,36,FALSE),0) -> 549,690 | AM81: =IFERROR(VLOOKUP($A81,Filtro!$A$5:$AK$2912,37,FALSE),0) -> 933,720
A82: 01014331 | B82: 0108210 | C82: Teleconsulta Médica de Especialidad en Neurología Pediátrica | D82: =IFERROR(VLOOKUP($A82,Filtro!$A$5:$AK$2912,2,FALSE),0) -> 34 | E82: =IFERROR(VLOOKUP($A82,Filtro!$A$5:$AK$2912,3,FALSE),0) -> 34 | F82: =IFERROR(VLOOKUP($A82,Filtro!$A$5:$AK$2912,4,FALSE),0) -> 34 | G82: =IFERROR(VLOOKUP($A82,Filtro!$A$5:$AK$2912,5,FALSE),0) -> 0 | H82: =IFERROR(VLOOKUP($A82,Filtro!$A$5:$AK$2912,6,FALSE),0) -> 0 | I82: =IFERROR(VLOOKUP($A82,Filtro!$A$5:$AK$2912,7,FALSE),0) -> 0 | J82: =IFERROR(VLOOKUP($A82,Filtro!$A$5:$AK$2912,8,FALSE),0) -> 0 | K82: =IFERROR(VLOOKUP($A82,Filtro!$A$5:$AK$2912,9,FALSE),0) -> 0 | L82: =IFERROR(VLOOKUP($A82,Filtro!$A$5:$AK$2912,10,FALSE),0) -> 0 | M82: =IFERROR(VLOOKUP($A82,Filtro!$A$5:$AK$2912,11,FALSE),0) -> 0 | N82: =IFERROR(VLOOKUP($A82,Filtro!$A$5:$AK$2912,12,FALSE),0) -> 0 | O82: =IFERROR(VLOOKUP($A82,Filtro!$A$5:$AK$2912,13,FALSE),0) -> 0 | P82: =IFERROR(VLOOKUP($A82,Filtro!$A$5:$AK$2912,14,FALSE),0) -> 0 | Q82: =IFERROR(VLOOKUP($A82,Filtro!$A$5:$AK$2912,15,FALSE),0) -> 0 | R82: =IFERROR(VLOOKUP($A82,Filtro!$A$5:$AK$2912,16,FALSE),0) -> 0 | S82: =IFERROR(VLOOKUP($A82,Filtro!$A$5:$AK$2912,17,FALSE),0) -> 0 | T82: =IFERROR(VLOOKUP($A82,Filtro!$A$5:$AK$2912,18,FALSE),0) -> 0 | U82: =IFERROR(VLOOKUP($A82,Filtro!$A$5:$AK$2912,19,FALSE),0) -> 0 | V82: =IFERROR(VLOOKUP($A82,Filtro!$A$5:$AK$2912,20,FALSE),0) -> 0 | W82: =IFERROR(VLOOKUP($A82,Filtro!$A$5:$AK$2912,21,FALSE),0) -> 0 | X82: =IFERROR(VLOOKUP($A82,Filtro!$A$5:$AK$2912,22,FALSE),0) -> 0 | Y82: =IFERROR(VLOOKUP($A82,Filtro!$A$5:$AK$2912,23,FALSE),0) -> 0 | Z82: =IFERROR(VLOOKUP($A82,Filtro!$A$5:$AK$2912,24,FALSE),0) -> 0 | AA82: =IFERROR(VLOOKUP($A82,Filtro!$A$5:$AK$2912,25,FALSE),0) -> 0 | AB82: =IFERROR(VLOOKUP($A82,Filtro!$A$5:$AK$2912,26,FALSE),0) -> 5 | AC82: =IFERROR(VLOOKUP($A82,Filtro!$A$5:$AK$2912,27,FALSE),0) -> 29 | AD82: =IFERROR(VLOOKUP($A82,Filtro!$A$5:$AK$2912,28,FALSE),0) -> 0 | AE82: =IFERROR(VLOOKUP($A82,Filtro!$A$5:$AK$2912,29,FALSE),0) -> 0 | AF82: =IFERROR(VLOOKUP($A82,Filtro!$A$5:$AK$2912,30,FALSE),0) -> 0 | AG82: =IFERROR(VLOOKUP($A82,Filtro!$A$5:$AK$2912,31,FALSE),0) -> 0 | AH82: =IFERROR(VLOOKUP($A82,Filtro!$A$5:$AK$2912,32,FALSE),0) -> 0 | AI82: =IFERROR(VLOOKUP($A82,Filtro!$A$5:$AK$2912,33,FALSE),0) -> 0 | AJ82: =IFERROR(VLOOKUP($A82,Filtro!$A$5:$AK$2912,34,FALSE),0) -> 0 | AK82: =IFERROR(VLOOKUP($A82,Filtro!$A$5:$AK$2912,35,FALSE),0) -> 0 | AL82: =IFERROR(VLOOKUP($A82,Filtro!$A$5:$AK$2912,36,FALSE),0) -> 549,690 | AM82: =IFERROR(VLOOKUP($A82,Filtro!$A$5:$AK$2912,37,FALSE),0) -> 256,020
A83: 01014332 | B83: 0108211 | C83: Teleconsulta Médica de Especialidad en Oncología Médica | D83: =IFERROR(VLOOKUP($A83,Filtro!$A$5:$AK$2912,2,FALSE),0) -> 3418 | E83: =IFERROR(VLOOKUP($A83,Filtro!$A$5:$AK$2912,3,FALSE),0) -> 3418 | F83: =IFERROR(VLOOKUP($A83,Filtro!$A$5:$AK$2912,4,FALSE),0) -> 3418 | G83: =IFERROR(VLOOKUP($A83,Filtro!$A$5:$AK$2912,5,FALSE),0) -> 0 | H83: =IFERROR(VLOOKUP($A83,Filtro!$A$5:$AK$2912,6,FALSE),0) -> 0 | I83: =IFERROR(VLOOKUP($A83,Filtro!$A$5:$AK$2912,7,FALSE),0) -> 0 | J83: =IFERROR(VLOOKUP($A83,Filtro!$A$5:$AK$2912,8,FALSE),0) -> 0 | K83: =IFERROR(VLOOKUP($A83,Filtro!$A$5:$AK$2912,9,FALSE),0) -> 0 | L83: =IFERROR(VLOOKUP($A83,Filtro!$A$5:$AK$2912,10,FALSE),0) -> 0 | M83: =IFERROR(VLOOKUP($A83,Filtro!$A$5:$AK$2912,11,FALSE),0) -> 0 | N83: =IFERROR(VLOOKUP($A83,Filtro!$A$5:$AK$2912,12,FALSE),0) -> 0 | O83: =IFERROR(VLOOKUP($A83,Filtro!$A$5:$AK$2912,13,FALSE),0) -> 0 | P83: =IFERROR(VLOOKUP($A83,Filtro!$A$5:$AK$2912,14,FALSE),0) -> 0 | Q83: =IFERROR(VLOOKUP($A83,Filtro!$A$5:$AK$2912,15,FALSE),0) -> 0 | R83: =IFERROR(VLOOKUP($A83,Filtro!$A$5:$AK$2912,16,FALSE),0) -> 0 | S83: =IFERROR(VLOOKUP($A83,Filtro!$A$5:$AK$2912,17,FALSE),0) -> 0 | T83: =IFERROR(VLOOKUP($A83,Filtro!$A$5:$AK$2912,18,FALSE),0) -> 0 | U83: =IFERROR(VLOOKUP($A83,Filtro!$A$5:$AK$2912,19,FALSE),0) -> 0 | V83: =IFERROR(VLOOKUP($A83,Filtro!$A$5:$AK$2912,20,FALSE),0) -> 0 | W83: =IFERROR(VLOOKUP($A83,Filtro!$A$5:$AK$2912,21,FALSE),0) -> 0 | X83: =IFERROR(VLOOKUP($A83,Filtro!$A$5:$AK$2912,22,FALSE),0) -> 0 | Y83: =IFERROR(VLOOKUP($A83,Filtro!$A$5:$AK$2912,23,FALSE),0) -> 0 | Z83: =IFERROR(VLOOKUP($A83,Filtro!$A$5:$AK$2912,24,FALSE),0) -> 0 | AA83: =IFERROR(VLOOKUP($A83,Filtro!$A$5:$AK$2912,25,FALSE),0) -> 0 | AB83: =IFERROR(VLOOKUP($A83,Filtro!$A$5:$AK$2912,26,FALSE),0) -> 0 | AC83: =IFERROR(VLOOKUP($A83,Filtro!$A$5:$AK$2912,27,FALSE),0) -> 3418 | AD83: =IFERROR(VLOOKUP($A83,Filtro!$A$5:$AK$2912,28,FALSE),0) -> 0 | AE83: =IFERROR(VLOOKUP($A83,Filtro!$A$5:$AK$2912,29,FALSE),0) -> 0 | AF83: =IFERROR(VLOOKUP($A83,Filtro!$A$5:$AK$2912,30,FALSE),0) -> 0 | AG83: =IFERROR(VLOOKUP($A83,Filtro!$A$5:$AK$2912,31,FALSE),0) -> 0 | AH83: =IFERROR(VLOOKUP($A83,Filtro!$A$5:$AK$2912,32,FALSE),0) -> 0 | AI83: =IFERROR(VLOOKUP($A83,Filtro!$A$5:$AK$2912,33,FALSE),0) -> 0 | AJ83: =IFERROR(VLOOKUP($A83,Filtro!$A$5:$AK$2912,34,FALSE),0) -> 0 | AK83: =IFERROR(VLOOKUP($A83,Filtro!$A$5:$AK$2912,35,FALSE),0) -> 0 | AL83: =IFERROR(VLOOKUP($A83,Filtro!$A$5:$AK$2912,36,FALSE),0) -> 549,690 | AM83: =IFERROR(VLOOKUP($A83,Filtro!$A$5:$AK$2912,37,FALSE),0) -> 25,737,540
A84: 01014333 | B84: 0108212 | C84: Teleconsulta Médica de Especialidad en Psiquiatría adultos | D84: =IFERROR(VLOOKUP($A84,Filtro!$A$5:$AK$2912,2,FALSE),0) -> 288 | E84: =IFERROR(VLOOKUP($A84,Filtro!$A$5:$AK$2912,3,FALSE),0) -> 288 | F84: =IFERROR(VLOOKUP($A84,Filtro!$A$5:$AK$2912,4,FALSE),0) -> 288 | G84: =IFERROR(VLOOKUP($A84,Filtro!$A$5:$AK$2912,5,FALSE),0) -> 0 | H84: =IFERROR(VLOOKUP($A84,Filtro!$A$5:$AK$2912,6,FALSE),0) -> 0 | I84: =IFERROR(VLOOKUP($A84,Filtro!$A$5:$AK$2912,7,FALSE),0) -> 0 | J84: =IFERROR(VLOOKUP($A84,Filtro!$A$5:$AK$2912,8,FALSE),0) -> 0 | K84: =IFERROR(VLOOKUP($A84,Filtro!$A$5:$AK$2912,9,FALSE),0) -> 0 | L84: =IFERROR(VLOOKUP($A84,Filtro!$A$5:$AK$2912,10,FALSE),0) -> 0 | M84: =IFERROR(VLOOKUP($A84,Filtro!$A$5:$AK$2912,11,FALSE),0) -> 0 | N84: =IFERROR(VLOOKUP($A84,Filtro!$A$5:$AK$2912,12,FALSE),0) -> 0 | O84: =IFERROR(VLOOKUP($A84,Filtro!$A$5:$AK$2912,13,FALSE),0) -> 0 | P84: =IFERROR(VLOOKUP($A84,Filtro!$A$5:$AK$2912,14,FALSE),0) -> 0 | Q84: =IFERROR(VLOOKUP($A84,Filtro!$A$5:$AK$2912,15,FALSE),0) -> 0 | R84: =IFERROR(VLOOKUP($A84,Filtro!$A$5:$AK$2912,16,FALSE),0) -> 0 | S84: =IFERROR(VLOOKUP($A84,Filtro!$A$5:$AK$2912,17,FALSE),0) -> 0 | T84: =IFERROR(VLOOKUP($A84,Filtro!$A$5:$AK$2912,18,FALSE),0) -> 0 | U84: =IFERROR(VLOOKUP($A84,Filtro!$A$5:$AK$2912,19,FALSE),0) -> 0 | V84: =IFERROR(VLOOKUP($A84,Filtro!$A$5:$AK$2912,20,FALSE),0) -> 0 | W84: =IFERROR(VLOOKUP($A84,Filtro!$A$5:$AK$2912,21,FALSE),0) -> 0 | X84: =IFERROR(VLOOKUP($A84,Filtro!$A$5:$AK$2912,22,FALSE),0) -> 0 | Y84: =IFERROR(VLOOKUP($A84,Filtro!$A$5:$AK$2912,23,FALSE),0) -> 0 | Z84: =IFERROR(VLOOKUP($A84,Filtro!$A$5:$AK$2912,24,FALSE),0) -> 0 | AA84: =IFERROR(VLOOKUP($A84,Filtro!$A$5:$AK$2912,25,FALSE),0) -> 0 | AB84: =IFERROR(VLOOKUP($A84,Filtro!$A$5:$AK$2912,26,FALSE),0) -> 0 | AC84: =IFERROR(VLOOKUP($A84,Filtro!$A$5:$AK$2912,27,FALSE),0) -> 288 | AD84: =IFERROR(VLOOKUP($A84,Filtro!$A$5:$AK$2912,28,FALSE),0) -> 0 | AE84: =IFERROR(VLOOKUP($A84,Filtro!$A$5:$AK$2912,29,FALSE),0) -> 0 | AF84: =IFERROR(VLOOKUP($A84,Filtro!$A$5:$AK$2912,30,FALSE),0) -> 0 | AG84: =IFERROR(VLOOKUP($A84,Filtro!$A$5:$AK$2912,31,FALSE),0) -> 0 | AH84: =IFERROR(VLOOKUP($A84,Filtro!$A$5:$AK$2912,32,FALSE),0) -> 0 | AI84: =IFERROR(VLOOKUP($A84,Filtro!$A$5:$AK$2912,33,FALSE),0) -> 0 | AJ84: =IFERROR(VLOOKUP($A84,Filtro!$A$5:$AK$2912,34,FALSE),0) -> 0 | AK84: =IFERROR(VLOOKUP($A84,Filtro!$A$5:$AK$2912,35,FALSE),0) -> 0 | AL84: =IFERROR(VLOOKUP($A84,Filtro!$A$5:$AK$2912,36,FALSE),0) -> 549,690 | AM84: =IFERROR(VLOOKUP($A84,Filtro!$A$5:$AK$2912,37,FALSE),0) -> 2,168,640
A85: 01014334 | B85: 0108213 | C85: Teleconsulta Médica de Especialidad en Psiquiatría pediátrica y de la adolescencia | D85: =IFERROR(VLOOKUP($A85,Filtro!$A$5:$AK$2912,2,FALSE),0) -> 115 | E85: =IFERROR(VLOOKUP($A85,Filtro!$A$5:$AK$2912,3,FALSE),0) -> 115 | F85: =IFERROR(VLOOKUP($A85,Filtro!$A$5:$AK$2912,4,FALSE),0) -> 115 | G85: =IFERROR(VLOOKUP($A85,Filtro!$A$5:$AK$2912,5,FALSE),0) -> 0 | H85: =IFERROR(VLOOKUP($A85,Filtro!$A$5:$AK$2912,6,FALSE),0) -> 0 | I85: =IFERROR(VLOOKUP($A85,Filtro!$A$5:$AK$2912,7,FALSE),0) -> 0 | J85: =IFERROR(VLOOKUP($A85,Filtro!$A$5:$AK$2912,8,FALSE),0) -> 0 | K85: =IFERROR(VLOOKUP($A85,Filtro!$A$5:$AK$2912,9,FALSE),0) -> 0 | L85: =IFERROR(VLOOKUP($A85,Filtro!$A$5:$AK$2912,10,FALSE),0) -> 0 | M85: =IFERROR(VLOOKUP($A85,Filtro!$A$5:$AK$2912,11,FALSE),0) -> 0 | N85: =IFERROR(VLOOKUP($A85,Filtro!$A$5:$AK$2912,12,FALSE),0) -> 0 | O85: =IFERROR(VLOOKUP($A85,Filtro!$A$5:$AK$2912,13,FALSE),0) -> 0 | P85: =IFERROR(VLOOKUP($A85,Filtro!$A$5:$AK$2912,14,FALSE),0) -> 0 | Q85: =IFERROR(VLOOKUP($A85,Filtro!$A$5:$AK$2912,15,FALSE),0) -> 0 | R85: =IFERROR(VLOOKUP($A85,Filtro!$A$5:$AK$2912,16,FALSE),0) -> 0 | S85: =IFERROR(VLOOKUP($A85,Filtro!$A$5:$AK$2912,17,FALSE),0) -> 0 | T85: =IFERROR(VLOOKUP($A85,Filtro!$A$5:$AK$2912,18,FALSE),0) -> 0 | U85: =IFERROR(VLOOKUP($A85,Filtro!$A$5:$AK$2912,19,FALSE),0) -> 0 | V85: =IFERROR(VLOOKUP($A85,Filtro!$A$5:$AK$2912,20,FALSE),0) -> 0 | W85: =IFERROR(VLOOKUP($A85,Filtro!$A$5:$AK$2912,21,FALSE),0) -> 0 | X85: =IFERROR(VLOOKUP($A85,Filtro!$A$5:$AK$2912,22,FALSE),0) -> 0 | Y85: =IFERROR(VLOOKUP($A85,Filtro!$A$5:$AK$2912,23,FALSE),0) -> 0 | Z85: =IFERROR(VLOOKUP($A85,Filtro!$A$5:$AK$2912,24,FALSE),0) -> 0 | AA85: =IFERROR(VLOOKUP($A85,Filtro!$A$5:$AK$2912,25,FALSE),0) -> 0 | AB85: =IFERROR(VLOOKUP($A85,Filtro!$A$5:$AK$2912,26,FALSE),0) -> 0 | AC85: =IFERROR(VLOOKUP($A85,Filtro!$A$5:$AK$2912,27,FALSE),0) -> 115 | AD85: =IFERROR(VLOOKUP($A85,Filtro!$A$5:$AK$2912,28,FALSE),0) -> 0 | AE85: =IFERROR(VLOOKUP($A85,Filtro!$A$5:$AK$2912,29,FALSE),0) -> 0 | AF85: =IFERROR(VLOOKUP($A85,Filtro!$A$5:$AK$2912,30,FALSE),0) -> 0 | AG85: =IFERROR(VLOOKUP($A85,Filtro!$A$5:$AK$2912,31,FALSE),0) -> 0 | AH85: =IFERROR(VLOOKUP($A85,Filtro!$A$5:$AK$2912,32,FALSE),0) -> 0 | AI85: =IFERROR(VLOOKUP($A85,Filtro!$A$5:$AK$2912,33,FALSE),0) -> 0 | AJ85: =IFERROR(VLOOKUP($A85,Filtro!$A$5:$AK$2912,34,FALSE),0) -> 0 | AK85: =IFERROR(VLOOKUP($A85,Filtro!$A$5:$AK$2912,35,FALSE),0) -> 0 | AL85: =IFERROR(VLOOKUP($A85,Filtro!$A$5:$AK$2912,36,FALSE),0) -> 549,690 | AM85: =IFERROR(VLOOKUP($A85,Filtro!$A$5:$AK$2912,37,FALSE),0) -> 865,950
A86: 01014335 | B86: 0108301 | C86: Teleconsulta Médica de Especialidad en Cardiología | D86: =IFERROR(VLOOKUP($A86,Filtro!$A$5:$AK$2912,2,FALSE),0) -> 6 | E86: =IFERROR(VLOOKUP($A86,Filtro!$A$5:$AK$2912,3,FALSE),0) -> 6 | F86: =IFERROR(VLOOKUP($A86,Filtro!$A$5:$AK$2912,4,FALSE),0) -> 6 | G86: =IFERROR(VLOOKUP($A86,Filtro!$A$5:$AK$2912,5,FALSE),0) -> 0 | H86: =IFERROR(VLOOKUP($A86,Filtro!$A$5:$AK$2912,6,FALSE),0) -> 0 | I86: =IFERROR(VLOOKUP($A86,Filtro!$A$5:$AK$2912,7,FALSE),0) -> 0 | J86: =IFERROR(VLOOKUP($A86,Filtro!$A$5:$AK$2912,8,FALSE),0) -> 0 | K86: =IFERROR(VLOOKUP($A86,Filtro!$A$5:$AK$2912,9,FALSE),0) -> 0 | L86: =IFERROR(VLOOKUP($A86,Filtro!$A$5:$AK$2912,10,FALSE),0) -> 0 | M86: =IFERROR(VLOOKUP($A86,Filtro!$A$5:$AK$2912,11,FALSE),0) -> 0 | N86: =IFERROR(VLOOKUP($A86,Filtro!$A$5:$AK$2912,12,FALSE),0) -> 0 | O86: =IFERROR(VLOOKUP($A86,Filtro!$A$5:$AK$2912,13,FALSE),0) -> 0 | P86: =IFERROR(VLOOKUP($A86,Filtro!$A$5:$AK$2912,14,FALSE),0) -> 0 | Q86: =IFERROR(VLOOKUP($A86,Filtro!$A$5:$AK$2912,15,FALSE),0) -> 0 | R86: =IFERROR(VLOOKUP($A86,Filtro!$A$5:$AK$2912,16,FALSE),0) -> 0 | S86: =IFERROR(VLOOKUP($A86,Filtro!$A$5:$AK$2912,17,FALSE),0) -> 0 | T86: =IFERROR(VLOOKUP($A86,Filtro!$A$5:$AK$2912,18,FALSE),0) -> 0 | U86: =IFERROR(VLOOKUP($A86,Filtro!$A$5:$AK$2912,19,FALSE),0) -> 0 | V86: =IFERROR(VLOOKUP($A86,Filtro!$A$5:$AK$2912,20,FALSE),0) -> 0 | W86: =IFERROR(VLOOKUP($A86,Filtro!$A$5:$AK$2912,21,FALSE),0) -> 0 | X86: =IFERROR(VLOOKUP($A86,Filtro!$A$5:$AK$2912,22,FALSE),0) -> 0 | Y86: =IFERROR(VLOOKUP($A86,Filtro!$A$5:$AK$2912,23,FALSE),0) -> 0 | Z86: =IFERROR(VLOOKUP($A86,Filtro!$A$5:$AK$2912,24,FALSE),0) -> 0 | AA86: =IFERROR(VLOOKUP($A86,Filtro!$A$5:$AK$2912,25,FALSE),0) -> 0 | AB86: =IFERROR(VLOOKUP($A86,Filtro!$A$5:$AK$2912,26,FALSE),0) -> 0 | AC86: =IFERROR(VLOOKUP($A86,Filtro!$A$5:$AK$2912,27,FALSE),0) -> 6 | AD86: =IFERROR(VLOOKUP($A86,Filtro!$A$5:$AK$2912,28,FALSE),0) -> 0 | AE86: =IFERROR(VLOOKUP($A86,Filtro!$A$5:$AK$2912,29,FALSE),0) -> 0 | AF86: =IFERROR(VLOOKUP($A86,Filtro!$A$5:$AK$2912,30,FALSE),0) -> 0 | AG86: =IFERROR(VLOOKUP($A86,Filtro!$A$5:$AK$2912,31,FALSE),0) -> 0 | AH86: =IFERROR(VLOOKUP($A86,Filtro!$A$5:$AK$2912,32,FALSE),0) -> 0 | AI86: =IFERROR(VLOOKUP($A86,Filtro!$A$5:$AK$2912,33,FALSE),0) -> 0 | AJ86: =IFERROR(VLOOKUP($A86,Filtro!$A$5:$AK$2912,34,FALSE),0) -> 0 | AK86: =IFERROR(VLOOKUP($A86,Filtro!$A$5:$AK$2912,35,FALSE),0) -> 0 | AL86: =IFERROR(VLOOKUP($A86,Filtro!$A$5:$AK$2912,36,FALSE),0) -> 549,690 | AM86: =IFERROR(VLOOKUP($A86,Filtro!$A$5:$AK$2912,37,FALSE),0) -> 45,180
A87: 01014336 | B87: 0108302 | C87: Teleconsulta Médica de Especialidad en Hematología | D87: =IFERROR(VLOOKUP($A87,Filtro!$A$5:$AK$2912,2,FALSE),0) -> 1124 | E87: =IFERROR(VLOOKUP($A87,Filtro!$A$5:$AK$2912,3,FALSE),0) -> 1124 | F87: =IFERROR(VLOOKUP($A87,Filtro!$A$5:$AK$2912,4,FALSE),0) -> 1124 | G87: =IFERROR(VLOOKUP($A87,Filtro!$A$5:$AK$2912,5,FALSE),0) -> 0 | H87: =IFERROR(VLOOKUP($A87,Filtro!$A$5:$AK$2912,6,FALSE),0) -> 0 | I87: =IFERROR(VLOOKUP($A87,Filtro!$A$5:$AK$2912,7,FALSE),0) -> 0 | J87: =IFERROR(VLOOKUP($A87,Filtro!$A$5:$AK$2912,8,FALSE),0) -> 0 | K87: =IFERROR(VLOOKUP($A87,Filtro!$A$5:$AK$2912,9,FALSE),0) -> 0 | L87: =IFERROR(VLOOKUP($A87,Filtro!$A$5:$AK$2912,10,FALSE),0) -> 0 | M87: =IFERROR(VLOOKUP($A87,Filtro!$A$5:$AK$2912,11,FALSE),0) -> 0 | N87: =IFERROR(VLOOKUP($A87,Filtro!$A$5:$AK$2912,12,FALSE),0) -> 0 | O87: =IFERROR(VLOOKUP($A87,Filtro!$A$5:$AK$2912,13,FALSE),0) -> 0 | P87: =IFERROR(VLOOKUP($A87,Filtro!$A$5:$AK$2912,14,FALSE),0) -> 0 | Q87: =IFERROR(VLOOKUP($A87,Filtro!$A$5:$AK$2912,15,FALSE),0) -> 0 | R87: =IFERROR(VLOOKUP($A87,Filtro!$A$5:$AK$2912,16,FALSE),0) -> 0 | S87: =IFERROR(VLOOKUP($A87,Filtro!$A$5:$AK$2912,17,FALSE),0) -> 0 | T87: =IFERROR(VLOOKUP($A87,Filtro!$A$5:$AK$2912,18,FALSE),0) -> 0 | U87: =IFERROR(VLOOKUP($A87,Filtro!$A$5:$AK$2912,19,FALSE),0) -> 0 | V87: =IFERROR(VLOOKUP($A87,Filtro!$A$5:$AK$2912,20,FALSE),0) -> 0 | W87: =IFERROR(VLOOKUP($A87,Filtro!$A$5:$AK$2912,21,FALSE),0) -> 0 | X87: =IFERROR(VLOOKUP($A87,Filtro!$A$5:$AK$2912,22,FALSE),0) -> 0 | Y87: =IFERROR(VLOOKUP($A87,Filtro!$A$5:$AK$2912,23,FALSE),0) -> 0 | Z87: =IFERROR(VLOOKUP($A87,Filtro!$A$5:$AK$2912,24,FALSE),0) -> 0 | AA87: =IFERROR(VLOOKUP($A87,Filtro!$A$5:$AK$2912,25,FALSE),0) -> 0 | AB87: =IFERROR(VLOOKUP($A87,Filtro!$A$5:$AK$2912,26,FALSE),0) -> 0 | AC87: =IFERROR(VLOOKUP($A87,Filtro!$A$5:$AK$2912,27,FALSE),0) -> 1124 | AD87: =IFERROR(VLOOKUP($A87,Filtro!$A$5:$AK$2912,28,FALSE),0) -> 0 | AE87: =IFERROR(VLOOKUP($A87,Filtro!$A$5:$AK$2912,29,FALSE),0) -> 0 | AF87: =IFERROR(VLOOKUP($A87,Filtro!$A$5:$AK$2912,30,FALSE),0) -> 0 | AG87: =IFERROR(VLOOKUP($A87,Filtro!$A$5:$AK$2912,31,FALSE),0) -> 0 | AH87: =IFERROR(VLOOKUP($A87,Filtro!$A$5:$AK$2912,32,FALSE),0) -> 0 | AI87: =IFERROR(VLOOKUP($A87,Filtro!$A$5:$AK$2912,33,FALSE),0) -> 0 | AJ87: =IFERROR(VLOOKUP($A87,Filtro!$A$5:$AK$2912,34,FALSE),0) -> 0 | AK87: =IFERROR(VLOOKUP($A87,Filtro!$A$5:$AK$2912,35,FALSE),0) -> 0 | AL87: =IFERROR(VLOOKUP($A87,Filtro!$A$5:$AK$2912,36,FALSE),0) -> 549,690 | AM87: =IFERROR(VLOOKUP($A87,Filtro!$A$5:$AK$2912,37,FALSE),0) -> 8,463,720
A88: 01014337 | B88: 0108303 | C88: Teleconsulta Médica de Especialidad en Infectología | D88: =IFERROR(VLOOKUP($A88,Filtro!$A$5:$AK$2912,2,FALSE),0) -> 2 | E88: =IFERROR(VLOOKUP($A88,Filtro!$A$5:$AK$2912,3,FALSE),0) -> 2 | F88: =IFERROR(VLOOKUP($A88,Filtro!$A$5:$AK$2912,4,FALSE),0) -> 2 | G88: =IFERROR(VLOOKUP($A88,Filtro!$A$5:$AK$2912,5,FALSE),0) -> 0 | H88: =IFERROR(VLOOKUP($A88,Filtro!$A$5:$AK$2912,6,FALSE),0) -> 0 | I88: =IFERROR(VLOOKUP($A88,Filtro!$A$5:$AK$2912,7,FALSE),0) -> 0 | J88: =IFERROR(VLOOKUP($A88,Filtro!$A$5:$AK$2912,8,FALSE),0) -> 0 | K88: =IFERROR(VLOOKUP($A88,Filtro!$A$5:$AK$2912,9,FALSE),0) -> 0 | L88: =IFERROR(VLOOKUP($A88,Filtro!$A$5:$AK$2912,10,FALSE),0) -> 0 | M88: =IFERROR(VLOOKUP($A88,Filtro!$A$5:$AK$2912,11,FALSE),0) -> 0 | N88: =IFERROR(VLOOKUP($A88,Filtro!$A$5:$AK$2912,12,FALSE),0) -> 0 | O88: =IFERROR(VLOOKUP($A88,Filtro!$A$5:$AK$2912,13,FALSE),0) -> 0 | P88: =IFERROR(VLOOKUP($A88,Filtro!$A$5:$AK$2912,14,FALSE),0) -> 0 | Q88: =IFERROR(VLOOKUP($A88,Filtro!$A$5:$AK$2912,15,FALSE),0) -> 0 | R88: =IFERROR(VLOOKUP($A88,Filtro!$A$5:$AK$2912,16,FALSE),0) -> 0 | S88: =IFERROR(VLOOKUP($A88,Filtro!$A$5:$AK$2912,17,FALSE),0) -> 0 | T88: =IFERROR(VLOOKUP($A88,Filtro!$A$5:$AK$2912,18,FALSE),0) -> 0 | U88: =IFERROR(VLOOKUP($A88,Filtro!$A$5:$AK$2912,19,FALSE),0) -> 0 | V88: =IFERROR(VLOOKUP($A88,Filtro!$A$5:$AK$2912,20,FALSE),0) -> 0 | W88: =IFERROR(VLOOKUP($A88,Filtro!$A$5:$AK$2912,21,FALSE),0) -> 0 | X88: =IFERROR(VLOOKUP($A88,Filtro!$A$5:$AK$2912,22,FALSE),0) -> 0 | Y88: =IFERROR(VLOOKUP($A88,Filtro!$A$5:$AK$2912,23,FALSE),0) -> 0 | Z88: =IFERROR(VLOOKUP($A88,Filtro!$A$5:$AK$2912,24,FALSE),0) -> 0 | AA88: =IFERROR(VLOOKUP($A88,Filtro!$A$5:$AK$2912,25,FALSE),0) -> 0 | AB88: =IFERROR(VLOOKUP($A88,Filtro!$A$5:$AK$2912,26,FALSE),0) -> 0 | AC88: =IFERROR(VLOOKUP($A88,Filtro!$A$5:$AK$2912,27,FALSE),0) -> 2 | AD88: =IFERROR(VLOOKUP($A88,Filtro!$A$5:$AK$2912,28,FALSE),0) -> 0 | AE88: =IFERROR(VLOOKUP($A88,Filtro!$A$5:$AK$2912,29,FALSE),0) -> 0 | AF88: =IFERROR(VLOOKUP($A88,Filtro!$A$5:$AK$2912,30,FALSE),0) -> 0 | AG88: =IFERROR(VLOOKUP($A88,Filtro!$A$5:$AK$2912,31,FALSE),0) -> 0 | AH88: =IFERROR(VLOOKUP($A88,Filtro!$A$5:$AK$2912,32,FALSE),0) -> 0 | AI88: =IFERROR(VLOOKUP($A88,Filtro!$A$5:$AK$2912,33,FALSE),0) -> 0 | AJ88: =IFERROR(VLOOKUP($A88,Filtro!$A$5:$AK$2912,34,FALSE),0) -> 0 | AK88: =IFERROR(VLOOKUP($A88,Filtro!$A$5:$AK$2912,35,FALSE),0) -> 0 | AL88: =IFERROR(VLOOKUP($A88,Filtro!$A$5:$AK$2912,36,FALSE),0) -> 549,690 | AM88: =IFERROR(VLOOKUP($A88,Filtro!$A$5:$AK$2912,37,FALSE),0) -> 15,060
A89: 01014338 | B89: 0108304 | C89: Teleconsulta Médica de Especialidad en Inmunología | D89: =IFERROR(VLOOKUP($A89,Filtro!$A$5:$AK$2912,2,FALSE),0) -> 144 | E89: =IFERROR(VLOOKUP($A89,Filtro!$A$5:$AK$2912,3,FALSE),0) -> 144 | F89: =IFERROR(VLOOKUP($A89,Filtro!$A$5:$AK$2912,4,FALSE),0) -> 144 | G89: =IFERROR(VLOOKUP($A89,Filtro!$A$5:$AK$2912,5,FALSE),0) -> 0 | H89: =IFERROR(VLOOKUP($A89,Filtro!$A$5:$AK$2912,6,FALSE),0) -> 0 | I89: =IFERROR(VLOOKUP($A89,Filtro!$A$5:$AK$2912,7,FALSE),0) -> 0 | J89: =IFERROR(VLOOKUP($A89,Filtro!$A$5:$AK$2912,8,FALSE),0) -> 0 | K89: =IFERROR(VLOOKUP($A89,Filtro!$A$5:$AK$2912,9,FALSE),0) -> 0 | L89: =IFERROR(VLOOKUP($A89,Filtro!$A$5:$AK$2912,10,FALSE),0) -> 0 | M89: =IFERROR(VLOOKUP($A89,Filtro!$A$5:$AK$2912,11,FALSE),0) -> 0 | N89: =IFERROR(VLOOKUP($A89,Filtro!$A$5:$AK$2912,12,FALSE),0) -> 0 | O89: =IFERROR(VLOOKUP($A89,Filtro!$A$5:$AK$2912,13,FALSE),0) -> 0 | P89: =IFERROR(VLOOKUP($A89,Filtro!$A$5:$AK$2912,14,FALSE),0) -> 0 | Q89: =IFERROR(VLOOKUP($A89,Filtro!$A$5:$AK$2912,15,FALSE),0) -> 0 | R89: =IFERROR(VLOOKUP($A89,Filtro!$A$5:$AK$2912,16,FALSE),0) -> 0 | S89: =IFERROR(VLOOKUP($A89,Filtro!$A$5:$AK$2912,17,FALSE),0) -> 0 | T89: =IFERROR(VLOOKUP($A89,Filtro!$A$5:$AK$2912,18,FALSE),0) -> 0 | U89: =IFERROR(VLOOKUP($A89,Filtro!$A$5:$AK$2912,19,FALSE),0) -> 0 | V89: =IFERROR(VLOOKUP($A89,Filtro!$A$5:$AK$2912,20,FALSE),0) -> 0 | W89: =IFERROR(VLOOKUP($A89,Filtro!$A$5:$AK$2912,21,FALSE),0) -> 0 | X89: =IFERROR(VLOOKUP($A89,Filtro!$A$5:$AK$2912,22,FALSE),0) -> 0 | Y89: =IFERROR(VLOOKUP($A89,Filtro!$A$5:$AK$2912,23,FALSE),0) -> 0 | Z89: =IFERROR(VLOOKUP($A89,Filtro!$A$5:$AK$2912,24,FALSE),0) -> 0 | AA89: =IFERROR(VLOOKUP($A89,Filtro!$A$5:$AK$2912,25,FALSE),0) -> 0 | AB89: =IFERROR(VLOOKUP($A89,Filtro!$A$5:$AK$2912,26,FALSE),0) -> 0 | AC89: =IFERROR(VLOOKUP($A89,Filtro!$A$5:$AK$2912,27,FALSE),0) -> 144 | AD89: =IFERROR(VLOOKUP($A89,Filtro!$A$5:$AK$2912,28,FALSE),0) -> 0 | AE89: =IFERROR(VLOOKUP($A89,Filtro!$A$5:$AK$2912,29,FALSE),0) -> 0 | AF89: =IFERROR(VLOOKUP($A89,Filtro!$A$5:$AK$2912,30,FALSE),0) -> 0 | AG89: =IFERROR(VLOOKUP($A89,Filtro!$A$5:$AK$2912,31,FALSE),0) -> 0 | AH89: =IFERROR(VLOOKUP($A89,Filtro!$A$5:$AK$2912,32,FALSE),0) -> 0 | AI89: =IFERROR(VLOOKUP($A89,Filtro!$A$5:$AK$2912,33,FALSE),0) -> 0 | AJ89: =IFERROR(VLOOKUP($A89,Filtro!$A$5:$AK$2912,34,FALSE),0) -> 0 | AK89: =IFERROR(VLOOKUP($A89,Filtro!$A$5:$AK$2912,35,FALSE),0) -> 0 | AL89: =IFERROR(VLOOKUP($A89,Filtro!$A$5:$AK$2912,36,FALSE),0) -> 549,690 | AM89: =IFERROR(VLOOKUP($A89,Filtro!$A$5:$AK$2912,37,FALSE),0) -> 1,084,320
A90: 01014339 | B90: 0108305 | C90: Teleconsulta Médica de Especialidad en Medicina Familiar | D90: =IFERROR(VLOOKUP($A90,Filtro!$A$5:$AK$2912,2,FALSE),0) -> 0 | E90: =IFERROR(VLOOKUP($A90,Filtro!$A$5:$AK$2912,3,FALSE),0) -> 0 | F90: =IFERROR(VLOOKUP($A90,Filtro!$A$5:$AK$2912,4,FALSE),0) -> 0 | G90: =IFERROR(VLOOKUP($A90,Filtro!$A$5:$AK$2912,5,FALSE),0) -> 0 | H90: =IFERROR(VLOOKUP($A90,Filtro!$A$5:$AK$2912,6,FALSE),0) -> 0 | I90: =IFERROR(VLOOKUP($A90,Filtro!$A$5:$AK$2912,7,FALSE),0) -> 0 | J90: =IFERROR(VLOOKUP($A90,Filtro!$A$5:$AK$2912,8,FALSE),0) -> 0 | K90: =IFERROR(VLOOKUP($A90,Filtro!$A$5:$AK$2912,9,FALSE),0) -> 0 | L90: =IFERROR(VLOOKUP($A90,Filtro!$A$5:$AK$2912,10,FALSE),0) -> 0 | M90: =IFERROR(VLOOKUP($A90,Filtro!$A$5:$AK$2912,11,FALSE),0) -> 0 | N90: =IFERROR(VLOOKUP($A90,Filtro!$A$5:$AK$2912,12,FALSE),0) -> 0 | O90: =IFERROR(VLOOKUP($A90,Filtro!$A$5:$AK$2912,13,FALSE),0) -> 0 | P90: =IFERROR(VLOOKUP($A90,Filtro!$A$5:$AK$2912,14,FALSE),0) -> 0 | Q90: =IFERROR(VLOOKUP($A90,Filtro!$A$5:$AK$2912,15,FALSE),0) -> 0 | R90: =IFERROR(VLOOKUP($A90,Filtro!$A$5:$AK$2912,16,FALSE),0) -> 0 | S90: =IFERROR(VLOOKUP($A90,Filtro!$A$5:$AK$2912,17,FALSE),0) -> 0 | T90: =IFERROR(VLOOKUP($A90,Filtro!$A$5:$AK$2912,18,FALSE),0) -> 0 | U90: =IFERROR(VLOOKUP($A90,Filtro!$A$5:$AK$2912,19,FALSE),0) -> 0 | V90: =IFERROR(VLOOKUP($A90,Filtro!$A$5:$AK$2912,20,FALSE),0) -> 0 | W90: =IFERROR(VLOOKUP($A90,Filtro!$A$5:$AK$2912,21,FALSE),0) -> 0 | X90: =IFERROR(VLOOKUP($A90,Filtro!$A$5:$AK$2912,22,FALSE),0) -> 0 | Y90: =IFERROR(VLOOKUP($A90,Filtro!$A$5:$AK$2912,23,FALSE),0) -> 0 | Z90: =IFERROR(VLOOKUP($A90,Filtro!$A$5:$AK$2912,24,FALSE),0) -> 0 | AA90: =IFERROR(VLOOKUP($A90,Filtro!$A$5:$AK$2912,25,FALSE),0) -> 0 | AB90: =IFERROR(VLOOKUP($A90,Filtro!$A$5:$AK$2912,26,FALSE),0) -> 0 | AC90: =IFERROR(VLOOKUP($A90,Filtro!$A$5:$AK$2912,27,FALSE),0) -> 0 | AD90: =IFERROR(VLOOKUP($A90,Filtro!$A$5:$AK$2912,28,FALSE),0) -> 0 | AE90: =IFERROR(VLOOKUP($A90,Filtro!$A$5:$AK$2912,29,FALSE),0) -> 0 | AF90: =IFERROR(VLOOKUP($A90,Filtro!$A$5:$AK$2912,30,FALSE),0) -> 0 | AG90: =IFERROR(VLOOKUP($A90,Filtro!$A$5:$AK$2912,31,FALSE),0) -> 0 | AH90: =IFERROR(VLOOKUP($A90,Filtro!$A$5:$AK$2912,32,FALSE),0) -> 0 | AI90: =IFERROR(VLOOKUP($A90,Filtro!$A$5:$AK$2912,33,FALSE),0) -> 0 | AJ90: =IFERROR(VLOOKUP($A90,Filtro!$A$5:$AK$2912,34,FALSE),0) -> 0 | AK90: =IFERROR(VLOOKUP($A90,Filtro!$A$5:$AK$2912,35,FALSE),0) -> 0 | AL90: =IFERROR(VLOOKUP($A90,Filtro!$A$5:$AK$2912,36,FALSE),0) -> 564,750 | AM90: =IFERROR(VLOOKUP($A90,Filtro!$A$5:$AK$2912,37,FALSE),0) -> 0
A91: 01014340 | B91: 0108306 | C91: Teleconsulta Médica de Especialidad en Medicina Física y Rehabilitación | D91: =IFERROR(VLOOKUP($A91,Filtro!$A$5:$AK$2912,2,FALSE),0) -> 14 | E91: =IFERROR(VLOOKUP($A91,Filtro!$A$5:$AK$2912,3,FALSE),0) -> 14 | F91: =IFERROR(VLOOKUP($A91,Filtro!$A$5:$AK$2912,4,FALSE),0) -> 14 | G91: =IFERROR(VLOOKUP($A91,Filtro!$A$5:$AK$2912,5,FALSE),0) -> 0 | H91: =IFERROR(VLOOKUP($A91,Filtro!$A$5:$AK$2912,6,FALSE),0) -> 0 | I91: =IFERROR(VLOOKUP($A91,Filtro!$A$5:$AK$2912,7,FALSE),0) -> 0 | J91: =IFERROR(VLOOKUP($A91,Filtro!$A$5:$AK$2912,8,FALSE),0) -> 0 | K91: =IFERROR(VLOOKUP($A91,Filtro!$A$5:$AK$2912,9,FALSE),0) -> 0 | L91: =IFERROR(VLOOKUP($A91,Filtro!$A$5:$AK$2912,10,FALSE),0) -> 0 | M91: =IFERROR(VLOOKUP($A91,Filtro!$A$5:$AK$2912,11,FALSE),0) -> 0 | N91: =IFERROR(VLOOKUP($A91,Filtro!$A$5:$AK$2912,12,FALSE),0) -> 0 | O91: =IFERROR(VLOOKUP($A91,Filtro!$A$5:$AK$2912,13,FALSE),0) -> 0 | P91: =IFERROR(VLOOKUP($A91,Filtro!$A$5:$AK$2912,14,FALSE),0) -> 0 | Q91: =IFERROR(VLOOKUP($A91,Filtro!$A$5:$AK$2912,15,FALSE),0) -> 0 | R91: =IFERROR(VLOOKUP($A91,Filtro!$A$5:$AK$2912,16,FALSE),0) -> 0 | S91: =IFERROR(VLOOKUP($A91,Filtro!$A$5:$AK$2912,17,FALSE),0) -> 0 | T91: =IFERROR(VLOOKUP($A91,Filtro!$A$5:$AK$2912,18,FALSE),0) -> 0 | U91: =IFERROR(VLOOKUP($A91,Filtro!$A$5:$AK$2912,19,FALSE),0) -> 0 | V91: =IFERROR(VLOOKUP($A91,Filtro!$A$5:$AK$2912,20,FALSE),0) -> 0 | W91: =IFERROR(VLOOKUP($A91,Filtro!$A$5:$AK$2912,21,FALSE),0) -> 0 | X91: =IFERROR(VLOOKUP($A91,Filtro!$A$5:$AK$2912,22,FALSE),0) -> 0 | Y91: =IFERROR(VLOOKUP($A91,Filtro!$A$5:$AK$2912,23,FALSE),0) -> 0 | Z91: =IFERROR(VLOOKUP($A91,Filtro!$A$5:$AK$2912,24,FALSE),0) -> 0 | AA91: =IFERROR(VLOOKUP($A91,Filtro!$A$5:$AK$2912,25,FALSE),0) -> 0 | AB91: =IFERROR(VLOOKUP($A91,Filtro!$A$5:$AK$2912,26,FALSE),0) -> 0 | AC91: =IFERROR(VLOOKUP($A91,Filtro!$A$5:$AK$2912,27,FALSE),0) -> 14 | AD91: =IFERROR(VLOOKUP($A91,Filtro!$A$5:$AK$2912,28,FALSE),0) -> 0 | AE91: =IFERROR(VLOOKUP($A91,Filtro!$A$5:$AK$2912,29,FALSE),0) -> 0 | AF91: =IFERROR(VLOOKUP($A91,Filtro!$A$5:$AK$2912,30,FALSE),0) -> 0 | AG91: =IFERROR(VLOOKUP($A91,Filtro!$A$5:$AK$2912,31,FALSE),0) -> 0 | AH91: =IFERROR(VLOOKUP($A91,Filtro!$A$5:$AK$2912,32,FALSE),0) -> 0 | AI91: =IFERROR(VLOOKUP($A91,Filtro!$A$5:$AK$2912,33,FALSE),0) -> 0 | AJ91: =IFERROR(VLOOKUP($A91,Filtro!$A$5:$AK$2912,34,FALSE),0) -> 0 | AK91: =IFERROR(VLOOKUP($A91,Filtro!$A$5:$AK$2912,35,FALSE),0) -> 0 | AL91: =IFERROR(VLOOKUP($A91,Filtro!$A$5:$AK$2912,36,FALSE),0) -> 564,750 | AM91: =IFERROR(VLOOKUP($A91,Filtro!$A$5:$AK$2912,37,FALSE),0) -> 105,420
A92: 01014341 | B92: 0108307 | C92: Teleconsulta Médica de Especialidad en Medicina Interna | D92: =IFERROR(VLOOKUP($A92,Filtro!$A$5:$AK$2912,2,FALSE),0) -> 1332 | E92: =IFERROR(VLOOKUP($A92,Filtro!$A$5:$AK$2912,3,FALSE),0) -> 1321 | F92: =IFERROR(VLOOKUP($A92,Filtro!$A$5:$AK$2912,4,FALSE),0) -> 1321 | G92: =IFERROR(VLOOKUP($A92,Filtro!$A$5:$AK$2912,5,FALSE),0) -> 0 | H92: =IFERROR(VLOOKUP($A92,Filtro!$A$5:$AK$2912,6,FALSE),0) -> 11 | I92: =IFERROR(VLOOKUP($A92,Filtro!$A$5:$AK$2912,7,FALSE),0) -> 0 | J92: =IFERROR(VLOOKUP($A92,Filtro!$A$5:$AK$2912,8,FALSE),0) -> 0 | K92: =IFERROR(VLOOKUP($A92,Filtro!$A$5:$AK$2912,9,FALSE),0) -> 0 | L92: =IFERROR(VLOOKUP($A92,Filtro!$A$5:$AK$2912,10,FALSE),0) -> 0 | M92: =IFERROR(VLOOKUP($A92,Filtro!$A$5:$AK$2912,11,FALSE),0) -> 0 | N92: =IFERROR(VLOOKUP($A92,Filtro!$A$5:$AK$2912,12,FALSE),0) -> 0 | O92: =IFERROR(VLOOKUP($A92,Filtro!$A$5:$AK$2912,13,FALSE),0) -> 0 | P92: =IFERROR(VLOOKUP($A92,Filtro!$A$5:$AK$2912,14,FALSE),0) -> 0 | Q92: =IFERROR(VLOOKUP($A92,Filtro!$A$5:$AK$2912,15,FALSE),0) -> 0 | R92: =IFERROR(VLOOKUP($A92,Filtro!$A$5:$AK$2912,16,FALSE),0) -> 0 | S92: =IFERROR(VLOOKUP($A92,Filtro!$A$5:$AK$2912,17,FALSE),0) -> 0 | T92: =IFERROR(VLOOKUP($A92,Filtro!$A$5:$AK$2912,18,FALSE),0) -> 0 | U92: =IFERROR(VLOOKUP($A92,Filtro!$A$5:$AK$2912,19,FALSE),0) -> 0 | V92: =IFERROR(VLOOKUP($A92,Filtro!$A$5:$AK$2912,20,FALSE),0) -> 0 | W92: =IFERROR(VLOOKUP($A92,Filtro!$A$5:$AK$2912,21,FALSE),0) -> 0 | X92: =IFERROR(VLOOKUP($A92,Filtro!$A$5:$AK$2912,22,FALSE),0) -> 0 | Y92: =IFERROR(VLOOKUP($A92,Filtro!$A$5:$AK$2912,23,FALSE),0) -> 0 | Z92: =IFERROR(VLOOKUP($A92,Filtro!$A$5:$AK$2912,24,FALSE),0) -> 0 | AA92: =IFERROR(VLOOKUP($A92,Filtro!$A$5:$AK$2912,25,FALSE),0) -> 0 | AB92: =IFERROR(VLOOKUP($A92,Filtro!$A$5:$AK$2912,26,FALSE),0) -> 0 | AC92: =IFERROR(VLOOKUP($A92,Filtro!$A$5:$AK$2912,27,FALSE),0) -> 1332 | AD92: =IFERROR(VLOOKUP($A92,Filtro!$A$5:$AK$2912,28,FALSE),0) -> 0 | AE92: =IFERROR(VLOOKUP($A92,Filtro!$A$5:$AK$2912,29,FALSE),0) -> 0 | AF92: =IFERROR(VLOOKUP($A92,Filtro!$A$5:$AK$2912,30,FALSE),0) -> 0 | AG92: =IFERROR(VLOOKUP($A92,Filtro!$A$5:$AK$2912,31,FALSE),0) -> 0 | AH92: =IFERROR(VLOOKUP($A92,Filtro!$A$5:$AK$2912,32,FALSE),0) -> 0 | AI92: =IFERROR(VLOOKUP($A92,Filtro!$A$5:$AK$2912,33,FALSE),0) -> 0 | AJ92: =IFERROR(VLOOKUP($A92,Filtro!$A$5:$AK$2912,34,FALSE),0) -> 0 | AK92: =IFERROR(VLOOKUP($A92,Filtro!$A$5:$AK$2912,35,FALSE),0) -> 0 | AL92: =IFERROR(VLOOKUP($A92,Filtro!$A$5:$AK$2912,36,FALSE),0) -> 564,750 | AM92: =IFERROR(VLOOKUP($A92,Filtro!$A$5:$AK$2912,37,FALSE),0) -> 9,947,130
A93: 01014342 | B93: 0108308 | C93: Teleconsulta Médica de Especialidad en Obstetricia y Ginecología | D93: =IFERROR(VLOOKUP($A93,Filtro!$A$5:$AK$2912,2,FALSE),0) -> 3 | E93: =IFERROR(VLOOKUP($A93,Filtro!$A$5:$AK$2912,3,FALSE),0) -> 3 | F93: =IFERROR(VLOOKUP($A93,Filtro!$A$5:$AK$2912,4,FALSE),0) -> 3 | G93: =IFERROR(VLOOKUP($A93,Filtro!$A$5:$AK$2912,5,FALSE),0) -> 0 | H93: =IFERROR(VLOOKUP($A93,Filtro!$A$5:$AK$2912,6,FALSE),0) -> 0 | I93: =IFERROR(VLOOKUP($A93,Filtro!$A$5:$AK$2912,7,FALSE),0) -> 0 | J93: =IFERROR(VLOOKUP($A93,Filtro!$A$5:$AK$2912,8,FALSE),0) -> 0 | K93: =IFERROR(VLOOKUP($A93,Filtro!$A$5:$AK$2912,9,FALSE),0) -> 0 | L93: =IFERROR(VLOOKUP($A93,Filtro!$A$5:$AK$2912,10,FALSE),0) -> 0 | M93: =IFERROR(VLOOKUP($A93,Filtro!$A$5:$AK$2912,11,FALSE),0) -> 0 | N93: =IFERROR(VLOOKUP($A93,Filtro!$A$5:$AK$2912,12,FALSE),0) -> 0 | O93: =IFERROR(VLOOKUP($A93,Filtro!$A$5:$AK$2912,13,FALSE),0) -> 0 | P93: =IFERROR(VLOOKUP($A93,Filtro!$A$5:$AK$2912,14,FALSE),0) -> 0 | Q93: =IFERROR(VLOOKUP($A93,Filtro!$A$5:$AK$2912,15,FALSE),0) -> 0 | R93: =IFERROR(VLOOKUP($A93,Filtro!$A$5:$AK$2912,16,FALSE),0) -> 0 | S93: =IFERROR(VLOOKUP($A93,Filtro!$A$5:$AK$2912,17,FALSE),0) -> 0 | T93: =IFERROR(VLOOKUP($A93,Filtro!$A$5:$AK$2912,18,FALSE),0) -> 0 | U93: =IFERROR(VLOOKUP($A93,Filtro!$A$5:$AK$2912,19,FALSE),0) -> 0 | V93: =IFERROR(VLOOKUP($A93,Filtro!$A$5:$AK$2912,20,FALSE),0) -> 0 | W93: =IFERROR(VLOOKUP($A93,Filtro!$A$5:$AK$2912,21,FALSE),0) -> 0 | X93: =IFERROR(VLOOKUP($A93,Filtro!$A$5:$AK$2912,22,FALSE),0) -> 0 | Y93: =IFERROR(VLOOKUP($A93,Filtro!$A$5:$AK$2912,23,FALSE),0) -> 0 | Z93: =IFERROR(VLOOKUP($A93,Filtro!$A$5:$AK$2912,24,FALSE),0) -> 0 | AA93: =IFERROR(VLOOKUP($A93,Filtro!$A$5:$AK$2912,25,FALSE),0) -> 0 | AB93: =IFERROR(VLOOKUP($A93,Filtro!$A$5:$AK$2912,26,FALSE),0) -> 0 | AC93: =IFERROR(VLOOKUP($A93,Filtro!$A$5:$AK$2912,27,FALSE),0) -> 3 | AD93: =IFERROR(VLOOKUP($A93,Filtro!$A$5:$AK$2912,28,FALSE),0) -> 0 | AE93: =IFERROR(VLOOKUP($A93,Filtro!$A$5:$AK$2912,29,FALSE),0) -> 0 | AF93: =IFERROR(VLOOKUP($A93,Filtro!$A$5:$AK$2912,30,FALSE),0) -> 0 | AG93: =IFERROR(VLOOKUP($A93,Filtro!$A$5:$AK$2912,31,FALSE),0) -> 0 | AH93: =IFERROR(VLOOKUP($A93,Filtro!$A$5:$AK$2912,32,FALSE),0) -> 0 | AI93: =IFERROR(VLOOKUP($A93,Filtro!$A$5:$AK$2912,33,FALSE),0) -> 0 | AJ93: =IFERROR(VLOOKUP($A93,Filtro!$A$5:$AK$2912,34,FALSE),0) -> 0 | AK93: =IFERROR(VLOOKUP($A93,Filtro!$A$5:$AK$2912,35,FALSE),0) -> 0 | AL93: =IFERROR(VLOOKUP($A93,Filtro!$A$5:$AK$2912,36,FALSE),0) -> 564,750 | AM93: =IFERROR(VLOOKUP($A93,Filtro!$A$5:$AK$2912,37,FALSE),0) -> 22,590
A94: 01014343 | B94: 0108309 | C94: Teleconsulta Médica de Especialidad en Pediatría | D94: =IFERROR(VLOOKUP($A94,Filtro!$A$5:$AK$2912,2,FALSE),0) -> 272 | E94: =IFERROR(VLOOKUP($A94,Filtro!$A$5:$AK$2912,3,FALSE),0) -> 268 | F94: =IFERROR(VLOOKUP($A94,Filtro!$A$5:$AK$2912,4,FALSE),0) -> 268 | G94: =IFERROR(VLOOKUP($A94,Filtro!$A$5:$AK$2912,5,FALSE),0) -> 0 | H94: =IFERROR(VLOOKUP($A94,Filtro!$A$5:$AK$2912,6,FALSE),0) -> 4 | I94: =IFERROR(VLOOKUP($A94,Filtro!$A$5:$AK$2912,7,FALSE),0) -> 0 | J94: =IFERROR(VLOOKUP($A94,Filtro!$A$5:$AK$2912,8,FALSE),0) -> 0 | K94: =IFERROR(VLOOKUP($A94,Filtro!$A$5:$AK$2912,9,FALSE),0) -> 0 | L94: =IFERROR(VLOOKUP($A94,Filtro!$A$5:$AK$2912,10,FALSE),0) -> 0 | M94: =IFERROR(VLOOKUP($A94,Filtro!$A$5:$AK$2912,11,FALSE),0) -> 0 | N94: =IFERROR(VLOOKUP($A94,Filtro!$A$5:$AK$2912,12,FALSE),0) -> 0 | O94: =IFERROR(VLOOKUP($A94,Filtro!$A$5:$AK$2912,13,FALSE),0) -> 0 | P94: =IFERROR(VLOOKUP($A94,Filtro!$A$5:$AK$2912,14,FALSE),0) -> 0 | Q94: =IFERROR(VLOOKUP($A94,Filtro!$A$5:$AK$2912,15,FALSE),0) -> 0 | R94: =IFERROR(VLOOKUP($A94,Filtro!$A$5:$AK$2912,16,FALSE),0) -> 0 | S94: =IFERROR(VLOOKUP($A94,Filtro!$A$5:$AK$2912,17,FALSE),0) -> 0 | T94: =IFERROR(VLOOKUP($A94,Filtro!$A$5:$AK$2912,18,FALSE),0) -> 0 | U94: =IFERROR(VLOOKUP($A94,Filtro!$A$5:$AK$2912,19,FALSE),0) -> 0 | V94: =IFERROR(VLOOKUP($A94,Filtro!$A$5:$AK$2912,20,FALSE),0) -> 0 | W94: =IFERROR(VLOOKUP($A94,Filtro!$A$5:$AK$2912,21,FALSE),0) -> 0 | X94: =IFERROR(VLOOKUP($A94,Filtro!$A$5:$AK$2912,22,FALSE),0) -> 0 | Y94: =IFERROR(VLOOKUP($A94,Filtro!$A$5:$AK$2912,23,FALSE),0) -> 0 | Z94: =IFERROR(VLOOKUP($A94,Filtro!$A$5:$AK$2912,24,FALSE),0) -> 0 | AA94: =IFERROR(VLOOKUP($A94,Filtro!$A$5:$AK$2912,25,FALSE),0) -> 0 | AB94: =IFERROR(VLOOKUP($A94,Filtro!$A$5:$AK$2912,26,FALSE),0) -> 0 | AC94: =IFERROR(VLOOKUP($A94,Filtro!$A$5:$AK$2912,27,FALSE),0) -> 272 | AD94: =IFERROR(VLOOKUP($A94,Filtro!$A$5:$AK$2912,28,FALSE),0) -> 0 | AE94: =IFERROR(VLOOKUP($A94,Filtro!$A$5:$AK$2912,29,FALSE),0) -> 0 | AF94: =IFERROR(VLOOKUP($A94,Filtro!$A$5:$AK$2912,30,FALSE),0) -> 0 | AG94: =IFERROR(VLOOKUP($A94,Filtro!$A$5:$AK$2912,31,FALSE),0) -> 0 | AH94: =IFERROR(VLOOKUP($A94,Filtro!$A$5:$AK$2912,32,FALSE),0) -> 0 | AI94: =IFERROR(VLOOKUP($A94,Filtro!$A$5:$AK$2912,33,FALSE),0) -> 0 | AJ94: =IFERROR(VLOOKUP($A94,Filtro!$A$5:$AK$2912,34,FALSE),0) -> 0 | AK94: =IFERROR(VLOOKUP($A94,Filtro!$A$5:$AK$2912,35,FALSE),0) -> 0 | AL94: =IFERROR(VLOOKUP($A94,Filtro!$A$5:$AK$2912,36,FALSE),0) -> 564,750 | AM94: =IFERROR(VLOOKUP($A94,Filtro!$A$5:$AK$2912,37,FALSE),0) -> 2,018,040
A95: 01014344 | B95: 0108310 | C95: Teleconsulta Médica de Especialidad en Traumatología y Ortopedia | D95: =IFERROR(VLOOKUP($A95,Filtro!$A$5:$AK$2912,2,FALSE),0) -> 0 | E95: =IFERROR(VLOOKUP($A95,Filtro!$A$5:$AK$2912,3,FALSE),0) -> 0 | F95: =IFERROR(VLOOKUP($A95,Filtro!$A$5:$AK$2912,4,FALSE),0) -> 0 | G95: =IFERROR(VLOOKUP($A95,Filtro!$A$5:$AK$2912,5,FALSE),0) -> 0 | H95: =IFERROR(VLOOKUP($A95,Filtro!$A$5:$AK$2912,6,FALSE),0) -> 0 | I95: =IFERROR(VLOOKUP($A95,Filtro!$A$5:$AK$2912,7,FALSE),0) -> 0 | J95: =IFERROR(VLOOKUP($A95,Filtro!$A$5:$AK$2912,8,FALSE),0) -> 0 | K95: =IFERROR(VLOOKUP($A95,Filtro!$A$5:$AK$2912,9,FALSE),0) -> 0 | L95: =IFERROR(VLOOKUP($A95,Filtro!$A$5:$AK$2912,10,FALSE),0) -> 0 | M95: =IFERROR(VLOOKUP($A95,Filtro!$A$5:$AK$2912,11,FALSE),0) -> 0 | N95: =IFERROR(VLOOKUP($A95,Filtro!$A$5:$AK$2912,12,FALSE),0) -> 0 | O95: =IFERROR(VLOOKUP($A95,Filtro!$A$5:$AK$2912,13,FALSE),0) -> 0 | P95: =IFERROR(VLOOKUP($A95,Filtro!$A$5:$AK$2912,14,FALSE),0) -> 0 | Q95: =IFERROR(VLOOKUP($A95,Filtro!$A$5:$AK$2912,15,FALSE),0) -> 0 | R95: =IFERROR(VLOOKUP($A95,Filtro!$A$5:$AK$2912,16,FALSE),0) -> 0 | S95: =IFERROR(VLOOKUP($A95,Filtro!$A$5:$AK$2912,17,FALSE),0) -> 0 | T95: =IFERROR(VLOOKUP($A95,Filtro!$A$5:$AK$2912,18,FALSE),0) -> 0 | U95: =IFERROR(VLOOKUP($A95,Filtro!$A$5:$AK$2912,19,FALSE),0) -> 0 | V95: =IFERROR(VLOOKUP($A95,Filtro!$A$5:$AK$2912,20,FALSE),0) -> 0 | W95: =IFERROR(VLOOKUP($A95,Filtro!$A$5:$AK$2912,21,FALSE),0) -> 0 | X95: =IFERROR(VLOOKUP($A95,Filtro!$A$5:$AK$2912,22,FALSE),0) -> 0 | Y95: =IFERROR(VLOOKUP($A95,Filtro!$A$5:$AK$2912,23,FALSE),0) -> 0 | Z95: =IFERROR(VLOOKUP($A95,Filtro!$A$5:$AK$2912,24,FALSE),0) -> 0 | AA95: =IFERROR(VLOOKUP($A95,Filtro!$A$5:$AK$2912,25,FALSE),0) -> 0 | AB95: =IFERROR(VLOOKUP($A95,Filtro!$A$5:$AK$2912,26,FALSE),0) -> 0 | AC95: =IFERROR(VLOOKUP($A95,Filtro!$A$5:$AK$2912,27,FALSE),0) -> 0 | AD95: =IFERROR(VLOOKUP($A95,Filtro!$A$5:$AK$2912,28,FALSE),0) -> 0 | AE95: =IFERROR(VLOOKUP($A95,Filtro!$A$5:$AK$2912,29,FALSE),0) -> 0 | AF95: =IFERROR(VLOOKUP($A95,Filtro!$A$5:$AK$2912,30,FALSE),0) -> 0 | AG95: =IFERROR(VLOOKUP($A95,Filtro!$A$5:$AK$2912,31,FALSE),0) -> 0 | AH95: =IFERROR(VLOOKUP($A95,Filtro!$A$5:$AK$2912,32,FALSE),0) -> 0 | AI95: =IFERROR(VLOOKUP($A95,Filtro!$A$5:$AK$2912,33,FALSE),0) -> 0 | AJ95: =IFERROR(VLOOKUP($A95,Filtro!$A$5:$AK$2912,34,FALSE),0) -> 0 | AK95: =IFERROR(VLOOKUP($A95,Filtro!$A$5:$AK$2912,35,FALSE),0) -> 0 | AL95: =IFERROR(VLOOKUP($A95,Filtro!$A$5:$AK$2912,36,FALSE),0) -> 564,750 | AM95: =IFERROR(VLOOKUP($A95,Filtro!$A$5:$AK$2912,37,FALSE),0) -> 0
A96: 01014345 | B96: 0108311 | C96: Teleconsulta Médica de Especialidad en Urología | D96: =IFERROR(VLOOKUP($A96,Filtro!$A$5:$AK$2912,2,FALSE),0) -> 1 | E96: =IFERROR(VLOOKUP($A96,Filtro!$A$5:$AK$2912,3,FALSE),0) -> 1 | F96: =IFERROR(VLOOKUP($A96,Filtro!$A$5:$AK$2912,4,FALSE),0) -> 1 | G96: =IFERROR(VLOOKUP($A96,Filtro!$A$5:$AK$2912,5,FALSE),0) -> 0 | H96: =IFERROR(VLOOKUP($A96,Filtro!$A$5:$AK$2912,6,FALSE),0) -> 0 | I96: =IFERROR(VLOOKUP($A96,Filtro!$A$5:$AK$2912,7,FALSE),0) -> 0 | J96: =IFERROR(VLOOKUP($A96,Filtro!$A$5:$AK$2912,8,FALSE),0) -> 0 | K96: =IFERROR(VLOOKUP($A96,Filtro!$A$5:$AK$2912,9,FALSE),0) -> 0 | L96: =IFERROR(VLOOKUP($A96,Filtro!$A$5:$AK$2912,10,FALSE),0) -> 0 | M96: =IFERROR(VLOOKUP($A96,Filtro!$A$5:$AK$2912,11,FALSE),0) -> 0 | N96: =IFERROR(VLOOKUP($A96,Filtro!$A$5:$AK$2912,12,FALSE),0) -> 0 | O96: =IFERROR(VLOOKUP($A96,Filtro!$A$5:$AK$2912,13,FALSE),0) -> 0 | P96: =IFERROR(VLOOKUP($A96,Filtro!$A$5:$AK$2912,14,FALSE),0) -> 0 | Q96: =IFERROR(VLOOKUP($A96,Filtro!$A$5:$AK$2912,15,FALSE),0) -> 0 | R96: =IFERROR(VLOOKUP($A96,Filtro!$A$5:$AK$2912,16,FALSE),0) -> 0 | S96: =IFERROR(VLOOKUP($A96,Filtro!$A$5:$AK$2912,17,FALSE),0) -> 0 | T96: =IFERROR(VLOOKUP($A96,Filtro!$A$5:$AK$2912,18,FALSE),0) -> 0 | U96: =IFERROR(VLOOKUP($A96,Filtro!$A$5:$AK$2912,19,FALSE),0) -> 0 | V96: =IFERROR(VLOOKUP($A96,Filtro!$A$5:$AK$2912,20,FALSE),0) -> 0 | W96: =IFERROR(VLOOKUP($A96,Filtro!$A$5:$AK$2912,21,FALSE),0) -> 0 | X96: =IFERROR(VLOOKUP($A96,Filtro!$A$5:$AK$2912,22,FALSE),0) -> 0 | Y96: =IFERROR(VLOOKUP($A96,Filtro!$A$5:$AK$2912,23,FALSE),0) -> 0 | Z96: =IFERROR(VLOOKUP($A96,Filtro!$A$5:$AK$2912,24,FALSE),0) -> 0 | AA96: =IFERROR(VLOOKUP($A96,Filtro!$A$5:$AK$2912,25,FALSE),0) -> 0 | AB96: =IFERROR(VLOOKUP($A96,Filtro!$A$5:$AK$2912,26,FALSE),0) -> 0 | AC96: =IFERROR(VLOOKUP($A96,Filtro!$A$5:$AK$2912,27,FALSE),0) -> 1 | AD96: =IFERROR(VLOOKUP($A96,Filtro!$A$5:$AK$2912,28,FALSE),0) -> 0 | AE96: =IFERROR(VLOOKUP($A96,Filtro!$A$5:$AK$2912,29,FALSE),0) -> 0 | AF96: =IFERROR(VLOOKUP($A96,Filtro!$A$5:$AK$2912,30,FALSE),0) -> 0 | AG96: =IFERROR(VLOOKUP($A96,Filtro!$A$5:$AK$2912,31,FALSE),0) -> 0 | AH96: =IFERROR(VLOOKUP($A96,Filtro!$A$5:$AK$2912,32,FALSE),0) -> 0 | AI96: =IFERROR(VLOOKUP($A96,Filtro!$A$5:$AK$2912,33,FALSE),0) -> 0 | AJ96: =IFERROR(VLOOKUP($A96,Filtro!$A$5:$AK$2912,34,FALSE),0) -> 0 | AK96: =IFERROR(VLOOKUP($A96,Filtro!$A$5:$AK$2912,35,FALSE),0) -> 0 | AL96: =IFERROR(VLOOKUP($A96,Filtro!$A$5:$AK$2912,36,FALSE),0) -> 564,750 | AM96: =IFERROR(VLOOKUP($A96,Filtro!$A$5:$AK$2912,37,FALSE),0) -> 7,530
A97: 01014346 | B97: 0108319 | C97: Teleconsulta Médica de Especialidad en Coloproctología | D97: =IFERROR(VLOOKUP($A97,Filtro!$A$5:$AK$2912,2,FALSE),0) -> 0 | E97: =IFERROR(VLOOKUP($A97,Filtro!$A$5:$AK$2912,3,FALSE),0) -> 0 | F97: =IFERROR(VLOOKUP($A97,Filtro!$A$5:$AK$2912,4,FALSE),0) -> 0 | G97: =IFERROR(VLOOKUP($A97,Filtro!$A$5:$AK$2912,5,FALSE),0) -> 0 | H97: =IFERROR(VLOOKUP($A97,Filtro!$A$5:$AK$2912,6,FALSE),0) -> 0 | I97: =IFERROR(VLOOKUP($A97,Filtro!$A$5:$AK$2912,7,FALSE),0) -> 0 | J97: =IFERROR(VLOOKUP($A97,Filtro!$A$5:$AK$2912,8,FALSE),0) -> 0 | K97: =IFERROR(VLOOKUP($A97,Filtro!$A$5:$AK$2912,9,FALSE),0) -> 0 | L97: =IFERROR(VLOOKUP($A97,Filtro!$A$5:$AK$2912,10,FALSE),0) -> 0 | M97: =IFERROR(VLOOKUP($A97,Filtro!$A$5:$AK$2912,11,FALSE),0) -> 0 | N97: =IFERROR(VLOOKUP($A97,Filtro!$A$5:$AK$2912,12,FALSE),0) -> 0 | O97: =IFERROR(VLOOKUP($A97,Filtro!$A$5:$AK$2912,13,FALSE),0) -> 0 | P97: =IFERROR(VLOOKUP($A97,Filtro!$A$5:$AK$2912,14,FALSE),0) -> 0 | Q97: =IFERROR(VLOOKUP($A97,Filtro!$A$5:$AK$2912,15,FALSE),0) -> 0 | R97: =IFERROR(VLOOKUP($A97,Filtro!$A$5:$AK$2912,16,FALSE),0) -> 0 | S97: =IFERROR(VLOOKUP($A97,Filtro!$A$5:$AK$2912,17,FALSE),0) -> 0 | T97: =IFERROR(VLOOKUP($A97,Filtro!$A$5:$AK$2912,18,FALSE),0) -> 0 | U97: =IFERROR(VLOOKUP($A97,Filtro!$A$5:$AK$2912,19,FALSE),0) -> 0 | V97: =IFERROR(VLOOKUP($A97,Filtro!$A$5:$AK$2912,20,FALSE),0) -> 0 | W97: =IFERROR(VLOOKUP($A97,Filtro!$A$5:$AK$2912,21,FALSE),0) -> 0 | X97: =IFERROR(VLOOKUP($A97,Filtro!$A$5:$AK$2912,22,FALSE),0) -> 0 | Y97: =IFERROR(VLOOKUP($A97,Filtro!$A$5:$AK$2912,23,FALSE),0) -> 0 | Z97: =IFERROR(VLOOKUP($A97,Filtro!$A$5:$AK$2912,24,FALSE),0) -> 0 | AA97: =IFERROR(VLOOKUP($A97,Filtro!$A$5:$AK$2912,25,FALSE),0) -> 0 | AB97: =IFERROR(VLOOKUP($A97,Filtro!$A$5:$AK$2912,26,FALSE),0) -> 0 | AC97: =IFERROR(VLOOKUP($A97,Filtro!$A$5:$AK$2912,27,FALSE),0) -> 0 | AD97: =IFERROR(VLOOKUP($A97,Filtro!$A$5:$AK$2912,28,FALSE),0) -> 0 | AE97: =IFERROR(VLOOKUP($A97,Filtro!$A$5:$AK$2912,29,FALSE),0) -> 0 | AF97: =IFERROR(VLOOKUP($A97,Filtro!$A$5:$AK$2912,30,FALSE),0) -> 0 | AG97: =IFERROR(VLOOKUP($A97,Filtro!$A$5:$AK$2912,31,FALSE),0) -> 0 | AH97: =IFERROR(VLOOKUP($A97,Filtro!$A$5:$AK$2912,32,FALSE),0) -> 0 | AI97: =IFERROR(VLOOKUP($A97,Filtro!$A$5:$AK$2912,33,FALSE),0) -> 0 | AJ97: =IFERROR(VLOOKUP($A97,Filtro!$A$5:$AK$2912,34,FALSE),0) -> 0 | AK97: =IFERROR(VLOOKUP($A97,Filtro!$A$5:$AK$2912,35,FALSE),0) -> 0 | AL97: =IFERROR(VLOOKUP($A97,Filtro!$A$5:$AK$2912,36,FALSE),0) -> 564,750 | AM97: =IFERROR(VLOOKUP($A97,Filtro!$A$5:$AK$2912,37,FALSE),0) -> 0
A98: 01014347 | B98: 0108320 | C98: Teleconsulta Médica de Especialidad en Diabetología | D98: =IFERROR(VLOOKUP($A98,Filtro!$A$5:$AK$2912,2,FALSE),0) -> 3 | E98: =IFERROR(VLOOKUP($A98,Filtro!$A$5:$AK$2912,3,FALSE),0) -> 3 | F98: =IFERROR(VLOOKUP($A98,Filtro!$A$5:$AK$2912,4,FALSE),0) -> 3 | G98: =IFERROR(VLOOKUP($A98,Filtro!$A$5:$AK$2912,5,FALSE),0) -> 0 | H98: =IFERROR(VLOOKUP($A98,Filtro!$A$5:$AK$2912,6,FALSE),0) -> 0 | I98: =IFERROR(VLOOKUP($A98,Filtro!$A$5:$AK$2912,7,FALSE),0) -> 0 | J98: =IFERROR(VLOOKUP($A98,Filtro!$A$5:$AK$2912,8,FALSE),0) -> 0 | K98: =IFERROR(VLOOKUP($A98,Filtro!$A$5:$AK$2912,9,FALSE),0) -> 0 | L98: =IFERROR(VLOOKUP($A98,Filtro!$A$5:$AK$2912,10,FALSE),0) -> 0 | M98: =IFERROR(VLOOKUP($A98,Filtro!$A$5:$AK$2912,11,FALSE),0) -> 0 | N98: =IFERROR(VLOOKUP($A98,Filtro!$A$5:$AK$2912,12,FALSE),0) -> 0 | O98: =IFERROR(VLOOKUP($A98,Filtro!$A$5:$AK$2912,13,FALSE),0) -> 0 | P98: =IFERROR(VLOOKUP($A98,Filtro!$A$5:$AK$2912,14,FALSE),0) -> 0 | Q98: =IFERROR(VLOOKUP($A98,Filtro!$A$5:$AK$2912,15,FALSE),0) -> 0 | R98: =IFERROR(VLOOKUP($A98,Filtro!$A$5:$AK$2912,16,FALSE),0) -> 0 | S98: =IFERROR(VLOOKUP($A98,Filtro!$A$5:$AK$2912,17,FALSE),0) -> 0 | T98: =IFERROR(VLOOKUP($A98,Filtro!$A$5:$AK$2912,18,FALSE),0) -> 0 | U98: =IFERROR(VLOOKUP($A98,Filtro!$A$5:$AK$2912,19,FALSE),0) -> 0 | V98: =IFERROR(VLOOKUP($A98,Filtro!$A$5:$AK$2912,20,FALSE),0) -> 0 | W98: =IFERROR(VLOOKUP($A98,Filtro!$A$5:$AK$2912,21,FALSE),0) -> 0 | X98: =IFERROR(VLOOKUP($A98,Filtro!$A$5:$AK$2912,22,FALSE),0) -> 0 | Y98: =IFERROR(VLOOKUP($A98,Filtro!$A$5:$AK$2912,23,FALSE),0) -> 0 | Z98: =IFERROR(VLOOKUP($A98,Filtro!$A$5:$AK$2912,24,FALSE),0) -> 0 | AA98: =IFERROR(VLOOKUP($A98,Filtro!$A$5:$AK$2912,25,FALSE),0) -> 0 | AB98: =IFERROR(VLOOKUP($A98,Filtro!$A$5:$AK$2912,26,FALSE),0) -> 0 | AC98: =IFERROR(VLOOKUP($A98,Filtro!$A$5:$AK$2912,27,FALSE),0) -> 3 | AD98: =IFERROR(VLOOKUP($A98,Filtro!$A$5:$AK$2912,28,FALSE),0) -> 0 | AE98: =IFERROR(VLOOKUP($A98,Filtro!$A$5:$AK$2912,29,FALSE),0) -> 0 | AF98: =IFERROR(VLOOKUP($A98,Filtro!$A$5:$AK$2912,30,FALSE),0) -> 0 | AG98: =IFERROR(VLOOKUP($A98,Filtro!$A$5:$AK$2912,31,FALSE),0) -> 0 | AH98: =IFERROR(VLOOKUP($A98,Filtro!$A$5:$AK$2912,32,FALSE),0) -> 0 | AI98: =IFERROR(VLOOKUP($A98,Filtro!$A$5:$AK$2912,33,FALSE),0) -> 0 | AJ98: =IFERROR(VLOOKUP($A98,Filtro!$A$5:$AK$2912,34,FALSE),0) -> 0 | AK98: =IFERROR(VLOOKUP($A98,Filtro!$A$5:$AK$2912,35,FALSE),0) -> 0 | AL98: =IFERROR(VLOOKUP($A98,Filtro!$A$5:$AK$2912,36,FALSE),0) -> 564,750 | AM98: =IFERROR(VLOOKUP($A98,Filtro!$A$5:$AK$2912,37,FALSE),0) -> 22,590
A99: 01014348 | B99: 0108321 | C99: Teleconsulta Médica de Especialidad en Enfermedades Respiratorias Adulto | D99: =IFERROR(VLOOKUP($A99,Filtro!$A$5:$AK$2912,2,FALSE),0) -> 33 | E99: =IFERROR(VLOOKUP($A99,Filtro!$A$5:$AK$2912,3,FALSE),0) -> 33 | F99: =IFERROR(VLOOKUP($A99,Filtro!$A$5:$AK$2912,4,FALSE),0) -> 33 | G99: =IFERROR(VLOOKUP($A99,Filtro!$A$5:$AK$2912,5,FALSE),0) -> 0 | H99: =IFERROR(VLOOKUP($A99,Filtro!$A$5:$AK$2912,6,FALSE),0) -> 0 | I99: =IFERROR(VLOOKUP($A99,Filtro!$A$5:$AK$2912,7,FALSE),0) -> 0 | J99: =IFERROR(VLOOKUP($A99,Filtro!$A$5:$AK$2912,8,FALSE),0) -> 0 | K99: =IFERROR(VLOOKUP($A99,Filtro!$A$5:$AK$2912,9,FALSE),0) -> 0 | L99: =IFERROR(VLOOKUP($A99,Filtro!$A$5:$AK$2912,10,FALSE),0) -> 0 | M99: =IFERROR(VLOOKUP($A99,Filtro!$A$5:$AK$2912,11,FALSE),0) -> 0 | N99: =IFERROR(VLOOKUP($A99,Filtro!$A$5:$AK$2912,12,FALSE),0) -> 0 | O99: =IFERROR(VLOOKUP($A99,Filtro!$A$5:$AK$2912,13,FALSE),0) -> 0 | P99: =IFERROR(VLOOKUP($A99,Filtro!$A$5:$AK$2912,14,FALSE),0) -> 0 | Q99: =IFERROR(VLOOKUP($A99,Filtro!$A$5:$AK$2912,15,FALSE),0) -> 0 | R99: =IFERROR(VLOOKUP($A99,Filtro!$A$5:$AK$2912,16,FALSE),0) -> 0 | S99: =IFERROR(VLOOKUP($A99,Filtro!$A$5:$AK$2912,17,FALSE),0) -> 0 | T99: =IFERROR(VLOOKUP($A99,Filtro!$A$5:$AK$2912,18,FALSE),0) -> 0 | U99: =IFERROR(VLOOKUP($A99,Filtro!$A$5:$AK$2912,19,FALSE),0) -> 0 | V99: =IFERROR(VLOOKUP($A99,Filtro!$A$5:$AK$2912,20,FALSE),0) -> 0 | W99: =IFERROR(VLOOKUP($A99,Filtro!$A$5:$AK$2912,21,FALSE),0) -> 0 | X99: =IFERROR(VLOOKUP($A99,Filtro!$A$5:$AK$2912,22,FALSE),0) -> 0 | Y99: =IFERROR(VLOOKUP($A99,Filtro!$A$5:$AK$2912,23,FALSE),0) -> 0 | Z99: =IFERROR(VLOOKUP($A99,Filtro!$A$5:$AK$2912,24,FALSE),0) -> 0 | AA99: =IFERROR(VLOOKUP($A99,Filtro!$A$5:$AK$2912,25,FALSE),0) -> 0 | AB99: =IFERROR(VLOOKUP($A99,Filtro!$A$5:$AK$2912,26,FALSE),0) -> 0 | AC99: =IFERROR(VLOOKUP($A99,Filtro!$A$5:$AK$2912,27,FALSE),0) -> 33 | AD99: =IFERROR(VLOOKUP($A99,Filtro!$A$5:$AK$2912,28,FALSE),0) -> 0 | AE99: =IFERROR(VLOOKUP($A99,Filtro!$A$5:$AK$2912,29,FALSE),0) -> 0 | AF99: =IFERROR(VLOOKUP($A99,Filtro!$A$5:$AK$2912,30,FALSE),0) -> 0 | AG99: =IFERROR(VLOOKUP($A99,Filtro!$A$5:$AK$2912,31,FALSE),0) -> 0 | AH99: =IFERROR(VLOOKUP($A99,Filtro!$A$5:$AK$2912,32,FALSE),0) -> 0 | AI99: =IFERROR(VLOOKUP($A99,Filtro!$A$5:$AK$2912,33,FALSE),0) -> 0 | AJ99: =IFERROR(VLOOKUP($A99,Filtro!$A$5:$AK$2912,34,FALSE),0) -> 0 | AK99: =IFERROR(VLOOKUP($A99,Filtro!$A$5:$AK$2912,35,FALSE),0) -> 0 | AL99: =IFERROR(VLOOKUP($A99,Filtro!$A$5:$AK$2912,36,FALSE),0) -> 564,750 | AM99: =IFERROR(VLOOKUP($A99,Filtro!$A$5:$AK$2912,37,FALSE),0) -> 248,490
A100: 01014349 | B100: 0108322 | C100: Teleconsulta Médica de Especialidad en Enfermedades Respiratorias Pediátricas | D100: =IFERROR(VLOOKUP($A100,Filtro!$A$5:$AK$2912,2,FALSE),0) -> 92 | E100: =IFERROR(VLOOKUP($A100,Filtro!$A$5:$AK$2912,3,FALSE),0) -> 92 | F100: =IFERROR(VLOOKUP($A100,Filtro!$A$5:$AK$2912,4,FALSE),0) -> 92 | G100: =IFERROR(VLOOKUP($A100,Filtro!$A$5:$AK$2912,5,FALSE),0) -> 0 | H100: =IFERROR(VLOOKUP($A100,Filtro!$A$5:$AK$2912,6,FALSE),0) -> 0 | I100: =IFERROR(VLOOKUP($A100,Filtro!$A$5:$AK$2912,7,FALSE),0) -> 0 | J100: =IFERROR(VLOOKUP($A100,Filtro!$A$5:$AK$2912,8,FALSE),0) -> 0 | K100: =IFERROR(VLOOKUP($A100,Filtro!$A$5:$AK$2912,9,FALSE),0) -> 0 | L100: =IFERROR(VLOOKUP($A100,Filtro!$A$5:$AK$2912,10,FALSE),0) -> 0 | M100: =IFERROR(VLOOKUP($A100,Filtro!$A$5:$AK$2912,11,FALSE),0) -> 0 | N100: =IFERROR(VLOOKUP($A100,Filtro!$A$5:$AK$2912,12,FALSE),0) -> 0 | O100: =IFERROR(VLOOKUP($A100,Filtro!$A$5:$AK$2912,13,FALSE),0) -> 0 | P100: =IFERROR(VLOOKUP($A100,Filtro!$A$5:$AK$2912,14,FALSE),0) -> 0 | Q100: =IFERROR(VLOOKUP($A100,Filtro!$A$5:$AK$2912,15,FALSE),0) -> 0 | R100: =IFERROR(VLOOKUP($A100,Filtro!$A$5:$AK$2912,16,FALSE),0) -> 0 | S100: =IFERROR(VLOOKUP($A100,Filtro!$A$5:$AK$2912,17,FALSE),0) -> 0 | T100: =IFERROR(VLOOKUP($A100,Filtro!$A$5:$AK$2912,18,FALSE),0) -> 0 | U100: =IFERROR(VLOOKUP($A100,Filtro!$A$5:$AK$2912,19,FALSE),0) -> 0 | V100: =IFERROR(VLOOKUP($A100,Filtro!$A$5:$AK$2912,20,FALSE),0) -> 0 | W100: =IFERROR(VLOOKUP($A100,Filtro!$A$5:$AK$2912,21,FALSE),0) -> 0 | X100: =IFERROR(VLOOKUP($A100,Filtro!$A$5:$AK$2912,22,FALSE),0) -> 0 | Y100: =IFERROR(VLOOKUP($A100,Filtro!$A$5:$AK$2912,23,FALSE),0) -> 0 | Z100: =IFERROR(VLOOKUP($A100,Filtro!$A$5:$AK$2912,24,FALSE),0) -> 0 | AA100: =IFERROR(VLOOKUP($A100,Filtro!$A$5:$AK$2912,25,FALSE),0) -> 0 | AB100: =IFERROR(VLOOKUP($A100,Filtro!$A$5:$AK$2912,26,FALSE),0) -> 0 | AC100: =IFERROR(VLOOKUP($A100,Filtro!$A$5:$AK$2912,27,FALSE),0) -> 92 | AD100: =IFERROR(VLOOKUP($A100,Filtro!$A$5:$AK$2912,28,FALSE),0) -> 0 | AE100: =IFERROR(VLOOKUP($A100,Filtro!$A$5:$AK$2912,29,FALSE),0) -> 0 | AF100: =IFERROR(VLOOKUP($A100,Filtro!$A$5:$AK$2912,30,FALSE),0) -> 0 | AG100: =IFERROR(VLOOKUP($A100,Filtro!$A$5:$AK$2912,31,FALSE),0) -> 0 | AH100: =IFERROR(VLOOKUP($A100,Filtro!$A$5:$AK$2912,32,FALSE),0) -> 0 | AI100: =IFERROR(VLOOKUP($A100,Filtro!$A$5:$AK$2912,33,FALSE),0) -> 0 | AJ100: =IFERROR(VLOOKUP($A100,Filtro!$A$5:$AK$2912,34,FALSE),0) -> 0 | AK100: =IFERROR(VLOOKUP($A100,Filtro!$A$5:$AK$2912,35,FALSE),0) -> 0 | AL100: =IFERROR(VLOOKUP($A100,Filtro!$A$5:$AK$2912,36,FALSE),0) -> 564,750 | AM100: =IFERROR(VLOOKUP($A100,Filtro!$A$5:$AK$2912,37,FALSE),0) -> 692,760
A101: 01014350 | B101: 0108323 | C101: Teleconsulta Médica de Especialidad en Gastroenterología Adulto | D101: =IFERROR(VLOOKUP($A101,Filtro!$A$5:$AK$2912,2,FALSE),0) -> 1 | E101: =IFERROR(VLOOKUP($A101,Filtro!$A$5:$AK$2912,3,FALSE),0) -> 1 | F101: =IFERROR(VLOOKUP($A101,Filtro!$A$5:$AK$2912,4,FALSE),0) -> 1 | G101: =IFERROR(VLOOKUP($A101,Filtro!$A$5:$AK$2912,5,FALSE),0) -> 0 | H101: =IFERROR(VLOOKUP($A101,Filtro!$A$5:$AK$2912,6,FALSE),0) -> 0 | I101: =IFERROR(VLOOKUP($A101,Filtro!$A$5:$AK$2912,7,FALSE),0) -> 0 | J101: =IFERROR(VLOOKUP($A101,Filtro!$A$5:$AK$2912,8,FALSE),0) -> 0 | K101: =IFERROR(VLOOKUP($A101,Filtro!$A$5:$AK$2912,9,FALSE),0) -> 0 | L101: =IFERROR(VLOOKUP($A101,Filtro!$A$5:$AK$2912,10,FALSE),0) -> 0 | M101: =IFERROR(VLOOKUP($A101,Filtro!$A$5:$AK$2912,11,FALSE),0) -> 0 | N101: =IFERROR(VLOOKUP($A101,Filtro!$A$5:$AK$2912,12,FALSE),0) -> 0 | O101: =IFERROR(VLOOKUP($A101,Filtro!$A$5:$AK$2912,13,FALSE),0) -> 0 | P101: =IFERROR(VLOOKUP($A101,Filtro!$A$5:$AK$2912,14,FALSE),0) -> 0 | Q101: =IFERROR(VLOOKUP($A101,Filtro!$A$5:$AK$2912,15,FALSE),0) -> 0 | R101: =IFERROR(VLOOKUP($A101,Filtro!$A$5:$AK$2912,16,FALSE),0) -> 0 | S101: =IFERROR(VLOOKUP($A101,Filtro!$A$5:$AK$2912,17,FALSE),0) -> 0 | T101: =IFERROR(VLOOKUP($A101,Filtro!$A$5:$AK$2912,18,FALSE),0) -> 0 | U101: =IFERROR(VLOOKUP($A101,Filtro!$A$5:$AK$2912,19,FALSE),0) -> 0 | V101: =IFERROR(VLOOKUP($A101,Filtro!$A$5:$AK$2912,20,FALSE),0) -> 0 | W101: =IFERROR(VLOOKUP($A101,Filtro!$A$5:$AK$2912,21,FALSE),0) -> 0 | X101: =IFERROR(VLOOKUP($A101,Filtro!$A$5:$AK$2912,22,FALSE),0) -> 0 | Y101: =IFERROR(VLOOKUP($A101,Filtro!$A$5:$AK$2912,23,FALSE),0) -> 0 | Z101: =IFERROR(VLOOKUP($A101,Filtro!$A$5:$AK$2912,24,FALSE),0) -> 0 | AA101: =IFERROR(VLOOKUP($A101,Filtro!$A$5:$AK$2912,25,FALSE),0) -> 0 | AB101: =IFERROR(VLOOKUP($A101,Filtro!$A$5:$AK$2912,26,FALSE),0) -> 0 | AC101: =IFERROR(VLOOKUP($A101,Filtro!$A$5:$AK$2912,27,FALSE),0) -> 1 | AD101: =IFERROR(VLOOKUP($A101,Filtro!$A$5:$AK$2912,28,FALSE),0) -> 0 | AE101: =IFERROR(VLOOKUP($A101,Filtro!$A$5:$AK$2912,29,FALSE),0) -> 0 | AF101: =IFERROR(VLOOKUP($A101,Filtro!$A$5:$AK$2912,30,FALSE),0) -> 0 | AG101: =IFERROR(VLOOKUP($A101,Filtro!$A$5:$AK$2912,31,FALSE),0) -> 0 | AH101: =IFERROR(VLOOKUP($A101,Filtro!$A$5:$AK$2912,32,FALSE),0) -> 0 | AI101: =IFERROR(VLOOKUP($A101,Filtro!$A$5:$AK$2912,33,FALSE),0) -> 0 | AJ101: =IFERROR(VLOOKUP($A101,Filtro!$A$5:$AK$2912,34,FALSE),0) -> 0 | AK101: =IFERROR(VLOOKUP($A101,Filtro!$A$5:$AK$2912,35,FALSE),0) -> 0 | AL101: =IFERROR(VLOOKUP($A101,Filtro!$A$5:$AK$2912,36,FALSE),0) -> 564,750 | AM101: =IFERROR(VLOOKUP($A101,Filtro!$A$5:$AK$2912,37,FALSE),0) -> 7,530
A102: 01014351 | B102: 0108324 | C102: Teleconsulta Médica de Especialidad en Gastroenterología Pediátrico | D102: =IFERROR(VLOOKUP($A102,Filtro!$A$5:$AK$2912,2,FALSE),0) -> 29 | E102: =IFERROR(VLOOKUP($A102,Filtro!$A$5:$AK$2912,3,FALSE),0) -> 29 | F102: =IFERROR(VLOOKUP($A102,Filtro!$A$5:$AK$2912,4,FALSE),0) -> 29 | G102: =IFERROR(VLOOKUP($A102,Filtro!$A$5:$AK$2912,5,FALSE),0) -> 0 | H102: =IFERROR(VLOOKUP($A102,Filtro!$A$5:$AK$2912,6,FALSE),0) -> 0 | I102: =IFERROR(VLOOKUP($A102,Filtro!$A$5:$AK$2912,7,FALSE),0) -> 0 | J102: =IFERROR(VLOOKUP($A102,Filtro!$A$5:$AK$2912,8,FALSE),0) -> 0 | K102: =IFERROR(VLOOKUP($A102,Filtro!$A$5:$AK$2912,9,FALSE),0) -> 0 | L102: =IFERROR(VLOOKUP($A102,Filtro!$A$5:$AK$2912,10,FALSE),0) -> 0 | M102: =IFERROR(VLOOKUP($A102,Filtro!$A$5:$AK$2912,11,FALSE),0) -> 0 | N102: =IFERROR(VLOOKUP($A102,Filtro!$A$5:$AK$2912,12,FALSE),0) -> 0 | O102: =IFERROR(VLOOKUP($A102,Filtro!$A$5:$AK$2912,13,FALSE),0) -> 0 | P102: =IFERROR(VLOOKUP($A102,Filtro!$A$5:$AK$2912,14,FALSE),0) -> 0 | Q102: =IFERROR(VLOOKUP($A102,Filtro!$A$5:$AK$2912,15,FALSE),0) -> 0 | R102: =IFERROR(VLOOKUP($A102,Filtro!$A$5:$AK$2912,16,FALSE),0) -> 0 | S102: =IFERROR(VLOOKUP($A102,Filtro!$A$5:$AK$2912,17,FALSE),0) -> 0 | T102: =IFERROR(VLOOKUP($A102,Filtro!$A$5:$AK$2912,18,FALSE),0) -> 0 | U102: =IFERROR(VLOOKUP($A102,Filtro!$A$5:$AK$2912,19,FALSE),0) -> 0 | V102: =IFERROR(VLOOKUP($A102,Filtro!$A$5:$AK$2912,20,FALSE),0) -> 0 | W102: =IFERROR(VLOOKUP($A102,Filtro!$A$5:$AK$2912,21,FALSE),0) -> 0 | X102: =IFERROR(VLOOKUP($A102,Filtro!$A$5:$AK$2912,22,FALSE),0) -> 0 | Y102: =IFERROR(VLOOKUP($A102,Filtro!$A$5:$AK$2912,23,FALSE),0) -> 0 | Z102: =IFERROR(VLOOKUP($A102,Filtro!$A$5:$AK$2912,24,FALSE),0) -> 0 | AA102: =IFERROR(VLOOKUP($A102,Filtro!$A$5:$AK$2912,25,FALSE),0) -> 0 | AB102: =IFERROR(VLOOKUP($A102,Filtro!$A$5:$AK$2912,26,FALSE),0) -> 0 | AC102: =IFERROR(VLOOKUP($A102,Filtro!$A$5:$AK$2912,27,FALSE),0) -> 29 | AD102: =IFERROR(VLOOKUP($A102,Filtro!$A$5:$AK$2912,28,FALSE),0) -> 0 | AE102: =IFERROR(VLOOKUP($A102,Filtro!$A$5:$AK$2912,29,FALSE),0) -> 0 | AF102: =IFERROR(VLOOKUP($A102,Filtro!$A$5:$AK$2912,30,FALSE),0) -> 0 | AG102: =IFERROR(VLOOKUP($A102,Filtro!$A$5:$AK$2912,31,FALSE),0) -> 0 | AH102: =IFERROR(VLOOKUP($A102,Filtro!$A$5:$AK$2912,32,FALSE),0) -> 0 | AI102: =IFERROR(VLOOKUP($A102,Filtro!$A$5:$AK$2912,33,FALSE),0) -> 0 | AJ102: =IFERROR(VLOOKUP($A102,Filtro!$A$5:$AK$2912,34,FALSE),0) -> 0 | AK102: =IFERROR(VLOOKUP($A102,Filtro!$A$5:$AK$2912,35,FALSE),0) -> 0 | AL102: =IFERROR(VLOOKUP($A102,Filtro!$A$5:$AK$2912,36,FALSE),0) -> 564,750 | AM102: =IFERROR(VLOOKUP($A102,Filtro!$A$5:$AK$2912,37,FALSE),0) -> 218,370
A103: 01014352 | B103: 0108325 | C103: Teleconsulta Médica de Especialidad en Genética Clínica | D103: =IFERROR(VLOOKUP($A103,Filtro!$A$5:$AK$2912,2,FALSE),0) -> 0 | E103: =IFERROR(VLOOKUP($A103,Filtro!$A$5:$AK$2912,3,FALSE),0) -> 0 | F103: =IFERROR(VLOOKUP($A103,Filtro!$A$5:$AK$2912,4,FALSE),0) -> 0 | G103: =IFERROR(VLOOKUP($A103,Filtro!$A$5:$AK$2912,5,FALSE),0) -> 0 | H103: =IFERROR(VLOOKUP($A103,Filtro!$A$5:$AK$2912,6,FALSE),0) -> 0 | I103: =IFERROR(VLOOKUP($A103,Filtro!$A$5:$AK$2912,7,FALSE),0) -> 0 | J103: =IFERROR(VLOOKUP($A103,Filtro!$A$5:$AK$2912,8,FALSE),0) -> 0 | K103: =IFERROR(VLOOKUP($A103,Filtro!$A$5:$AK$2912,9,FALSE),0) -> 0 | L103: =IFERROR(VLOOKUP($A103,Filtro!$A$5:$AK$2912,10,FALSE),0) -> 0 | M103: =IFERROR(VLOOKUP($A103,Filtro!$A$5:$AK$2912,11,FALSE),0) -> 0 | N103: =IFERROR(VLOOKUP($A103,Filtro!$A$5:$AK$2912,12,FALSE),0) -> 0 | O103: =IFERROR(VLOOKUP($A103,Filtro!$A$5:$AK$2912,13,FALSE),0) -> 0 | P103: =IFERROR(VLOOKUP($A103,Filtro!$A$5:$AK$2912,14,FALSE),0) -> 0 | Q103: =IFERROR(VLOOKUP($A103,Filtro!$A$5:$AK$2912,15,FALSE),0) -> 0 | R103: =IFERROR(VLOOKUP($A103,Filtro!$A$5:$AK$2912,16,FALSE),0) -> 0 | S103: =IFERROR(VLOOKUP($A103,Filtro!$A$5:$AK$2912,17,FALSE),0) -> 0 | T103: =IFERROR(VLOOKUP($A103,Filtro!$A$5:$AK$2912,18,FALSE),0) -> 0 | U103: =IFERROR(VLOOKUP($A103,Filtro!$A$5:$AK$2912,19,FALSE),0) -> 0 | V103: =IFERROR(VLOOKUP($A103,Filtro!$A$5:$AK$2912,20,FALSE),0) -> 0 | W103: =IFERROR(VLOOKUP($A103,Filtro!$A$5:$AK$2912,21,FALSE),0) -> 0 | X103: =IFERROR(VLOOKUP($A103,Filtro!$A$5:$AK$2912,22,FALSE),0) -> 0 | Y103: =IFERROR(VLOOKUP($A103,Filtro!$A$5:$AK$2912,23,FALSE),0) -> 0 | Z103: =IFERROR(VLOOKUP($A103,Filtro!$A$5:$AK$2912,24,FALSE),0) -> 0 | AA103: =IFERROR(VLOOKUP($A103,Filtro!$A$5:$AK$2912,25,FALSE),0) -> 0 | AB103: =IFERROR(VLOOKUP($A103,Filtro!$A$5:$AK$2912,26,FALSE),0) -> 0 | AC103: =IFERROR(VLOOKUP($A103,Filtro!$A$5:$AK$2912,27,FALSE),0) -> 0 | AD103: =IFERROR(VLOOKUP($A103,Filtro!$A$5:$AK$2912,28,FALSE),0) -> 0 | AE103: =IFERROR(VLOOKUP($A103,Filtro!$A$5:$AK$2912,29,FALSE),0) -> 0 | AF103: =IFERROR(VLOOKUP($A103,Filtro!$A$5:$AK$2912,30,FALSE),0) -> 0 | AG103: =IFERROR(VLOOKUP($A103,Filtro!$A$5:$AK$2912,31,FALSE),0) -> 0 | AH103: =IFERROR(VLOOKUP($A103,Filtro!$A$5:$AK$2912,32,FALSE),0) -> 0 | AI103: =IFERROR(VLOOKUP($A103,Filtro!$A$5:$AK$2912,33,FALSE),0) -> 0 | AJ103: =IFERROR(VLOOKUP($A103,Filtro!$A$5:$AK$2912,34,FALSE),0) -> 0 | AK103: =IFERROR(VLOOKUP($A103,Filtro!$A$5:$AK$2912,35,FALSE),0) -> 0 | AL103: =IFERROR(VLOOKUP($A103,Filtro!$A$5:$AK$2912,36,FALSE),0) -> 564,750 | AM103: =IFERROR(VLOOKUP($A103,Filtro!$A$5:$AK$2912,37,FALSE),0) -> 0
A104: 01014353 | B104: 0108326 | C104: Teleconsulta Médica de Especialidad en Nefrología Adulto | D104: =IFERROR(VLOOKUP($A104,Filtro!$A$5:$AK$2912,2,FALSE),0) -> 316 | E104: =IFERROR(VLOOKUP($A104,Filtro!$A$5:$AK$2912,3,FALSE),0) -> 313 | F104: =IFERROR(VLOOKUP($A104,Filtro!$A$5:$AK$2912,4,FALSE),0) -> 313 | G104: =IFERROR(VLOOKUP($A104,Filtro!$A$5:$AK$2912,5,FALSE),0) -> 0 | H104: =IFERROR(VLOOKUP($A104,Filtro!$A$5:$AK$2912,6,FALSE),0) -> 3 | I104: =IFERROR(VLOOKUP($A104,Filtro!$A$5:$AK$2912,7,FALSE),0) -> 0 | J104: =IFERROR(VLOOKUP($A104,Filtro!$A$5:$AK$2912,8,FALSE),0) -> 0 | K104: =IFERROR(VLOOKUP($A104,Filtro!$A$5:$AK$2912,9,FALSE),0) -> 0 | L104: =IFERROR(VLOOKUP($A104,Filtro!$A$5:$AK$2912,10,FALSE),0) -> 0 | M104: =IFERROR(VLOOKUP($A104,Filtro!$A$5:$AK$2912,11,FALSE),0) -> 0 | N104: =IFERROR(VLOOKUP($A104,Filtro!$A$5:$AK$2912,12,FALSE),0) -> 0 | O104: =IFERROR(VLOOKUP($A104,Filtro!$A$5:$AK$2912,13,FALSE),0) -> 0 | P104: =IFERROR(VLOOKUP($A104,Filtro!$A$5:$AK$2912,14,FALSE),0) -> 0 | Q104: =IFERROR(VLOOKUP($A104,Filtro!$A$5:$AK$2912,15,FALSE),0) -> 0 | R104: =IFERROR(VLOOKUP($A104,Filtro!$A$5:$AK$2912,16,FALSE),0) -> 0 | S104: =IFERROR(VLOOKUP($A104,Filtro!$A$5:$AK$2912,17,FALSE),0) -> 0 | T104: =IFERROR(VLOOKUP($A104,Filtro!$A$5:$AK$2912,18,FALSE),0) -> 0 | U104: =IFERROR(VLOOKUP($A104,Filtro!$A$5:$AK$2912,19,FALSE),0) -> 0 | V104: =IFERROR(VLOOKUP($A104,Filtro!$A$5:$AK$2912,20,FALSE),0) -> 0 | W104: =IFERROR(VLOOKUP($A104,Filtro!$A$5:$AK$2912,21,FALSE),0) -> 0 | X104: =IFERROR(VLOOKUP($A104,Filtro!$A$5:$AK$2912,22,FALSE),0) -> 0 | Y104: =IFERROR(VLOOKUP($A104,Filtro!$A$5:$AK$2912,23,FALSE),0) -> 0 | Z104: =IFERROR(VLOOKUP($A104,Filtro!$A$5:$AK$2912,24,FALSE),0) -> 0 | AA104: =IFERROR(VLOOKUP($A104,Filtro!$A$5:$AK$2912,25,FALSE),0) -> 0 | AB104: =IFERROR(VLOOKUP($A104,Filtro!$A$5:$AK$2912,26,FALSE),0) -> 0 | AC104: =IFERROR(VLOOKUP($A104,Filtro!$A$5:$AK$2912,27,FALSE),0) -> 316 | AD104: =IFERROR(VLOOKUP($A104,Filtro!$A$5:$AK$2912,28,FALSE),0) -> 0 | AE104: =IFERROR(VLOOKUP($A104,Filtro!$A$5:$AK$2912,29,FALSE),0) -> 0 | AF104: =IFERROR(VLOOKUP($A104,Filtro!$A$5:$AK$2912,30,FALSE),0) -> 0 | AG104: =IFERROR(VLOOKUP($A104,Filtro!$A$5:$AK$2912,31,FALSE),0) -> 0 | AH104: =IFERROR(VLOOKUP($A104,Filtro!$A$5:$AK$2912,32,FALSE),0) -> 0 | AI104: =IFERROR(VLOOKUP($A104,Filtro!$A$5:$AK$2912,33,FALSE),0) -> 0 | AJ104: =IFERROR(VLOOKUP($A104,Filtro!$A$5:$AK$2912,34,FALSE),0) -> 0 | AK104: =IFERROR(VLOOKUP($A104,Filtro!$A$5:$AK$2912,35,FALSE),0) -> 0 | AL104: =IFERROR(VLOOKUP($A104,Filtro!$A$5:$AK$2912,36,FALSE),0) -> 564,750 | AM104: =IFERROR(VLOOKUP($A104,Filtro!$A$5:$AK$2912,37,FALSE),0) -> 2,356,890
A105: 01014354 | B105: 0108327 | C105: Teleconsulta Médica de Especialidad en Nefrología Pediátrico | D105: =IFERROR(VLOOKUP($A105,Filtro!$A$5:$AK$2912,2,FALSE),0) -> 10 | E105: =IFERROR(VLOOKUP($A105,Filtro!$A$5:$AK$2912,3,FALSE),0) -> 10 | F105: =IFERROR(VLOOKUP($A105,Filtro!$A$5:$AK$2912,4,FALSE),0) -> 10 | G105: =IFERROR(VLOOKUP($A105,Filtro!$A$5:$AK$2912,5,FALSE),0) -> 0 | H105: =IFERROR(VLOOKUP($A105,Filtro!$A$5:$AK$2912,6,FALSE),0) -> 0 | I105: =IFERROR(VLOOKUP($A105,Filtro!$A$5:$AK$2912,7,FALSE),0) -> 0 | J105: =IFERROR(VLOOKUP($A105,Filtro!$A$5:$AK$2912,8,FALSE),0) -> 0 | K105: =IFERROR(VLOOKUP($A105,Filtro!$A$5:$AK$2912,9,FALSE),0) -> 0 | L105: =IFERROR(VLOOKUP($A105,Filtro!$A$5:$AK$2912,10,FALSE),0) -> 0 | M105: =IFERROR(VLOOKUP($A105,Filtro!$A$5:$AK$2912,11,FALSE),0) -> 0 | N105: =IFERROR(VLOOKUP($A105,Filtro!$A$5:$AK$2912,12,FALSE),0) -> 0 | O105: =IFERROR(VLOOKUP($A105,Filtro!$A$5:$AK$2912,13,FALSE),0) -> 0 | P105: =IFERROR(VLOOKUP($A105,Filtro!$A$5:$AK$2912,14,FALSE),0) -> 0 | Q105: =IFERROR(VLOOKUP($A105,Filtro!$A$5:$AK$2912,15,FALSE),0) -> 0 | R105: =IFERROR(VLOOKUP($A105,Filtro!$A$5:$AK$2912,16,FALSE),0) -> 0 | S105: =IFERROR(VLOOKUP($A105,Filtro!$A$5:$AK$2912,17,FALSE),0) -> 0 | T105: =IFERROR(VLOOKUP($A105,Filtro!$A$5:$AK$2912,18,FALSE),0) -> 0 | U105: =IFERROR(VLOOKUP($A105,Filtro!$A$5:$AK$2912,19,FALSE),0) -> 0 | V105: =IFERROR(VLOOKUP($A105,Filtro!$A$5:$AK$2912,20,FALSE),0) -> 0 | W105: =IFERROR(VLOOKUP($A105,Filtro!$A$5:$AK$2912,21,FALSE),0) -> 0 | X105: =IFERROR(VLOOKUP($A105,Filtro!$A$5:$AK$2912,22,FALSE),0) -> 0 | Y105: =IFERROR(VLOOKUP($A105,Filtro!$A$5:$AK$2912,23,FALSE),0) -> 0 | Z105: =IFERROR(VLOOKUP($A105,Filtro!$A$5:$AK$2912,24,FALSE),0) -> 0 | AA105: =IFERROR(VLOOKUP($A105,Filtro!$A$5:$AK$2912,25,FALSE),0) -> 0 | AB105: =IFERROR(VLOOKUP($A105,Filtro!$A$5:$AK$2912,26,FALSE),0) -> 0 | AC105: =IFERROR(VLOOKUP($A105,Filtro!$A$5:$AK$2912,27,FALSE),0) -> 10 | AD105: =IFERROR(VLOOKUP($A105,Filtro!$A$5:$AK$2912,28,FALSE),0) -> 0 | AE105: =IFERROR(VLOOKUP($A105,Filtro!$A$5:$AK$2912,29,FALSE),0) -> 0 | AF105: =IFERROR(VLOOKUP($A105,Filtro!$A$5:$AK$2912,30,FALSE),0) -> 0 | AG105: =IFERROR(VLOOKUP($A105,Filtro!$A$5:$AK$2912,31,FALSE),0) -> 0 | AH105: =IFERROR(VLOOKUP($A105,Filtro!$A$5:$AK$2912,32,FALSE),0) -> 0 | AI105: =IFERROR(VLOOKUP($A105,Filtro!$A$5:$AK$2912,33,FALSE),0) -> 0 | AJ105: =IFERROR(VLOOKUP($A105,Filtro!$A$5:$AK$2912,34,FALSE),0) -> 0 | AK105: =IFERROR(VLOOKUP($A105,Filtro!$A$5:$AK$2912,35,FALSE),0) -> 0 | AL105: =IFERROR(VLOOKUP($A105,Filtro!$A$5:$AK$2912,36,FALSE),0) -> 564,750 | AM105: =IFERROR(VLOOKUP($A105,Filtro!$A$5:$AK$2912,37,FALSE),0) -> 75,300
A106: 01014355 | B106: 0108331 | C106: Teleconsulta Médica de Especialidad en Radioterapia Oncológica | D106: =IFERROR(VLOOKUP($A106,Filtro!$A$5:$AK$2912,2,FALSE),0) -> 0 | E106: =IFERROR(VLOOKUP($A106,Filtro!$A$5:$AK$2912,3,FALSE),0) -> 0 | F106: =IFERROR(VLOOKUP($A106,Filtro!$A$5:$AK$2912,4,FALSE),0) -> 0 | G106: =IFERROR(VLOOKUP($A106,Filtro!$A$5:$AK$2912,5,FALSE),0) -> 0 | H106: =IFERROR(VLOOKUP($A106,Filtro!$A$5:$AK$2912,6,FALSE),0) -> 0 | I106: =IFERROR(VLOOKUP($A106,Filtro!$A$5:$AK$2912,7,FALSE),0) -> 0 | J106: =IFERROR(VLOOKUP($A106,Filtro!$A$5:$AK$2912,8,FALSE),0) -> 0 | K106: =IFERROR(VLOOKUP($A106,Filtro!$A$5:$AK$2912,9,FALSE),0) -> 0 | L106: =IFERROR(VLOOKUP($A106,Filtro!$A$5:$AK$2912,10,FALSE),0) -> 0 | M106: =IFERROR(VLOOKUP($A106,Filtro!$A$5:$AK$2912,11,FALSE),0) -> 0 | N106: =IFERROR(VLOOKUP($A106,Filtro!$A$5:$AK$2912,12,FALSE),0) -> 0 | O106: =IFERROR(VLOOKUP($A106,Filtro!$A$5:$AK$2912,13,FALSE),0) -> 0 | P106: =IFERROR(VLOOKUP($A106,Filtro!$A$5:$AK$2912,14,FALSE),0) -> 0 | Q106: =IFERROR(VLOOKUP($A106,Filtro!$A$5:$AK$2912,15,FALSE),0) -> 0 | R106: =IFERROR(VLOOKUP($A106,Filtro!$A$5:$AK$2912,16,FALSE),0) -> 0 | S106: =IFERROR(VLOOKUP($A106,Filtro!$A$5:$AK$2912,17,FALSE),0) -> 0 | T106: =IFERROR(VLOOKUP($A106,Filtro!$A$5:$AK$2912,18,FALSE),0) -> 0 | U106: =IFERROR(VLOOKUP($A106,Filtro!$A$5:$AK$2912,19,FALSE),0) -> 0 | V106: =IFERROR(VLOOKUP($A106,Filtro!$A$5:$AK$2912,20,FALSE),0) -> 0 | W106: =IFERROR(VLOOKUP($A106,Filtro!$A$5:$AK$2912,21,FALSE),0) -> 0 | X106: =IFERROR(VLOOKUP($A106,Filtro!$A$5:$AK$2912,22,FALSE),0) -> 0 | Y106: =IFERROR(VLOOKUP($A106,Filtro!$A$5:$AK$2912,23,FALSE),0) -> 0 | Z106: =IFERROR(VLOOKUP($A106,Filtro!$A$5:$AK$2912,24,FALSE),0) -> 0 | AA106: =IFERROR(VLOOKUP($A106,Filtro!$A$5:$AK$2912,25,FALSE),0) -> 0 | AB106: =IFERROR(VLOOKUP($A106,Filtro!$A$5:$AK$2912,26,FALSE),0) -> 0 | AC106: =IFERROR(VLOOKUP($A106,Filtro!$A$5:$AK$2912,27,FALSE),0) -> 0 | AD106: =IFERROR(VLOOKUP($A106,Filtro!$A$5:$AK$2912,28,FALSE),0) -> 0 | AE106: =IFERROR(VLOOKUP($A106,Filtro!$A$5:$AK$2912,29,FALSE),0) -> 0 | AF106: =IFERROR(VLOOKUP($A106,Filtro!$A$5:$AK$2912,30,FALSE),0) -> 0 | AG106: =IFERROR(VLOOKUP($A106,Filtro!$A$5:$AK$2912,31,FALSE),0) -> 0 | AH106: =IFERROR(VLOOKUP($A106,Filtro!$A$5:$AK$2912,32,FALSE),0) -> 0 | AI106: =IFERROR(VLOOKUP($A106,Filtro!$A$5:$AK$2912,33,FALSE),0) -> 0 | AJ106: =IFERROR(VLOOKUP($A106,Filtro!$A$5:$AK$2912,34,FALSE),0) -> 0 | AK106: =IFERROR(VLOOKUP($A106,Filtro!$A$5:$AK$2912,35,FALSE),0) -> 0 | AL106: =IFERROR(VLOOKUP($A106,Filtro!$A$5:$AK$2912,36,FALSE),0) -> 564,750 | AM106: =IFERROR(VLOOKUP($A106,Filtro!$A$5:$AK$2912,37,FALSE),0) -> 0
A107: 01014356 | B107: 0108203 | C107: Teleconsulta Médica de Especialidad en Neurocirugía | D107: =IFERROR(VLOOKUP($A107,Filtro!$A$5:$AK$2912,2,FALSE),0) -> 0 | E107: =IFERROR(VLOOKUP($A107,Filtro!$A$5:$AK$2912,3,FALSE),0) -> 0 | F107: =IFERROR(VLOOKUP($A107,Filtro!$A$5:$AK$2912,4,FALSE),0) -> 0 | G107: =IFERROR(VLOOKUP($A107,Filtro!$A$5:$AK$2912,5,FALSE),0) -> 0 | H107: =IFERROR(VLOOKUP($A107,Filtro!$A$5:$AK$2912,6,FALSE),0) -> 0 | I107: =IFERROR(VLOOKUP($A107,Filtro!$A$5:$AK$2912,7,FALSE),0) -> 0 | J107: =IFERROR(VLOOKUP($A107,Filtro!$A$5:$AK$2912,8,FALSE),0) -> 0 | K107: =IFERROR(VLOOKUP($A107,Filtro!$A$5:$AK$2912,9,FALSE),0) -> 0 | L107: =IFERROR(VLOOKUP($A107,Filtro!$A$5:$AK$2912,10,FALSE),0) -> 0 | M107: =IFERROR(VLOOKUP($A107,Filtro!$A$5:$AK$2912,11,FALSE),0) -> 0 | N107: =IFERROR(VLOOKUP($A107,Filtro!$A$5:$AK$2912,12,FALSE),0) -> 0 | O107: =IFERROR(VLOOKUP($A107,Filtro!$A$5:$AK$2912,13,FALSE),0) -> 0 | P107: =IFERROR(VLOOKUP($A107,Filtro!$A$5:$AK$2912,14,FALSE),0) -> 0 | Q107: =IFERROR(VLOOKUP($A107,Filtro!$A$5:$AK$2912,15,FALSE),0) -> 0 | R107: =IFERROR(VLOOKUP($A107,Filtro!$A$5:$AK$2912,16,FALSE),0) -> 0 | S107: =IFERROR(VLOOKUP($A107,Filtro!$A$5:$AK$2912,17,FALSE),0) -> 0 | T107: =IFERROR(VLOOKUP($A107,Filtro!$A$5:$AK$2912,18,FALSE),0) -> 0 | U107: =IFERROR(VLOOKUP($A107,Filtro!$A$5:$AK$2912,19,FALSE),0) -> 0 | V107: =IFERROR(VLOOKUP($A107,Filtro!$A$5:$AK$2912,20,FALSE),0) -> 0 | W107: =IFERROR(VLOOKUP($A107,Filtro!$A$5:$AK$2912,21,FALSE),0) -> 0 | X107: =IFERROR(VLOOKUP($A107,Filtro!$A$5:$AK$2912,22,FALSE),0) -> 0 | Y107: =IFERROR(VLOOKUP($A107,Filtro!$A$5:$AK$2912,23,FALSE),0) -> 0 | Z107: =IFERROR(VLOOKUP($A107,Filtro!$A$5:$AK$2912,24,FALSE),0) -> 0 | AA107: =IFERROR(VLOOKUP($A107,Filtro!$A$5:$AK$2912,25,FALSE),0) -> 0 | AB107: =IFERROR(VLOOKUP($A107,Filtro!$A$5:$AK$2912,26,FALSE),0) -> 0 | AC107: =IFERROR(VLOOKUP($A107,Filtro!$A$5:$AK$2912,27,FALSE),0) -> 0 | AD107: =IFERROR(VLOOKUP($A107,Filtro!$A$5:$AK$2912,28,FALSE),0) -> 0 | AE107: =IFERROR(VLOOKUP($A107,Filtro!$A$5:$AK$2912,29,FALSE),0) -> 0 | AF107: =IFERROR(VLOOKUP($A107,Filtro!$A$5:$AK$2912,30,FALSE),0) -> 0 | AG107: =IFERROR(VLOOKUP($A107,Filtro!$A$5:$AK$2912,31,FALSE),0) -> 0 | AH107: =IFERROR(VLOOKUP($A107,Filtro!$A$5:$AK$2912,32,FALSE),0) -> 0 | AI107: =IFERROR(VLOOKUP($A107,Filtro!$A$5:$AK$2912,33,FALSE),0) -> 0 | AJ107: =IFERROR(VLOOKUP($A107,Filtro!$A$5:$AK$2912,34,FALSE),0) -> 0 | AK107: =IFERROR(VLOOKUP($A107,Filtro!$A$5:$AK$2912,35,FALSE),0) -> 0 | AL107: =IFERROR(VLOOKUP($A107,Filtro!$A$5:$AK$2912,36,FALSE),0) -> 564,750 | AM107: =IFERROR(VLOOKUP($A107,Filtro!$A$5:$AK$2912,37,FALSE),0) -> 0
A108: 01014357 | B108: 0108204 | C108: Teleconsulta Médica de Especialidad en Oftalmología | D108: =IFERROR(VLOOKUP($A108,Filtro!$A$5:$AK$2912,2,FALSE),0) -> 14 | E108: =IFERROR(VLOOKUP($A108,Filtro!$A$5:$AK$2912,3,FALSE),0) -> 14 | F108: =IFERROR(VLOOKUP($A108,Filtro!$A$5:$AK$2912,4,FALSE),0) -> 14 | G108: =IFERROR(VLOOKUP($A108,Filtro!$A$5:$AK$2912,5,FALSE),0) -> 0 | H108: =IFERROR(VLOOKUP($A108,Filtro!$A$5:$AK$2912,6,FALSE),0) -> 0 | I108: =IFERROR(VLOOKUP($A108,Filtro!$A$5:$AK$2912,7,FALSE),0) -> 0 | J108: =IFERROR(VLOOKUP($A108,Filtro!$A$5:$AK$2912,8,FALSE),0) -> 0 | K108: =IFERROR(VLOOKUP($A108,Filtro!$A$5:$AK$2912,9,FALSE),0) -> 0 | L108: =IFERROR(VLOOKUP($A108,Filtro!$A$5:$AK$2912,10,FALSE),0) -> 0 | M108: =IFERROR(VLOOKUP($A108,Filtro!$A$5:$AK$2912,11,FALSE),0) -> 0 | N108: =IFERROR(VLOOKUP($A108,Filtro!$A$5:$AK$2912,12,FALSE),0) -> 0 | O108: =IFERROR(VLOOKUP($A108,Filtro!$A$5:$AK$2912,13,FALSE),0) -> 0 | P108: =IFERROR(VLOOKUP($A108,Filtro!$A$5:$AK$2912,14,FALSE),0) -> 0 | Q108: =IFERROR(VLOOKUP($A108,Filtro!$A$5:$AK$2912,15,FALSE),0) -> 0 | R108: =IFERROR(VLOOKUP($A108,Filtro!$A$5:$AK$2912,16,FALSE),0) -> 0 | S108: =IFERROR(VLOOKUP($A108,Filtro!$A$5:$AK$2912,17,FALSE),0) -> 0 | T108: =IFERROR(VLOOKUP($A108,Filtro!$A$5:$AK$2912,18,FALSE),0) -> 0 | U108: =IFERROR(VLOOKUP($A108,Filtro!$A$5:$AK$2912,19,FALSE),0) -> 0 | V108: =IFERROR(VLOOKUP($A108,Filtro!$A$5:$AK$2912,20,FALSE),0) -> 0 | W108: =IFERROR(VLOOKUP($A108,Filtro!$A$5:$AK$2912,21,FALSE),0) -> 0 | X108: =IFERROR(VLOOKUP($A108,Filtro!$A$5:$AK$2912,22,FALSE),0) -> 0 | Y108: =IFERROR(VLOOKUP($A108,Filtro!$A$5:$AK$2912,23,FALSE),0) -> 0 | Z108: =IFERROR(VLOOKUP($A108,Filtro!$A$5:$AK$2912,24,FALSE),0) -> 0 | AA108: =IFERROR(VLOOKUP($A108,Filtro!$A$5:$AK$2912,25,FALSE),0) -> 0 | AB108: =IFERROR(VLOOKUP($A108,Filtro!$A$5:$AK$2912,26,FALSE),0) -> 0 | AC108: =IFERROR(VLOOKUP($A108,Filtro!$A$5:$AK$2912,27,FALSE),0) -> 14 | AD108: =IFERROR(VLOOKUP($A108,Filtro!$A$5:$AK$2912,28,FALSE),0) -> 0 | AE108: =IFERROR(VLOOKUP($A108,Filtro!$A$5:$AK$2912,29,FALSE),0) -> 0 | AF108: =IFERROR(VLOOKUP($A108,Filtro!$A$5:$AK$2912,30,FALSE),0) -> 0 | AG108: =IFERROR(VLOOKUP($A108,Filtro!$A$5:$AK$2912,31,FALSE),0) -> 0 | AH108: =IFERROR(VLOOKUP($A108,Filtro!$A$5:$AK$2912,32,FALSE),0) -> 0 | AI108: =IFERROR(VLOOKUP($A108,Filtro!$A$5:$AK$2912,33,FALSE),0) -> 0 | AJ108: =IFERROR(VLOOKUP($A108,Filtro!$A$5:$AK$2912,34,FALSE),0) -> 0 | AK108: =IFERROR(VLOOKUP($A108,Filtro!$A$5:$AK$2912,35,FALSE),0) -> 0 | AL108: =IFERROR(VLOOKUP($A108,Filtro!$A$5:$AK$2912,36,FALSE),0) -> 564,750 | AM108: =IFERROR(VLOOKUP($A108,Filtro!$A$5:$AK$2912,37,FALSE),0) -> 105,420
A109: 01014358 | B109: 0108205 | C109: Teleconsulta Médica de Especialidad en Otorrinolaringología | D109: =IFERROR(VLOOKUP($A109,Filtro!$A$5:$AK$2912,2,FALSE),0) -> 0 | E109: =IFERROR(VLOOKUP($A109,Filtro!$A$5:$AK$2912,3,FALSE),0) -> 0 | F109: =IFERROR(VLOOKUP($A109,Filtro!$A$5:$AK$2912,4,FALSE),0) -> 0 | G109: =IFERROR(VLOOKUP($A109,Filtro!$A$5:$AK$2912,5,FALSE),0) -> 0 | H109: =IFERROR(VLOOKUP($A109,Filtro!$A$5:$AK$2912,6,FALSE),0) -> 0 | I109: =IFERROR(VLOOKUP($A109,Filtro!$A$5:$AK$2912,7,FALSE),0) -> 0 | J109: =IFERROR(VLOOKUP($A109,Filtro!$A$5:$AK$2912,8,FALSE),0) -> 0 | K109: =IFERROR(VLOOKUP($A109,Filtro!$A$5:$AK$2912,9,FALSE),0) -> 0 | L109: =IFERROR(VLOOKUP($A109,Filtro!$A$5:$AK$2912,10,FALSE),0) -> 0 | M109: =IFERROR(VLOOKUP($A109,Filtro!$A$5:$AK$2912,11,FALSE),0) -> 0 | N109: =IFERROR(VLOOKUP($A109,Filtro!$A$5:$AK$2912,12,FALSE),0) -> 0 | O109: =IFERROR(VLOOKUP($A109,Filtro!$A$5:$AK$2912,13,FALSE),0) -> 0 | P109: =IFERROR(VLOOKUP($A109,Filtro!$A$5:$AK$2912,14,FALSE),0) -> 0 | Q109: =IFERROR(VLOOKUP($A109,Filtro!$A$5:$AK$2912,15,FALSE),0) -> 0 | R109: =IFERROR(VLOOKUP($A109,Filtro!$A$5:$AK$2912,16,FALSE),0) -> 0 | S109: =IFERROR(VLOOKUP($A109,Filtro!$A$5:$AK$2912,17,FALSE),0) -> 0 | T109: =IFERROR(VLOOKUP($A109,Filtro!$A$5:$AK$2912,18,FALSE),0) -> 0 | U109: =IFERROR(VLOOKUP($A109,Filtro!$A$5:$AK$2912,19,FALSE),0) -> 0 | V109: =IFERROR(VLOOKUP($A109,Filtro!$A$5:$AK$2912,20,FALSE),0) -> 0 | W109: =IFERROR(VLOOKUP($A109,Filtro!$A$5:$AK$2912,21,FALSE),0) -> 0 | X109: =IFERROR(VLOOKUP($A109,Filtro!$A$5:$AK$2912,22,FALSE),0) -> 0 | Y109: =IFERROR(VLOOKUP($A109,Filtro!$A$5:$AK$2912,23,FALSE),0) -> 0 | Z109: =IFERROR(VLOOKUP($A109,Filtro!$A$5:$AK$2912,24,FALSE),0) -> 0 | AA109: =IFERROR(VLOOKUP($A109,Filtro!$A$5:$AK$2912,25,FALSE),0) -> 0 | AB109: =IFERROR(VLOOKUP($A109,Filtro!$A$5:$AK$2912,26,FALSE),0) -> 0 | AC109: =IFERROR(VLOOKUP($A109,Filtro!$A$5:$AK$2912,27,FALSE),0) -> 0 | AD109: =IFERROR(VLOOKUP($A109,Filtro!$A$5:$AK$2912,28,FALSE),0) -> 0 | AE109: =IFERROR(VLOOKUP($A109,Filtro!$A$5:$AK$2912,29,FALSE),0) -> 0 | AF109: =IFERROR(VLOOKUP($A109,Filtro!$A$5:$AK$2912,30,FALSE),0) -> 0 | AG109: =IFERROR(VLOOKUP($A109,Filtro!$A$5:$AK$2912,31,FALSE),0) -> 0 | AH109: =IFERROR(VLOOKUP($A109,Filtro!$A$5:$AK$2912,32,FALSE),0) -> 0 | AI109: =IFERROR(VLOOKUP($A109,Filtro!$A$5:$AK$2912,33,FALSE),0) -> 0 | AJ109: =IFERROR(VLOOKUP($A109,Filtro!$A$5:$AK$2912,34,FALSE),0) -> 0 | AK109: =IFERROR(VLOOKUP($A109,Filtro!$A$5:$AK$2912,35,FALSE),0) -> 0 | AL109: =IFERROR(VLOOKUP($A109,Filtro!$A$5:$AK$2912,36,FALSE),0) -> 564,750 | AM109: =IFERROR(VLOOKUP($A109,Filtro!$A$5:$AK$2912,37,FALSE),0) -> 0
A110: 01014359 | B110: 0108312 | C110: Teleconsulta Médica de Especialidad en Cirugía General | D110: =IFERROR(VLOOKUP($A110,Filtro!$A$5:$AK$2912,2,FALSE),0) -> 19 | E110: =IFERROR(VLOOKUP($A110,Filtro!$A$5:$AK$2912,3,FALSE),0) -> 19 | F110: =IFERROR(VLOOKUP($A110,Filtro!$A$5:$AK$2912,4,FALSE),0) -> 19 | G110: =IFERROR(VLOOKUP($A110,Filtro!$A$5:$AK$2912,5,FALSE),0) -> 0 | H110: =IFERROR(VLOOKUP($A110,Filtro!$A$5:$AK$2912,6,FALSE),0) -> 0 | I110: =IFERROR(VLOOKUP($A110,Filtro!$A$5:$AK$2912,7,FALSE),0) -> 0 | J110: =IFERROR(VLOOKUP($A110,Filtro!$A$5:$AK$2912,8,FALSE),0) -> 0 | K110: =IFERROR(VLOOKUP($A110,Filtro!$A$5:$AK$2912,9,FALSE),0) -> 0 | L110: =IFERROR(VLOOKUP($A110,Filtro!$A$5:$AK$2912,10,FALSE),0) -> 0 | M110: =IFERROR(VLOOKUP($A110,Filtro!$A$5:$AK$2912,11,FALSE),0) -> 0 | N110: =IFERROR(VLOOKUP($A110,Filtro!$A$5:$AK$2912,12,FALSE),0) -> 0 | O110: =IFERROR(VLOOKUP($A110,Filtro!$A$5:$AK$2912,13,FALSE),0) -> 0 | P110: =IFERROR(VLOOKUP($A110,Filtro!$A$5:$AK$2912,14,FALSE),0) -> 0 | Q110: =IFERROR(VLOOKUP($A110,Filtro!$A$5:$AK$2912,15,FALSE),0) -> 0 | R110: =IFERROR(VLOOKUP($A110,Filtro!$A$5:$AK$2912,16,FALSE),0) -> 0 | S110: =IFERROR(VLOOKUP($A110,Filtro!$A$5:$AK$2912,17,FALSE),0) -> 0 | T110: =IFERROR(VLOOKUP($A110,Filtro!$A$5:$AK$2912,18,FALSE),0) -> 0 | U110: =IFERROR(VLOOKUP($A110,Filtro!$A$5:$AK$2912,19,FALSE),0) -> 0 | V110: =IFERROR(VLOOKUP($A110,Filtro!$A$5:$AK$2912,20,FALSE),0) -> 0 | W110: =IFERROR(VLOOKUP($A110,Filtro!$A$5:$AK$2912,21,FALSE),0) -> 0 | X110: =IFERROR(VLOOKUP($A110,Filtro!$A$5:$AK$2912,22,FALSE),0) -> 0 | Y110: =IFERROR(VLOOKUP($A110,Filtro!$A$5:$AK$2912,23,FALSE),0) -> 0 | Z110: =IFERROR(VLOOKUP($A110,Filtro!$A$5:$AK$2912,24,FALSE),0) -> 0 | AA110: =IFERROR(VLOOKUP($A110,Filtro!$A$5:$AK$2912,25,FALSE),0) -> 0 | AB110: =IFERROR(VLOOKUP($A110,Filtro!$A$5:$AK$2912,26,FALSE),0) -> 0 | AC110: =IFERROR(VLOOKUP($A110,Filtro!$A$5:$AK$2912,27,FALSE),0) -> 19 | AD110: =IFERROR(VLOOKUP($A110,Filtro!$A$5:$AK$2912,28,FALSE),0) -> 0 | AE110: =IFERROR(VLOOKUP($A110,Filtro!$A$5:$AK$2912,29,FALSE),0) -> 0 | AF110: =IFERROR(VLOOKUP($A110,Filtro!$A$5:$AK$2912,30,FALSE),0) -> 0 | AG110: =IFERROR(VLOOKUP($A110,Filtro!$A$5:$AK$2912,31,FALSE),0) -> 0 | AH110: =IFERROR(VLOOKUP($A110,Filtro!$A$5:$AK$2912,32,FALSE),0) -> 0 | AI110: =IFERROR(VLOOKUP($A110,Filtro!$A$5:$AK$2912,33,FALSE),0) -> 0 | AJ110: =IFERROR(VLOOKUP($A110,Filtro!$A$5:$AK$2912,34,FALSE),0) -> 0 | AK110: =IFERROR(VLOOKUP($A110,Filtro!$A$5:$AK$2912,35,FALSE),0) -> 0 | AL110: =IFERROR(VLOOKUP($A110,Filtro!$A$5:$AK$2912,36,FALSE),0) -> 564,750 | AM110: =IFERROR(VLOOKUP($A110,Filtro!$A$5:$AK$2912,37,FALSE),0) -> 143,070
A111: 01014360 | B111: 0108313 | C111: Teleconsulta Médica de Especialidad en Cirugía de Cabeza, Cuello y Maxilofacial | D111: =IFERROR(VLOOKUP($A111,Filtro!$A$5:$AK$2912,2,FALSE),0) -> 1 | E111: =IFERROR(VLOOKUP($A111,Filtro!$A$5:$AK$2912,3,FALSE),0) -> 1 | F111: =IFERROR(VLOOKUP($A111,Filtro!$A$5:$AK$2912,4,FALSE),0) -> 1 | G111: =IFERROR(VLOOKUP($A111,Filtro!$A$5:$AK$2912,5,FALSE),0) -> 0 | H111: =IFERROR(VLOOKUP($A111,Filtro!$A$5:$AK$2912,6,FALSE),0) -> 0 | I111: =IFERROR(VLOOKUP($A111,Filtro!$A$5:$AK$2912,7,FALSE),0) -> 0 | J111: =IFERROR(VLOOKUP($A111,Filtro!$A$5:$AK$2912,8,FALSE),0) -> 0 | K111: =IFERROR(VLOOKUP($A111,Filtro!$A$5:$AK$2912,9,FALSE),0) -> 0 | L111: =IFERROR(VLOOKUP($A111,Filtro!$A$5:$AK$2912,10,FALSE),0) -> 0 | M111: =IFERROR(VLOOKUP($A111,Filtro!$A$5:$AK$2912,11,FALSE),0) -> 0 | N111: =IFERROR(VLOOKUP($A111,Filtro!$A$5:$AK$2912,12,FALSE),0) -> 0 | O111: =IFERROR(VLOOKUP($A111,Filtro!$A$5:$AK$2912,13,FALSE),0) -> 0 | P111: =IFERROR(VLOOKUP($A111,Filtro!$A$5:$AK$2912,14,FALSE),0) -> 0 | Q111: =IFERROR(VLOOKUP($A111,Filtro!$A$5:$AK$2912,15,FALSE),0) -> 0 | R111: =IFERROR(VLOOKUP($A111,Filtro!$A$5:$AK$2912,16,FALSE),0) -> 0 | S111: =IFERROR(VLOOKUP($A111,Filtro!$A$5:$AK$2912,17,FALSE),0) -> 0 | T111: =IFERROR(VLOOKUP($A111,Filtro!$A$5:$AK$2912,18,FALSE),0) -> 0 | U111: =IFERROR(VLOOKUP($A111,Filtro!$A$5:$AK$2912,19,FALSE),0) -> 0 | V111: =IFERROR(VLOOKUP($A111,Filtro!$A$5:$AK$2912,20,FALSE),0) -> 0 | W111: =IFERROR(VLOOKUP($A111,Filtro!$A$5:$AK$2912,21,FALSE),0) -> 0 | X111: =IFERROR(VLOOKUP($A111,Filtro!$A$5:$AK$2912,22,FALSE),0) -> 0 | Y111: =IFERROR(VLOOKUP($A111,Filtro!$A$5:$AK$2912,23,FALSE),0) -> 0 | Z111: =IFERROR(VLOOKUP($A111,Filtro!$A$5:$AK$2912,24,FALSE),0) -> 0 | AA111: =IFERROR(VLOOKUP($A111,Filtro!$A$5:$AK$2912,25,FALSE),0) -> 0 | AB111: =IFERROR(VLOOKUP($A111,Filtro!$A$5:$AK$2912,26,FALSE),0) -> 0 | AC111: =IFERROR(VLOOKUP($A111,Filtro!$A$5:$AK$2912,27,FALSE),0) -> 1 | AD111: =IFERROR(VLOOKUP($A111,Filtro!$A$5:$AK$2912,28,FALSE),0) -> 0 | AE111: =IFERROR(VLOOKUP($A111,Filtro!$A$5:$AK$2912,29,FALSE),0) -> 0 | AF111: =IFERROR(VLOOKUP($A111,Filtro!$A$5:$AK$2912,30,FALSE),0) -> 0 | AG111: =IFERROR(VLOOKUP($A111,Filtro!$A$5:$AK$2912,31,FALSE),0) -> 0 | AH111: =IFERROR(VLOOKUP($A111,Filtro!$A$5:$AK$2912,32,FALSE),0) -> 0 | AI111: =IFERROR(VLOOKUP($A111,Filtro!$A$5:$AK$2912,33,FALSE),0) -> 0 | AJ111: =IFERROR(VLOOKUP($A111,Filtro!$A$5:$AK$2912,34,FALSE),0) -> 0 | AK111: =IFERROR(VLOOKUP($A111,Filtro!$A$5:$AK$2912,35,FALSE),0) -> 0 | AL111: =IFERROR(VLOOKUP($A111,Filtro!$A$5:$AK$2912,36,FALSE),0) -> 564,750 | AM111: =IFERROR(VLOOKUP($A111,Filtro!$A$5:$AK$2912,37,FALSE),0) -> 7,530
A112: 01014361 | B112: 0108314 | C112: Teleconsulta Médica de Especialidad en Cirugía Cardiovascular | D112: =IFERROR(VLOOKUP($A112,Filtro!$A$5:$AK$2912,2,FALSE),0) -> 0 | E112: =IFERROR(VLOOKUP($A112,Filtro!$A$5:$AK$2912,3,FALSE),0) -> 0 | F112: =IFERROR(VLOOKUP($A112,Filtro!$A$5:$AK$2912,4,FALSE),0) -> 0 | G112: =IFERROR(VLOOKUP($A112,Filtro!$A$5:$AK$2912,5,FALSE),0) -> 0 | H112: =IFERROR(VLOOKUP($A112,Filtro!$A$5:$AK$2912,6,FALSE),0) -> 0 | I112: =IFERROR(VLOOKUP($A112,Filtro!$A$5:$AK$2912,7,FALSE),0) -> 0 | J112: =IFERROR(VLOOKUP($A112,Filtro!$A$5:$AK$2912,8,FALSE),0) -> 0 | K112: =IFERROR(VLOOKUP($A112,Filtro!$A$5:$AK$2912,9,FALSE),0) -> 0 | L112: =IFERROR(VLOOKUP($A112,Filtro!$A$5:$AK$2912,10,FALSE),0) -> 0 | M112: =IFERROR(VLOOKUP($A112,Filtro!$A$5:$AK$2912,11,FALSE),0) -> 0 | N112: =IFERROR(VLOOKUP($A112,Filtro!$A$5:$AK$2912,12,FALSE),0) -> 0 | O112: =IFERROR(VLOOKUP($A112,Filtro!$A$5:$AK$2912,13,FALSE),0) -> 0 | P112: =IFERROR(VLOOKUP($A112,Filtro!$A$5:$AK$2912,14,FALSE),0) -> 0 | Q112: =IFERROR(VLOOKUP($A112,Filtro!$A$5:$AK$2912,15,FALSE),0) -> 0 | R112: =IFERROR(VLOOKUP($A112,Filtro!$A$5:$AK$2912,16,FALSE),0) -> 0 | S112: =IFERROR(VLOOKUP($A112,Filtro!$A$5:$AK$2912,17,FALSE),0) -> 0 | T112: =IFERROR(VLOOKUP($A112,Filtro!$A$5:$AK$2912,18,FALSE),0) -> 0 | U112: =IFERROR(VLOOKUP($A112,Filtro!$A$5:$AK$2912,19,FALSE),0) -> 0 | V112: =IFERROR(VLOOKUP($A112,Filtro!$A$5:$AK$2912,20,FALSE),0) -> 0 | W112: =IFERROR(VLOOKUP($A112,Filtro!$A$5:$AK$2912,21,FALSE),0) -> 0 | X112: =IFERROR(VLOOKUP($A112,Filtro!$A$5:$AK$2912,22,FALSE),0) -> 0 | Y112: =IFERROR(VLOOKUP($A112,Filtro!$A$5:$AK$2912,23,FALSE),0) -> 0 | Z112: =IFERROR(VLOOKUP($A112,Filtro!$A$5:$AK$2912,24,FALSE),0) -> 0 | AA112: =IFERROR(VLOOKUP($A112,Filtro!$A$5:$AK$2912,25,FALSE),0) -> 0 | AB112: =IFERROR(VLOOKUP($A112,Filtro!$A$5:$AK$2912,26,FALSE),0) -> 0 | AC112: =IFERROR(VLOOKUP($A112,Filtro!$A$5:$AK$2912,27,FALSE),0) -> 0 | AD112: =IFERROR(VLOOKUP($A112,Filtro!$A$5:$AK$2912,28,FALSE),0) -> 0 | AE112: =IFERROR(VLOOKUP($A112,Filtro!$A$5:$AK$2912,29,FALSE),0) -> 0 | AF112: =IFERROR(VLOOKUP($A112,Filtro!$A$5:$AK$2912,30,FALSE),0) -> 0 | AG112: =IFERROR(VLOOKUP($A112,Filtro!$A$5:$AK$2912,31,FALSE),0) -> 0 | AH112: =IFERROR(VLOOKUP($A112,Filtro!$A$5:$AK$2912,32,FALSE),0) -> 0 | AI112: =IFERROR(VLOOKUP($A112,Filtro!$A$5:$AK$2912,33,FALSE),0) -> 0 | AJ112: =IFERROR(VLOOKUP($A112,Filtro!$A$5:$AK$2912,34,FALSE),0) -> 0 | AK112: =IFERROR(VLOOKUP($A112,Filtro!$A$5:$AK$2912,35,FALSE),0) -> 0 | AL112: =IFERROR(VLOOKUP($A112,Filtro!$A$5:$AK$2912,36,FALSE),0) -> 564,750 | AM112: =IFERROR(VLOOKUP($A112,Filtro!$A$5:$AK$2912,37,FALSE),0) -> 0
A113: 01014362 | B113: 0108315 | C113: Teleconsulta Médica de Especialidad en Cirugía de Tórax | D113: =IFERROR(VLOOKUP($A113,Filtro!$A$5:$AK$2912,2,FALSE),0) -> 0 | E113: =IFERROR(VLOOKUP($A113,Filtro!$A$5:$AK$2912,3,FALSE),0) -> 0 | F113: =IFERROR(VLOOKUP($A113,Filtro!$A$5:$AK$2912,4,FALSE),0) -> 0 | G113: =IFERROR(VLOOKUP($A113,Filtro!$A$5:$AK$2912,5,FALSE),0) -> 0 | H113: =IFERROR(VLOOKUP($A113,Filtro!$A$5:$AK$2912,6,FALSE),0) -> 0 | I113: =IFERROR(VLOOKUP($A113,Filtro!$A$5:$AK$2912,7,FALSE),0) -> 0 | J113: =IFERROR(VLOOKUP($A113,Filtro!$A$5:$AK$2912,8,FALSE),0) -> 0 | K113: =IFERROR(VLOOKUP($A113,Filtro!$A$5:$AK$2912,9,FALSE),0) -> 0 | L113: =IFERROR(VLOOKUP($A113,Filtro!$A$5:$AK$2912,10,FALSE),0) -> 0 | M113: =IFERROR(VLOOKUP($A113,Filtro!$A$5:$AK$2912,11,FALSE),0) -> 0 | N113: =IFERROR(VLOOKUP($A113,Filtro!$A$5:$AK$2912,12,FALSE),0) -> 0 | O113: =IFERROR(VLOOKUP($A113,Filtro!$A$5:$AK$2912,13,FALSE),0) -> 0 | P113: =IFERROR(VLOOKUP($A113,Filtro!$A$5:$AK$2912,14,FALSE),0) -> 0 | Q113: =IFERROR(VLOOKUP($A113,Filtro!$A$5:$AK$2912,15,FALSE),0) -> 0 | R113: =IFERROR(VLOOKUP($A113,Filtro!$A$5:$AK$2912,16,FALSE),0) -> 0 | S113: =IFERROR(VLOOKUP($A113,Filtro!$A$5:$AK$2912,17,FALSE),0) -> 0 | T113: =IFERROR(VLOOKUP($A113,Filtro!$A$5:$AK$2912,18,FALSE),0) -> 0 | U113: =IFERROR(VLOOKUP($A113,Filtro!$A$5:$AK$2912,19,FALSE),0) -> 0 | V113: =IFERROR(VLOOKUP($A113,Filtro!$A$5:$AK$2912,20,FALSE),0) -> 0 | W113: =IFERROR(VLOOKUP($A113,Filtro!$A$5:$AK$2912,21,FALSE),0) -> 0 | X113: =IFERROR(VLOOKUP($A113,Filtro!$A$5:$AK$2912,22,FALSE),0) -> 0 | Y113: =IFERROR(VLOOKUP($A113,Filtro!$A$5:$AK$2912,23,FALSE),0) -> 0 | Z113: =IFERROR(VLOOKUP($A113,Filtro!$A$5:$AK$2912,24,FALSE),0) -> 0 | AA113: =IFERROR(VLOOKUP($A113,Filtro!$A$5:$AK$2912,25,FALSE),0) -> 0 | AB113: =IFERROR(VLOOKUP($A113,Filtro!$A$5:$AK$2912,26,FALSE),0) -> 0 | AC113: =IFERROR(VLOOKUP($A113,Filtro!$A$5:$AK$2912,27,FALSE),0) -> 0 | AD113: =IFERROR(VLOOKUP($A113,Filtro!$A$5:$AK$2912,28,FALSE),0) -> 0 | AE113: =IFERROR(VLOOKUP($A113,Filtro!$A$5:$AK$2912,29,FALSE),0) -> 0 | AF113: =IFERROR(VLOOKUP($A113,Filtro!$A$5:$AK$2912,30,FALSE),0) -> 0 | AG113: =IFERROR(VLOOKUP($A113,Filtro!$A$5:$AK$2912,31,FALSE),0) -> 0 | AH113: =IFERROR(VLOOKUP($A113,Filtro!$A$5:$AK$2912,32,FALSE),0) -> 0 | AI113: =IFERROR(VLOOKUP($A113,Filtro!$A$5:$AK$2912,33,FALSE),0) -> 0 | AJ113: =IFERROR(VLOOKUP($A113,Filtro!$A$5:$AK$2912,34,FALSE),0) -> 0 | AK113: =IFERROR(VLOOKUP($A113,Filtro!$A$5:$AK$2912,35,FALSE),0) -> 0 | AL113: =IFERROR(VLOOKUP($A113,Filtro!$A$5:$AK$2912,36,FALSE),0) -> 564,750 | AM113: =IFERROR(VLOOKUP($A113,Filtro!$A$5:$AK$2912,37,FALSE),0) -> 0
A114: 01014363 | B114: 0108316 | C114: Teleconsulta Médica de Especialidad en Cirugía Plástica y Reparadora | D114: =IFERROR(VLOOKUP($A114,Filtro!$A$5:$AK$2912,2,FALSE),0) -> 0 | E114: =IFERROR(VLOOKUP($A114,Filtro!$A$5:$AK$2912,3,FALSE),0) -> 0 | F114: =IFERROR(VLOOKUP($A114,Filtro!$A$5:$AK$2912,4,FALSE),0) -> 0 | G114: =IFERROR(VLOOKUP($A114,Filtro!$A$5:$AK$2912,5,FALSE),0) -> 0 | H114: =IFERROR(VLOOKUP($A114,Filtro!$A$5:$AK$2912,6,FALSE),0) -> 0 | I114: =IFERROR(VLOOKUP($A114,Filtro!$A$5:$AK$2912,7,FALSE),0) -> 0 | J114: =IFERROR(VLOOKUP($A114,Filtro!$A$5:$AK$2912,8,FALSE),0) -> 0 | K114: =IFERROR(VLOOKUP($A114,Filtro!$A$5:$AK$2912,9,FALSE),0) -> 0 | L114: =IFERROR(VLOOKUP($A114,Filtro!$A$5:$AK$2912,10,FALSE),0) -> 0 | M114: =IFERROR(VLOOKUP($A114,Filtro!$A$5:$AK$2912,11,FALSE),0) -> 0 | N114: =IFERROR(VLOOKUP($A114,Filtro!$A$5:$AK$2912,12,FALSE),0) -> 0 | O114: =IFERROR(VLOOKUP($A114,Filtro!$A$5:$AK$2912,13,FALSE),0) -> 0 | P114: =IFERROR(VLOOKUP($A114,Filtro!$A$5:$AK$2912,14,FALSE),0) -> 0 | Q114: =IFERROR(VLOOKUP($A114,Filtro!$A$5:$AK$2912,15,FALSE),0) -> 0 | R114: =IFERROR(VLOOKUP($A114,Filtro!$A$5:$AK$2912,16,FALSE),0) -> 0 | S114: =IFERROR(VLOOKUP($A114,Filtro!$A$5:$AK$2912,17,FALSE),0) -> 0 | T114: =IFERROR(VLOOKUP($A114,Filtro!$A$5:$AK$2912,18,FALSE),0) -> 0 | U114: =IFERROR(VLOOKUP($A114,Filtro!$A$5:$AK$2912,19,FALSE),0) -> 0 | V114: =IFERROR(VLOOKUP($A114,Filtro!$A$5:$AK$2912,20,FALSE),0) -> 0 | W114: =IFERROR(VLOOKUP($A114,Filtro!$A$5:$AK$2912,21,FALSE),0) -> 0 | X114: =IFERROR(VLOOKUP($A114,Filtro!$A$5:$AK$2912,22,FALSE),0) -> 0 | Y114: =IFERROR(VLOOKUP($A114,Filtro!$A$5:$AK$2912,23,FALSE),0) -> 0 | Z114: =IFERROR(VLOOKUP($A114,Filtro!$A$5:$AK$2912,24,FALSE),0) -> 0 | AA114: =IFERROR(VLOOKUP($A114,Filtro!$A$5:$AK$2912,25,FALSE),0) -> 0 | AB114: =IFERROR(VLOOKUP($A114,Filtro!$A$5:$AK$2912,26,FALSE),0) -> 0 | AC114: =IFERROR(VLOOKUP($A114,Filtro!$A$5:$AK$2912,27,FALSE),0) -> 0 | AD114: =IFERROR(VLOOKUP($A114,Filtro!$A$5:$AK$2912,28,FALSE),0) -> 0 | AE114: =IFERROR(VLOOKUP($A114,Filtro!$A$5:$AK$2912,29,FALSE),0) -> 0 | AF114: =IFERROR(VLOOKUP($A114,Filtro!$A$5:$AK$2912,30,FALSE),0) -> 0 | AG114: =IFERROR(VLOOKUP($A114,Filtro!$A$5:$AK$2912,31,FALSE),0) -> 0 | AH114: =IFERROR(VLOOKUP($A114,Filtro!$A$5:$AK$2912,32,FALSE),0) -> 0 | AI114: =IFERROR(VLOOKUP($A114,Filtro!$A$5:$AK$2912,33,FALSE),0) -> 0 | AJ114: =IFERROR(VLOOKUP($A114,Filtro!$A$5:$AK$2912,34,FALSE),0) -> 0 | AK114: =IFERROR(VLOOKUP($A114,Filtro!$A$5:$AK$2912,35,FALSE),0) -> 0 | AL114: =IFERROR(VLOOKUP($A114,Filtro!$A$5:$AK$2912,36,FALSE),0) -> 564,750 | AM114: =IFERROR(VLOOKUP($A114,Filtro!$A$5:$AK$2912,37,FALSE),0) -> 0
A115: 01014364 | B115: 0108317 | C115: Teleconsulta Médica de Especialidad en Cirugía Pediátrica | D115: =IFERROR(VLOOKUP($A115,Filtro!$A$5:$AK$2912,2,FALSE),0) -> 1 | E115: =IFERROR(VLOOKUP($A115,Filtro!$A$5:$AK$2912,3,FALSE),0) -> 1 | F115: =IFERROR(VLOOKUP($A115,Filtro!$A$5:$AK$2912,4,FALSE),0) -> 1 | G115: =IFERROR(VLOOKUP($A115,Filtro!$A$5:$AK$2912,5,FALSE),0) -> 0 | H115: =IFERROR(VLOOKUP($A115,Filtro!$A$5:$AK$2912,6,FALSE),0) -> 0 | I115: =IFERROR(VLOOKUP($A115,Filtro!$A$5:$AK$2912,7,FALSE),0) -> 0 | J115: =IFERROR(VLOOKUP($A115,Filtro!$A$5:$AK$2912,8,FALSE),0) -> 0 | K115: =IFERROR(VLOOKUP($A115,Filtro!$A$5:$AK$2912,9,FALSE),0) -> 0 | L115: =IFERROR(VLOOKUP($A115,Filtro!$A$5:$AK$2912,10,FALSE),0) -> 0 | M115: =IFERROR(VLOOKUP($A115,Filtro!$A$5:$AK$2912,11,FALSE),0) -> 0 | N115: =IFERROR(VLOOKUP($A115,Filtro!$A$5:$AK$2912,12,FALSE),0) -> 0 | O115: =IFERROR(VLOOKUP($A115,Filtro!$A$5:$AK$2912,13,FALSE),0) -> 0 | P115: =IFERROR(VLOOKUP($A115,Filtro!$A$5:$AK$2912,14,FALSE),0) -> 0 | Q115: =IFERROR(VLOOKUP($A115,Filtro!$A$5:$AK$2912,15,FALSE),0) -> 0 | R115: =IFERROR(VLOOKUP($A115,Filtro!$A$5:$AK$2912,16,FALSE),0) -> 0 | S115: =IFERROR(VLOOKUP($A115,Filtro!$A$5:$AK$2912,17,FALSE),0) -> 0 | T115: =IFERROR(VLOOKUP($A115,Filtro!$A$5:$AK$2912,18,FALSE),0) -> 0 | U115: =IFERROR(VLOOKUP($A115,Filtro!$A$5:$AK$2912,19,FALSE),0) -> 0 | V115: =IFERROR(VLOOKUP($A115,Filtro!$A$5:$AK$2912,20,FALSE),0) -> 0 | W115: =IFERROR(VLOOKUP($A115,Filtro!$A$5:$AK$2912,21,FALSE),0) -> 0 | X115: =IFERROR(VLOOKUP($A115,Filtro!$A$5:$AK$2912,22,FALSE),0) -> 0 | Y115: =IFERROR(VLOOKUP($A115,Filtro!$A$5:$AK$2912,23,FALSE),0) -> 0 | Z115: =IFERROR(VLOOKUP($A115,Filtro!$A$5:$AK$2912,24,FALSE),0) -> 0 | AA115: =IFERROR(VLOOKUP($A115,Filtro!$A$5:$AK$2912,25,FALSE),0) -> 0 | AB115: =IFERROR(VLOOKUP($A115,Filtro!$A$5:$AK$2912,26,FALSE),0) -> 0 | AC115: =IFERROR(VLOOKUP($A115,Filtro!$A$5:$AK$2912,27,FALSE),0) -> 1 | AD115: =IFERROR(VLOOKUP($A115,Filtro!$A$5:$AK$2912,28,FALSE),0) -> 0 | AE115: =IFERROR(VLOOKUP($A115,Filtro!$A$5:$AK$2912,29,FALSE),0) -> 0 | AF115: =IFERROR(VLOOKUP($A115,Filtro!$A$5:$AK$2912,30,FALSE),0) -> 0 | AG115: =IFERROR(VLOOKUP($A115,Filtro!$A$5:$AK$2912,31,FALSE),0) -> 0 | AH115: =IFERROR(VLOOKUP($A115,Filtro!$A$5:$AK$2912,32,FALSE),0) -> 0 | AI115: =IFERROR(VLOOKUP($A115,Filtro!$A$5:$AK$2912,33,FALSE),0) -> 0 | AJ115: =IFERROR(VLOOKUP($A115,Filtro!$A$5:$AK$2912,34,FALSE),0) -> 0 | AK115: =IFERROR(VLOOKUP($A115,Filtro!$A$5:$AK$2912,35,FALSE),0) -> 0 | AL115: =IFERROR(VLOOKUP($A115,Filtro!$A$5:$AK$2912,36,FALSE),0) -> 564,750 | AM115: =IFERROR(VLOOKUP($A115,Filtro!$A$5:$AK$2912,37,FALSE),0) -> 7,530
A116: 01014365 | B116: 0108318 | C116: Teleconsulta Médica de Especialidad en Cirugía Vascular Periférica | D116: =IFERROR(VLOOKUP($A116,Filtro!$A$5:$AK$2912,2,FALSE),0) -> 0 | E116: =IFERROR(VLOOKUP($A116,Filtro!$A$5:$AK$2912,3,FALSE),0) -> 0 | F116: =IFERROR(VLOOKUP($A116,Filtro!$A$5:$AK$2912,4,FALSE),0) -> 0 | G116: =IFERROR(VLOOKUP($A116,Filtro!$A$5:$AK$2912,5,FALSE),0) -> 0 | H116: =IFERROR(VLOOKUP($A116,Filtro!$A$5:$AK$2912,6,FALSE),0) -> 0 | I116: =IFERROR(VLOOKUP($A116,Filtro!$A$5:$AK$2912,7,FALSE),0) -> 0 | J116: =IFERROR(VLOOKUP($A116,Filtro!$A$5:$AK$2912,8,FALSE),0) -> 0 | K116: =IFERROR(VLOOKUP($A116,Filtro!$A$5:$AK$2912,9,FALSE),0) -> 0 | L116: =IFERROR(VLOOKUP($A116,Filtro!$A$5:$AK$2912,10,FALSE),0) -> 0 | M116: =IFERROR(VLOOKUP($A116,Filtro!$A$5:$AK$2912,11,FALSE),0) -> 0 | N116: =IFERROR(VLOOKUP($A116,Filtro!$A$5:$AK$2912,12,FALSE),0) -> 0 | O116: =IFERROR(VLOOKUP($A116,Filtro!$A$5:$AK$2912,13,FALSE),0) -> 0 | P116: =IFERROR(VLOOKUP($A116,Filtro!$A$5:$AK$2912,14,FALSE),0) -> 0 | Q116: =IFERROR(VLOOKUP($A116,Filtro!$A$5:$AK$2912,15,FALSE),0) -> 0 | R116: =IFERROR(VLOOKUP($A116,Filtro!$A$5:$AK$2912,16,FALSE),0) -> 0 | S116: =IFERROR(VLOOKUP($A116,Filtro!$A$5:$AK$2912,17,FALSE),0) -> 0 | T116: =IFERROR(VLOOKUP($A116,Filtro!$A$5:$AK$2912,18,FALSE),0) -> 0 | U116: =IFERROR(VLOOKUP($A116,Filtro!$A$5:$AK$2912,19,FALSE),0) -> 0 | V116: =IFERROR(VLOOKUP($A116,Filtro!$A$5:$AK$2912,20,FALSE),0) -> 0 | W116: =IFERROR(VLOOKUP($A116,Filtro!$A$5:$AK$2912,21,FALSE),0) -> 0 | X116: =IFERROR(VLOOKUP($A116,Filtro!$A$5:$AK$2912,22,FALSE),0) -> 0 | Y116: =IFERROR(VLOOKUP($A116,Filtro!$A$5:$AK$2912,23,FALSE),0) -> 0 | Z116: =IFERROR(VLOOKUP($A116,Filtro!$A$5:$AK$2912,24,FALSE),0) -> 0 | AA116: =IFERROR(VLOOKUP($A116,Filtro!$A$5:$AK$2912,25,FALSE),0) -> 0 | AB116: =IFERROR(VLOOKUP($A116,Filtro!$A$5:$AK$2912,26,FALSE),0) -> 0 | AC116: =IFERROR(VLOOKUP($A116,Filtro!$A$5:$AK$2912,27,FALSE),0) -> 0 | AD116: =IFERROR(VLOOKUP($A116,Filtro!$A$5:$AK$2912,28,FALSE),0) -> 0 | AE116: =IFERROR(VLOOKUP($A116,Filtro!$A$5:$AK$2912,29,FALSE),0) -> 0 | AF116: =IFERROR(VLOOKUP($A116,Filtro!$A$5:$AK$2912,30,FALSE),0) -> 0 | AG116: =IFERROR(VLOOKUP($A116,Filtro!$A$5:$AK$2912,31,FALSE),0) -> 0 | AH116: =IFERROR(VLOOKUP($A116,Filtro!$A$5:$AK$2912,32,FALSE),0) -> 0 | AI116: =IFERROR(VLOOKUP($A116,Filtro!$A$5:$AK$2912,33,FALSE),0) -> 0 | AJ116: =IFERROR(VLOOKUP($A116,Filtro!$A$5:$AK$2912,34,FALSE),0) -> 0 | AK116: =IFERROR(VLOOKUP($A116,Filtro!$A$5:$AK$2912,35,FALSE),0) -> 0 | AL116: =IFERROR(VLOOKUP($A116,Filtro!$A$5:$AK$2912,36,FALSE),0) -> 564,750 | AM116: =IFERROR(VLOOKUP($A116,Filtro!$A$5:$AK$2912,37,FALSE),0) -> 0
A117: 01014366 | B117: 0108329 | C117: Teleconsulta Médica de Especialidad en Anestesiología | D117: =IFERROR(VLOOKUP($A117,Filtro!$A$5:$AK$2912,2,FALSE),0) -> 1299 | E117: =IFERROR(VLOOKUP($A117,Filtro!$A$5:$AK$2912,3,FALSE),0) -> 1288 | F117: =IFERROR(VLOOKUP($A117,Filtro!$A$5:$AK$2912,4,FALSE),0) -> 1288 | G117: =IFERROR(VLOOKUP($A117,Filtro!$A$5:$AK$2912,5,FALSE),0) -> 0 | H117: =IFERROR(VLOOKUP($A117,Filtro!$A$5:$AK$2912,6,FALSE),0) -> 11 | I117: =IFERROR(VLOOKUP($A117,Filtro!$A$5:$AK$2912,7,FALSE),0) -> 0 | J117: =IFERROR(VLOOKUP($A117,Filtro!$A$5:$AK$2912,8,FALSE),0) -> 0 | K117: =IFERROR(VLOOKUP($A117,Filtro!$A$5:$AK$2912,9,FALSE),0) -> 0 | L117: =IFERROR(VLOOKUP($A117,Filtro!$A$5:$AK$2912,10,FALSE),0) -> 0 | M117: =IFERROR(VLOOKUP($A117,Filtro!$A$5:$AK$2912,11,FALSE),0) -> 0 | N117: =IFERROR(VLOOKUP($A117,Filtro!$A$5:$AK$2912,12,FALSE),0) -> 0 | O117: =IFERROR(VLOOKUP($A117,Filtro!$A$5:$AK$2912,13,FALSE),0) -> 0 | P117: =IFERROR(VLOOKUP($A117,Filtro!$A$5:$AK$2912,14,FALSE),0) -> 0 | Q117: =IFERROR(VLOOKUP($A117,Filtro!$A$5:$AK$2912,15,FALSE),0) -> 0 | R117: =IFERROR(VLOOKUP($A117,Filtro!$A$5:$AK$2912,16,FALSE),0) -> 0 | S117: =IFERROR(VLOOKUP($A117,Filtro!$A$5:$AK$2912,17,FALSE),0) -> 0 | T117: =IFERROR(VLOOKUP($A117,Filtro!$A$5:$AK$2912,18,FALSE),0) -> 0 | U117: =IFERROR(VLOOKUP($A117,Filtro!$A$5:$AK$2912,19,FALSE),0) -> 0 | V117: =IFERROR(VLOOKUP($A117,Filtro!$A$5:$AK$2912,20,FALSE),0) -> 0 | W117: =IFERROR(VLOOKUP($A117,Filtro!$A$5:$AK$2912,21,FALSE),0) -> 0 | X117: =IFERROR(VLOOKUP($A117,Filtro!$A$5:$AK$2912,22,FALSE),0) -> 0 | Y117: =IFERROR(VLOOKUP($A117,Filtro!$A$5:$AK$2912,23,FALSE),0) -> 0 | Z117: =IFERROR(VLOOKUP($A117,Filtro!$A$5:$AK$2912,24,FALSE),0) -> 0 | AA117: =IFERROR(VLOOKUP($A117,Filtro!$A$5:$AK$2912,25,FALSE),0) -> 0 | AB117: =IFERROR(VLOOKUP($A117,Filtro!$A$5:$AK$2912,26,FALSE),0) -> 0 | AC117: =IFERROR(VLOOKUP($A117,Filtro!$A$5:$AK$2912,27,FALSE),0) -> 1299 | AD117: =IFERROR(VLOOKUP($A117,Filtro!$A$5:$AK$2912,28,FALSE),0) -> 0 | AE117: =IFERROR(VLOOKUP($A117,Filtro!$A$5:$AK$2912,29,FALSE),0) -> 697 | AF117: =IFERROR(VLOOKUP($A117,Filtro!$A$5:$AK$2912,30,FALSE),0) -> 0 | AG117: =IFERROR(VLOOKUP($A117,Filtro!$A$5:$AK$2912,31,FALSE),0) -> 0 | AH117: =IFERROR(VLOOKUP($A117,Filtro!$A$5:$AK$2912,32,FALSE),0) -> 0 | AI117: =IFERROR(VLOOKUP($A117,Filtro!$A$5:$AK$2912,33,FALSE),0) -> 0 | AJ117: =IFERROR(VLOOKUP($A117,Filtro!$A$5:$AK$2912,34,FALSE),0) -> 0 | AK117: =IFERROR(VLOOKUP($A117,Filtro!$A$5:$AK$2912,35,FALSE),0) -> 0 | AL117: =IFERROR(VLOOKUP($A117,Filtro!$A$5:$AK$2912,36,FALSE),0) -> 564,750 | AM117: =IFERROR(VLOOKUP($A117,Filtro!$A$5:$AK$2912,37,FALSE),0) -> 9,698,640
A118: 01014367 | B118: 0108332 | C118: Teleconsulta Médica de Especialidad en Ginecología Pediátrica y de la Adolescencia | D118: =IFERROR(VLOOKUP($A118,Filtro!$A$5:$AK$2912,2,FALSE),0) -> 0 | E118: =IFERROR(VLOOKUP($A118,Filtro!$A$5:$AK$2912,3,FALSE),0) -> 0 | F118: =IFERROR(VLOOKUP($A118,Filtro!$A$5:$AK$2912,4,FALSE),0) -> 0 | G118: =IFERROR(VLOOKUP($A118,Filtro!$A$5:$AK$2912,5,FALSE),0) -> 0 | H118: =IFERROR(VLOOKUP($A118,Filtro!$A$5:$AK$2912,6,FALSE),0) -> 0 | I118: =IFERROR(VLOOKUP($A118,Filtro!$A$5:$AK$2912,7,FALSE),0) -> 0 | J118: =IFERROR(VLOOKUP($A118,Filtro!$A$5:$AK$2912,8,FALSE),0) -> 0 | K118: =IFERROR(VLOOKUP($A118,Filtro!$A$5:$AK$2912,9,FALSE),0) -> 0 | L118: =IFERROR(VLOOKUP($A118,Filtro!$A$5:$AK$2912,10,FALSE),0) -> 0 | M118: =IFERROR(VLOOKUP($A118,Filtro!$A$5:$AK$2912,11,FALSE),0) -> 0 | N118: =IFERROR(VLOOKUP($A118,Filtro!$A$5:$AK$2912,12,FALSE),0) -> 0 | O118: =IFERROR(VLOOKUP($A118,Filtro!$A$5:$AK$2912,13,FALSE),0) -> 0 | P118: =IFERROR(VLOOKUP($A118,Filtro!$A$5:$AK$2912,14,FALSE),0) -> 0 | Q118: =IFERROR(VLOOKUP($A118,Filtro!$A$5:$AK$2912,15,FALSE),0) -> 0 | R118: =IFERROR(VLOOKUP($A118,Filtro!$A$5:$AK$2912,16,FALSE),0) -> 0 | S118: =IFERROR(VLOOKUP($A118,Filtro!$A$5:$AK$2912,17,FALSE),0) -> 0 | T118: =IFERROR(VLOOKUP($A118,Filtro!$A$5:$AK$2912,18,FALSE),0) -> 0 | U118: =IFERROR(VLOOKUP($A118,Filtro!$A$5:$AK$2912,19,FALSE),0) -> 0 | V118: =IFERROR(VLOOKUP($A118,Filtro!$A$5:$AK$2912,20,FALSE),0) -> 0 | W118: =IFERROR(VLOOKUP($A118,Filtro!$A$5:$AK$2912,21,FALSE),0) -> 0 | X118: =IFERROR(VLOOKUP($A118,Filtro!$A$5:$AK$2912,22,FALSE),0) -> 0 | Y118: =IFERROR(VLOOKUP($A118,Filtro!$A$5:$AK$2912,23,FALSE),0) -> 0 | Z118: =IFERROR(VLOOKUP($A118,Filtro!$A$5:$AK$2912,24,FALSE),0) -> 0 | AA118: =IFERROR(VLOOKUP($A118,Filtro!$A$5:$AK$2912,25,FALSE),0) -> 0 | AB118: =IFERROR(VLOOKUP($A118,Filtro!$A$5:$AK$2912,26,FALSE),0) -> 0 | AC118: =IFERROR(VLOOKUP($A118,Filtro!$A$5:$AK$2912,27,FALSE),0) -> 0 | AD118: =IFERROR(VLOOKUP($A118,Filtro!$A$5:$AK$2912,28,FALSE),0) -> 0 | AE118: =IFERROR(VLOOKUP($A118,Filtro!$A$5:$AK$2912,29,FALSE),0) -> 0 | AF118: =IFERROR(VLOOKUP($A118,Filtro!$A$5:$AK$2912,30,FALSE),0) -> 0 | AG118: =IFERROR(VLOOKUP($A118,Filtro!$A$5:$AK$2912,31,FALSE),0) -> 0 | AH118: =IFERROR(VLOOKUP($A118,Filtro!$A$5:$AK$2912,32,FALSE),0) -> 0 | AI118: =IFERROR(VLOOKUP($A118,Filtro!$A$5:$AK$2912,33,FALSE),0) -> 0 | AJ118: =IFERROR(VLOOKUP($A118,Filtro!$A$5:$AK$2912,34,FALSE),0) -> 0 | AK118: =IFERROR(VLOOKUP($A118,Filtro!$A$5:$AK$2912,35,FALSE),0) -> 0 | AL118: =IFERROR(VLOOKUP($A118,Filtro!$A$5:$AK$2912,36,FALSE),0) -> 564,750 | AM118: =IFERROR(VLOOKUP($A118,Filtro!$A$5:$AK$2912,37,FALSE),0) -> 0
A119: 01014368 | B119: 0108333 | C119: Teleconsulta Médica de Especialidad en Medicina Materno Fetal | D119: =IFERROR(VLOOKUP($A119,Filtro!$A$5:$AK$2912,2,FALSE),0) -> 0 | E119: =IFERROR(VLOOKUP($A119,Filtro!$A$5:$AK$2912,3,FALSE),0) -> 0 | F119: =IFERROR(VLOOKUP($A119,Filtro!$A$5:$AK$2912,4,FALSE),0) -> 0 | G119: =IFERROR(VLOOKUP($A119,Filtro!$A$5:$AK$2912,5,FALSE),0) -> 0 | H119: =IFERROR(VLOOKUP($A119,Filtro!$A$5:$AK$2912,6,FALSE),0) -> 0 | I119: =IFERROR(VLOOKUP($A119,Filtro!$A$5:$AK$2912,7,FALSE),0) -> 0 | J119: =IFERROR(VLOOKUP($A119,Filtro!$A$5:$AK$2912,8,FALSE),0) -> 0 | K119: =IFERROR(VLOOKUP($A119,Filtro!$A$5:$AK$2912,9,FALSE),0) -> 0 | L119: =IFERROR(VLOOKUP($A119,Filtro!$A$5:$AK$2912,10,FALSE),0) -> 0 | M119: =IFERROR(VLOOKUP($A119,Filtro!$A$5:$AK$2912,11,FALSE),0) -> 0 | N119: =IFERROR(VLOOKUP($A119,Filtro!$A$5:$AK$2912,12,FALSE),0) -> 0 | O119: =IFERROR(VLOOKUP($A119,Filtro!$A$5:$AK$2912,13,FALSE),0) -> 0 | P119: =IFERROR(VLOOKUP($A119,Filtro!$A$5:$AK$2912,14,FALSE),0) -> 0 | Q119: =IFERROR(VLOOKUP($A119,Filtro!$A$5:$AK$2912,15,FALSE),0) -> 0 | R119: =IFERROR(VLOOKUP($A119,Filtro!$A$5:$AK$2912,16,FALSE),0) -> 0 | S119: =IFERROR(VLOOKUP($A119,Filtro!$A$5:$AK$2912,17,FALSE),0) -> 0 | T119: =IFERROR(VLOOKUP($A119,Filtro!$A$5:$AK$2912,18,FALSE),0) -> 0 | U119: =IFERROR(VLOOKUP($A119,Filtro!$A$5:$AK$2912,19,FALSE),0) -> 0 | V119: =IFERROR(VLOOKUP($A119,Filtro!$A$5:$AK$2912,20,FALSE),0) -> 0 | W119: =IFERROR(VLOOKUP($A119,Filtro!$A$5:$AK$2912,21,FALSE),0) -> 0 | X119: =IFERROR(VLOOKUP($A119,Filtro!$A$5:$AK$2912,22,FALSE),0) -> 0 | Y119: =IFERROR(VLOOKUP($A119,Filtro!$A$5:$AK$2912,23,FALSE),0) -> 0 | Z119: =IFERROR(VLOOKUP($A119,Filtro!$A$5:$AK$2912,24,FALSE),0) -> 0 | AA119: =IFERROR(VLOOKUP($A119,Filtro!$A$5:$AK$2912,25,FALSE),0) -> 0 | AB119: =IFERROR(VLOOKUP($A119,Filtro!$A$5:$AK$2912,26,FALSE),0) -> 0 | AC119: =IFERROR(VLOOKUP($A119,Filtro!$A$5:$AK$2912,27,FALSE),0) -> 0 | AD119: =IFERROR(VLOOKUP($A119,Filtro!$A$5:$AK$2912,28,FALSE),0) -> 0 | AE119: =IFERROR(VLOOKUP($A119,Filtro!$A$5:$AK$2912,29,FALSE),0) -> 0 | AF119: =IFERROR(VLOOKUP($A119,Filtro!$A$5:$AK$2912,30,FALSE),0) -> 0 | AG119: =IFERROR(VLOOKUP($A119,Filtro!$A$5:$AK$2912,31,FALSE),0) -> 0 | AH119: =IFERROR(VLOOKUP($A119,Filtro!$A$5:$AK$2912,32,FALSE),0) -> 0 | AI119: =IFERROR(VLOOKUP($A119,Filtro!$A$5:$AK$2912,33,FALSE),0) -> 0 | AJ119: =IFERROR(VLOOKUP($A119,Filtro!$A$5:$AK$2912,34,FALSE),0) -> 0 | AK119: =IFERROR(VLOOKUP($A119,Filtro!$A$5:$AK$2912,35,FALSE),0) -> 0 | AL119: =IFERROR(VLOOKUP($A119,Filtro!$A$5:$AK$2912,36,FALSE),0) -> 564,750 | AM119: =IFERROR(VLOOKUP($A119,Filtro!$A$5:$AK$2912,37,FALSE),0) -> 0
A120: 01014369 | B120: 0108334 | C120: Teleconsulta Médica de Especialidad en Medicina Nuclear | D120: =IFERROR(VLOOKUP($A120,Filtro!$A$5:$AK$2912,2,FALSE),0) -> 0 | E120: =IFERROR(VLOOKUP($A120,Filtro!$A$5:$AK$2912,3,FALSE),0) -> 0 | F120: =IFERROR(VLOOKUP($A120,Filtro!$A$5:$AK$2912,4,FALSE),0) -> 0 | G120: =IFERROR(VLOOKUP($A120,Filtro!$A$5:$AK$2912,5,FALSE),0) -> 0 | H120: =IFERROR(VLOOKUP($A120,Filtro!$A$5:$AK$2912,6,FALSE),0) -> 0 | I120: =IFERROR(VLOOKUP($A120,Filtro!$A$5:$AK$2912,7,FALSE),0) -> 0 | J120: =IFERROR(VLOOKUP($A120,Filtro!$A$5:$AK$2912,8,FALSE),0) -> 0 | K120: =IFERROR(VLOOKUP($A120,Filtro!$A$5:$AK$2912,9,FALSE),0) -> 0 | L120: =IFERROR(VLOOKUP($A120,Filtro!$A$5:$AK$2912,10,FALSE),0) -> 0 | M120: =IFERROR(VLOOKUP($A120,Filtro!$A$5:$AK$2912,11,FALSE),0) -> 0 | N120: =IFERROR(VLOOKUP($A120,Filtro!$A$5:$AK$2912,12,FALSE),0) -> 0 | O120: =IFERROR(VLOOKUP($A120,Filtro!$A$5:$AK$2912,13,FALSE),0) -> 0 | P120: =IFERROR(VLOOKUP($A120,Filtro!$A$5:$AK$2912,14,FALSE),0) -> 0 | Q120: =IFERROR(VLOOKUP($A120,Filtro!$A$5:$AK$2912,15,FALSE),0) -> 0 | R120: =IFERROR(VLOOKUP($A120,Filtro!$A$5:$AK$2912,16,FALSE),0) -> 0 | S120: =IFERROR(VLOOKUP($A120,Filtro!$A$5:$AK$2912,17,FALSE),0) -> 0 | T120: =IFERROR(VLOOKUP($A120,Filtro!$A$5:$AK$2912,18,FALSE),0) -> 0 | U120: =IFERROR(VLOOKUP($A120,Filtro!$A$5:$AK$2912,19,FALSE),0) -> 0 | V120: =IFERROR(VLOOKUP($A120,Filtro!$A$5:$AK$2912,20,FALSE),0) -> 0 | W120: =IFERROR(VLOOKUP($A120,Filtro!$A$5:$AK$2912,21,FALSE),0) -> 0 | X120: =IFERROR(VLOOKUP($A120,Filtro!$A$5:$AK$2912,22,FALSE),0) -> 0 | Y120: =IFERROR(VLOOKUP($A120,Filtro!$A$5:$AK$2912,23,FALSE),0) -> 0 | Z120: =IFERROR(VLOOKUP($A120,Filtro!$A$5:$AK$2912,24,FALSE),0) -> 0 | AA120: =IFERROR(VLOOKUP($A120,Filtro!$A$5:$AK$2912,25,FALSE),0) -> 0 | AB120: =IFERROR(VLOOKUP($A120,Filtro!$A$5:$AK$2912,26,FALSE),0) -> 0 | AC120: =IFERROR(VLOOKUP($A120,Filtro!$A$5:$AK$2912,27,FALSE),0) -> 0 | AD120: =IFERROR(VLOOKUP($A120,Filtro!$A$5:$AK$2912,28,FALSE),0) -> 0 | AE120: =IFERROR(VLOOKUP($A120,Filtro!$A$5:$AK$2912,29,FALSE),0) -> 0 | AF120: =IFERROR(VLOOKUP($A120,Filtro!$A$5:$AK$2912,30,FALSE),0) -> 0 | AG120: =IFERROR(VLOOKUP($A120,Filtro!$A$5:$AK$2912,31,FALSE),0) -> 0 | AH120: =IFERROR(VLOOKUP($A120,Filtro!$A$5:$AK$2912,32,FALSE),0) -> 0 | AI120: =IFERROR(VLOOKUP($A120,Filtro!$A$5:$AK$2912,33,FALSE),0) -> 0 | AJ120: =IFERROR(VLOOKUP($A120,Filtro!$A$5:$AK$2912,34,FALSE),0) -> 0 | AK120: =IFERROR(VLOOKUP($A120,Filtro!$A$5:$AK$2912,35,FALSE),0) -> 0 | AL120: =IFERROR(VLOOKUP($A120,Filtro!$A$5:$AK$2912,36,FALSE),0) -> 564,750 | AM120: =IFERROR(VLOOKUP($A120,Filtro!$A$5:$AK$2912,37,FALSE),0) -> 0
C121: TOTAL | D121: =IFERROR(VLOOKUP($A121,Filtro!$A$5:$AK$2912,2,FALSE),0) -> 0 | E121: =IFERROR(VLOOKUP($A121,Filtro!$A$5:$AK$2912,3,FALSE),0) -> 0 | F121: =IFERROR(VLOOKUP($A121,Filtro!$A$5:$AK$2912,4,FALSE),0) -> 0 | G121: =IFERROR(VLOOKUP($A121,Filtro!$A$5:$AK$2912,5,FALSE),0) -> 0 | H121: =IFERROR(VLOOKUP($A121,Filtro!$A$5:$AK$2912,6,FALSE),0) -> 0 | I121: =IFERROR(VLOOKUP($A121,Filtro!$A$5:$AK$2912,7,FALSE),0) -> 0 | J121: =IFERROR(VLOOKUP($A121,Filtro!$A$5:$AK$2912,8,FALSE),0) -> 0 | K121: =IFERROR(VLOOKUP($A121,Filtro!$A$5:$AK$2912,9,FALSE),0) -> 0 | L121: =IFERROR(VLOOKUP($A121,Filtro!$A$5:$AK$2912,10,FALSE),0) -> 0 | M121: =IFERROR(VLOOKUP($A121,Filtro!$A$5:$AK$2912,11,FALSE),0) -> 0 | N121: =IFERROR(VLOOKUP($A121,Filtro!$A$5:$AK$2912,12,FALSE),0) -> 0 | O121: =IFERROR(VLOOKUP($A121,Filtro!$A$5:$AK$2912,13,FALSE),0) -> 0 | P121: =IFERROR(VLOOKUP($A121,Filtro!$A$5:$AK$2912,14,FALSE),0) -> 0 | Q121: =IFERROR(VLOOKUP($A121,Filtro!$A$5:$AK$2912,15,FALSE),0) -> 0 | R121: =IFERROR(VLOOKUP($A121,Filtro!$A$5:$AK$2912,16,FALSE),0) -> 0 | S121: =IFERROR(VLOOKUP($A121,Filtro!$A$5:$AK$2912,17,FALSE),0) -> 0 | T121: =IFERROR(VLOOKUP($A121,Filtro!$A$5:$AK$2912,18,FALSE),0) -> 0 | U121: =IFERROR(VLOOKUP($A121,Filtro!$A$5:$AK$2912,19,FALSE),0) -> 0 | V121: =IFERROR(VLOOKUP($A121,Filtro!$A$5:$AK$2912,20,FALSE),0) -> 0 | W121: =IFERROR(VLOOKUP($A121,Filtro!$A$5:$AK$2912,21,FALSE),0) -> 0 | X121: =IFERROR(VLOOKUP($A121,Filtro!$A$5:$AK$2912,22,FALSE),0) -> 0 | Y121: =IFERROR(VLOOKUP($A121,Filtro!$A$5:$AK$2912,23,FALSE),0) -> 0 | Z121: =IFERROR(VLOOKUP($A121,Filtro!$A$5:$AK$2912,24,FALSE),0) -> 0 | AA121: =IFERROR(VLOOKUP($A121,Filtro!$A$5:$AK$2912,25,FALSE),0) -> 0 | AB121: =IFERROR(VLOOKUP($A121,Filtro!$A$5:$AK$2912,26,FALSE),0) -> 0 | AC121: =IFERROR(VLOOKUP($A121,Filtro!$A$5:$AK$2912,27,FALSE),0) -> 0 | AD121: =IFERROR(VLOOKUP($A121,Filtro!$A$5:$AK$2912,28,FALSE),0) -> 0 | AE121: =IFERROR(VLOOKUP($A121,Filtro!$A$5:$AK$2912,29,FALSE),0) -> 0 | AF121: =IFERROR(VLOOKUP($A121,Filtro!$A$5:$AK$2912,30,FALSE),0) -> 0 | AG121: =IFERROR(VLOOKUP($A121,Filtro!$A$5:$AK$2912,31,FALSE),0) -> 0 | AH121: =IFERROR(VLOOKUP($A121,Filtro!$A$5:$AK$2912,32,FALSE),0) -> 0 | AI121: =IFERROR(VLOOKUP($A121,Filtro!$A$5:$AK$2912,33,FALSE),0) -> 0 | AJ121: =IFERROR(VLOOKUP($A121,Filtro!$A$5:$AK$2912,34,FALSE),0) -> 0 | AK121: =IFERROR(VLOOKUP($A121,Filtro!$A$5:$AK$2912,35,FALSE),0) -> 0 | AL121: =IFERROR(VLOOKUP($A121,Filtro!$A$5:$AK$2912,36,FALSE),0) -> 0 | AM121: =IFERROR(VLOOKUP($A121,Filtro!$A$5:$AK$2912,37,FALSE),0) -> 0
C122: TELEMEDICINA PROFESIONALES NO MÉDICOS | D122: =IFERROR(VLOOKUP($A122,Filtro!$A$5:$AK$2912,2,FALSE),0) -> 0 | E122: =IFERROR(VLOOKUP($A122,Filtro!$A$5:$AK$2912,3,FALSE),0) -> 0 | F122: =IFERROR(VLOOKUP($A122,Filtro!$A$5:$AK$2912,4,FALSE),0) -> 0 | G122: =IFERROR(VLOOKUP($A122,Filtro!$A$5:$AK$2912,5,FALSE),0) -> 0 | H122: =IFERROR(VLOOKUP($A122,Filtro!$A$5:$AK$2912,6,FALSE),0) -> 0 | I122: =IFERROR(VLOOKUP($A122,Filtro!$A$5:$AK$2912,7,FALSE),0) -> 0 | J122: =IFERROR(VLOOKUP($A122,Filtro!$A$5:$AK$2912,8,FALSE),0) -> 0 | K122: =IFERROR(VLOOKUP($A122,Filtro!$A$5:$AK$2912,9,FALSE),0) -> 0 | L122: =IFERROR(VLOOKUP($A122,Filtro!$A$5:$AK$2912,10,FALSE),0) -> 0 | M122: =IFERROR(VLOOKUP($A122,Filtro!$A$5:$AK$2912,11,FALSE),0) -> 0 | N122: =IFERROR(VLOOKUP($A122,Filtro!$A$5:$AK$2912,12,FALSE),0) -> 0 | O122: =IFERROR(VLOOKUP($A122,Filtro!$A$5:$AK$2912,13,FALSE),0) -> 0 | P122: =IFERROR(VLOOKUP($A122,Filtro!$A$5:$AK$2912,14,FALSE),0) -> 0 | Q122: =IFERROR(VLOOKUP($A122,Filtro!$A$5:$AK$2912,15,FALSE),0) -> 0 | R122: =IFERROR(VLOOKUP($A122,Filtro!$A$5:$AK$2912,16,FALSE),0) -> 0 | S122: =IFERROR(VLOOKUP($A122,Filtro!$A$5:$AK$2912,17,FALSE),0) -> 0 | T122: =IFERROR(VLOOKUP($A122,Filtro!$A$5:$AK$2912,18,FALSE),0) -> 0 | U122: =IFERROR(VLOOKUP($A122,Filtro!$A$5:$AK$2912,19,FALSE),0) -> 0 | V122: =IFERROR(VLOOKUP($A122,Filtro!$A$5:$AK$2912,20,FALSE),0) -> 0 | W122: =IFERROR(VLOOKUP($A122,Filtro!$A$5:$AK$2912,21,FALSE),0) -> 0 | X122: =IFERROR(VLOOKUP($A122,Filtro!$A$5:$AK$2912,22,FALSE),0) -> 0 | Y122: =IFERROR(VLOOKUP($A122,Filtro!$A$5:$AK$2912,23,FALSE),0) -> 0 | Z122: =IFERROR(VLOOKUP($A122,Filtro!$A$5:$AK$2912,24,FALSE),0) -> 0 | AA122: =IFERROR(VLOOKUP($A122,Filtro!$A$5:$AK$2912,25,FALSE),0) -> 0 | AB122: =IFERROR(VLOOKUP($A122,Filtro!$A$5:$AK$2912,26,FALSE),0) -> 0 | AC122: =IFERROR(VLOOKUP($A122,Filtro!$A$5:$AK$2912,27,FALSE),0) -> 0 | AD122: =IFERROR(VLOOKUP($A122,Filtro!$A$5:$AK$2912,28,FALSE),0) -> 0 | AE122: =IFERROR(VLOOKUP($A122,Filtro!$A$5:$AK$2912,29,FALSE),0) -> 0 | AF122: =IFERROR(VLOOKUP($A122,Filtro!$A$5:$AK$2912,30,FALSE),0) -> 0 | AG122: =IFERROR(VLOOKUP($A122,Filtro!$A$5:$AK$2912,31,FALSE),0) -> 0 | AH122: =IFERROR(VLOOKUP($A122,Filtro!$A$5:$AK$2912,32,FALSE),0) -> 0 | AI122: =IFERROR(VLOOKUP($A122,Filtro!$A$5:$AK$2912,33,FALSE),0) -> 0 | AJ122: =IFERROR(VLOOKUP($A122,Filtro!$A$5:$AK$2912,34,FALSE),0) -> 0 | AK122: =IFERROR(VLOOKUP($A122,Filtro!$A$5:$AK$2912,35,FALSE),0) -> 0 | AL122: =IFERROR(VLOOKUP($A122,Filtro!$A$5:$AK$2912,36,FALSE),0) -> 0 | AM122: =IFERROR(VLOOKUP($A122,Filtro!$A$5:$AK$2912,37,FALSE),0) -> 0
A123: 01014370 | B123: 0108400 | C123: Teleconsulta: Atención Integral de Nutricionista (incluye 3 sesiones) | D123: =IFERROR(VLOOKUP($A123,Filtro!$A$5:$AK$2912,2,FALSE),0) -> 0 | E123: =IFERROR(VLOOKUP($A123,Filtro!$A$5:$AK$2912,3,FALSE),0) -> 0 | F123: =IFERROR(VLOOKUP($A123,Filtro!$A$5:$AK$2912,4,FALSE),0) -> 0 | G123: =IFERROR(VLOOKUP($A123,Filtro!$A$5:$AK$2912,5,FALSE),0) -> 0 | H123: =IFERROR(VLOOKUP($A123,Filtro!$A$5:$AK$2912,6,FALSE),0) -> 0 | I123: =IFERROR(VLOOKUP($A123,Filtro!$A$5:$AK$2912,7,FALSE),0) -> 0 | J123: =IFERROR(VLOOKUP($A123,Filtro!$A$5:$AK$2912,8,FALSE),0) -> 0 | K123: =IFERROR(VLOOKUP($A123,Filtro!$A$5:$AK$2912,9,FALSE),0) -> 0 | L123: =IFERROR(VLOOKUP($A123,Filtro!$A$5:$AK$2912,10,FALSE),0) -> 0 | M123: =IFERROR(VLOOKUP($A123,Filtro!$A$5:$AK$2912,11,FALSE),0) -> 0 | N123: =IFERROR(VLOOKUP($A123,Filtro!$A$5:$AK$2912,12,FALSE),0) -> 0 | O123: =IFERROR(VLOOKUP($A123,Filtro!$A$5:$AK$2912,13,FALSE),0) -> 0 | P123: =IFERROR(VLOOKUP($A123,Filtro!$A$5:$AK$2912,14,FALSE),0) -> 0 | Q123: =IFERROR(VLOOKUP($A123,Filtro!$A$5:$AK$2912,15,FALSE),0) -> 0 | R123: =IFERROR(VLOOKUP($A123,Filtro!$A$5:$AK$2912,16,FALSE),0) -> 0 | S123: =IFERROR(VLOOKUP($A123,Filtro!$A$5:$AK$2912,17,FALSE),0) -> 0 | T123: =IFERROR(VLOOKUP($A123,Filtro!$A$5:$AK$2912,18,FALSE),0) -> 0 | U123: =IFERROR(VLOOKUP($A123,Filtro!$A$5:$AK$2912,19,FALSE),0) -> 0 | V123: =IFERROR(VLOOKUP($A123,Filtro!$A$5:$AK$2912,20,FALSE),0) -> 0 | W123: =IFERROR(VLOOKUP($A123,Filtro!$A$5:$AK$2912,21,FALSE),0) -> 0 | X123: =IFERROR(VLOOKUP($A123,Filtro!$A$5:$AK$2912,22,FALSE),0) -> 0 | Y123: =IFERROR(VLOOKUP($A123,Filtro!$A$5:$AK$2912,23,FALSE),0) -> 0 | Z123: =IFERROR(VLOOKUP($A123,Filtro!$A$5:$AK$2912,24,FALSE),0) -> 0 | AA123: =IFERROR(VLOOKUP($A123,Filtro!$A$5:$AK$2912,25,FALSE),0) -> 0 | AB123: =IFERROR(VLOOKUP($A123,Filtro!$A$5:$AK$2912,26,FALSE),0) -> 0 | AC123: =IFERROR(VLOOKUP($A123,Filtro!$A$5:$AK$2912,27,FALSE),0) -> 0 | AD123: =IFERROR(VLOOKUP($A123,Filtro!$A$5:$AK$2912,28,FALSE),0) -> 0 | AE123: =IFERROR(VLOOKUP($A123,Filtro!$A$5:$AK$2912,29,FALSE),0) -> 0 | AF123: =IFERROR(VLOOKUP($A123,Filtro!$A$5:$AK$2912,30,FALSE),0) -> 0 | AG123: =IFERROR(VLOOKUP($A123,Filtro!$A$5:$AK$2912,31,FALSE),0) -> 0 | AH123: =IFERROR(VLOOKUP($A123,Filtro!$A$5:$AK$2912,32,FALSE),0) -> 0 | AI123: =IFERROR(VLOOKUP($A123,Filtro!$A$5:$AK$2912,33,FALSE),0) -> 0 | AJ123: =IFERROR(VLOOKUP($A123,Filtro!$A$5:$AK$2912,34,FALSE),0) -> 0 | AK123: =IFERROR(VLOOKUP($A123,Filtro!$A$5:$AK$2912,35,FALSE),0) -> 0 | AL123: =IFERROR(VLOOKUP($A123,Filtro!$A$5:$AK$2912,36,FALSE),0) -> 1,631,250 | AM123: =IFERROR(VLOOKUP($A123,Filtro!$A$5:$AK$2912,37,FALSE),0) -> 0
C124: TOTAL | D124: =IFERROR(VLOOKUP($A124,Filtro!$A$5:$AK$2912,2,FALSE),0) -> 0 | E124: =IFERROR(VLOOKUP($A124,Filtro!$A$5:$AK$2912,3,FALSE),0) -> 0 | F124: =IFERROR(VLOOKUP($A124,Filtro!$A$5:$AK$2912,4,FALSE),0) -> 0 | G124: =IFERROR(VLOOKUP($A124,Filtro!$A$5:$AK$2912,5,FALSE),0) -> 0 | H124: =IFERROR(VLOOKUP($A124,Filtro!$A$5:$AK$2912,6,FALSE),0) -> 0 | I124: =IFERROR(VLOOKUP($A124,Filtro!$A$5:$AK$2912,7,FALSE),0) -> 0 | J124: =IFERROR(VLOOKUP($A124,Filtro!$A$5:$AK$2912,8,FALSE),0) -> 0 | K124: =IFERROR(VLOOKUP($A124,Filtro!$A$5:$AK$2912,9,FALSE),0) -> 0 | L124: =IFERROR(VLOOKUP($A124,Filtro!$A$5:$AK$2912,10,FALSE),0) -> 0 | M124: =IFERROR(VLOOKUP($A124,Filtro!$A$5:$AK$2912,11,FALSE),0) -> 0 | N124: =IFERROR(VLOOKUP($A124,Filtro!$A$5:$AK$2912,12,FALSE),0) -> 0 | O124: =IFERROR(VLOOKUP($A124,Filtro!$A$5:$AK$2912,13,FALSE),0) -> 0 | P124: =IFERROR(VLOOKUP($A124,Filtro!$A$5:$AK$2912,14,FALSE),0) -> 0 | Q124: =IFERROR(VLOOKUP($A124,Filtro!$A$5:$AK$2912,15,FALSE),0) -> 0 | R124: =IFERROR(VLOOKUP($A124,Filtro!$A$5:$AK$2912,16,FALSE),0) -> 0 | S124: =IFERROR(VLOOKUP($A124,Filtro!$A$5:$AK$2912,17,FALSE),0) -> 0 | T124: =IFERROR(VLOOKUP($A124,Filtro!$A$5:$AK$2912,18,FALSE),0) -> 0 | U124: =IFERROR(VLOOKUP($A124,Filtro!$A$5:$AK$2912,19,FALSE),0) -> 0 | V124: =IFERROR(VLOOKUP($A124,Filtro!$A$5:$AK$2912,20,FALSE),0) -> 0 | W124: =IFERROR(VLOOKUP($A124,Filtro!$A$5:$AK$2912,21,FALSE),0) -> 0 | X124: =IFERROR(VLOOKUP($A124,Filtro!$A$5:$AK$2912,22,FALSE),0) -> 0 | Y124: =IFERROR(VLOOKUP($A124,Filtro!$A$5:$AK$2912,23,FALSE),0) -> 0 | Z124: =IFERROR(VLOOKUP($A124,Filtro!$A$5:$AK$2912,24,FALSE),0) -> 0 | AA124: =IFERROR(VLOOKUP($A124,Filtro!$A$5:$AK$2912,25,FALSE),0) -> 0 | AB124: =IFERROR(VLOOKUP($A124,Filtro!$A$5:$AK$2912,26,FALSE),0) -> 0 | AC124: =IFERROR(VLOOKUP($A124,Filtro!$A$5:$AK$2912,27,FALSE),0) -> 0 | AD124: =IFERROR(VLOOKUP($A124,Filtro!$A$5:$AK$2912,28,FALSE),0) -> 0 | AE124: =IFERROR(VLOOKUP($A124,Filtro!$A$5:$AK$2912,29,FALSE),0) -> 0 | AF124: =IFERROR(VLOOKUP($A124,Filtro!$A$5:$AK$2912,30,FALSE),0) -> 0 | AG124: =IFERROR(VLOOKUP($A124,Filtro!$A$5:$AK$2912,31,FALSE),0) -> 0 | AH124: =IFERROR(VLOOKUP($A124,Filtro!$A$5:$AK$2912,32,FALSE),0) -> 0 | AI124: =IFERROR(VLOOKUP($A124,Filtro!$A$5:$AK$2912,33,FALSE),0) -> 0 | AJ124: =IFERROR(VLOOKUP($A124,Filtro!$A$5:$AK$2912,34,FALSE),0) -> 0 | AK124: =IFERROR(VLOOKUP($A124,Filtro!$A$5:$AK$2912,35,FALSE),0) -> 0 | AL124: =IFERROR(VLOOKUP($A124,Filtro!$A$5:$AK$2912,36,FALSE),0) -> 0 | AM124: =IFERROR(VLOOKUP($A124,Filtro!$A$5:$AK$2912,37,FALSE),0) -> 0
C125: TELEINTERCONSULTA (TELEMEDICINA) | D125: =IFERROR(VLOOKUP($A125,Filtro!$A$5:$AK$2912,2,FALSE),0) -> 0 | E125: =IFERROR(VLOOKUP($A125,Filtro!$A$5:$AK$2912,3,FALSE),0) -> 0 | F125: =IFERROR(VLOOKUP($A125,Filtro!$A$5:$AK$2912,4,FALSE),0) -> 0 | G125: =IFERROR(VLOOKUP($A125,Filtro!$A$5:$AK$2912,5,FALSE),0) -> 0 | H125: =IFERROR(VLOOKUP($A125,Filtro!$A$5:$AK$2912,6,FALSE),0) -> 0 | I125: =IFERROR(VLOOKUP($A125,Filtro!$A$5:$AK$2912,7,FALSE),0) -> 0 | J125: =IFERROR(VLOOKUP($A125,Filtro!$A$5:$AK$2912,8,FALSE),0) -> 0 | K125: =IFERROR(VLOOKUP($A125,Filtro!$A$5:$AK$2912,9,FALSE),0) -> 0 | L125: =IFERROR(VLOOKUP($A125,Filtro!$A$5:$AK$2912,10,FALSE),0) -> 0 | M125: =IFERROR(VLOOKUP($A125,Filtro!$A$5:$AK$2912,11,FALSE),0) -> 0 | N125: =IFERROR(VLOOKUP($A125,Filtro!$A$5:$AK$2912,12,FALSE),0) -> 0 | O125: =IFERROR(VLOOKUP($A125,Filtro!$A$5:$AK$2912,13,FALSE),0) -> 0 | P125: =IFERROR(VLOOKUP($A125,Filtro!$A$5:$AK$2912,14,FALSE),0) -> 0 | Q125: =IFERROR(VLOOKUP($A125,Filtro!$A$5:$AK$2912,15,FALSE),0) -> 0 | R125: =IFERROR(VLOOKUP($A125,Filtro!$A$5:$AK$2912,16,FALSE),0) -> 0 | S125: =IFERROR(VLOOKUP($A125,Filtro!$A$5:$AK$2912,17,FALSE),0) -> 0 | T125: =IFERROR(VLOOKUP($A125,Filtro!$A$5:$AK$2912,18,FALSE),0) -> 0 | U125: =IFERROR(VLOOKUP($A125,Filtro!$A$5:$AK$2912,19,FALSE),0) -> 0 | V125: =IFERROR(VLOOKUP($A125,Filtro!$A$5:$AK$2912,20,FALSE),0) -> 0 | W125: =IFERROR(VLOOKUP($A125,Filtro!$A$5:$AK$2912,21,FALSE),0) -> 0 | X125: =IFERROR(VLOOKUP($A125,Filtro!$A$5:$AK$2912,22,FALSE),0) -> 0 | Y125: =IFERROR(VLOOKUP($A125,Filtro!$A$5:$AK$2912,23,FALSE),0) -> 0 | Z125: =IFERROR(VLOOKUP($A125,Filtro!$A$5:$AK$2912,24,FALSE),0) -> 0 | AA125: =IFERROR(VLOOKUP($A125,Filtro!$A$5:$AK$2912,25,FALSE),0) -> 0 | AB125: =IFERROR(VLOOKUP($A125,Filtro!$A$5:$AK$2912,26,FALSE),0) -> 0 | AC125: =IFERROR(VLOOKUP($A125,Filtro!$A$5:$AK$2912,27,FALSE),0) -> 0 | AD125: =IFERROR(VLOOKUP($A125,Filtro!$A$5:$AK$2912,28,FALSE),0) -> 0 | AE125: =IFERROR(VLOOKUP($A125,Filtro!$A$5:$AK$2912,29,FALSE),0) -> 0 | AF125: =IFERROR(VLOOKUP($A125,Filtro!$A$5:$AK$2912,30,FALSE),0) -> 0 | AG125: =IFERROR(VLOOKUP($A125,Filtro!$A$5:$AK$2912,31,FALSE),0) -> 0 | AH125: =IFERROR(VLOOKUP($A125,Filtro!$A$5:$AK$2912,32,FALSE),0) -> 0 | AI125: =IFERROR(VLOOKUP($A125,Filtro!$A$5:$AK$2912,33,FALSE),0) -> 0 | AJ125: =IFERROR(VLOOKUP($A125,Filtro!$A$5:$AK$2912,34,FALSE),0) -> 0 | AK125: =IFERROR(VLOOKUP($A125,Filtro!$A$5:$AK$2912,35,FALSE),0) -> 0 | AL125: =IFERROR(VLOOKUP($A125,Filtro!$A$5:$AK$2912,36,FALSE),0) -> 0 | AM125: =IFERROR(VLOOKUP($A125,Filtro!$A$5:$AK$2912,37,FALSE),0) -> 0
A126: 01014371 | B126: 0109001 | C126: Teleinterconsulta médica | D126: =IFERROR(VLOOKUP($A126,Filtro!$A$5:$AK$2912,2,FALSE),0) -> 40 | E126: =IFERROR(VLOOKUP($A126,Filtro!$A$5:$AK$2912,3,FALSE),0) -> 40 | F126: =IFERROR(VLOOKUP($A126,Filtro!$A$5:$AK$2912,4,FALSE),0) -> 40 | G126: =IFERROR(VLOOKUP($A126,Filtro!$A$5:$AK$2912,5,FALSE),0) -> 0 | H126: =IFERROR(VLOOKUP($A126,Filtro!$A$5:$AK$2912,6,FALSE),0) -> 0 | I126: =IFERROR(VLOOKUP($A126,Filtro!$A$5:$AK$2912,7,FALSE),0) -> 0 | J126: =IFERROR(VLOOKUP($A126,Filtro!$A$5:$AK$2912,8,FALSE),0) -> 0 | K126: =IFERROR(VLOOKUP($A126,Filtro!$A$5:$AK$2912,9,FALSE),0) -> 0 | L126: =IFERROR(VLOOKUP($A126,Filtro!$A$5:$AK$2912,10,FALSE),0) -> 0 | M126: =IFERROR(VLOOKUP($A126,Filtro!$A$5:$AK$2912,11,FALSE),0) -> 0 | N126: =IFERROR(VLOOKUP($A126,Filtro!$A$5:$AK$2912,12,FALSE),0) -> 0 | O126: =IFERROR(VLOOKUP($A126,Filtro!$A$5:$AK$2912,13,FALSE),0) -> 0 | P126: =IFERROR(VLOOKUP($A126,Filtro!$A$5:$AK$2912,14,FALSE),0) -> 0 | Q126: =IFERROR(VLOOKUP($A126,Filtro!$A$5:$AK$2912,15,FALSE),0) -> 0 | R126: =IFERROR(VLOOKUP($A126,Filtro!$A$5:$AK$2912,16,FALSE),0) -> 0 | S126: =IFERROR(VLOOKUP($A126,Filtro!$A$5:$AK$2912,17,FALSE),0) -> 0 | T126: =IFERROR(VLOOKUP($A126,Filtro!$A$5:$AK$2912,18,FALSE),0) -> 0 | U126: =IFERROR(VLOOKUP($A126,Filtro!$A$5:$AK$2912,19,FALSE),0) -> 0 | V126: =IFERROR(VLOOKUP($A126,Filtro!$A$5:$AK$2912,20,FALSE),0) -> 0 | W126: =IFERROR(VLOOKUP($A126,Filtro!$A$5:$AK$2912,21,FALSE),0) -> 0 | X126: =IFERROR(VLOOKUP($A126,Filtro!$A$5:$AK$2912,22,FALSE),0) -> 0 | Y126: =IFERROR(VLOOKUP($A126,Filtro!$A$5:$AK$2912,23,FALSE),0) -> 0 | Z126: =IFERROR(VLOOKUP($A126,Filtro!$A$5:$AK$2912,24,FALSE),0) -> 0 | AA126: =IFERROR(VLOOKUP($A126,Filtro!$A$5:$AK$2912,25,FALSE),0) -> 0 | AB126: =IFERROR(VLOOKUP($A126,Filtro!$A$5:$AK$2912,26,FALSE),0) -> 0 | AC126: =IFERROR(VLOOKUP($A126,Filtro!$A$5:$AK$2912,27,FALSE),0) -> 40 | AD126: =IFERROR(VLOOKUP($A126,Filtro!$A$5:$AK$2912,28,FALSE),0) -> 0 | AE126: =IFERROR(VLOOKUP($A126,Filtro!$A$5:$AK$2912,29,FALSE),0) -> 0 | AF126: =IFERROR(VLOOKUP($A126,Filtro!$A$5:$AK$2912,30,FALSE),0) -> 0 | AG126: =IFERROR(VLOOKUP($A126,Filtro!$A$5:$AK$2912,31,FALSE),0) -> 0 | AH126: =IFERROR(VLOOKUP($A126,Filtro!$A$5:$AK$2912,32,FALSE),0) -> 0 | AI126: =IFERROR(VLOOKUP($A126,Filtro!$A$5:$AK$2912,33,FALSE),0) -> 0 | AJ126: =IFERROR(VLOOKUP($A126,Filtro!$A$5:$AK$2912,34,FALSE),0) -> 0 | AK126: =IFERROR(VLOOKUP($A126,Filtro!$A$5:$AK$2912,35,FALSE),0) -> 0 | AL126: =IFERROR(VLOOKUP($A126,Filtro!$A$5:$AK$2912,36,FALSE),0) -> 564,750 | AM126: =IFERROR(VLOOKUP($A126,Filtro!$A$5:$AK$2912,37,FALSE),0) -> 301,200
A127: 01014372 | B127: 0109002 | C127: Teleinterconsulta no médica | D127: =IFERROR(VLOOKUP($A127,Filtro!$A$5:$AK$2912,2,FALSE),0) -> 0 | E127: =IFERROR(VLOOKUP($A127,Filtro!$A$5:$AK$2912,3,FALSE),0) -> 0 | F127: =IFERROR(VLOOKUP($A127,Filtro!$A$5:$AK$2912,4,FALSE),0) -> 0 | G127: =IFERROR(VLOOKUP($A127,Filtro!$A$5:$AK$2912,5,FALSE),0) -> 0 | H127: =IFERROR(VLOOKUP($A127,Filtro!$A$5:$AK$2912,6,FALSE),0) -> 0 | I127: =IFERROR(VLOOKUP($A127,Filtro!$A$5:$AK$2912,7,FALSE),0) -> 0 | J127: =IFERROR(VLOOKUP($A127,Filtro!$A$5:$AK$2912,8,FALSE),0) -> 0 | K127: =IFERROR(VLOOKUP($A127,Filtro!$A$5:$AK$2912,9,FALSE),0) -> 0 | L127: =IFERROR(VLOOKUP($A127,Filtro!$A$5:$AK$2912,10,FALSE),0) -> 0 | M127: =IFERROR(VLOOKUP($A127,Filtro!$A$5:$AK$2912,11,FALSE),0) -> 0 | N127: =IFERROR(VLOOKUP($A127,Filtro!$A$5:$AK$2912,12,FALSE),0) -> 0 | O127: =IFERROR(VLOOKUP($A127,Filtro!$A$5:$AK$2912,13,FALSE),0) -> 0 | P127: =IFERROR(VLOOKUP($A127,Filtro!$A$5:$AK$2912,14,FALSE),0) -> 0 | Q127: =IFERROR(VLOOKUP($A127,Filtro!$A$5:$AK$2912,15,FALSE),0) -> 0 | R127: =IFERROR(VLOOKUP($A127,Filtro!$A$5:$AK$2912,16,FALSE),0) -> 0 | S127: =IFERROR(VLOOKUP($A127,Filtro!$A$5:$AK$2912,17,FALSE),0) -> 0 | T127: =IFERROR(VLOOKUP($A127,Filtro!$A$5:$AK$2912,18,FALSE),0) -> 0 | U127: =IFERROR(VLOOKUP($A127,Filtro!$A$5:$AK$2912,19,FALSE),0) -> 0 | V127: =IFERROR(VLOOKUP($A127,Filtro!$A$5:$AK$2912,20,FALSE),0) -> 0 | W127: =IFERROR(VLOOKUP($A127,Filtro!$A$5:$AK$2912,21,FALSE),0) -> 0 | X127: =IFERROR(VLOOKUP($A127,Filtro!$A$5:$AK$2912,22,FALSE),0) -> 0 | Y127: =IFERROR(VLOOKUP($A127,Filtro!$A$5:$AK$2912,23,FALSE),0) -> 0 | Z127: =IFERROR(VLOOKUP($A127,Filtro!$A$5:$AK$2912,24,FALSE),0) -> 0 | AA127: =IFERROR(VLOOKUP($A127,Filtro!$A$5:$AK$2912,25,FALSE),0) -> 0 | AB127: =IFERROR(VLOOKUP($A127,Filtro!$A$5:$AK$2912,26,FALSE),0) -> 0 | AC127: =IFERROR(VLOOKUP($A127,Filtro!$A$5:$AK$2912,27,FALSE),0) -> 0 | AD127: =IFERROR(VLOOKUP($A127,Filtro!$A$5:$AK$2912,28,FALSE),0) -> 0 | AE127: =IFERROR(VLOOKUP($A127,Filtro!$A$5:$AK$2912,29,FALSE),0) -> 0 | AF127: =IFERROR(VLOOKUP($A127,Filtro!$A$5:$AK$2912,30,FALSE),0) -> 0 | AG127: =IFERROR(VLOOKUP($A127,Filtro!$A$5:$AK$2912,31,FALSE),0) -> 0 | AH127: =IFERROR(VLOOKUP($A127,Filtro!$A$5:$AK$2912,32,FALSE),0) -> 0 | AI127: =IFERROR(VLOOKUP($A127,Filtro!$A$5:$AK$2912,33,FALSE),0) -> 0 | AJ127: =IFERROR(VLOOKUP($A127,Filtro!$A$5:$AK$2912,34,FALSE),0) -> 0 | AK127: =IFERROR(VLOOKUP($A127,Filtro!$A$5:$AK$2912,35,FALSE),0) -> 0 | AL127: =IFERROR(VLOOKUP($A127,Filtro!$A$5:$AK$2912,36,FALSE),0) -> 480,000 | AM127: =IFERROR(VLOOKUP($A127,Filtro!$A$5:$AK$2912,37,FALSE),0) -> 0
C128: TOTAL | D128: =IFERROR(VLOOKUP($A128,Filtro!$A$5:$AK$2912,2,FALSE),0) -> 0 | E128: =IFERROR(VLOOKUP($A128,Filtro!$A$5:$AK$2912,3,FALSE),0) -> 0 | F128: =IFERROR(VLOOKUP($A128,Filtro!$A$5:$AK$2912,4,FALSE),0) -> 0 | G128: =IFERROR(VLOOKUP($A128,Filtro!$A$5:$AK$2912,5,FALSE),0) -> 0 | H128: =IFERROR(VLOOKUP($A128,Filtro!$A$5:$AK$2912,6,FALSE),0) -> 0 | I128: =IFERROR(VLOOKUP($A128,Filtro!$A$5:$AK$2912,7,FALSE),0) -> 0 | J128: =IFERROR(VLOOKUP($A128,Filtro!$A$5:$AK$2912,8,FALSE),0) -> 0 | K128: =IFERROR(VLOOKUP($A128,Filtro!$A$5:$AK$2912,9,FALSE),0) -> 0 | L128: =IFERROR(VLOOKUP($A128,Filtro!$A$5:$AK$2912,10,FALSE),0) -> 0 | M128: =IFERROR(VLOOKUP($A128,Filtro!$A$5:$AK$2912,11,FALSE),0) -> 0 | N128: =IFERROR(VLOOKUP($A128,Filtro!$A$5:$AK$2912,12,FALSE),0) -> 0 | O128: =IFERROR(VLOOKUP($A128,Filtro!$A$5:$AK$2912,13,FALSE),0) -> 0 | P128: =IFERROR(VLOOKUP($A128,Filtro!$A$5:$AK$2912,14,FALSE),0) -> 0 | Q128: =IFERROR(VLOOKUP($A128,Filtro!$A$5:$AK$2912,15,FALSE),0) -> 0 | R128: =IFERROR(VLOOKUP($A128,Filtro!$A$5:$AK$2912,16,FALSE),0) -> 0 | S128: =IFERROR(VLOOKUP($A128,Filtro!$A$5:$AK$2912,17,FALSE),0) -> 0 | T128: =IFERROR(VLOOKUP($A128,Filtro!$A$5:$AK$2912,18,FALSE),0) -> 0 | U128: =IFERROR(VLOOKUP($A128,Filtro!$A$5:$AK$2912,19,FALSE),0) -> 0 | V128: =IFERROR(VLOOKUP($A128,Filtro!$A$5:$AK$2912,20,FALSE),0) -> 0 | W128: =IFERROR(VLOOKUP($A128,Filtro!$A$5:$AK$2912,21,FALSE),0) -> 0 | X128: =IFERROR(VLOOKUP($A128,Filtro!$A$5:$AK$2912,22,FALSE),0) -> 0 | Y128: =IFERROR(VLOOKUP($A128,Filtro!$A$5:$AK$2912,23,FALSE),0) -> 0 | Z128: =IFERROR(VLOOKUP($A128,Filtro!$A$5:$AK$2912,24,FALSE),0) -> 0 | AA128: =IFERROR(VLOOKUP($A128,Filtro!$A$5:$AK$2912,25,FALSE),0) -> 0 | AB128: =IFERROR(VLOOKUP($A128,Filtro!$A$5:$AK$2912,26,FALSE),0) -> 0 | AC128: =IFERROR(VLOOKUP($A128,Filtro!$A$5:$AK$2912,27,FALSE),0) -> 0 | AD128: =IFERROR(VLOOKUP($A128,Filtro!$A$5:$AK$2912,28,FALSE),0) -> 0 | AE128: =IFERROR(VLOOKUP($A128,Filtro!$A$5:$AK$2912,29,FALSE),0) -> 0 | AF128: =IFERROR(VLOOKUP($A128,Filtro!$A$5:$AK$2912,30,FALSE),0) -> 0 | AG128: =IFERROR(VLOOKUP($A128,Filtro!$A$5:$AK$2912,31,FALSE),0) -> 0 | AH128: =IFERROR(VLOOKUP($A128,Filtro!$A$5:$AK$2912,32,FALSE),0) -> 0 | AI128: =IFERROR(VLOOKUP($A128,Filtro!$A$5:$AK$2912,33,FALSE),0) -> 0 | AJ128: =IFERROR(VLOOKUP($A128,Filtro!$A$5:$AK$2912,34,FALSE),0) -> 0 | AK128: =IFERROR(VLOOKUP($A128,Filtro!$A$5:$AK$2912,35,FALSE),0) -> 0 | AL128: =IFERROR(VLOOKUP($A128,Filtro!$A$5:$AK$2912,36,FALSE),0) -> 0 | AM128: =IFERROR(VLOOKUP($A128,Filtro!$A$5:$AK$2912,37,FALSE),0) -> 0
C129: EDUCACION DE GRUPO
A130: 01010029 | B130: 0103001 | C130: Educación de grupo por médico | D130: =IFERROR(VLOOKUP($A130,Filtro!$A$5:$AK$2912,2,FALSE),0) -> 402 | E130: =IFERROR(VLOOKUP($A130,Filtro!$A$5:$AK$2912,3,FALSE),0) -> 402 | F130: =IFERROR(VLOOKUP($A130,Filtro!$A$5:$AK$2912,4,FALSE),0) -> 402 | G130: =IFERROR(VLOOKUP($A130,Filtro!$A$5:$AK$2912,5,FALSE),0) -> 0 | H130: =IFERROR(VLOOKUP($A130,Filtro!$A$5:$AK$2912,6,FALSE),0) -> 0 | I130: =IFERROR(VLOOKUP($A130,Filtro!$A$5:$AK$2912,7,FALSE),0) -> 0 | J130: =IFERROR(VLOOKUP($A130,Filtro!$A$5:$AK$2912,8,FALSE),0) -> 0 | K130: =IFERROR(VLOOKUP($A130,Filtro!$A$5:$AK$2912,9,FALSE),0) -> 0 | L130: =IFERROR(VLOOKUP($A130,Filtro!$A$5:$AK$2912,10,FALSE),0) -> 0 | M130: =IFERROR(VLOOKUP($A130,Filtro!$A$5:$AK$2912,11,FALSE),0) -> 0 | N130: =IFERROR(VLOOKUP($A130,Filtro!$A$5:$AK$2912,12,FALSE),0) -> 0 | O130: =IFERROR(VLOOKUP($A130,Filtro!$A$5:$AK$2912,13,FALSE),0) -> 0 | P130: =IFERROR(VLOOKUP($A130,Filtro!$A$5:$AK$2912,14,FALSE),0) -> 0 | Q130: =IFERROR(VLOOKUP($A130,Filtro!$A$5:$AK$2912,15,FALSE),0) -> 0 | R130: =IFERROR(VLOOKUP($A130,Filtro!$A$5:$AK$2912,16,FALSE),0) -> 0 | S130: =IFERROR(VLOOKUP($A130,Filtro!$A$5:$AK$2912,17,FALSE),0) -> 0 | T130: =IFERROR(VLOOKUP($A130,Filtro!$A$5:$AK$2912,18,FALSE),0) -> 0 | U130: =IFERROR(VLOOKUP($A130,Filtro!$A$5:$AK$2912,19,FALSE),0) -> 0 | V130: =IFERROR(VLOOKUP($A130,Filtro!$A$5:$AK$2912,20,FALSE),0) -> 0 | W130: =IFERROR(VLOOKUP($A130,Filtro!$A$5:$AK$2912,21,FALSE),0) -> 0 | X130: =IFERROR(VLOOKUP($A130,Filtro!$A$5:$AK$2912,22,FALSE),0) -> 0 | Y130: =IFERROR(VLOOKUP($A130,Filtro!$A$5:$AK$2912,23,FALSE),0) -> 0 | Z130: =IFERROR(VLOOKUP($A130,Filtro!$A$5:$AK$2912,24,FALSE),0) -> 0 | AA130: =IFERROR(VLOOKUP($A130,Filtro!$A$5:$AK$2912,25,FALSE),0) -> 0 | AB130: =IFERROR(VLOOKUP($A130,Filtro!$A$5:$AK$2912,26,FALSE),0) -> 0 | AC130: =IFERROR(VLOOKUP($A130,Filtro!$A$5:$AK$2912,27,FALSE),0) -> 402 | AD130: =IFERROR(VLOOKUP($A130,Filtro!$A$5:$AK$2912,28,FALSE),0) -> 0 | AE130: =IFERROR(VLOOKUP($A130,Filtro!$A$5:$AK$2912,29,FALSE),0) -> 0 | AF130: =IFERROR(VLOOKUP($A130,Filtro!$A$5:$AK$2912,30,FALSE),0) -> 0 | AG130: =IFERROR(VLOOKUP($A130,Filtro!$A$5:$AK$2912,31,FALSE),0) -> 0 | AH130: =IFERROR(VLOOKUP($A130,Filtro!$A$5:$AK$2912,32,FALSE),0) -> 0 | AI130: =IFERROR(VLOOKUP($A130,Filtro!$A$5:$AK$2912,33,FALSE),0) -> 0 | AJ130: =IFERROR(VLOOKUP($A130,Filtro!$A$5:$AK$2912,34,FALSE),0) -> 0 | AK130: =IFERROR(VLOOKUP($A130,Filtro!$A$5:$AK$2912,35,FALSE),0) -> 0 | AL130: =IFERROR(VLOOKUP($A130,Filtro!$A$5:$AK$2912,36,FALSE),0) -> 348,000 | AM130: =IFERROR(VLOOKUP($A130,Filtro!$A$5:$AK$2912,37,FALSE),0) -> 1,865,280
A131: 01010031 | B131: 0103003 | C131: Educación de grupo por Trabajador/a Social | D131: =IFERROR(VLOOKUP($A131,Filtro!$A$5:$AK$2912,2,FALSE),0) -> 17 | E131: =IFERROR(VLOOKUP($A131,Filtro!$A$5:$AK$2912,3,FALSE),0) -> 17 | F131: =IFERROR(VLOOKUP($A131,Filtro!$A$5:$AK$2912,4,FALSE),0) -> 17 | G131: =IFERROR(VLOOKUP($A131,Filtro!$A$5:$AK$2912,5,FALSE),0) -> 0 | H131: =IFERROR(VLOOKUP($A131,Filtro!$A$5:$AK$2912,6,FALSE),0) -> 0 | I131: =IFERROR(VLOOKUP($A131,Filtro!$A$5:$AK$2912,7,FALSE),0) -> 0 | J131: =IFERROR(VLOOKUP($A131,Filtro!$A$5:$AK$2912,8,FALSE),0) -> 0 | K131: =IFERROR(VLOOKUP($A131,Filtro!$A$5:$AK$2912,9,FALSE),0) -> 0 | L131: =IFERROR(VLOOKUP($A131,Filtro!$A$5:$AK$2912,10,FALSE),0) -> 0 | M131: =IFERROR(VLOOKUP($A131,Filtro!$A$5:$AK$2912,11,FALSE),0) -> 0 | N131: =IFERROR(VLOOKUP($A131,Filtro!$A$5:$AK$2912,12,FALSE),0) -> 0 | O131: =IFERROR(VLOOKUP($A131,Filtro!$A$5:$AK$2912,13,FALSE),0) -> 0 | P131: =IFERROR(VLOOKUP($A131,Filtro!$A$5:$AK$2912,14,FALSE),0) -> 0 | Q131: =IFERROR(VLOOKUP($A131,Filtro!$A$5:$AK$2912,15,FALSE),0) -> 0 | R131: =IFERROR(VLOOKUP($A131,Filtro!$A$5:$AK$2912,16,FALSE),0) -> 0 | S131: =IFERROR(VLOOKUP($A131,Filtro!$A$5:$AK$2912,17,FALSE),0) -> 0 | T131: =IFERROR(VLOOKUP($A131,Filtro!$A$5:$AK$2912,18,FALSE),0) -> 0 | U131: =IFERROR(VLOOKUP($A131,Filtro!$A$5:$AK$2912,19,FALSE),0) -> 0 | V131: =IFERROR(VLOOKUP($A131,Filtro!$A$5:$AK$2912,20,FALSE),0) -> 0 | W131: =IFERROR(VLOOKUP($A131,Filtro!$A$5:$AK$2912,21,FALSE),0) -> 0 | X131: =IFERROR(VLOOKUP($A131,Filtro!$A$5:$AK$2912,22,FALSE),0) -> 0 | Y131: =IFERROR(VLOOKUP($A131,Filtro!$A$5:$AK$2912,23,FALSE),0) -> 0 | Z131: =IFERROR(VLOOKUP($A131,Filtro!$A$5:$AK$2912,24,FALSE),0) -> 0 | AA131: =IFERROR(VLOOKUP($A131,Filtro!$A$5:$AK$2912,25,FALSE),0) -> 0 | AB131: =IFERROR(VLOOKUP($A131,Filtro!$A$5:$AK$2912,26,FALSE),0) -> 0 | AC131: =IFERROR(VLOOKUP($A131,Filtro!$A$5:$AK$2912,27,FALSE),0) -> 17 | AD131: =IFERROR(VLOOKUP($A131,Filtro!$A$5:$AK$2912,28,FALSE),0) -> 0 | AE131: =IFERROR(VLOOKUP($A131,Filtro!$A$5:$AK$2912,29,FALSE),0) -> 0 | AF131: =IFERROR(VLOOKUP($A131,Filtro!$A$5:$AK$2912,30,FALSE),0) -> 0 | AG131: =IFERROR(VLOOKUP($A131,Filtro!$A$5:$AK$2912,31,FALSE),0) -> 0 | AH131: =IFERROR(VLOOKUP($A131,Filtro!$A$5:$AK$2912,32,FALSE),0) -> 0 | AI131: =IFERROR(VLOOKUP($A131,Filtro!$A$5:$AK$2912,33,FALSE),0) -> 0 | AJ131: =IFERROR(VLOOKUP($A131,Filtro!$A$5:$AK$2912,34,FALSE),0) -> 0 | AK131: =IFERROR(VLOOKUP($A131,Filtro!$A$5:$AK$2912,35,FALSE),0) -> 0 | AL131: =IFERROR(VLOOKUP($A131,Filtro!$A$5:$AK$2912,36,FALSE),0) -> 191,250 | AM131: =IFERROR(VLOOKUP($A131,Filtro!$A$5:$AK$2912,37,FALSE),0) -> 43,350
